Workbook

Sheet ACCUEIL
H7: 2019-02-28
A22: Lexique

Sheet Accueilagence
A1: Accueil
E7: =ACCUEIL!H7 -> 2019-02-28

Sheet Accueilsecteur
A1: Accueil
E7: =ACCUEIL!H7 -> 2019-02-28

Sheet AccueilDircom
A1: Accueil
E7: =ACCUEIL!H7 -> 2019-02-28

Sheet DC_FICHE
A1: Accueil
A2: BAROMETRE BDD
A4: UNITE: | B4: DIRECTION COMMERCIALE | K4: ETP : | L4: =VLOOKUP(A5,'RECAP DIRCOM'!$G$6:$I$12,3,FALSE) -> 298.71
A5: =VLOOKUP(B5,LISTES!$M$6:$N$12,2,FALSE) -> 262 | B5: BAS-RHIN
C6: Coefficient du critére | E6: Résultats | I6: Ecart au 1ier | M6: Evolution
E7: du 1ier | G7: DIRECTION | I7: Du mois | K7: Au 31/12/2018
A9: RANG au CLASSEMENT GENERAL | I9: =VLOOKUP($A$5,'RECAP DIRCOM'!$G$6:$FE$312,154,FALSE) -> 7 | K9: =VLOOKUP($A$5,'RECAP DIRCOM AN'!$G$6:$FE$312,154,FALSE) -> 5 | M9: =+K9-I9 -> -2
A11: CRITERE CONQUETE | C11: 15%
B12: Evolution nette Clients Bancarisés Principaux (BP +JBP) par ETP | C12: 4% | E12: ='RECAP DIRCOM'!K4 -> -0.3 | G12: =VLOOKUP($A$5,'RECAP DIRCOM'!$G$6:$FE$312,5,FALSE) -> -1.3 | I12: =VLOOKUP($A$5,'RECAP DIRCOM'!$G$6:$FE$312,6,FALSE) -> 141% | K12: =VLOOKUP($A$5,'RECAP DIRCOM AN'!$G$6:$FE$312,6,FALSE) -> 126% | M12: =+K12-I12 -> -15%
B13: Evolution nette relations Premium par ETP | C13: 4% | E13: ='RECAP DIRCOM'!N4 -> 0.3 | G13: =VLOOKUP($A$5,'RECAP DIRCOM'!$G$6:$FE$312,8,FALSE) -> 0.2 | I13: =VLOOKUP($A$5,'RECAP DIRCOM'!$G$6:$FE$312,9,FALSE) -> 30% | K13: =VLOOKUP($A$5,'RECAP DIRCOM AN'!$G$6:$FE$312,9,FALSE) -> 0% | M13: =+K13-I13 -> -30%
B14: Evolution nette Clients Bancarisés Principaux équipés par ETP | C14: 3% | E14: ='RECAP DIRCOM'!Q4 -> -0.1 | G14: =VLOOKUP($A$5,'RECAP DIRCOM'!$G$6:$FE$312,11,FALSE) -> -0.9 | I14: =VLOOKUP($A$5,'RECAP DIRCOM'!$G$6:$FE$312,12,FALSE) -> 150% | K14: =VLOOKUP($A$5,'RECAP DIRCOM AN'!$G$6:$FE$312,12,FALSE) -> 115% | M14: -35%
B15: Evolution nette Clients Pro actif équipés par rapport à l’objectif fixé | C15: 4% | E15: ='RECAP DIRCOM'!T4 -> 65% | G15: =VLOOKUP($A$5,'RECAP DIRCOM'!$G$6:$FE$312,14,FALSE) -> 25% | I15: =VLOOKUP($A$5,'RECAP DIRCOM'!$G$6:$FE$312,15,FALSE) -> 61% | K15: =VLOOKUP($A$5,'RECAP DIRCOM AN'!$G$6:$FE$312,15,FALSE) -> 134% | M15: 74%
A17: CRITERE EQUIPEMENT BANCARISATION | C17: 15%
B18: Ventes nettes forfaits (+ 2 options) par ETP | C18: 3% | E18: ='RECAP DIRCOM'!AF4 -> -3.5 | G18: =VLOOKUP($A$5,'RECAP DIRCOM'!$G$6:$FE$312,26,FALSE) -> -3.5 | I18: =VLOOKUP($A$5,'RECAP DIRCOM'!$G$6:$FE$312,27,FALSE) -> 1% | K18: =VLOOKUP($A$5,'RECAP DIRCOM AN'!$G$6:$FE$312,27,FALSE) -> 0% | M18: =+K18-I18 -> -1%
B19: Ventes nettes IZICARTES par ETP | C19: 3% | E19: ='RECAP DIRCOM'!AI4 -> 4.1 | G19: =VLOOKUP($A$5,'RECAP DIRCOM'!$G$6:$FE$312,29,FALSE) -> 0.6 | I19: =VLOOKUP($A$5,'RECAP DIRCOM'!$G$6:$FE$312,30,FALSE) -> 86% | K19: =VLOOKUP($A$5,'RECAP DIRCOM AN'!$G$6:$FE$312,30,FALSE) -> 18% | M19: -68%
B20: Ventes nettes cartes HDG par ETP | C20: 3% | E20: ='RECAP DIRCOM'!AL4 -> 5.6 | G20: =VLOOKUP($A$5,'RECAP DIRCOM'!$G$6:$FE$312,32,FALSE) -> 1.3 | I20: =VLOOKUP($A$5,'RECAP DIRCOM'!$G$6:$FE$312,33,FALSE) -> 77% | K20: =VLOOKUP($A$5,'RECAP DIRCOM AN'!$G$6:$FE$312,33,FALSE) -> 33% | M20: -45%
B21: Vente nette CB débit différé par ETP | C21: 3% | E21: ='RECAP DIRCOM'!AO4 -> 2.0 | G21: =VLOOKUP($A$5,'RECAP DIRCOM'!$G$6:$FE$312,35,FALSE) -> 0.3 | I21: =VLOOKUP($A$5,'RECAP DIRCOM'!$G$6:$FE$312,36,FALSE) -> 84% | K21: =VLOOKUP($A$5,'RECAP DIRCOM AN'!$G$6:$FE$312,36,FALSE) -> 80% | M21: -4%
B22: Ventes nettes banca Pro Forfaits Pro, Carte pro par rapport à l’objectif | C22: 3% | E22: ='RECAP DIRCOM'!AR4 -> 24% | G22: =VLOOKUP($A$5,'RECAP DIRCOM'!$G$6:$FE$312,38,FALSE) -> 11% | I22: =VLOOKUP($A$5,'RECAP DIRCOM'!$G$6:$FE$312,39,FALSE) -> 57% | K22: =VLOOKUP($A$5,'RECAP DIRCOM AN'!$G$6:$FE$312,39,FALSE) -> 98% | M22: 41%
A24: CRITERE EPARGNE | C24: 15%
B25: Excédents de collecte (y.c DAV) par ETP | C25: 2% | E25: ='RECAP DIRCOM'!BD4 -> 58.1 | G25: =VLOOKUP($A$5,'RECAP DIRCOM'!$G$6:$FE$312,50,FALSE) -> 14.3 | I25: =VLOOKUP($A$5,'RECAP DIRCOM'!$G$6:$FE$312,51,FALSE) -> 61% | K25: =VLOOKUP($A$5,'RECAP DIRCOM AN'!$G$6:$FE$312,51,FALSE) -> 21% | M25: =+K25-I25 -> -40%
B26: CA assurance vie par ETP | C26: 2% | E26: ='RECAP DIRCOM'!BG4 -> 120.8 | G26: =VLOOKUP($A$5,'RECAP DIRCOM'!$G$6:$FE$312,53,FALSE) -> 86.1 | I26: =VLOOKUP($A$5,'RECAP DIRCOM'!$G$6:$FE$312,54,FALSE) -> 29% | K26: =VLOOKUP($A$5,'RECAP DIRCOM AN'!$G$6:$FE$312,54,FALSE) -> 24% | M26: -5%
B27: Activité UC (CA+arbitrage) par ETP | C27: 2% | E27: ='RECAP DIRCOM'!BJ4 -> 42.5 | G27: =VLOOKUP($A$5,'RECAP DIRCOM'!$G$6:$FE$312,56,FALSE) -> 33.9 | I27: =VLOOKUP($A$5,'RECAP DIRCOM'!$G$6:$FE$312,57,FALSE) -> 20% | K27: =VLOOKUP($A$5,'RECAP DIRCOM AN'!$G$6:$FE$312,57,FALSE) -> 20% | M27: -1%
B28: Excédents Assurance-vie par ETP | C28: 2% | E28: ='RECAP DIRCOM'!BM4 -> 51.2 | G28: =VLOOKUP($A$5,'RECAP DIRCOM'!$G$6:$FE$312,59,FALSE) -> 24.9 | I28: =VLOOKUP($A$5,'RECAP DIRCOM'!$G$6:$FE$312,60,FALSE) -> 51% | K28: =VLOOKUP($A$5,'RECAP DIRCOM AN'!$G$6:$FE$312,60,FALSE) -> 94% | M28: 42%
B29: Excédents Epargne Bilan (Hors Emprunts CTO) par ETP | C29: 7% | E29: ='RECAP DIRCOM'!BP4 -> 76.3 | G29: =VLOOKUP($A$5,'RECAP DIRCOM'!$G$6:$FE$312,62,FALSE) -> 43.0 | I29: =VLOOKUP($A$5,'RECAP DIRCOM'!$G$6:$FE$312,63,FALSE) -> 44% | K29: =VLOOKUP($A$5,'RECAP DIRCOM AN'!$G$6:$FE$312,63,FALSE) -> 0% | M29: -44%
A31: CRITERE CREDITS | C31: 15%
B32: Engagement Conso par ETP (hors clients 9) | C32: 3% | E32: ='RECAP DIRCOM'!CB4 -> 95.3 | G32: =VLOOKUP($A$5,'RECAP DIRCOM'!$G$6:$FE$312,74,FALSE) -> 60.1 | I32: =VLOOKUP($A$5,'RECAP DIRCOM'!$G$6:$FE$312,75,FALSE) -> 37% | K32: =VLOOKUP($A$5,'RECAP DIRCOM AN'!$G$6:$FE$312,75,FALSE) -> 21% | M32: =+K32-I32 -> -16%
B33: % CNP sur Conso en valeur absolue | C33: 2% | E33: ='RECAP DIRCOM'!CE4 -> 97% | G33: =VLOOKUP($A$5,'RECAP DIRCOM'!$G$6:$FE$312,77,FALSE) -> 92% | I33: =VLOOKUP($A$5,'RECAP DIRCOM'!$G$6:$FE$312,78,FALSE) -> 6% | K33: =VLOOKUP($A$5,'RECAP DIRCOM AN'!$G$6:$FE$312,78,FALSE) -> 0% | M33: -6%
B34: Engagements Immo par rapport à l’objectif | C34: 3% | E34: ='RECAP DIRCOM'!CH4 -> 14% | G34: =VLOOKUP($A$5,'RECAP DIRCOM'!$G$6:$FE$312,80,FALSE) -> 13% | I34: =VLOOKUP($A$5,'RECAP DIRCOM'!$G$6:$FE$312,81,FALSE) -> 12% | K34: =VLOOKUP($A$5,'RECAP DIRCOM AN'!$G$6:$FE$312,81,FALSE) -> 29% | M34: 17%
B35: % CNP sur crédits immo en valeur absolue | C35: 2% | E35: ='RECAP DIRCOM'!CK4 -> 81% | G35: =VLOOKUP($A$5,'RECAP DIRCOM'!$G$6:$FE$312,83,FALSE) -> 63% | I35: =VLOOKUP($A$5,'RECAP DIRCOM'!$G$6:$FE$312,84,FALSE) -> 22% | K35: =VLOOKUP($A$5,'RECAP DIRCOM AN'!$G$6:$FE$312,84,FALSE) -> 8% | M35: -14%
B36: Taux de couverture SACCEF | C36: 2% | E36: ='RECAP DIRCOM'!CN4 -> 92% | G36: =VLOOKUP($A$5,'RECAP DIRCOM'!$G$6:$FE$312,86,FALSE) -> 87% | I36: =VLOOKUP($A$5,'RECAP DIRCOM'!$G$6:$FE$312,87,FALSE) -> 4% | K36: =VLOOKUP($A$5,'RECAP DIRCOM AN'!$G$6:$FE$312,87,FALSE) -> 0% | M36: -4%
B37: Engagements CMLT + CB par rapport à l’objectif | C37: 3% | E37: ='RECAP DIRCOM'!CQ4 -> 26% | G37: =VLOOKUP($A$5,'RECAP DIRCOM'!$G$6:$FE$312,89,FALSE) -> 14% | I37: =VLOOKUP($A$5,'RECAP DIRCOM'!$G$6:$FE$312,90,FALSE) -> 44% | K37: =VLOOKUP($A$5,'RECAP DIRCOM AN'!$G$6:$FE$312,90,FALSE) -> 13% | M37: -32%
A39: CRITERE IARD PREVOYANCE | C39: 20%
B40: Ventes nettes IARD (Auto+MRH+ Pro) par ETP | C40: 7% | E40: ='RECAP DIRCOM'!DC4 -> 1.6 | G40: =VLOOKUP($A$5,'RECAP DIRCOM'!$G$6:$FE$312,101,FALSE) -> 1.3 | I40: =VLOOKUP($A$5,'RECAP DIRCOM'!$G$6:$FE$312,102,FALSE) -> 18% | K40: =VLOOKUP($A$5,'RECAP DIRCOM AN'!$G$6:$FE$312,102,FALSE) -> 23% | M40: =+K40-I40 -> 5%
B41: Ventes nettes Prévoyance (GAV, secur.f,prevoy loc,santé,assist.vie, obséques, Pro) par ETP | C41: 7% | E41: ='RECAP DIRCOM'!DF4 -> 2.6 | G41: =VLOOKUP($A$5,'RECAP DIRCOM'!$G$6:$FE$312,104,FALSE) -> 1.5 | I41: =VLOOKUP($A$5,'RECAP DIRCOM'!$G$6:$FE$312,105,FALSE) -> 43% | K41: =VLOOKUP($A$5,'RECAP DIRCOM AN'!$G$6:$FE$312,105,FALSE) -> 7% | M41: -36%
B42: Chiffre d’affaires IARD (Yc Pro) par ETP | C42: 6% | E42: ='RECAP DIRCOM'!DI4 -> 2.3 | G42: =VLOOKUP($A$5,'RECAP DIRCOM'!$G$6:$FE$312,107,FALSE) -> 2.1 | I42: =VLOOKUP($A$5,'RECAP DIRCOM'!$G$6:$FE$312,108,FALSE) -> 9% | K42: =VLOOKUP($A$5,'RECAP DIRCOM AN'!$G$6:$FE$312,108,FALSE) -> 11% | M42: 2%
A44: CRITERE RISQUES | C44: 10%
B45: Complétude, conformité et fiabilisation des nouvelles EER sur flux BDD | C45: 3% | E45: ='RECAP DIRCOM'!DU4 -> 97% | G45: =VLOOKUP($A$5,'RECAP DIRCOM'!$G$6:$FE$312,119,FALSE) -> 92% | I45: =VLOOKUP($A$5,'RECAP DIRCOM'!$G$6:$FE$312,120,FALSE) -> 4% | K45: =VLOOKUP($A$5,'RECAP DIRCOM AN'!$G$6:$FE$312,120,FALSE) -> 3% | M45: =+K45-I45 -> -2%
B46: Complétude, conformité et fiabilisation des EER sur flux cumulé et stock | C46: 3% | E46: ='RECAP DIRCOM'!DX4 -> 76% | G46: =VLOOKUP($A$5,'RECAP DIRCOM'!$G$6:$FE$312,122,FALSE) -> 70% | I46: =VLOOKUP($A$5,'RECAP DIRCOM'!$G$6:$FE$312,123,FALSE) -> 8% | K46: =VLOOKUP($A$5,'RECAP DIRCOM AN'!$G$6:$FE$312,123,FALSE) -> 8% | M46: -0%
B47: Traitement et qualité du traitement des alertes Vigiclient | C47: 4% | E47: ='RECAP DIRCOM'!EA4 -> 100% | G47: =VLOOKUP($A$5,'RECAP DIRCOM'!$G$6:$FE$312,125,FALSE) -> 60% | I47: =VLOOKUP($A$5,'RECAP DIRCOM'!$G$6:$FE$312,126,FALSE) -> 40% | K47: =VLOOKUP($A$5,'RECAP DIRCOM AN'!$G$6:$FE$312,126,FALSE) -> 25% | M47: -15%
A49: CRITERE Satisfaction Clients | C49: 10%
B50: Objectifs NPS* | C50: 5% | E50: ='RECAP DIRCOM'!EM4 -> -4 | G50: =VLOOKUP($A$5,'RECAP DIRCOM'!$G$6:$FE$312,137,FALSE) -> -25 | I50: =VLOOKUP($A$5,'RECAP DIRCOM'!$G$6:$FE$312,138,FALSE) -> 150% | K50: =VLOOKUP($A$5,'RECAP DIRCOM AN'!$G$6:$FE$312,138,FALSE) -> 144% | M50: =+K50-I50 -> -6%
B51: Enquête Qualité Haute Définition | C51: 5% | E51: ='RECAP DIRCOM'!EP4 -> 77% | G51: =VLOOKUP($A$5,'RECAP DIRCOM'!$G$6:$FE$312,140,FALSE) -> 70% | I51: =VLOOKUP($A$5,'RECAP DIRCOM'!$G$6:$FE$312,141,FALSE) -> 9% | K51: =VLOOKUP($A$5,'RECAP DIRCOM AN'!$G$6:$FE$312,141,FALSE) -> 2% | M51: -6%

Sheet DC_OBJECTIF
A1: Accueil | D1: BAROMETRE BDD - DIRECTIONS COMMERCIALES
D2: PV PART SUR OBJECTIFS
D3: =ACCUEIL!H7 -> 2019-02-28
D7: Excédent de collecte par ETP yc DAV | G7: Engagements crédit conso par ETP (hors clients note octroi à 9 et DRC complet) | J7: Ventes brutes IARD prevoyance Part et Pro (si DRC complet) par ETP | M7: Evolution des Bpe+JBPe par ETP | P7: PNB sur activité nouvelle par ETP
E8: Taux d'atteinte saisonalisé | F8: x % | H8: Taux d'atteinte saisonalisé | I8: x % | K8: Taux d'atteinte saisonalisé | L8: x % | N8: Taux d'atteinte saisonalisé | O8: x % | Q8: Taux d'atteinte saisonalisé | R8: x %
A9: eds | B9: Direction | C9: ETP | D9: Réal | E9: Obj | F9: % | G9: Réal | H9: Obj | I9: % | J9: Réal | K9: Obj | L9: % | M9: Réal | N9: Obj | O9: % | P9: Réal | Q9: Obj | R9: %
A10: 50 | B10: Aube Haute Marne | C10: =VLOOKUP($A10,'RECAP DIRCOM'!$G$6:$EV$12,3,FALSE) -> 152 | D10: =VLOOKUP($A10,'RECAP DIRCOM'!$G$6:$FZ$12,158,FALSE) -> -50 | E10: =VLOOKUP($A10,'RECAP DIRCOM'!$G$6:$FZ$12,159,FALSE) -> 116 | F10: =VLOOKUP($A10,'RECAP DIRCOM'!$G$6:$FZ$12,160,FALSE) -> -43% | G10: =VLOOKUP($A10,'RECAP DIRCOM'!$G$6:$FZ$12,161,FALSE) -> 95 | H10: =VLOOKUP($A10,'RECAP DIRCOM'!$G$6:$FZ$12,162,FALSE) -> 467 | I10: =VLOOKUP($A10,'RECAP DIRCOM'!$G$6:$FZ$12,163,FALSE) -> 20% | J10: =VLOOKUP($A10,'RECAP DIRCOM'!$G$6:$FZ$12,164,FALSE) -> 8 | K10: =VLOOKUP($A10,'RECAP DIRCOM'!$G$6:$FZ$12,165,FALSE) -> 59 | L10: =VLOOKUP($A10,'RECAP DIRCOM'!$G$6:$FZ$12,166,FALSE) -> 13% | M10: =VLOOKUP($A10,'RECAP DIRCOM'!$G$6:$FZ$12,167,FALSE) -> -0 | N10: =VLOOKUP($A10,'RECAP DIRCOM'!$G$6:$FZ$12,168,FALSE) -> 4 | O10: =VLOOKUP($A10,'RECAP DIRCOM'!$G$6:$FZ$12,169,FALSE) -> -5% | P10: =VLOOKUP($A10,'RECAP DIRCOM'!$G$6:$FZ$12,170,FALSE) -> 16 | Q10: =VLOOKUP($A10,'RECAP DIRCOM'!$G$6:$FZ$12,171,FALSE) -> 132 | R10: =VLOOKUP($A10,'RECAP DIRCOM'!$G$6:$FZ$12,172,FALSE) -> 12%
A11: 262 | B11: Bas-Rhin | C11: =VLOOKUP($A11,'RECAP DIRCOM'!$G$6:$EV$12,3,FALSE) -> 299 | D11: =VLOOKUP($A11,'RECAP DIRCOM'!$G$6:$FZ$12,158,FALSE) -> 14 | E11: =VLOOKUP($A11,'RECAP DIRCOM'!$G$6:$FZ$12,159,FALSE) -> 128 | F11: =VLOOKUP($A11,'RECAP DIRCOM'!$G$6:$FZ$12,160,FALSE) -> 11% | G11: =VLOOKUP($A11,'RECAP DIRCOM'!$G$6:$FZ$12,161,FALSE) -> 60 | H11: =VLOOKUP($A11,'RECAP DIRCOM'!$G$6:$FZ$12,162,FALSE) -> 467 | I11: =VLOOKUP($A11,'RECAP DIRCOM'!$G$6:$FZ$12,163,FALSE) -> 13% | J11: =VLOOKUP($A11,'RECAP DIRCOM'!$G$6:$FZ$12,164,FALSE) -> 9 | K11: =VLOOKUP($A11,'RECAP DIRCOM'!$G$6:$FZ$12,165,FALSE) -> 59 | L11: =VLOOKUP($A11,'RECAP DIRCOM'!$G$6:$FZ$12,166,FALSE) -> 15% | M11: =VLOOKUP($A11,'RECAP DIRCOM'!$G$6:$FZ$12,167,FALSE) -> -1 | N11: =VLOOKUP($A11,'RECAP DIRCOM'!$G$6:$FZ$12,168,FALSE) -> 4 | O11: =VLOOKUP($A11,'RECAP DIRCOM'!$G$6:$FZ$12,169,FALSE) -> -24% | P11: =VLOOKUP($A11,'RECAP DIRCOM'!$G$6:$FZ$12,170,FALSE) -> 13 | Q11: =VLOOKUP($A11,'RECAP DIRCOM'!$G$6:$FZ$12,171,FALSE) -> 136 | R11: =VLOOKUP($A11,'RECAP DIRCOM'!$G$6:$FZ$12,172,FALSE) -> 10%
A12: 264 | B12: Haut-Rhin | C12: =VLOOKUP($A12,'RECAP DIRCOM'!$G$6:$EV$12,3,FALSE) -> 188 | D12: =VLOOKUP($A12,'RECAP DIRCOM'!$G$6:$FZ$12,158,FALSE) -> 22 | E12: =VLOOKUP($A12,'RECAP DIRCOM'!$G$6:$FZ$12,159,FALSE) -> 132 | F12: =VLOOKUP($A12,'RECAP DIRCOM'!$G$6:$FZ$12,160,FALSE) -> 17% | G12: =VLOOKUP($A12,'RECAP DIRCOM'!$G$6:$FZ$12,161,FALSE) -> 52 | H12: =VLOOKUP($A12,'RECAP DIRCOM'!$G$6:$FZ$12,162,FALSE) -> 467 | I12: =VLOOKUP($A12,'RECAP DIRCOM'!$G$6:$FZ$12,163,FALSE) -> 11% | J12: =VLOOKUP($A12,'RECAP DIRCOM'!$G$6:$FZ$12,164,FALSE) -> 8 | K12: =VLOOKUP($A12,'RECAP DIRCOM'!$G$6:$FZ$12,165,FALSE) -> 59 | L12: =VLOOKUP($A12,'RECAP DIRCOM'!$G$6:$FZ$12,166,FALSE) -> 14% | M12: =VLOOKUP($A12,'RECAP DIRCOM'!$G$6:$FZ$12,167,FALSE) -> -1 | N12: =VLOOKUP($A12,'RECAP DIRCOM'!$G$6:$FZ$12,168,FALSE) -> 4 | O12: =VLOOKUP($A12,'RECAP DIRCOM'!$G$6:$FZ$12,169,FALSE) -> -22% | P12: =VLOOKUP($A12,'RECAP DIRCOM'!$G$6:$FZ$12,170,FALSE) -> 13 | Q12: =VLOOKUP($A12,'RECAP DIRCOM'!$G$6:$FZ$12,171,FALSE) -> 140 | R12: =VLOOKUP($A12,'RECAP DIRCOM'!$G$6:$FZ$12,172,FALSE) -> 9%
A13: 30 | B13: Marne-Ardennes | C13: =VLOOKUP($A13,'RECAP DIRCOM'!$G$6:$EV$12,3,FALSE) -> 242 | D13: =VLOOKUP($A13,'RECAP DIRCOM'!$G$6:$FZ$12,158,FALSE) -> -0 | E13: =VLOOKUP($A13,'RECAP DIRCOM'!$G$6:$FZ$12,159,FALSE) -> 133 | F13: =VLOOKUP($A13,'RECAP DIRCOM'!$G$6:$FZ$12,160,FALSE) -> -0% | G13: =VLOOKUP($A13,'RECAP DIRCOM'!$G$6:$FZ$12,161,FALSE) -> 80 | H13: =VLOOKUP($A13,'RECAP DIRCOM'!$G$6:$FZ$12,162,FALSE) -> 467 | I13: =VLOOKUP($A13,'RECAP DIRCOM'!$G$6:$FZ$12,163,FALSE) -> 17% | J13: =VLOOKUP($A13,'RECAP DIRCOM'!$G$6:$FZ$12,164,FALSE) -> 9 | K13: =VLOOKUP($A13,'RECAP DIRCOM'!$G$6:$FZ$12,165,FALSE) -> 59 | L13: =VLOOKUP($A13,'RECAP DIRCOM'!$G$6:$FZ$12,166,FALSE) -> 15% | M13: =VLOOKUP($A13,'RECAP DIRCOM'!$G$6:$FZ$12,167,FALSE) -> -0 | N13: =VLOOKUP($A13,'RECAP DIRCOM'!$G$6:$FZ$12,168,FALSE) -> 4 | O13: =VLOOKUP($A13,'RECAP DIRCOM'!$G$6:$FZ$12,169,FALSE) -> -2% | P13: =VLOOKUP($A13,'RECAP DIRCOM'!$G$6:$FZ$12,170,FALSE) -> 19 | Q13: =VLOOKUP($A13,'RECAP DIRCOM'!$G$6:$FZ$12,171,FALSE) -> 140 | R13: =VLOOKUP($A13,'RECAP DIRCOM'!$G$6:$FZ$12,172,FALSE) -> 13%
A14: 110 | B14: Meurthe et Moselle Meuse | C14: =VLOOKUP($A14,'RECAP DIRCOM'!$G$6:$EV$12,3,FALSE) -> 271 | D14: =VLOOKUP($A14,'RECAP DIRCOM'!$G$6:$FZ$12,158,FALSE) -> 21 | E14: =VLOOKUP($A14,'RECAP DIRCOM'!$G$6:$FZ$12,159,FALSE) -> 118 | F14: =VLOOKUP($A14,'RECAP DIRCOM'!$G$6:$FZ$12,160,FALSE) -> 18% | G14: =VLOOKUP($A14,'RECAP DIRCOM'!$G$6:$FZ$12,161,FALSE) -> 75 | H14: =VLOOKUP($A14,'RECAP DIRCOM'!$G$6:$FZ$12,162,FALSE) -> 467 | I14: =VLOOKUP($A14,'RECAP DIRCOM'!$G$6:$FZ$12,163,FALSE) -> 16% | J14: =VLOOKUP($A14,'RECAP DIRCOM'!$G$6:$FZ$12,164,FALSE) -> 8 | K14: =VLOOKUP($A14,'RECAP DIRCOM'!$G$6:$FZ$12,165,FALSE) -> 59 | L14: =VLOOKUP($A14,'RECAP DIRCOM'!$G$6:$FZ$12,166,FALSE) -> 14% | M14: =VLOOKUP($A14,'RECAP DIRCOM'!$G$6:$FZ$12,167,FALSE) -> -0 | N14: =VLOOKUP($A14,'RECAP DIRCOM'!$G$6:$FZ$12,168,FALSE) -> 4 | O14: =VLOOKUP($A14,'RECAP DIRCOM'!$G$6:$FZ$12,169,FALSE) -> -4% | P14: =VLOOKUP($A14,'RECAP DIRCOM'!$G$6:$FZ$12,170,FALSE) -> 16 | Q14: =VLOOKUP($A14,'RECAP DIRCOM'!$G$6:$FZ$12,171,FALSE) -> 131 | R14: =VLOOKUP($A14,'RECAP DIRCOM'!$G$6:$FZ$12,172,FALSE) -> 12%
A15: 160 | B15: Moselle | C15: =VLOOKUP($A15,'RECAP DIRCOM'!$G$6:$EV$12,3,FALSE) -> 315 | D15: =VLOOKUP($A15,'RECAP DIRCOM'!$G$6:$FZ$12,158,FALSE) -> 48 | E15: =VLOOKUP($A15,'RECAP DIRCOM'!$G$6:$FZ$12,159,FALSE) -> 117 | F15: =VLOOKUP($A15,'RECAP DIRCOM'!$G$6:$FZ$12,160,FALSE) -> 41% | G15: =VLOOKUP($A15,'RECAP DIRCOM'!$G$6:$FZ$12,161,FALSE) -> 77 | H15: =VLOOKUP($A15,'RECAP DIRCOM'!$G$6:$FZ$12,162,FALSE) -> 467 | I15: =VLOOKUP($A15,'RECAP DIRCOM'!$G$6:$FZ$12,163,FALSE) -> 16% | J15: =VLOOKUP($A15,'RECAP DIRCOM'!$G$6:$FZ$12,164,FALSE) -> 9 | K15: =VLOOKUP($A15,'RECAP DIRCOM'!$G$6:$FZ$12,165,FALSE) -> 59 | L15: =VLOOKUP($A15,'RECAP DIRCOM'!$G$6:$FZ$12,166,FALSE) -> 15% | M15: =VLOOKUP($A15,'RECAP DIRCOM'!$G$6:$FZ$12,167,FALSE) -> -1 | N15: =VLOOKUP($A15,'RECAP DIRCOM'!$G$6:$FZ$12,168,FALSE) -> 4 | O15: =VLOOKUP($A15,'RECAP DIRCOM'!$G$6:$FZ$12,169,FALSE) -> -13% | P15: =VLOOKUP($A15,'RECAP DIRCOM'!$G$6:$FZ$12,170,FALSE) -> 19 | Q15: =VLOOKUP($A15,'RECAP DIRCOM'!$G$6:$FZ$12,171,FALSE) -> 134 | R15: =VLOOKUP($A15,'RECAP DIRCOM'!$G$6:$FZ$12,172,FALSE) -> 14%
A16: 80 | B16: Vosges | C16: =VLOOKUP($A16,'RECAP DIRCOM'!$G$6:$EV$12,3,FALSE) -> 150 | D16: =VLOOKUP($A16,'RECAP DIRCOM'!$G$6:$FZ$12,158,FALSE) -> 58 | E16: =VLOOKUP($A16,'RECAP DIRCOM'!$G$6:$FZ$12,159,FALSE) -> 110 | F16: =VLOOKUP($A16,'RECAP DIRCOM'!$G$6:$FZ$12,160,FALSE) -> 53% | G16: =VLOOKUP($A16,'RECAP DIRCOM'!$G$6:$FZ$12,161,FALSE) -> 77 | H16: =VLOOKUP($A16,'RECAP DIRCOM'!$G$6:$FZ$12,162,FALSE) -> 467 | I16: =VLOOKUP($A16,'RECAP DIRCOM'!$G$6:$FZ$12,163,FALSE) -> 17% | J16: =VLOOKUP($A16,'RECAP DIRCOM'!$G$6:$FZ$12,164,FALSE) -> 9 | K16: =VLOOKUP($A16,'RECAP DIRCOM'!$G$6:$FZ$12,165,FALSE) -> 59 | L16: =VLOOKUP($A16,'RECAP DIRCOM'!$G$6:$FZ$12,166,FALSE) -> 15% | M16: =VLOOKUP($A16,'RECAP DIRCOM'!$G$6:$FZ$12,167,FALSE) -> -1 | N16: =VLOOKUP($A16,'RECAP DIRCOM'!$G$6:$FZ$12,168,FALSE) -> 4 | O16: =VLOOKUP($A16,'RECAP DIRCOM'!$G$6:$FZ$12,169,FALSE) -> -13% | P16: =VLOOKUP($A16,'RECAP DIRCOM'!$G$6:$FZ$12,170,FALSE) -> 17 | Q16: =VLOOKUP($A16,'RECAP DIRCOM'!$G$6:$FZ$12,171,FALSE) -> 127 | R16: =VLOOKUP($A16,'RECAP DIRCOM'!$G$6:$FZ$12,172,FALSE) -> 13%
A17: Total CEGEE Directions Commerciales | C17: =SUM(C10:C16) -> 1617

Sheet DC_TOTAL
A1: Accueil | D1: BAROMETRE BDD - DIRECTIONS COMMERCIALES
D2: TOTAL GENERAL
D3: =ACCUEIL!H7 -> 2019-02-28
D7: TOTAL GENERAL | G7: Total Conquête | J7: Total Equipement Bancarisation | M7: Total Epargne | P7: Total Crédits | S7: Total IARD Prévoyance | V7: Total Risques | Y7: Total Satisfaction Clients
E8: coef | F8: 100% | H8: coef | I8: ='RECAP DIRCOM'!$Y$4 -> 15% | K8: coef | L8: ='RECAP DIRCOM'!$AW$4 -> 15% | N8: coef | O8: ='RECAP DIRCOM'!$BU$4 -> 15% | Q8: coef | R8: ='RECAP DIRCOM'!$CV$4 -> 15% | T8: coef | U8: ='RECAP DIRCOM'!$DN$4 -> 20% | W8: coef | X8: ='RECAP DIRCOM'!$EF$4 -> 10% | Z8: coef | AA8: ='RECAP DIRCOM'!$EU$4 -> 10%
A9: eds | B9: Direction | C9: ETP | D9: Moyenne ecart au 1er | E9: % Ecart au 1er | F9: Rang CEGEE | G9: Moyenne ecart au 1er | H9: % Ecart au 1er | I9: Rang CEGEE | J9: Moyenne ecart au 1er | K9: % Ecart au 1er | L9: Rang CEGEE | M9: Moyenne ecart au 1er | N9: % Ecart au 1er | O9: Rang CEGEE | P9: Moyenne ecart au 1er | Q9: % Ecart au 1er | R9: Rang CEGEE | S9: Moyenne ecart au 1er | T9: % Ecart au 1er | U9: Rang CEGEE | V9: Moyenne ecart au 1er | W9: % Ecart au 1er | X9: Rang CEGEE | Y9: Moyenne ecart au 1er | Z9: % Ecart au 1er | AA9: Rang CEGEE
A10: 30 | B10: Marne-Ardennes | C10: 242 | D10: 7% | E10: 0% | F10: 1 | G10: 27% | H10: 12% | I10: 2 | J10: 39% | K10: 24% | L10: 2 | M10: 18% | N10: 6% | O10: 3 | P10: 6% | Q10: 2% | R10: 2 | S10: 14% | T10: 0% | U10: 1 | V10: 3% | W10: 2% | X10: 3 | Y10: 1% | Z10: 0% | AA10: 1
A11: 80 | B11: Vosges | C11: 150 | D11: 12% | E11: 6% | F11: 2 | G11: 33% | H11: 19% | I11: 3 | J11: 48% | K11: 34% | L11: 3 | M11: 12% | N11: 0% | O11: 1 | P11: 7% | Q11: 3% | R11: 3 | S11: 15% | T11: 1% | U11: 2 | V11: 1% | W11: 0% | X11: 1 | Y11: 39% | Z11: 38% | AA11: 3
A12: 160 | B12: Moselle | C12: 315 | D12: 13% | E12: 6% | F12: 3 | G12: 44% | H12: 30% | I12: 4 | J12: 15% | K12: 0% | L12: 1 | M12: 18% | N12: 6% | O12: 2 | P12: 18% | Q12: 14% | R12: 5 | S12: 19% | T12: 5% | U12: 4 | V12: 4% | W12: 3% | X12: 4 | Y12: 46% | Z12: 45% | AA12: 5
A13: 110 | B13: Meurthe et Moselle Meuse | C13: 271 | D13: 16% | E13: 10% | F13: 4 | G13: 15% | H13: 0% | I13: 1 | J13: 66% | K13: 51% | L13: 7 | M13: 19% | N13: 7% | O13: 4 | P13: 16% | Q13: 12% | R13: 4 | S13: 16% | T13: 2% | U13: 3 | V13: 14% | W13: 13% | X13: 6 | Y13: 42% | Z13: 41% | AA13: 4
A14: 50 | B14: Aube Haute Marne | C14: 152 | D14: 26% | E14: 19% | F14: 5 | G14: 51% | H14: 37% | I14: 5 | J14: 52% | K14: 37% | L14: 4 | M14: 79% | N14: 67% | O14: 7 | P14: 4% | Q14: 0% | R14: 1 | S14: 22% | T14: 8% | U14: 5 | V14: 1% | W14: 1% | X14: 2 | Y14: 30% | Z14: 29% | AA14: 2
A15: 264 | B15: Haut-Rhin | C15: 188 | D15: 37% | E15: 30% | F15: 6 | G15: 105% | H15: 91% | I15: 7 | J15: 66% | K15: 51% | L15: 6 | M15: 27% | N15: 15% | O15: 5 | P15: 24% | Q15: 20% | R15: 7 | S15: 28% | T15: 14% | U15: 7 | V15: 4% | W15: 3% | X15: 5 | Y15: 69% | Z15: 69% | AA15: 6
A16: 262 | B16: Bas-Rhin | C16: 299 | D16: 38% | E16: 31% | F16: 7 | G16: 92% | H16: 77% | I16: 6 | J16: 61% | K16: 46% | L16: 5 | M16: 42% | N16: 30% | O16: 6 | P16: 23% | Q16: 19% | R16: 6 | S16: 24% | T16: 10% | U16: 6 | V16: 20% | W16: 19% | X16: 7 | Y16: 79% | Z16: 78% | AA16: 7
A17: Total CEGEE Directions Commerciales | C17: =SUM(C10:C16) -> 1617

Sheet DC_BANCA
A1: Accueil | D1: BAROMETRE BDD - DIRECTIONS COMMERCIALES
D2: EQUIPEMENT BANCARISATION
D3: =ACCUEIL!H7 -> 2019-02-28
D7: Ventes nettes FORFAITS avec 2 options | G7: Ventes nettes IZICARTES | J7: Ventes nettes Cartes HDG | M7: Ventes nettes CB débit différé | P7: Ventes nettes banca Pro | S7: Total Equipement Bancarisation
E8: coef | F8: ='RECAP DIRCOM'!AH4 -> 3% | H8: coef | I8: ='RECAP DIRCOM'!AK4 -> 3% | K8: coef | L8: ='RECAP DIRCOM'!AN4 -> 3% | N8: coef | O8: ='RECAP DIRCOM'!AQ4 -> 3% | Q8: coef | R8: ='RECAP DIRCOM'!AT4 -> 3% | T8: coef | U8: ='RECAP DIRCOM'!AW4 -> 15%
A9: eds | B9: Direction | C9: ETP | D9: Nb / ETP | E9: % Ecart au 1er | F9: Rang | G9: Nb / ETP | H9: % Ecart au 1er | I9: Rang | J9: Nb / ETP | K9: % Ecart au 1er | L9: Rang | M9: Nb / ETP | N9: % Ecart au 1er | O9: Rang | P9: Taux réal objectif | Q9: % Ecart au 1er | R9: Rang | S9: Moyenne ecart au 1er | T9: % Ecart au 1er | U9: Rang CEGEE
A10: 50 | B10: Aube Haute Marne | C10: =VLOOKUP($A10,'RECAP DIRCOM'!$G$6:$EV$12,3,FALSE) -> 152 | D10: =VLOOKUP($A10,'RECAP DIRCOM'!$G$6:$EV$12,26,FALSE) -> -4.67 | E10: =VLOOKUP($A10,'RECAP DIRCOM'!$G$6:$EV$12,27,FALSE) -> 35% | F10: =VLOOKUP($A10,'RECAP DIRCOM'!$G$6:$EV$12,28,FALSE) -> 4 | G10: =VLOOKUP($A10,'RECAP DIRCOM'!$G$6:$EV$12,29,FALSE) -> 2.10 | H10: =VLOOKUP($A10,'RECAP DIRCOM'!$G$6:$EV$12,30,FALSE) -> 49% | I10: =VLOOKUP($A10,'RECAP DIRCOM'!$G$6:$EV$12,31,FALSE) -> 4 | J10: =VLOOKUP($A10,'RECAP DIRCOM'!$G$6:$EV$12,32,FALSE) -> 1.91 | K10: =VLOOKUP($A10,'RECAP DIRCOM'!$G$6:$EV$12,33,FALSE) -> 66% | L10: =VLOOKUP($A10,'RECAP DIRCOM'!$G$6:$EV$12,34,FALSE) -> 2 | M10: =VLOOKUP($A10,'RECAP DIRCOM'!$G$6:$EV$12,35,FALSE) -> 0.18 | N10: =VLOOKUP($A10,'RECAP DIRCOM'!$G$6:$EV$12,36,FALSE) -> 91% | O10: =VLOOKUP($A10,'RECAP DIRCOM'!$G$6:$EV$12,37,FALSE) -> 4 | P10: =VLOOKUP($A10,'RECAP DIRCOM'!$G$6:$EV$12,38,FALSE) -> 20% | Q10: =VLOOKUP($A10,'RECAP DIRCOM'!$G$6:$EV$12,39,FALSE) -> 20% | R10: =VLOOKUP($A10,'RECAP DIRCOM'!$G$6:$EV$12,40,FALSE) -> 5 | S10: =VLOOKUP($A10,'RECAP DIRCOM'!$G$6:$EV$12,41,FALSE) -> 52% | T10: =VLOOKUP($A10,'RECAP DIRCOM'!$G$6:$EV$12,42,FALSE) -> 37% | U10: =VLOOKUP($A10,'RECAP DIRCOM'!$G$6:$EV$12,43,FALSE) -> 4
A11: 262 | B11: Bas-Rhin | C11: =VLOOKUP($A11,'RECAP DIRCOM'!$G$6:$EV$12,3,FALSE) -> 299 | D11: =VLOOKUP($A11,'RECAP DIRCOM'!$G$6:$EV$12,26,FALSE) -> -3.50 | E11: =VLOOKUP($A11,'RECAP DIRCOM'!$G$6:$EV$12,27,FALSE) -> 1% | F11: =VLOOKUP($A11,'RECAP DIRCOM'!$G$6:$EV$12,28,FALSE) -> 2 | G11: =VLOOKUP($A11,'RECAP DIRCOM'!$G$6:$EV$12,29,FALSE) -> 0.58 | H11: =VLOOKUP($A11,'RECAP DIRCOM'!$G$6:$EV$12,30,FALSE) -> 86% | I11: =VLOOKUP($A11,'RECAP DIRCOM'!$G$6:$EV$12,31,FALSE) -> 6 | J11: =VLOOKUP($A11,'RECAP DIRCOM'!$G$6:$EV$12,32,FALSE) -> 1.28 | K11: =VLOOKUP($A11,'RECAP DIRCOM'!$G$6:$EV$12,33,FALSE) -> 77% | L11: =VLOOKUP($A11,'RECAP DIRCOM'!$G$6:$EV$12,34,FALSE) -> 5 | M11: =VLOOKUP($A11,'RECAP DIRCOM'!$G$6:$EV$12,35,FALSE) -> 0.32 | N11: =VLOOKUP($A11,'RECAP DIRCOM'!$G$6:$EV$12,36,FALSE) -> 84% | O11: =VLOOKUP($A11,'RECAP DIRCOM'!$G$6:$EV$12,37,FALSE) -> 3 | P11: =VLOOKUP($A11,'RECAP DIRCOM'!$G$6:$EV$12,38,FALSE) -> 11% | Q11: =VLOOKUP($A11,'RECAP DIRCOM'!$G$6:$EV$12,39,FALSE) -> 57% | R11: =VLOOKUP($A11,'RECAP DIRCOM'!$G$6:$EV$12,40,FALSE) -> 7 | S11: =VLOOKUP($A11,'RECAP DIRCOM'!$G$6:$EV$12,41,FALSE) -> 61% | T11: =VLOOKUP($A11,'RECAP DIRCOM'!$G$6:$EV$12,42,FALSE) -> 46% | U11: =VLOOKUP($A11,'RECAP DIRCOM'!$G$6:$EV$12,43,FALSE) -> 5
A12: 264 | B12: Haut-Rhin | C12: =VLOOKUP($A12,'RECAP DIRCOM'!$G$6:$EV$12,3,FALSE) -> 188 | D12: =VLOOKUP($A12,'RECAP DIRCOM'!$G$6:$EV$12,26,FALSE) -> -3.47 | E12: =VLOOKUP($A12,'RECAP DIRCOM'!$G$6:$EV$12,27,FALSE) -> 0% | F12: =VLOOKUP($A12,'RECAP DIRCOM'!$G$6:$EV$12,28,FALSE) -> 1 | G12: =VLOOKUP($A12,'RECAP DIRCOM'!$G$6:$EV$12,29,FALSE) -> -0.09 | H12: =VLOOKUP($A12,'RECAP DIRCOM'!$G$6:$EV$12,30,FALSE) -> 102% | I12: =VLOOKUP($A12,'RECAP DIRCOM'!$G$6:$EV$12,31,FALSE) -> 7 | J12: =VLOOKUP($A12,'RECAP DIRCOM'!$G$6:$EV$12,32,FALSE) -> 0.35 | K12: =VLOOKUP($A12,'RECAP DIRCOM'!$G$6:$EV$12,33,FALSE) -> 94% | L12: =VLOOKUP($A12,'RECAP DIRCOM'!$G$6:$EV$12,34,FALSE) -> 7 | M12: =VLOOKUP($A12,'RECAP DIRCOM'!$G$6:$EV$12,35,FALSE) -> 0.02 | N12: =VLOOKUP($A12,'RECAP DIRCOM'!$G$6:$EV$12,36,FALSE) -> 99% | O12: =VLOOKUP($A12,'RECAP DIRCOM'!$G$6:$EV$12,37,FALSE) -> 5 | P12: =VLOOKUP($A12,'RECAP DIRCOM'!$G$6:$EV$12,38,FALSE) -> 16% | Q12: =VLOOKUP($A12,'RECAP DIRCOM'!$G$6:$EV$12,39,FALSE) -> 33% | R12: =VLOOKUP($A12,'RECAP DIRCOM'!$G$6:$EV$12,40,FALSE) -> 6 | S12: =VLOOKUP($A12,'RECAP DIRCOM'!$G$6:$EV$12,41,FALSE) -> 66% | T12: =VLOOKUP($A12,'RECAP DIRCOM'!$G$6:$EV$12,42,FALSE) -> 51% | U12: =VLOOKUP($A12,'RECAP DIRCOM'!$G$6:$EV$12,43,FALSE) -> 6
A13: 30 | B13: Marne-Ardennes | C13: =VLOOKUP($A13,'RECAP DIRCOM'!$G$6:$EV$12,3,FALSE) -> 242 | D13: =VLOOKUP($A13,'RECAP DIRCOM'!$G$6:$EV$12,26,FALSE) -> -4.84 | E13: =VLOOKUP($A13,'RECAP DIRCOM'!$G$6:$EV$12,27,FALSE) -> 39% | F13: =VLOOKUP($A13,'RECAP DIRCOM'!$G$6:$EV$12,28,FALSE) -> 6 | G13: =VLOOKUP($A13,'RECAP DIRCOM'!$G$6:$EV$12,29,FALSE) -> 4.11 | H13: =VLOOKUP($A13,'RECAP DIRCOM'!$G$6:$EV$12,30,FALSE) -> 0% | I13: =VLOOKUP($A13,'RECAP DIRCOM'!$G$6:$EV$12,31,FALSE) -> 1 | J13: =VLOOKUP($A13,'RECAP DIRCOM'!$G$6:$EV$12,32,FALSE) -> 1.69 | K13: =VLOOKUP($A13,'RECAP DIRCOM'!$G$6:$EV$12,33,FALSE) -> 70% | L13: =VLOOKUP($A13,'RECAP DIRCOM'!$G$6:$EV$12,34,FALSE) -> 3 | M13: =VLOOKUP($A13,'RECAP DIRCOM'!$G$6:$EV$12,35,FALSE) -> 0.34 | N13: =VLOOKUP($A13,'RECAP DIRCOM'!$G$6:$EV$12,36,FALSE) -> 83% | O13: =VLOOKUP($A13,'RECAP DIRCOM'!$G$6:$EV$12,37,FALSE) -> 2 | P13: =VLOOKUP($A13,'RECAP DIRCOM'!$G$6:$EV$12,38,FALSE) -> 24% | Q13: =VLOOKUP($A13,'RECAP DIRCOM'!$G$6:$EV$12,39,FALSE) -> 2% | R13: =VLOOKUP($A13,'RECAP DIRCOM'!$G$6:$EV$12,40,FALSE) -> 2 | S13: =VLOOKUP($A13,'RECAP DIRCOM'!$G$6:$EV$12,41,FALSE) -> 39% | T13: =VLOOKUP($A13,'RECAP DIRCOM'!$G$6:$EV$12,42,FALSE) -> 24% | U13: =VLOOKUP($A13,'RECAP DIRCOM'!$G$6:$EV$12,43,FALSE) -> 2
A14: 110 | B14: Meurthe et Moselle Meuse | C14: =VLOOKUP($A14,'RECAP DIRCOM'!$G$6:$EV$12,3,FALSE) -> 271 | D14: =VLOOKUP($A14,'RECAP DIRCOM'!$G$6:$EV$12,26,FALSE) -> -5.11 | E14: =VLOOKUP($A14,'RECAP DIRCOM'!$G$6:$EV$12,27,FALSE) -> 47% | F14: =VLOOKUP($A14,'RECAP DIRCOM'!$G$6:$EV$12,28,FALSE) -> 7 | G14: =VLOOKUP($A14,'RECAP DIRCOM'!$G$6:$EV$12,29,FALSE) -> 0.69 | H14: =VLOOKUP($A14,'RECAP DIRCOM'!$G$6:$EV$12,30,FALSE) -> 83% | I14: =VLOOKUP($A14,'RECAP DIRCOM'!$G$6:$EV$12,31,FALSE) -> 5 | J14: =VLOOKUP($A14,'RECAP DIRCOM'!$G$6:$EV$12,32,FALSE) -> 0.74 | K14: =VLOOKUP($A14,'RECAP DIRCOM'!$G$6:$EV$12,33,FALSE) -> 87% | L14: =VLOOKUP($A14,'RECAP DIRCOM'!$G$6:$EV$12,34,FALSE) -> 6 | M14: =VLOOKUP($A14,'RECAP DIRCOM'!$G$6:$EV$12,35,FALSE) -> -0.10 | N14: =VLOOKUP($A14,'RECAP DIRCOM'!$G$6:$EV$12,36,FALSE) -> 105% | O14: =VLOOKUP($A14,'RECAP DIRCOM'!$G$6:$EV$12,37,FALSE) -> 7 | P14: =VLOOKUP($A14,'RECAP DIRCOM'!$G$6:$EV$12,38,FALSE) -> 23% | Q14: =VLOOKUP($A14,'RECAP DIRCOM'!$G$6:$EV$12,39,FALSE) -> 8% | R14: =VLOOKUP($A14,'RECAP DIRCOM'!$G$6:$EV$12,40,FALSE) -> 4 | S14: =VLOOKUP($A14,'RECAP DIRCOM'!$G$6:$EV$12,41,FALSE) -> 66% | T14: =VLOOKUP($A14,'RECAP DIRCOM'!$G$6:$EV$12,42,FALSE) -> 51% | U14: =VLOOKUP($A14,'RECAP DIRCOM'!$G$6:$EV$12,43,FALSE) -> 7
A15: 160 | B15: Moselle | C15: =VLOOKUP($A15,'RECAP DIRCOM'!$G$6:$EV$12,3,FALSE) -> 315 | D15: =VLOOKUP($A15,'RECAP DIRCOM'!$G$6:$EV$12,26,FALSE) -> -4.76 | E15: =VLOOKUP($A15,'RECAP DIRCOM'!$G$6:$EV$12,27,FALSE) -> 37% | F15: =VLOOKUP($A15,'RECAP DIRCOM'!$G$6:$EV$12,28,FALSE) -> 5 | G15: =VLOOKUP($A15,'RECAP DIRCOM'!$G$6:$EV$12,29,FALSE) -> 2.64 | H15: =VLOOKUP($A15,'RECAP DIRCOM'!$G$6:$EV$12,30,FALSE) -> 36% | I15: =VLOOKUP($A15,'RECAP DIRCOM'!$G$6:$EV$12,31,FALSE) -> 2 | J15: =VLOOKUP($A15,'RECAP DIRCOM'!$G$6:$EV$12,32,FALSE) -> 5.63 | K15: =VLOOKUP($A15,'RECAP DIRCOM'!$G$6:$EV$12,33,FALSE) -> 0% | L15: =VLOOKUP($A15,'RECAP DIRCOM'!$G$6:$EV$12,34,FALSE) -> 1 | M15: =VLOOKUP($A15,'RECAP DIRCOM'!$G$6:$EV$12,35,FALSE) -> 1.98 | N15: =VLOOKUP($A15,'RECAP DIRCOM'!$G$6:$EV$12,36,FALSE) -> 0% | O15: =VLOOKUP($A15,'RECAP DIRCOM'!$G$6:$EV$12,37,FALSE) -> 1 | P15: =VLOOKUP($A15,'RECAP DIRCOM'!$G$6:$EV$12,38,FALSE) -> 24% | Q15: =VLOOKUP($A15,'RECAP DIRCOM'!$G$6:$EV$12,39,FALSE) -> 0% | R15: =VLOOKUP($A15,'RECAP DIRCOM'!$G$6:$EV$12,40,FALSE) -> 1 | S15: =VLOOKUP($A15,'RECAP DIRCOM'!$G$6:$EV$12,41,FALSE) -> 15% | T15: =VLOOKUP($A15,'RECAP DIRCOM'!$G$6:$EV$12,42,FALSE) -> 0% | U15: =VLOOKUP($A15,'RECAP DIRCOM'!$G$6:$EV$12,43,FALSE) -> 1
A16: 80 | B16: Vosges | C16: =VLOOKUP($A16,'RECAP DIRCOM'!$G$6:$EV$12,3,FALSE) -> 150 | D16: =VLOOKUP($A16,'RECAP DIRCOM'!$G$6:$EV$12,26,FALSE) -> -4.17 | E16: =VLOOKUP($A16,'RECAP DIRCOM'!$G$6:$EV$12,27,FALSE) -> 20% | F16: =VLOOKUP($A16,'RECAP DIRCOM'!$G$6:$EV$12,28,FALSE) -> 3 | G16: =VLOOKUP($A16,'RECAP DIRCOM'!$G$6:$EV$12,29,FALSE) -> 2.39 | H16: =VLOOKUP($A16,'RECAP DIRCOM'!$G$6:$EV$12,30,FALSE) -> 42% | I16: =VLOOKUP($A16,'RECAP DIRCOM'!$G$6:$EV$12,31,FALSE) -> 3 | J16: =VLOOKUP($A16,'RECAP DIRCOM'!$G$6:$EV$12,32,FALSE) -> 1.40 | K16: =VLOOKUP($A16,'RECAP DIRCOM'!$G$6:$EV$12,33,FALSE) -> 75% | L16: =VLOOKUP($A16,'RECAP DIRCOM'!$G$6:$EV$12,34,FALSE) -> 4 | M16: =VLOOKUP($A16,'RECAP DIRCOM'!$G$6:$EV$12,35,FALSE) -> -0.01 | N16: =VLOOKUP($A16,'RECAP DIRCOM'!$G$6:$EV$12,36,FALSE) -> 101% | O16: =VLOOKUP($A16,'RECAP DIRCOM'!$G$6:$EV$12,37,FALSE) -> 6 | P16: =VLOOKUP($A16,'RECAP DIRCOM'!$G$6:$EV$12,38,FALSE) -> 24% | Q16: =VLOOKUP($A16,'RECAP DIRCOM'!$G$6:$EV$12,39,FALSE) -> 4% | R16: =VLOOKUP($A16,'RECAP DIRCOM'!$G$6:$EV$12,40,FALSE) -> 3 | S16: =VLOOKUP($A16,'RECAP DIRCOM'!$G$6:$EV$12,41,FALSE) -> 48% | T16: =VLOOKUP($A16,'RECAP DIRCOM'!$G$6:$EV$12,42,FALSE) -> 34% | U16: =VLOOKUP($A16,'RECAP DIRCOM'!$G$6:$EV$12,43,FALSE) -> 3
A17: Total CEGEE Directions Commerciales | C17: =SUM(C10:C16) -> 1617

Sheet DC_EPARGNE
A1: Accueil | D1: BAROMETRE BDD - DIRECTIONS COMMERCIALES
D2: EPARGNE
D3: =ACCUEIL!H7 -> 2019-02-28
D7: Excédent de collecte yc DAV | G7: CA assurance vie | J7: Activité UC (CA+Arbitrage) | M7: Excédent assurance vie | P7: Excédent Epargne Bilan (hors emprunt CTO) | S7: Total Epargne
E8: coef | F8: ='RECAP DIRCOM'!BF4 -> 2% | H8: coef | I8: ='RECAP DIRCOM'!BI4 -> 2% | K8: coef | L8: ='RECAP DIRCOM'!BL4 -> 2% | N8: coef | O8: ='RECAP DIRCOM'!BO4 -> 2% | Q8: coef | R8: ='RECAP DIRCOM'!BR4 -> 7% | T8: coef | U8: ='RECAP DIRCOM'!BU4 -> 15%
A9: eds | B9: Direction | C9: ETP | D9: Réal / ETP | E9: % Ecart au 1er | F9: Rang | G9: Réal / ETP | H9: % Ecart au 1er | I9: Rang | J9: Réal / ETP | K9: % Ecart au 1er | L9: Rang | M9: Réal / ETP | N9: % Ecart au 1er | O9: Rang | P9: Réal / ETP | Q9: % Ecart au 1er | R9: Rang | S9: Moyenne ecart au 1er | T9: % Ecart au 1er | U9: Rang CEGEE
A10: 50 | B10: Aube Haute Marne | C10: =VLOOKUP($A10,'RECAP DIRCOM'!$G$6:$EV$12,3,FALSE) -> 152 | D10: =VLOOKUP($A10,'RECAP DIRCOM'!$G$6:$EV$12,50,FALSE) -> -49.90 | E10: =VLOOKUP($A10,'RECAP DIRCOM'!$G$6:$EV$12,51,FALSE) -> 150% | F10: =VLOOKUP($A10,'RECAP DIRCOM'!$G$6:$EV$12,52,FALSE) -> 7 | G10: =VLOOKUP($A10,'RECAP DIRCOM'!$G$6:$EV$12,53,FALSE) -> 101.74 | H10: =VLOOKUP($A10,'RECAP DIRCOM'!$G$6:$EV$12,54,FALSE) -> 16% | I10: =VLOOKUP($A10,'RECAP DIRCOM'!$G$6:$EV$12,55,FALSE) -> 5 | J10: =VLOOKUP($A10,'RECAP DIRCOM'!$G$6:$EV$12,56,FALSE) -> 37 | K10: =VLOOKUP($A10,'RECAP DIRCOM'!$G$6:$EV$12,57,FALSE) -> 14% | L10: =VLOOKUP($A10,'RECAP DIRCOM'!$G$6:$EV$12,58,FALSE) -> 2 | M10: =VLOOKUP($A10,'RECAP DIRCOM'!$G$6:$EV$12,59,FALSE) -> 9.77 | N10: =VLOOKUP($A10,'RECAP DIRCOM'!$G$6:$EV$12,60,FALSE) -> 81% | O10: =VLOOKUP($A10,'RECAP DIRCOM'!$G$6:$EV$12,61,FALSE) -> 6 | P10: =VLOOKUP($A10,'RECAP DIRCOM'!$G$6:$EV$12,62,FALSE) -> 3.95 | Q10: =VLOOKUP($A10,'RECAP DIRCOM'!$G$6:$EV$12,63,FALSE) -> 95% | R10: =VLOOKUP($A10,'RECAP DIRCOM'!$G$6:$EV$12,64,FALSE) -> 7 | S10: =VLOOKUP($A10,'RECAP DIRCOM'!$G$6:$EV$12,65,FALSE) -> 79% | T10: =VLOOKUP($A10,'RECAP DIRCOM'!$G$6:$EV$12,66,FALSE) -> 67% | U10: =VLOOKUP($A10,'RECAP DIRCOM'!$G$6:$EV$12,67,FALSE) -> 7
A11: 262 | B11: Bas-Rhin | C11: =VLOOKUP($A11,'RECAP DIRCOM'!$G$6:$EV$12,3,FALSE) -> 299 | D11: =VLOOKUP($A11,'RECAP DIRCOM'!$G$6:$EV$12,50,FALSE) -> 14.29 | E11: =VLOOKUP($A11,'RECAP DIRCOM'!$G$6:$EV$12,51,FALSE) -> 61% | F11: =VLOOKUP($A11,'RECAP DIRCOM'!$G$6:$EV$12,52,FALSE) -> 5 | G11: =VLOOKUP($A11,'RECAP DIRCOM'!$G$6:$EV$12,53,FALSE) -> 86.11 | H11: =VLOOKUP($A11,'RECAP DIRCOM'!$G$6:$EV$12,54,FALSE) -> 29% | I11: =VLOOKUP($A11,'RECAP DIRCOM'!$G$6:$EV$12,55,FALSE) -> 6 | J11: =VLOOKUP($A11,'RECAP DIRCOM'!$G$6:$EV$12,56,FALSE) -> 34 | K11: =VLOOKUP($A11,'RECAP DIRCOM'!$G$6:$EV$12,57,FALSE) -> 20% | L11: =VLOOKUP($A11,'RECAP DIRCOM'!$G$6:$EV$12,58,FALSE) -> 5 | M11: =VLOOKUP($A11,'RECAP DIRCOM'!$G$6:$EV$12,59,FALSE) -> 24.90 | N11: =VLOOKUP($A11,'RECAP DIRCOM'!$G$6:$EV$12,60,FALSE) -> 51% | O11: =VLOOKUP($A11,'RECAP DIRCOM'!$G$6:$EV$12,61,FALSE) -> 5 | P11: =VLOOKUP($A11,'RECAP DIRCOM'!$G$6:$EV$12,62,FALSE) -> 42.98 | Q11: =VLOOKUP($A11,'RECAP DIRCOM'!$G$6:$EV$12,63,FALSE) -> 44% | R11: =VLOOKUP($A11,'RECAP DIRCOM'!$G$6:$EV$12,64,FALSE) -> 6 | S11: =VLOOKUP($A11,'RECAP DIRCOM'!$G$6:$EV$12,65,FALSE) -> 42% | T11: =VLOOKUP($A11,'RECAP DIRCOM'!$G$6:$EV$12,66,FALSE) -> 30% | U11: =VLOOKUP($A11,'RECAP DIRCOM'!$G$6:$EV$12,67,FALSE) -> 6
A12: 264 | B12: Haut-Rhin | C12: =VLOOKUP($A12,'RECAP DIRCOM'!$G$6:$EV$12,3,FALSE) -> 188 | D12: =VLOOKUP($A12,'RECAP DIRCOM'!$G$6:$EV$12,50,FALSE) -> 22.13 | E12: =VLOOKUP($A12,'RECAP DIRCOM'!$G$6:$EV$12,51,FALSE) -> 50% | F12: =VLOOKUP($A12,'RECAP DIRCOM'!$G$6:$EV$12,52,FALSE) -> 3 | G12: =VLOOKUP($A12,'RECAP DIRCOM'!$G$6:$EV$12,53,FALSE) -> 78.85 | H12: =VLOOKUP($A12,'RECAP DIRCOM'!$G$6:$EV$12,54,FALSE) -> 35% | I12: =VLOOKUP($A12,'RECAP DIRCOM'!$G$6:$EV$12,55,FALSE) -> 7 | J12: =VLOOKUP($A12,'RECAP DIRCOM'!$G$6:$EV$12,56,FALSE) -> 34 | K12: =VLOOKUP($A12,'RECAP DIRCOM'!$G$6:$EV$12,57,FALSE) -> 21% | L12: =VLOOKUP($A12,'RECAP DIRCOM'!$G$6:$EV$12,58,FALSE) -> 6 | M12: =VLOOKUP($A12,'RECAP DIRCOM'!$G$6:$EV$12,59,FALSE) -> 9.46 | N12: =VLOOKUP($A12,'RECAP DIRCOM'!$G$6:$EV$12,60,FALSE) -> 82% | O12: =VLOOKUP($A12,'RECAP DIRCOM'!$G$6:$EV$12,61,FALSE) -> 7 | P12: =VLOOKUP($A12,'RECAP DIRCOM'!$G$6:$EV$12,62,FALSE) -> 72.40 | Q12: =VLOOKUP($A12,'RECAP DIRCOM'!$G$6:$EV$12,63,FALSE) -> 5% | R12: =VLOOKUP($A12,'RECAP DIRCOM'!$G$6:$EV$12,64,FALSE) -> 2 | S12: =VLOOKUP($A12,'RECAP DIRCOM'!$G$6:$EV$12,65,FALSE) -> 27% | T12: =VLOOKUP($A12,'RECAP DIRCOM'!$G$6:$EV$12,66,FALSE) -> 15% | U12: =VLOOKUP($A12,'RECAP DIRCOM'!$G$6:$EV$12,67,FALSE) -> 5
A13: 30 | B13: Marne-Ardennes | C13: =VLOOKUP($A13,'RECAP DIRCOM'!$G$6:$EV$12,3,FALSE) -> 242 | D13: =VLOOKUP($A13,'RECAP DIRCOM'!$G$6:$EV$12,50,FALSE) -> -0.49 | E13: =VLOOKUP($A13,'RECAP DIRCOM'!$G$6:$EV$12,51,FALSE) -> 81% | F13: =VLOOKUP($A13,'RECAP DIRCOM'!$G$6:$EV$12,52,FALSE) -> 6 | G13: =VLOOKUP($A13,'RECAP DIRCOM'!$G$6:$EV$12,53,FALSE) -> 110.04 | H13: =VLOOKUP($A13,'RECAP DIRCOM'!$G$6:$EV$12,54,FALSE) -> 9% | I13: =VLOOKUP($A13,'RECAP DIRCOM'!$G$6:$EV$12,55,FALSE) -> 4 | J13: =VLOOKUP($A13,'RECAP DIRCOM'!$G$6:$EV$12,56,FALSE) -> 35 | K13: =VLOOKUP($A13,'RECAP DIRCOM'!$G$6:$EV$12,57,FALSE) -> 17% | L13: =VLOOKUP($A13,'RECAP DIRCOM'!$G$6:$EV$12,58,FALSE) -> 4 | M13: =VLOOKUP($A13,'RECAP DIRCOM'!$G$6:$EV$12,59,FALSE) -> 35.81 | N13: =VLOOKUP($A13,'RECAP DIRCOM'!$G$6:$EV$12,60,FALSE) -> 30% | O13: =VLOOKUP($A13,'RECAP DIRCOM'!$G$6:$EV$12,61,FALSE) -> 4 | P13: =VLOOKUP($A13,'RECAP DIRCOM'!$G$6:$EV$12,62,FALSE) -> 76.34 | Q13: =VLOOKUP($A13,'RECAP DIRCOM'!$G$6:$EV$12,63,FALSE) -> 0% | R13: =VLOOKUP($A13,'RECAP DIRCOM'!$G$6:$EV$12,64,FALSE) -> 1 | S13: =VLOOKUP($A13,'RECAP DIRCOM'!$G$6:$EV$12,65,FALSE) -> 18% | T13: =VLOOKUP($A13,'RECAP DIRCOM'!$G$6:$EV$12,66,FALSE) -> 6% | U13: =VLOOKUP($A13,'RECAP DIRCOM'!$G$6:$EV$12,67,FALSE) -> 3
A14: 110 | B14: Meurthe et Moselle Meuse | C14: =VLOOKUP($A14,'RECAP DIRCOM'!$G$6:$EV$12,3,FALSE) -> 271 | D14: =VLOOKUP($A14,'RECAP DIRCOM'!$G$6:$EV$12,50,FALSE) -> 21.48 | E14: =VLOOKUP($A14,'RECAP DIRCOM'!$G$6:$EV$12,51,FALSE) -> 51% | F14: =VLOOKUP($A14,'RECAP DIRCOM'!$G$6:$EV$12,52,FALSE) -> 4 | G14: =VLOOKUP($A14,'RECAP DIRCOM'!$G$6:$EV$12,53,FALSE) -> 110.39 | H14: =VLOOKUP($A14,'RECAP DIRCOM'!$G$6:$EV$12,54,FALSE) -> 9% | I14: =VLOOKUP($A14,'RECAP DIRCOM'!$G$6:$EV$12,55,FALSE) -> 3 | J14: =VLOOKUP($A14,'RECAP DIRCOM'!$G$6:$EV$12,56,FALSE) -> 33 | K14: =VLOOKUP($A14,'RECAP DIRCOM'!$G$6:$EV$12,57,FALSE) -> 22% | L14: =VLOOKUP($A14,'RECAP DIRCOM'!$G$6:$EV$12,58,FALSE) -> 7 | M14: =VLOOKUP($A14,'RECAP DIRCOM'!$G$6:$EV$12,59,FALSE) -> 42.94 | N14: =VLOOKUP($A14,'RECAP DIRCOM'!$G$6:$EV$12,60,FALSE) -> 16% | O14: =VLOOKUP($A14,'RECAP DIRCOM'!$G$6:$EV$12,61,FALSE) -> 3 | P14: =VLOOKUP($A14,'RECAP DIRCOM'!$G$6:$EV$12,62,FALSE) -> 67.07 | Q14: =VLOOKUP($A14,'RECAP DIRCOM'!$G$6:$EV$12,63,FALSE) -> 12% | R14: =VLOOKUP($A14,'RECAP DIRCOM'!$G$6:$EV$12,64,FALSE) -> 3 | S14: =VLOOKUP($A14,'RECAP DIRCOM'!$G$6:$EV$12,65,FALSE) -> 19% | T14: =VLOOKUP($A14,'RECAP DIRCOM'!$G$6:$EV$12,66,FALSE) -> 7% | U14: =VLOOKUP($A14,'RECAP DIRCOM'!$G$6:$EV$12,67,FALSE) -> 4
A15: 160 | B15: Moselle | C15: =VLOOKUP($A15,'RECAP DIRCOM'!$G$6:$EV$12,3,FALSE) -> 315 | D15: =VLOOKUP($A15,'RECAP DIRCOM'!$G$6:$EV$12,50,FALSE) -> 48.39 | E15: =VLOOKUP($A15,'RECAP DIRCOM'!$G$6:$EV$12,51,FALSE) -> 13% | F15: =VLOOKUP($A15,'RECAP DIRCOM'!$G$6:$EV$12,52,FALSE) -> 2 | G15: =VLOOKUP($A15,'RECAP DIRCOM'!$G$6:$EV$12,53,FALSE) -> 119.58 | H15: =VLOOKUP($A15,'RECAP DIRCOM'!$G$6:$EV$12,54,FALSE) -> 1% | I15: =VLOOKUP($A15,'RECAP DIRCOM'!$G$6:$EV$12,55,FALSE) -> 2 | J15: =VLOOKUP($A15,'RECAP DIRCOM'!$G$6:$EV$12,56,FALSE) -> 43 | K15: =VLOOKUP($A15,'RECAP DIRCOM'!$G$6:$EV$12,57,FALSE) -> 0% | L15: =VLOOKUP($A15,'RECAP DIRCOM'!$G$6:$EV$12,58,FALSE) -> 1 | M15: =VLOOKUP($A15,'RECAP DIRCOM'!$G$6:$EV$12,59,FALSE) -> 51.23 | N15: =VLOOKUP($A15,'RECAP DIRCOM'!$G$6:$EV$12,60,FALSE) -> 0% | O15: =VLOOKUP($A15,'RECAP DIRCOM'!$G$6:$EV$12,61,FALSE) -> 1 | P15: =VLOOKUP($A15,'RECAP DIRCOM'!$G$6:$EV$12,62,FALSE) -> 49.88 | Q15: =VLOOKUP($A15,'RECAP DIRCOM'!$G$6:$EV$12,63,FALSE) -> 35% | R15: =VLOOKUP($A15,'RECAP DIRCOM'!$G$6:$EV$12,64,FALSE) -> 5 | S15: =VLOOKUP($A15,'RECAP DIRCOM'!$G$6:$EV$12,65,FALSE) -> 18% | T15: =VLOOKUP($A15,'RECAP DIRCOM'!$G$6:$EV$12,66,FALSE) -> 6% | U15: =VLOOKUP($A15,'RECAP DIRCOM'!$G$6:$EV$12,67,FALSE) -> 2
A16: 80 | B16: Vosges | C16: =VLOOKUP($A16,'RECAP DIRCOM'!$G$6:$EV$12,3,FALSE) -> 150 | D16: =VLOOKUP($A16,'RECAP DIRCOM'!$G$6:$EV$12,50,FALSE) -> 58.07 | E16: =VLOOKUP($A16,'RECAP DIRCOM'!$G$6:$EV$12,51,FALSE) -> 0% | F16: =VLOOKUP($A16,'RECAP DIRCOM'!$G$6:$EV$12,52,FALSE) -> 1 | G16: =VLOOKUP($A16,'RECAP DIRCOM'!$G$6:$EV$12,53,FALSE) -> 120.76 | H16: =VLOOKUP($A16,'RECAP DIRCOM'!$G$6:$EV$12,54,FALSE) -> 0% | I16: =VLOOKUP($A16,'RECAP DIRCOM'!$G$6:$EV$12,55,FALSE) -> 1 | J16: =VLOOKUP($A16,'RECAP DIRCOM'!$G$6:$EV$12,56,FALSE) -> 36 | K16: =VLOOKUP($A16,'RECAP DIRCOM'!$G$6:$EV$12,57,FALSE) -> 16% | L16: =VLOOKUP($A16,'RECAP DIRCOM'!$G$6:$EV$12,58,FALSE) -> 3 | M16: =VLOOKUP($A16,'RECAP DIRCOM'!$G$6:$EV$12,59,FALSE) -> 50.46 | N16: =VLOOKUP($A16,'RECAP DIRCOM'!$G$6:$EV$12,60,FALSE) -> 1% | O16: =VLOOKUP($A16,'RECAP DIRCOM'!$G$6:$EV$12,61,FALSE) -> 2 | P16: =VLOOKUP($A16,'RECAP DIRCOM'!$G$6:$EV$12,62,FALSE) -> 60.67 | Q16: =VLOOKUP($A16,'RECAP DIRCOM'!$G$6:$EV$12,63,FALSE) -> 21% | R16: =VLOOKUP($A16,'RECAP DIRCOM'!$G$6:$EV$12,64,FALSE) -> 4 | S16: =VLOOKUP($A16,'RECAP DIRCOM'!$G$6:$EV$12,65,FALSE) -> 12% | T16: =VLOOKUP($A16,'RECAP DIRCOM'!$G$6:$EV$12,66,FALSE) -> 0% | U16: =VLOOKUP($A16,'RECAP DIRCOM'!$G$6:$EV$12,67,FALSE) -> 1
A17: Total CEGEE Directions Commerciales | C17: =SUM(C10:C16) -> 1617

Sheet DC_CREDIT
A1: Accueil | D1: BAROMETRE BDD - DIRECTIONS COMMERCIALES
D2: CREDITS
D3: =ACCUEIL!H7 -> 2019-02-28
D7: Engagements crédit conso (hors clients note octroi à 9) | G7: % CNP crédit conso | J7: Engagements crédi immo | M7: % CNP crédit immo | P7: Taux couverture SACCEF | S7: Engagement Crédit MLT + Crédit Bail | V7: Total Crédits
E8: coef | F8: ='RECAP DIRCOM'!CD4 -> 3% | H8: coef | I8: ='RECAP DIRCOM'!CG4 -> 2% | K8: coef | L8: ='RECAP DIRCOM'!CJ4 -> 3% | N8: coef | O8: ='RECAP DIRCOM'!CM4 -> 2% | Q8: coef | R8: ='RECAP DIRCOM'!CP4 -> 2% | T8: coef | U8: ='RECAP DIRCOM'!CS4 -> 3% | W8: coef | X8: ='RECAP DIRCOM'!CV4 -> 15%
A9: eds | B9: Direction | C9: ETP | D9: Réal / ETP | E9: % Ecart au 1er | F9: Rang | H9: % Ecart au 1er | I9: Rang | J9: Taux réal objectif | K9: % Ecart au 1er | L9: Rang | N9: % Ecart au 1er | O9: Rang | Q9: % Ecart au 1er | R9: Rang | S9: Taux réal objectif | T9: % Ecart au 1er | U9: Rang | V9: Moyenne ecart au 1er | W9: % Ecart au 1er | X9: Rang CEGEE
A10: 50 | B10: Aube Haute Marne | C10: =VLOOKUP($A10,'RECAP DIRCOM'!$G$6:$EV$12,3,FALSE) -> 152 | D10: =VLOOKUP($A10,'RECAP DIRCOM'!$G$6:$EV$12,74,FALSE) -> 95.33 | E10: =VLOOKUP($A10,'RECAP DIRCOM'!$G$6:$EV$12,75,FALSE) -> 0% | F10: =VLOOKUP($A10,'RECAP DIRCOM'!$G$6:$EV$12,76,FALSE) -> 1 | G10: =VLOOKUP($A10,'RECAP DIRCOM'!$G$6:$EV$12,77,FALSE) -> 95% | H10: =VLOOKUP($A10,'RECAP DIRCOM'!$G$6:$EV$12,78,FALSE) -> 2% | I10: =VLOOKUP($A10,'RECAP DIRCOM'!$G$6:$EV$12,79,FALSE) -> 4 | J10: =VLOOKUP($A10,'RECAP DIRCOM'!$G$6:$EV$12,80,FALSE) -> 13% | K10: =VLOOKUP($A10,'RECAP DIRCOM'!$G$6:$EV$12,81,FALSE) -> 7% | L10: =VLOOKUP($A10,'RECAP DIRCOM'!$G$6:$EV$12,82,FALSE) -> 5 | M10: =VLOOKUP($A10,'RECAP DIRCOM'!$G$6:$EV$12,83,FALSE) -> 77% | N10: =VLOOKUP($A10,'RECAP DIRCOM'!$G$6:$EV$12,84,FALSE) -> 6% | O10: =VLOOKUP($A10,'RECAP DIRCOM'!$G$6:$EV$12,85,FALSE) -> 3 | P10: =VLOOKUP($A10,'RECAP DIRCOM'!$G$6:$EV$12,86,FALSE) -> 84% | Q10: =VLOOKUP($A10,'RECAP DIRCOM'!$G$6:$EV$12,87,FALSE) -> 8% | R10: =VLOOKUP($A10,'RECAP DIRCOM'!$G$6:$EV$12,88,FALSE) -> 6 | S10: =VLOOKUP($A10,'RECAP DIRCOM'!$G$6:$EV$12,89,FALSE) -> 25% | T10: =VLOOKUP($A10,'RECAP DIRCOM'!$G$6:$EV$12,90,FALSE) -> 2% | U10: =VLOOKUP($A10,'RECAP DIRCOM'!$G$6:$EV$12,91,FALSE) -> 2 | V10: =VLOOKUP($A10,'RECAP DIRCOM'!$G$6:$EV$12,92,FALSE) -> 4% | W10: =VLOOKUP($A10,'RECAP DIRCOM'!$G$6:$EV$12,93,FALSE) -> 0% | X10: =VLOOKUP($A10,'RECAP DIRCOM'!$G$6:$EV$12,94,FALSE) -> 1
A11: 262 | B11: Bas-Rhin | C11: =VLOOKUP($A11,'RECAP DIRCOM'!$G$6:$EV$12,3,FALSE) -> 299 | D11: =VLOOKUP($A11,'RECAP DIRCOM'!$G$6:$EV$12,74,FALSE) -> 60.11 | E11: =VLOOKUP($A11,'RECAP DIRCOM'!$G$6:$EV$12,75,FALSE) -> 37% | F11: =VLOOKUP($A11,'RECAP DIRCOM'!$G$6:$EV$12,76,FALSE) -> 6 | G11: =VLOOKUP($A11,'RECAP DIRCOM'!$G$6:$EV$12,77,FALSE) -> 92% | H11: =VLOOKUP($A11,'RECAP DIRCOM'!$G$6:$EV$12,78,FALSE) -> 6% | I11: =VLOOKUP($A11,'RECAP DIRCOM'!$G$6:$EV$12,79,FALSE) -> 6 | J11: =VLOOKUP($A11,'RECAP DIRCOM'!$G$6:$EV$12,80,FALSE) -> 13% | K11: =VLOOKUP($A11,'RECAP DIRCOM'!$G$6:$EV$12,81,FALSE) -> 12% | L11: =VLOOKUP($A11,'RECAP DIRCOM'!$G$6:$EV$12,82,FALSE) -> 7 | M11: =VLOOKUP($A11,'RECAP DIRCOM'!$G$6:$EV$12,83,FALSE) -> 63% | N11: =VLOOKUP($A11,'RECAP DIRCOM'!$G$6:$EV$12,84,FALSE) -> 22% | O11: =VLOOKUP($A11,'RECAP DIRCOM'!$G$6:$EV$12,85,FALSE) -> 7 | P11: =VLOOKUP($A11,'RECAP DIRCOM'!$G$6:$EV$12,86,FALSE) -> 87% | Q11: =VLOOKUP($A11,'RECAP DIRCOM'!$G$6:$EV$12,87,FALSE) -> 4% | R11: =VLOOKUP($A11,'RECAP DIRCOM'!$G$6:$EV$12,88,FALSE) -> 3 | S11: =VLOOKUP($A11,'RECAP DIRCOM'!$G$6:$EV$12,89,FALSE) -> 14% | T11: =VLOOKUP($A11,'RECAP DIRCOM'!$G$6:$EV$12,90,FALSE) -> 44% | U11: =VLOOKUP($A11,'RECAP DIRCOM'!$G$6:$EV$12,91,FALSE) -> 4 | V11: =VLOOKUP($A11,'RECAP DIRCOM'!$G$6:$EV$12,92,FALSE) -> 23% | W11: =VLOOKUP($A11,'RECAP DIRCOM'!$G$6:$EV$12,93,FALSE) -> 19% | X11: =VLOOKUP($A11,'RECAP DIRCOM'!$G$6:$EV$12,94,FALSE) -> 6
A12: 264 | B12: Haut-Rhin | C12: =VLOOKUP($A12,'RECAP DIRCOM'!$G$6:$EV$12,3,FALSE) -> 188 | D12: =VLOOKUP($A12,'RECAP DIRCOM'!$G$6:$EV$12,74,FALSE) -> 52.18 | E12: =VLOOKUP($A12,'RECAP DIRCOM'!$G$6:$EV$12,75,FALSE) -> 45% | F12: =VLOOKUP($A12,'RECAP DIRCOM'!$G$6:$EV$12,76,FALSE) -> 7 | G12: =VLOOKUP($A12,'RECAP DIRCOM'!$G$6:$EV$12,77,FALSE) -> 97% | H12: =VLOOKUP($A12,'RECAP DIRCOM'!$G$6:$EV$12,78,FALSE) -> 0% | I12: =VLOOKUP($A12,'RECAP DIRCOM'!$G$6:$EV$12,79,FALSE) -> 1 | J12: =VLOOKUP($A12,'RECAP DIRCOM'!$G$6:$EV$12,80,FALSE) -> 13% | K12: =VLOOKUP($A12,'RECAP DIRCOM'!$G$6:$EV$12,81,FALSE) -> 10% | L12: =VLOOKUP($A12,'RECAP DIRCOM'!$G$6:$EV$12,82,FALSE) -> 6 | M12: =VLOOKUP($A12,'RECAP DIRCOM'!$G$6:$EV$12,83,FALSE) -> 80% | N12: =VLOOKUP($A12,'RECAP DIRCOM'!$G$6:$EV$12,84,FALSE) -> 2% | O12: =VLOOKUP($A12,'RECAP DIRCOM'!$G$6:$EV$12,85,FALSE) -> 2 | P12: =VLOOKUP($A12,'RECAP DIRCOM'!$G$6:$EV$12,86,FALSE) -> 73% | Q12: =VLOOKUP($A12,'RECAP DIRCOM'!$G$6:$EV$12,87,FALSE) -> 20% | R12: =VLOOKUP($A12,'RECAP DIRCOM'!$G$6:$EV$12,88,FALSE) -> 7 | S12: =VLOOKUP($A12,'RECAP DIRCOM'!$G$6:$EV$12,89,FALSE) -> 13% | T12: =VLOOKUP($A12,'RECAP DIRCOM'!$G$6:$EV$12,90,FALSE) -> 50% | U12: =VLOOKUP($A12,'RECAP DIRCOM'!$G$6:$EV$12,91,FALSE) -> 6 | V12: =VLOOKUP($A12,'RECAP DIRCOM'!$G$6:$EV$12,92,FALSE) -> 24% | W12: =VLOOKUP($A12,'RECAP DIRCOM'!$G$6:$EV$12,93,FALSE) -> 20% | X12: =VLOOKUP($A12,'RECAP DIRCOM'!$G$6:$EV$12,94,FALSE) -> 7
A13: 30 | B13: Marne-Ardennes | C13: =VLOOKUP($A13,'RECAP DIRCOM'!$G$6:$EV$12,3,FALSE) -> 242 | D13: =VLOOKUP($A13,'RECAP DIRCOM'!$G$6:$EV$12,74,FALSE) -> 79.63 | E13: =VLOOKUP($A13,'RECAP DIRCOM'!$G$6:$EV$12,75,FALSE) -> 16% | F13: =VLOOKUP($A13,'RECAP DIRCOM'!$G$6:$EV$12,76,FALSE) -> 2 | G13: =VLOOKUP($A13,'RECAP DIRCOM'!$G$6:$EV$12,77,FALSE) -> 93% | H13: =VLOOKUP($A13,'RECAP DIRCOM'!$G$6:$EV$12,78,FALSE) -> 4% | I13: =VLOOKUP($A13,'RECAP DIRCOM'!$G$6:$EV$12,79,FALSE) -> 5 | J13: =VLOOKUP($A13,'RECAP DIRCOM'!$G$6:$EV$12,80,FALSE) -> 14% | K13: =VLOOKUP($A13,'RECAP DIRCOM'!$G$6:$EV$12,81,FALSE) -> 4% | L13: =VLOOKUP($A13,'RECAP DIRCOM'!$G$6:$EV$12,82,FALSE) -> 4 | M13: =VLOOKUP($A13,'RECAP DIRCOM'!$G$6:$EV$12,83,FALSE) -> 81% | N13: =VLOOKUP($A13,'RECAP DIRCOM'!$G$6:$EV$12,84,FALSE) -> 0% | O13: =VLOOKUP($A13,'RECAP DIRCOM'!$G$6:$EV$12,85,FALSE) -> 1 | P13: =VLOOKUP($A13,'RECAP DIRCOM'!$G$6:$EV$12,86,FALSE) -> 86% | Q13: =VLOOKUP($A13,'RECAP DIRCOM'!$G$6:$EV$12,87,FALSE) -> 6% | R13: =VLOOKUP($A13,'RECAP DIRCOM'!$G$6:$EV$12,88,FALSE) -> 5 | S13: =VLOOKUP($A13,'RECAP DIRCOM'!$G$6:$EV$12,89,FALSE) -> 26% | T13: =VLOOKUP($A13,'RECAP DIRCOM'!$G$6:$EV$12,90,FALSE) -> 0% | U13: =VLOOKUP($A13,'RECAP DIRCOM'!$G$6:$EV$12,91,FALSE) -> 1 | V13: =VLOOKUP($A13,'RECAP DIRCOM'!$G$6:$EV$12,92,FALSE) -> 6% | W13: =VLOOKUP($A13,'RECAP DIRCOM'!$G$6:$EV$12,93,FALSE) -> 2% | X13: =VLOOKUP($A13,'RECAP DIRCOM'!$G$6:$EV$12,94,FALSE) -> 2
A14: 110 | B14: Meurthe et Moselle Meuse | C14: =VLOOKUP($A14,'RECAP DIRCOM'!$G$6:$EV$12,3,FALSE) -> 271 | D14: =VLOOKUP($A14,'RECAP DIRCOM'!$G$6:$EV$12,74,FALSE) -> 75.31 | E14: =VLOOKUP($A14,'RECAP DIRCOM'!$G$6:$EV$12,75,FALSE) -> 21% | F14: =VLOOKUP($A14,'RECAP DIRCOM'!$G$6:$EV$12,76,FALSE) -> 5 | G14: =VLOOKUP($A14,'RECAP DIRCOM'!$G$6:$EV$12,77,FALSE) -> 86% | H14: =VLOOKUP($A14,'RECAP DIRCOM'!$G$6:$EV$12,78,FALSE) -> 12% | I14: =VLOOKUP($A14,'RECAP DIRCOM'!$G$6:$EV$12,79,FALSE) -> 7 | J14: =VLOOKUP($A14,'RECAP DIRCOM'!$G$6:$EV$12,80,FALSE) -> 14% | K14: =VLOOKUP($A14,'RECAP DIRCOM'!$G$6:$EV$12,81,FALSE) -> 3% | L14: =VLOOKUP($A14,'RECAP DIRCOM'!$G$6:$EV$12,82,FALSE) -> 3 | M14: =VLOOKUP($A14,'RECAP DIRCOM'!$G$6:$EV$12,83,FALSE) -> 77% | N14: =VLOOKUP($A14,'RECAP DIRCOM'!$G$6:$EV$12,84,FALSE) -> 6% | O14: =VLOOKUP($A14,'RECAP DIRCOM'!$G$6:$EV$12,85,FALSE) -> 4 | P14: =VLOOKUP($A14,'RECAP DIRCOM'!$G$6:$EV$12,86,FALSE) -> 92% | Q14: =VLOOKUP($A14,'RECAP DIRCOM'!$G$6:$EV$12,87,FALSE) -> 0% | R14: =VLOOKUP($A14,'RECAP DIRCOM'!$G$6:$EV$12,88,FALSE) -> 1 | S14: =VLOOKUP($A14,'RECAP DIRCOM'!$G$6:$EV$12,89,FALSE) -> 14% | T14: =VLOOKUP($A14,'RECAP DIRCOM'!$G$6:$EV$12,90,FALSE) -> 46% | U14: =VLOOKUP($A14,'RECAP DIRCOM'!$G$6:$EV$12,91,FALSE) -> 5 | V14: =VLOOKUP($A14,'RECAP DIRCOM'!$G$6:$EV$12,92,FALSE) -> 16% | W14: =VLOOKUP($A14,'RECAP DIRCOM'!$G$6:$EV$12,93,FALSE) -> 12% | X14: =VLOOKUP($A14,'RECAP DIRCOM'!$G$6:$EV$12,94,FALSE) -> 4
A15: 160 | B15: Moselle | C15: =VLOOKUP($A15,'RECAP DIRCOM'!$G$6:$EV$12,3,FALSE) -> 315 | D15: =VLOOKUP($A15,'RECAP DIRCOM'!$G$6:$EV$12,74,FALSE) -> 76.69 | E15: =VLOOKUP($A15,'RECAP DIRCOM'!$G$6:$EV$12,75,FALSE) -> 20% | F15: =VLOOKUP($A15,'RECAP DIRCOM'!$G$6:$EV$12,76,FALSE) -> 4 | G15: =VLOOKUP($A15,'RECAP DIRCOM'!$G$6:$EV$12,77,FALSE) -> 96% | H15: =VLOOKUP($A15,'RECAP DIRCOM'!$G$6:$EV$12,78,FALSE) -> 1% | I15: =VLOOKUP($A15,'RECAP DIRCOM'!$G$6:$EV$12,79,FALSE) -> 2 | J15: =VLOOKUP($A15,'RECAP DIRCOM'!$G$6:$EV$12,80,FALSE) -> 14% | K15: =VLOOKUP($A15,'RECAP DIRCOM'!$G$6:$EV$12,81,FALSE) -> 0% | L15: =VLOOKUP($A15,'RECAP DIRCOM'!$G$6:$EV$12,82,FALSE) -> 1 | M15: =VLOOKUP($A15,'RECAP DIRCOM'!$G$6:$EV$12,83,FALSE) -> 67% | N15: =VLOOKUP($A15,'RECAP DIRCOM'!$G$6:$EV$12,84,FALSE) -> 17% | O15: =VLOOKUP($A15,'RECAP DIRCOM'!$G$6:$EV$12,85,FALSE) -> 6 | P15: =VLOOKUP($A15,'RECAP DIRCOM'!$G$6:$EV$12,86,FALSE) -> 87% | Q15: =VLOOKUP($A15,'RECAP DIRCOM'!$G$6:$EV$12,87,FALSE) -> 5% | R15: =VLOOKUP($A15,'RECAP DIRCOM'!$G$6:$EV$12,88,FALSE) -> 4 | S15: =VLOOKUP($A15,'RECAP DIRCOM'!$G$6:$EV$12,89,FALSE) -> 12% | T15: =VLOOKUP($A15,'RECAP DIRCOM'!$G$6:$EV$12,90,FALSE) -> 54% | U15: =VLOOKUP($A15,'RECAP DIRCOM'!$G$6:$EV$12,91,FALSE) -> 7 | V15: =VLOOKUP($A15,'RECAP DIRCOM'!$G$6:$EV$12,92,FALSE) -> 18% | W15: =VLOOKUP($A15,'RECAP DIRCOM'!$G$6:$EV$12,93,FALSE) -> 14% | X15: =VLOOKUP($A15,'RECAP DIRCOM'!$G$6:$EV$12,94,FALSE) -> 5
A16: 80 | B16: Vosges | C16: =VLOOKUP($A16,'RECAP DIRCOM'!$G$6:$EV$12,3,FALSE) -> 150 | D16: =VLOOKUP($A16,'RECAP DIRCOM'!$G$6:$EV$12,74,FALSE) -> 77.49 | E16: =VLOOKUP($A16,'RECAP DIRCOM'!$G$6:$EV$12,75,FALSE) -> 19% | F16: =VLOOKUP($A16,'RECAP DIRCOM'!$G$6:$EV$12,76,FALSE) -> 3 | G16: =VLOOKUP($A16,'RECAP DIRCOM'!$G$6:$EV$12,77,FALSE) -> 96% | H16: =VLOOKUP($A16,'RECAP DIRCOM'!$G$6:$EV$12,78,FALSE) -> 1% | I16: =VLOOKUP($A16,'RECAP DIRCOM'!$G$6:$EV$12,79,FALSE) -> 3 | J16: =VLOOKUP($A16,'RECAP DIRCOM'!$G$6:$EV$12,80,FALSE) -> 14% | K16: =VLOOKUP($A16,'RECAP DIRCOM'!$G$6:$EV$12,81,FALSE) -> 2% | L16: =VLOOKUP($A16,'RECAP DIRCOM'!$G$6:$EV$12,82,FALSE) -> 2 | M16: =VLOOKUP($A16,'RECAP DIRCOM'!$G$6:$EV$12,83,FALSE) -> 74% | N16: =VLOOKUP($A16,'RECAP DIRCOM'!$G$6:$EV$12,84,FALSE) -> 8% | O16: =VLOOKUP($A16,'RECAP DIRCOM'!$G$6:$EV$12,85,FALSE) -> 5 | P16: =VLOOKUP($A16,'RECAP DIRCOM'!$G$6:$EV$12,86,FALSE) -> 88% | Q16: =VLOOKUP($A16,'RECAP DIRCOM'!$G$6:$EV$12,87,FALSE) -> 3% | R16: =VLOOKUP($A16,'RECAP DIRCOM'!$G$6:$EV$12,88,FALSE) -> 2 | S16: =VLOOKUP($A16,'RECAP DIRCOM'!$G$6:$EV$12,89,FALSE) -> 24% | T16: =VLOOKUP($A16,'RECAP DIRCOM'!$G$6:$EV$12,90,FALSE) -> 6% | U16: =VLOOKUP($A16,'RECAP DIRCOM'!$G$6:$EV$12,91,FALSE) -> 3 | V16: =VLOOKUP($A16,'RECAP DIRCOM'!$G$6:$EV$12,92,FALSE) -> 7% | W16: =VLOOKUP($A16,'RECAP DIRCOM'!$G$6:$EV$12,93,FALSE) -> 3% | X16: =VLOOKUP($A16,'RECAP DIRCOM'!$G$6:$EV$12,94,FALSE) -> 3
A17: Total CEGEE Directions Commerciales | C17: =SUM(C10:C16) -> 1617

Sheet DC_IARD
A1: Accueil | D1: BAROMETRE BDD - DIRECTIONS COMMERCIALES
D2: IARD PREVOYANCE
D3: =ACCUEIL!H7 -> 2019-02-28
D7: Ventes nettes IARD (AUTO+MRH+Pro) | G7: Ventes nettes Prévoyance | J7: Chiffre d'affaires IARD | M7: Total IARD Prévoyance
E8: coef | F8: ='RECAP DIRCOM'!DE4 -> 7% | H8: coef | I8: ='RECAP DIRCOM'!DH4 -> 7% | K8: coef | L8: ='RECAP DIRCOM'!DK4 -> 6% | N8: coef | O8: ='RECAP DIRCOM'!DN4 -> 20%
A9: eds | B9: Direction | C9: ETP | D9: Nb / ETP | E9: % Ecart au 1er | F9: Rang | G9: Nb / ETP | H9: % Ecart au 1er | I9: Rang | J9: Nb / ETP | K9: % Ecart au 1er | L9: Rang | M9: Moyenne ecart au 1er | N9: % Ecart au 1er | O9: Rang CEGEE
A10: 50 | B10: Aube Haute Marne | C10: =VLOOKUP($A10,'RECAP DIRCOM'!$G$6:$EV$12,3,FALSE) -> 152 | D10: =VLOOKUP($A10,'RECAP DIRCOM'!$G$6:$EV$12,101,FALSE) -> 1.62 | E10: =VLOOKUP($A10,'RECAP DIRCOM'!$G$6:$EV$12,102,FALSE) -> 1% | F10: =VLOOKUP($A10,'RECAP DIRCOM'!$G$6:$EV$12,103,FALSE) -> 2 | G10: =VLOOKUP($A10,'RECAP DIRCOM'!$G$6:$EV$12,104,FALSE) -> 1.49 | H10: =VLOOKUP($A10,'RECAP DIRCOM'!$G$6:$EV$12,105,FALSE) -> 42% | I10: =VLOOKUP($A10,'RECAP DIRCOM'!$G$6:$EV$12,106,FALSE) -> 5 | J10: =VLOOKUP($A10,'RECAP DIRCOM'!$G$6:$EV$12,107,FALSE) -> 1.81 | K10: =VLOOKUP($A10,'RECAP DIRCOM'!$G$6:$EV$12,108,FALSE) -> 22% | L10: =VLOOKUP($A10,'RECAP DIRCOM'!$G$6:$EV$12,109,FALSE) -> 7 | M10: =VLOOKUP($A10,'RECAP DIRCOM'!$G$6:$EV$12,110,FALSE) -> 22% | N10: =VLOOKUP($A10,'RECAP DIRCOM'!$G$6:$EV$12,111,FALSE) -> 8% | O10: =VLOOKUP($A10,'RECAP DIRCOM'!$G$6:$EV$12,112,FALSE) -> 5
A11: 262 | B11: Bas-Rhin | C11: =VLOOKUP($A11,'RECAP DIRCOM'!$G$6:$EV$12,3,FALSE) -> 299 | D11: =VLOOKUP($A11,'RECAP DIRCOM'!$G$6:$EV$12,101,FALSE) -> 1.34 | E11: =VLOOKUP($A11,'RECAP DIRCOM'!$G$6:$EV$12,102,FALSE) -> 18% | F11: =VLOOKUP($A11,'RECAP DIRCOM'!$G$6:$EV$12,103,FALSE) -> 5 | G11: =VLOOKUP($A11,'RECAP DIRCOM'!$G$6:$EV$12,104,FALSE) -> 1.48 | H11: =VLOOKUP($A11,'RECAP DIRCOM'!$G$6:$EV$12,105,FALSE) -> 43% | I11: =VLOOKUP($A11,'RECAP DIRCOM'!$G$6:$EV$12,106,FALSE) -> 6 | J11: =VLOOKUP($A11,'RECAP DIRCOM'!$G$6:$EV$12,107,FALSE) -> 2.12 | K11: =VLOOKUP($A11,'RECAP DIRCOM'!$G$6:$EV$12,108,FALSE) -> 9% | L11: =VLOOKUP($A11,'RECAP DIRCOM'!$G$6:$EV$12,109,FALSE) -> 3 | M11: =VLOOKUP($A11,'RECAP DIRCOM'!$G$6:$EV$12,110,FALSE) -> 24% | N11: =VLOOKUP($A11,'RECAP DIRCOM'!$G$6:$EV$12,111,FALSE) -> 10% | O11: =VLOOKUP($A11,'RECAP DIRCOM'!$G$6:$EV$12,112,FALSE) -> 6
A12: 264 | B12: Haut-Rhin | C12: =VLOOKUP($A12,'RECAP DIRCOM'!$G$6:$EV$12,3,FALSE) -> 188 | D12: =VLOOKUP($A12,'RECAP DIRCOM'!$G$6:$EV$12,101,FALSE) -> 1.29 | E12: =VLOOKUP($A12,'RECAP DIRCOM'!$G$6:$EV$12,102,FALSE) -> 21% | F12: =VLOOKUP($A12,'RECAP DIRCOM'!$G$6:$EV$12,103,FALSE) -> 6 | G12: =VLOOKUP($A12,'RECAP DIRCOM'!$G$6:$EV$12,104,FALSE) -> 1.35 | H12: =VLOOKUP($A12,'RECAP DIRCOM'!$G$6:$EV$12,105,FALSE) -> 48% | I12: =VLOOKUP($A12,'RECAP DIRCOM'!$G$6:$EV$12,106,FALSE) -> 7 | J12: =VLOOKUP($A12,'RECAP DIRCOM'!$G$6:$EV$12,107,FALSE) -> 2.00 | K12: =VLOOKUP($A12,'RECAP DIRCOM'!$G$6:$EV$12,108,FALSE) -> 14% | L12: =VLOOKUP($A12,'RECAP DIRCOM'!$G$6:$EV$12,109,FALSE) -> 5 | M12: =VLOOKUP($A12,'RECAP DIRCOM'!$G$6:$EV$12,110,FALSE) -> 28% | N12: =VLOOKUP($A12,'RECAP DIRCOM'!$G$6:$EV$12,111,FALSE) -> 14% | O12: =VLOOKUP($A12,'RECAP DIRCOM'!$G$6:$EV$12,112,FALSE) -> 7
A13: 30 | B13: Marne-Ardennes | C13: =VLOOKUP($A13,'RECAP DIRCOM'!$G$6:$EV$12,3,FALSE) -> 242 | D13: =VLOOKUP($A13,'RECAP DIRCOM'!$G$6:$EV$12,101,FALSE) -> 1.27 | E13: =VLOOKUP($A13,'RECAP DIRCOM'!$G$6:$EV$12,102,FALSE) -> 23% | F13: =VLOOKUP($A13,'RECAP DIRCOM'!$G$6:$EV$12,103,FALSE) -> 7 | G13: =VLOOKUP($A13,'RECAP DIRCOM'!$G$6:$EV$12,104,FALSE) -> 2.58 | H13: =VLOOKUP($A13,'RECAP DIRCOM'!$G$6:$EV$12,105,FALSE) -> 0% | I13: =VLOOKUP($A13,'RECAP DIRCOM'!$G$6:$EV$12,106,FALSE) -> 1 | J13: =VLOOKUP($A13,'RECAP DIRCOM'!$G$6:$EV$12,107,FALSE) -> 1.85 | K13: =VLOOKUP($A13,'RECAP DIRCOM'!$G$6:$EV$12,108,FALSE) -> 21% | L13: =VLOOKUP($A13,'RECAP DIRCOM'!$G$6:$EV$12,109,FALSE) -> 6 | M13: =VLOOKUP($A13,'RECAP DIRCOM'!$G$6:$EV$12,110,FALSE) -> 14% | N13: =VLOOKUP($A13,'RECAP DIRCOM'!$G$6:$EV$12,111,FALSE) -> 0% | O13: =VLOOKUP($A13,'RECAP DIRCOM'!$G$6:$EV$12,112,FALSE) -> 1
A14: 110 | B14: Meurthe et Moselle Meuse | C14: =VLOOKUP($A14,'RECAP DIRCOM'!$G$6:$EV$12,3,FALSE) -> 271 | D14: =VLOOKUP($A14,'RECAP DIRCOM'!$G$6:$EV$12,101,FALSE) -> 1.63 | E14: =VLOOKUP($A14,'RECAP DIRCOM'!$G$6:$EV$12,102,FALSE) -> 0% | F14: =VLOOKUP($A14,'RECAP DIRCOM'!$G$6:$EV$12,103,FALSE) -> 1 | G14: =VLOOKUP($A14,'RECAP DIRCOM'!$G$6:$EV$12,104,FALSE) -> 1.53 | H14: =VLOOKUP($A14,'RECAP DIRCOM'!$G$6:$EV$12,105,FALSE) -> 41% | I14: =VLOOKUP($A14,'RECAP DIRCOM'!$G$6:$EV$12,106,FALSE) -> 3 | J14: =VLOOKUP($A14,'RECAP DIRCOM'!$G$6:$EV$12,107,FALSE) -> 2.18 | K14: =VLOOKUP($A14,'RECAP DIRCOM'!$G$6:$EV$12,108,FALSE) -> 7% | L14: =VLOOKUP($A14,'RECAP DIRCOM'!$G$6:$EV$12,109,FALSE) -> 2 | M14: =VLOOKUP($A14,'RECAP DIRCOM'!$G$6:$EV$12,110,FALSE) -> 16% | N14: =VLOOKUP($A14,'RECAP DIRCOM'!$G$6:$EV$12,111,FALSE) -> 2% | O14: =VLOOKUP($A14,'RECAP DIRCOM'!$G$6:$EV$12,112,FALSE) -> 3
A15: 160 | B15: Moselle | C15: =VLOOKUP($A15,'RECAP DIRCOM'!$G$6:$EV$12,3,FALSE) -> 315 | D15: =VLOOKUP($A15,'RECAP DIRCOM'!$G$6:$EV$12,101,FALSE) -> 1.36 | E15: =VLOOKUP($A15,'RECAP DIRCOM'!$G$6:$EV$12,102,FALSE) -> 17% | F15: =VLOOKUP($A15,'RECAP DIRCOM'!$G$6:$EV$12,103,FALSE) -> 4 | G15: =VLOOKUP($A15,'RECAP DIRCOM'!$G$6:$EV$12,104,FALSE) -> 1.91 | H15: =VLOOKUP($A15,'RECAP DIRCOM'!$G$6:$EV$12,105,FALSE) -> 26% | I15: =VLOOKUP($A15,'RECAP DIRCOM'!$G$6:$EV$12,106,FALSE) -> 2 | J15: =VLOOKUP($A15,'RECAP DIRCOM'!$G$6:$EV$12,107,FALSE) -> 2.05 | K15: =VLOOKUP($A15,'RECAP DIRCOM'!$G$6:$EV$12,108,FALSE) -> 12% | L15: =VLOOKUP($A15,'RECAP DIRCOM'!$G$6:$EV$12,109,FALSE) -> 4 | M15: =VLOOKUP($A15,'RECAP DIRCOM'!$G$6:$EV$12,110,FALSE) -> 19% | N15: =VLOOKUP($A15,'RECAP DIRCOM'!$G$6:$EV$12,111,FALSE) -> 5% | O15: =VLOOKUP($A15,'RECAP DIRCOM'!$G$6:$EV$12,112,FALSE) -> 4
A16: 80 | B16: Vosges | C16: =VLOOKUP($A16,'RECAP DIRCOM'!$G$6:$EV$12,3,FALSE) -> 150 | D16: =VLOOKUP($A16,'RECAP DIRCOM'!$G$6:$EV$12,101,FALSE) -> 1.59 | E16: =VLOOKUP($A16,'RECAP DIRCOM'!$G$6:$EV$12,102,FALSE) -> 3% | F16: =VLOOKUP($A16,'RECAP DIRCOM'!$G$6:$EV$12,103,FALSE) -> 3 | G16: =VLOOKUP($A16,'RECAP DIRCOM'!$G$6:$EV$12,104,FALSE) -> 1.52 | H16: =VLOOKUP($A16,'RECAP DIRCOM'!$G$6:$EV$12,105,FALSE) -> 41% | I16: =VLOOKUP($A16,'RECAP DIRCOM'!$G$6:$EV$12,106,FALSE) -> 4 | J16: =VLOOKUP($A16,'RECAP DIRCOM'!$G$6:$EV$12,107,FALSE) -> 2.33 | K16: =VLOOKUP($A16,'RECAP DIRCOM'!$G$6:$EV$12,108,FALSE) -> 0% | L16: =VLOOKUP($A16,'RECAP DIRCOM'!$G$6:$EV$12,109,FALSE) -> 1 | M16: =VLOOKUP($A16,'RECAP DIRCOM'!$G$6:$EV$12,110,FALSE) -> 15% | N16: =VLOOKUP($A16,'RECAP DIRCOM'!$G$6:$EV$12,111,FALSE) -> 1% | O16: =VLOOKUP($A16,'RECAP DIRCOM'!$G$6:$EV$12,112,FALSE) -> 2
A17: Total CEGEE Directions Commerciales | C17: =SUM(C10:C16) -> 1617

Sheet DC_CONQUETE
A1: Accueil | D1: BAROMETRE BDD - DIRECTIONS COMMERCIALES
D2: CONQUETE
D3: =ACCUEIL!H7 -> 2019-02-28
D7: Evolution nette clients Bancarisés Principaux | G7: Evolution nette relations PREMIUM | J7: Evolution nette clients Bancarisés Principaux équipés | M7: Evolution nette clients Pro actif équipés | P7: Total Conquête
E8: coef | F8: ='RECAP DIRCOM'!M4 -> 4% | H8: coef | I8: ='RECAP DIRCOM'!P4 -> 4% | K8: coef | L8: ='RECAP DIRCOM'!S4 -> 3% | N8: coef | O8: ='RECAP DIRCOM'!V4 -> 4% | Q8: coef | R8: ='RECAP DIRCOM'!Y4 -> 15%
A9: eds | B9: Direction | C9: ETP | D9: Nb / ETP | E9: % Ecart au 1er | F9: Rang | G9: Nb / ETP | H9: % Ecart au 1er | I9: Rang | J9: Nb / ETP | K9: % Ecart au 1er | L9: Rang | M9: Taux réal objectif | N9: % Ecart au 1er | O9: Rang | P9: Moyenne ecart au 1er | Q9: % Ecart au 1er | R9: Rang CEGEE
A10: 50 | B10: Aube Haute Marne | C10: =VLOOKUP($A10,'RECAP DIRCOM'!$G$6:$EV$12,3,FALSE) -> 152 | D10: =VLOOKUP($A10,'RECAP DIRCOM'!$G$6:$EV$12,5,FALSE) -> -0.66 | E10: =VLOOKUP($A10,'RECAP DIRCOM'!$G$6:$EV$12,6,FALSE) -> 49% | F10: =VLOOKUP($A10,'RECAP DIRCOM'!$G$6:$EV$12,7,FALSE) -> 3 | G10: =VLOOKUP($A10,'RECAP DIRCOM'!$G$6:$EV$12,8,FALSE) -> -0.03 | H10: =VLOOKUP($A10,'RECAP DIRCOM'!$G$6:$EV$12,9,FALSE) -> 108% | I10: =VLOOKUP($A10,'RECAP DIRCOM'!$G$6:$EV$12,10,FALSE) -> 6 | J10: =VLOOKUP($A10,'RECAP DIRCOM'!$G$6:$EV$12,11,FALSE) -> -0.19 | K10: =VLOOKUP($A10,'RECAP DIRCOM'!$G$6:$EV$12,12,FALSE) -> 21% | L10: =VLOOKUP($A10,'RECAP DIRCOM'!$G$6:$EV$12,13,FALSE) -> 3 | M10: =VLOOKUP($A10,'RECAP DIRCOM'!$G$6:$EV$12,14,FALSE) -> 52% | N10: =VLOOKUP($A10,'RECAP DIRCOM'!$G$6:$EV$12,15,FALSE) -> 20% | O10: =VLOOKUP($A10,'RECAP DIRCOM'!$G$6:$EV$12,16,FALSE) -> 5 | P10: =VLOOKUP($A10,'RECAP DIRCOM'!$G$6:$EV$12,17,FALSE) -> 51% | Q10: =VLOOKUP($A10,'RECAP DIRCOM'!$G$6:$EV$12,18,FALSE) -> 37% | R10: =VLOOKUP($A10,'RECAP DIRCOM'!$G$6:$EV$12,19,FALSE) -> 5
A11: 262 | B11: Bas-Rhin | C11: =VLOOKUP($A11,'RECAP DIRCOM'!$G$6:$EV$12,3,FALSE) -> 299 | D11: =VLOOKUP($A11,'RECAP DIRCOM'!$G$6:$EV$12,5,FALSE) -> -1.31 | E11: =VLOOKUP($A11,'RECAP DIRCOM'!$G$6:$EV$12,6,FALSE) -> 141% | F11: =VLOOKUP($A11,'RECAP DIRCOM'!$G$6:$EV$12,7,FALSE) -> 6 | G11: =VLOOKUP($A11,'RECAP DIRCOM'!$G$6:$EV$12,8,FALSE) -> 0.24 | H11: =VLOOKUP($A11,'RECAP DIRCOM'!$G$6:$EV$12,9,FALSE) -> 30% | I11: =VLOOKUP($A11,'RECAP DIRCOM'!$G$6:$EV$12,10,FALSE) -> 3 | J11: =VLOOKUP($A11,'RECAP DIRCOM'!$G$6:$EV$12,11,FALSE) -> -0.93 | K11: =VLOOKUP($A11,'RECAP DIRCOM'!$G$6:$EV$12,12,FALSE) -> 150% | L11: =VLOOKUP($A11,'RECAP DIRCOM'!$G$6:$EV$12,13,FALSE) -> 7 | M11: =VLOOKUP($A11,'RECAP DIRCOM'!$G$6:$EV$12,14,FALSE) -> 25% | N11: =VLOOKUP($A11,'RECAP DIRCOM'!$G$6:$EV$12,15,FALSE) -> 61% | O11: =VLOOKUP($A11,'RECAP DIRCOM'!$G$6:$EV$12,16,FALSE) -> 7 | P11: =VLOOKUP($A11,'RECAP DIRCOM'!$G$6:$EV$12,17,FALSE) -> 92% | Q11: =VLOOKUP($A11,'RECAP DIRCOM'!$G$6:$EV$12,18,FALSE) -> 77% | R11: =VLOOKUP($A11,'RECAP DIRCOM'!$G$6:$EV$12,19,FALSE) -> 6
A12: 264 | B12: Haut-Rhin | C12: =VLOOKUP($A12,'RECAP DIRCOM'!$G$6:$EV$12,3,FALSE) -> 188 | D12: =VLOOKUP($A12,'RECAP DIRCOM'!$G$6:$EV$12,5,FALSE) -> -1.37 | E12: =VLOOKUP($A12,'RECAP DIRCOM'!$G$6:$EV$12,6,FALSE) -> 150% | F12: =VLOOKUP($A12,'RECAP DIRCOM'!$G$6:$EV$12,7,FALSE) -> 7 | G12: =VLOOKUP($A12,'RECAP DIRCOM'!$G$6:$EV$12,8,FALSE) -> -0.11 | H12: =VLOOKUP($A12,'RECAP DIRCOM'!$G$6:$EV$12,9,FALSE) -> 133% | I12: =VLOOKUP($A12,'RECAP DIRCOM'!$G$6:$EV$12,10,FALSE) -> 7 | J12: =VLOOKUP($A12,'RECAP DIRCOM'!$G$6:$EV$12,11,FALSE) -> -0.89 | K12: =VLOOKUP($A12,'RECAP DIRCOM'!$G$6:$EV$12,12,FALSE) -> 143% | L12: =VLOOKUP($A12,'RECAP DIRCOM'!$G$6:$EV$12,13,FALSE) -> 6 | M12: =VLOOKUP($A12,'RECAP DIRCOM'!$G$6:$EV$12,14,FALSE) -> 62% | N12: =VLOOKUP($A12,'RECAP DIRCOM'!$G$6:$EV$12,15,FALSE) -> 5% | O12: =VLOOKUP($A12,'RECAP DIRCOM'!$G$6:$EV$12,16,FALSE) -> 3 | P12: =VLOOKUP($A12,'RECAP DIRCOM'!$G$6:$EV$12,17,FALSE) -> 105% | Q12: =VLOOKUP($A12,'RECAP DIRCOM'!$G$6:$EV$12,18,FALSE) -> 91% | R12: =VLOOKUP($A12,'RECAP DIRCOM'!$G$6:$EV$12,19,FALSE) -> 7
A13: 30 | B13: Marne-Ardennes | C13: =VLOOKUP($A13,'RECAP DIRCOM'!$G$6:$EV$12,3,FALSE) -> 242 | D13: =VLOOKUP($A13,'RECAP DIRCOM'!$G$6:$EV$12,5,FALSE) -> -0.32 | E13: =VLOOKUP($A13,'RECAP DIRCOM'!$G$6:$EV$12,6,FALSE) -> 0% | F13: =VLOOKUP($A13,'RECAP DIRCOM'!$G$6:$EV$12,7,FALSE) -> 1 | G13: =VLOOKUP($A13,'RECAP DIRCOM'!$G$6:$EV$12,8,FALSE) -> 0.14 | H13: =VLOOKUP($A13,'RECAP DIRCOM'!$G$6:$EV$12,9,FALSE) -> 59% | I13: =VLOOKUP($A13,'RECAP DIRCOM'!$G$6:$EV$12,10,FALSE) -> 5 | J13: =VLOOKUP($A13,'RECAP DIRCOM'!$G$6:$EV$12,11,FALSE) -> -0.07 | K13: =VLOOKUP($A13,'RECAP DIRCOM'!$G$6:$EV$12,12,FALSE) -> 0% | L13: =VLOOKUP($A13,'RECAP DIRCOM'!$G$6:$EV$12,13,FALSE) -> 1 | M13: =VLOOKUP($A13,'RECAP DIRCOM'!$G$6:$EV$12,14,FALSE) -> 38% | N13: =VLOOKUP($A13,'RECAP DIRCOM'!$G$6:$EV$12,15,FALSE) -> 42% | O13: =VLOOKUP($A13,'RECAP DIRCOM'!$G$6:$EV$12,16,FALSE) -> 6 | P13: =VLOOKUP($A13,'RECAP DIRCOM'!$G$6:$EV$12,17,FALSE) -> 27% | Q13: =VLOOKUP($A13,'RECAP DIRCOM'!$G$6:$EV$12,18,FALSE) -> 12% | R13: =VLOOKUP($A13,'RECAP DIRCOM'!$G$6:$EV$12,19,FALSE) -> 2
A14: 110 | B14: Meurthe et Moselle Meuse | C14: =VLOOKUP($A14,'RECAP DIRCOM'!$G$6:$EV$12,3,FALSE) -> 271 | D14: =VLOOKUP($A14,'RECAP DIRCOM'!$G$6:$EV$12,5,FALSE) -> -0.41 | E14: =VLOOKUP($A14,'RECAP DIRCOM'!$G$6:$EV$12,6,FALSE) -> 12% | F14: =VLOOKUP($A14,'RECAP DIRCOM'!$G$6:$EV$12,7,FALSE) -> 2 | G14: =VLOOKUP($A14,'RECAP DIRCOM'!$G$6:$EV$12,8,FALSE) -> 0.25 | H14: =VLOOKUP($A14,'RECAP DIRCOM'!$G$6:$EV$12,9,FALSE) -> 26% | I14: =VLOOKUP($A14,'RECAP DIRCOM'!$G$6:$EV$12,10,FALSE) -> 2 | J14: =VLOOKUP($A14,'RECAP DIRCOM'!$G$6:$EV$12,11,FALSE) -> -0.14 | K14: =VLOOKUP($A14,'RECAP DIRCOM'!$G$6:$EV$12,12,FALSE) -> 12% | L14: =VLOOKUP($A14,'RECAP DIRCOM'!$G$6:$EV$12,13,FALSE) -> 2 | M14: =VLOOKUP($A14,'RECAP DIRCOM'!$G$6:$EV$12,14,FALSE) -> 61% | N14: =VLOOKUP($A14,'RECAP DIRCOM'!$G$6:$EV$12,15,FALSE) -> 7% | O14: =VLOOKUP($A14,'RECAP DIRCOM'!$G$6:$EV$12,16,FALSE) -> 4 | P14: =VLOOKUP($A14,'RECAP DIRCOM'!$G$6:$EV$12,17,FALSE) -> 15% | Q14: =VLOOKUP($A14,'RECAP DIRCOM'!$G$6:$EV$12,18,FALSE) -> 0% | R14: =VLOOKUP($A14,'RECAP DIRCOM'!$G$6:$EV$12,19,FALSE) -> 1
A15: 160 | B15: Moselle | C15: =VLOOKUP($A15,'RECAP DIRCOM'!$G$6:$EV$12,3,FALSE) -> 315 | D15: =VLOOKUP($A15,'RECAP DIRCOM'!$G$6:$EV$12,5,FALSE) -> -0.80 | E15: =VLOOKUP($A15,'RECAP DIRCOM'!$G$6:$EV$12,6,FALSE) -> 68% | F15: =VLOOKUP($A15,'RECAP DIRCOM'!$G$6:$EV$12,7,FALSE) -> 5 | G15: =VLOOKUP($A15,'RECAP DIRCOM'!$G$6:$EV$12,8,FALSE) -> 0.21 | H15: =VLOOKUP($A15,'RECAP DIRCOM'!$G$6:$EV$12,9,FALSE) -> 38% | I15: =VLOOKUP($A15,'RECAP DIRCOM'!$G$6:$EV$12,10,FALSE) -> 4 | J15: =VLOOKUP($A15,'RECAP DIRCOM'!$G$6:$EV$12,11,FALSE) -> -0.53 | K15: =VLOOKUP($A15,'RECAP DIRCOM'!$G$6:$EV$12,12,FALSE) -> 80% | L15: =VLOOKUP($A15,'RECAP DIRCOM'!$G$6:$EV$12,13,FALSE) -> 5 | M15: =VLOOKUP($A15,'RECAP DIRCOM'!$G$6:$EV$12,14,FALSE) -> 65% | N15: =VLOOKUP($A15,'RECAP DIRCOM'!$G$6:$EV$12,15,FALSE) -> 0% | O15: =VLOOKUP($A15,'RECAP DIRCOM'!$G$6:$EV$12,16,FALSE) -> 1 | P15: =VLOOKUP($A15,'RECAP DIRCOM'!$G$6:$EV$12,17,FALSE) -> 44% | Q15: =VLOOKUP($A15,'RECAP DIRCOM'!$G$6:$EV$12,18,FALSE) -> 30% | R15: =VLOOKUP($A15,'RECAP DIRCOM'!$G$6:$EV$12,19,FALSE) -> 4
A16: 80 | B16: Vosges | C16: =VLOOKUP($A16,'RECAP DIRCOM'!$G$6:$EV$12,3,FALSE) -> 150 | D16: =VLOOKUP($A16,'RECAP DIRCOM'!$G$6:$EV$12,5,FALSE) -> -0.75 | E16: =VLOOKUP($A16,'RECAP DIRCOM'!$G$6:$EV$12,6,FALSE) -> 61% | F16: =VLOOKUP($A16,'RECAP DIRCOM'!$G$6:$EV$12,7,FALSE) -> 4 | G16: =VLOOKUP($A16,'RECAP DIRCOM'!$G$6:$EV$12,8,FALSE) -> 0.34 | H16: =VLOOKUP($A16,'RECAP DIRCOM'!$G$6:$EV$12,9,FALSE) -> 0% | I16: =VLOOKUP($A16,'RECAP DIRCOM'!$G$6:$EV$12,10,FALSE) -> 1 | J16: =VLOOKUP($A16,'RECAP DIRCOM'!$G$6:$EV$12,11,FALSE) -> -0.53 | K16: =VLOOKUP($A16,'RECAP DIRCOM'!$G$6:$EV$12,12,FALSE) -> 79% | L16: =VLOOKUP($A16,'RECAP DIRCOM'!$G$6:$EV$12,13,FALSE) -> 4 | M16: =VLOOKUP($A16,'RECAP DIRCOM'!$G$6:$EV$12,14,FALSE) -> 63% | N16: =VLOOKUP($A16,'RECAP DIRCOM'!$G$6:$EV$12,15,FALSE) -> 4% | O16: =VLOOKUP($A16,'RECAP DIRCOM'!$G$6:$EV$12,16,FALSE) -> 2 | P16: =VLOOKUP($A16,'RECAP DIRCOM'!$G$6:$EV$12,17,FALSE) -> 33% | Q16: =VLOOKUP($A16,'RECAP DIRCOM'!$G$6:$EV$12,18,FALSE) -> 19% | R16: =VLOOKUP($A16,'RECAP DIRCOM'!$G$6:$EV$12,19,FALSE) -> 3
A17: Total CEGEE Directions Commerciales | C17: =SUM(C10:C16) -> 1617

Sheet DC_RISQUES
A1: Accueil | D1: BAROMETRE BDD - DIRECTIONS COMMERCIALES
D2: RISQUES
D3: =ACCUEIL!H7 -> 2019-02-28
D6: Complétude conformité et fiabilisation | J6: Traitement et qualité du traitement des alertes Vigiclient | M6: Total Risques
D7: Nouvelles EER sur flux BDD | G7: EER sur flux cumulés et stock
E8: coef | F8: ='RECAP DIRCOM'!DW4 -> 3% | H8: coef | I8: ='RECAP DIRCOM'!DZ4 -> 3% | K8: coef | L8: ='RECAP DIRCOM'!EC4 -> 4% | N8: coef | O8: ='RECAP DIRCOM'!EF4 -> 10%
A9: eds | B9: Direction | C9: ETP | E9: % Ecart au 1er | F9: Rang | H9: % Ecart au 1er | I9: Rang | K9: % Ecart au 1er | L9: Rang | M9: Moyenne ecart au 1er | N9: % Ecart au 1er | O9: Rang CEGEE
A10: 50 | B10: Aube Haute Marne | C10: =VLOOKUP($A10,'RECAP DIRCOM'!$G$6:$EV$12,3,FALSE) -> 152 | D10: =VLOOKUP($A10,'RECAP DIRCOM'!$G$6:$EV$12,119,FALSE) -> 95% | E10: =VLOOKUP($A10,'RECAP DIRCOM'!$G$6:$EV$12,120,FALSE) -> 2% | F10: =VLOOKUP($A10,'RECAP DIRCOM'!$G$6:$EV$12,121,FALSE) -> 3 | G10: =VLOOKUP($A10,'RECAP DIRCOM'!$G$6:$EV$12,122,FALSE) -> 74% | H10: =VLOOKUP($A10,'RECAP DIRCOM'!$G$6:$EV$12,123,FALSE) -> 2% | I10: =VLOOKUP($A10,'RECAP DIRCOM'!$G$6:$EV$12,124,FALSE) -> 3 | J10: =VLOOKUP($A10,'RECAP DIRCOM'!$G$6:$EV$12,125,FALSE) -> 100% | K10: =VLOOKUP($A10,'RECAP DIRCOM'!$G$6:$EV$12,126,FALSE) -> 0% | L10: =VLOOKUP($A10,'RECAP DIRCOM'!$G$6:$EV$12,127,FALSE) -> 1 | M10: =VLOOKUP($A10,'RECAP DIRCOM'!$G$6:$EV$12,128,FALSE) -> 1% | N10: =VLOOKUP($A10,'RECAP DIRCOM'!$G$6:$EV$12,129,FALSE) -> 1% | O10: =VLOOKUP($A10,'RECAP DIRCOM'!$G$6:$EV$12,130,FALSE) -> 2
A11: 262 | B11: Bas-Rhin | C11: =VLOOKUP($A11,'RECAP DIRCOM'!$G$6:$EV$12,3,FALSE) -> 299 | D11: =VLOOKUP($A11,'RECAP DIRCOM'!$G$6:$EV$12,119,FALSE) -> 92% | E11: =VLOOKUP($A11,'RECAP DIRCOM'!$G$6:$EV$12,120,FALSE) -> 4% | F11: =VLOOKUP($A11,'RECAP DIRCOM'!$G$6:$EV$12,121,FALSE) -> 5 | G11: =VLOOKUP($A11,'RECAP DIRCOM'!$G$6:$EV$12,122,FALSE) -> 70% | H11: =VLOOKUP($A11,'RECAP DIRCOM'!$G$6:$EV$12,123,FALSE) -> 8% | I11: =VLOOKUP($A11,'RECAP DIRCOM'!$G$6:$EV$12,124,FALSE) -> 7 | J11: =VLOOKUP($A11,'RECAP DIRCOM'!$G$6:$EV$12,125,FALSE) -> 60% | K11: =VLOOKUP($A11,'RECAP DIRCOM'!$G$6:$EV$12,126,FALSE) -> 40% | L11: =VLOOKUP($A11,'RECAP DIRCOM'!$G$6:$EV$12,127,FALSE) -> 7 | M11: =VLOOKUP($A11,'RECAP DIRCOM'!$G$6:$EV$12,128,FALSE) -> 20% | N11: =VLOOKUP($A11,'RECAP DIRCOM'!$G$6:$EV$12,129,FALSE) -> 19% | O11: =VLOOKUP($A11,'RECAP DIRCOM'!$G$6:$EV$12,130,FALSE) -> 7
A12: 264 | B12: Haut-Rhin | C12: =VLOOKUP($A12,'RECAP DIRCOM'!$G$6:$EV$12,3,FALSE) -> 188 | D12: =VLOOKUP($A12,'RECAP DIRCOM'!$G$6:$EV$12,119,FALSE) -> 94% | E12: =VLOOKUP($A12,'RECAP DIRCOM'!$G$6:$EV$12,120,FALSE) -> 2% | F12: =VLOOKUP($A12,'RECAP DIRCOM'!$G$6:$EV$12,121,FALSE) -> 4 | G12: =VLOOKUP($A12,'RECAP DIRCOM'!$G$6:$EV$12,122,FALSE) -> 71% | H12: =VLOOKUP($A12,'RECAP DIRCOM'!$G$6:$EV$12,123,FALSE) -> 6% | I12: =VLOOKUP($A12,'RECAP DIRCOM'!$G$6:$EV$12,124,FALSE) -> 6 | J12: =VLOOKUP($A12,'RECAP DIRCOM'!$G$6:$EV$12,125,FALSE) -> 97% | K12: =VLOOKUP($A12,'RECAP DIRCOM'!$G$6:$EV$12,126,FALSE) -> 3% | L12: =VLOOKUP($A12,'RECAP DIRCOM'!$G$6:$EV$12,127,FALSE) -> 4 | M12: =VLOOKUP($A12,'RECAP DIRCOM'!$G$6:$EV$12,128,FALSE) -> 4% | N12: =VLOOKUP($A12,'RECAP DIRCOM'!$G$6:$EV$12,129,FALSE) -> 3% | O12: =VLOOKUP($A12,'RECAP DIRCOM'!$G$6:$EV$12,130,FALSE) -> 5
A13: 30 | B13: Marne-Ardennes | C13: =VLOOKUP($A13,'RECAP DIRCOM'!$G$6:$EV$12,3,FALSE) -> 242 | D13: =VLOOKUP($A13,'RECAP DIRCOM'!$G$6:$EV$12,119,FALSE) -> 95% | E13: =VLOOKUP($A13,'RECAP DIRCOM'!$G$6:$EV$12,120,FALSE) -> 2% | F13: =VLOOKUP($A13,'RECAP DIRCOM'!$G$6:$EV$12,121,FALSE) -> 2 | G13: =VLOOKUP($A13,'RECAP DIRCOM'!$G$6:$EV$12,122,FALSE) -> 71% | H13: =VLOOKUP($A13,'RECAP DIRCOM'!$G$6:$EV$12,123,FALSE) -> 6% | I13: =VLOOKUP($A13,'RECAP DIRCOM'!$G$6:$EV$12,124,FALSE) -> 5 | J13: =VLOOKUP($A13,'RECAP DIRCOM'!$G$6:$EV$12,125,FALSE) -> 99% | K13: =VLOOKUP($A13,'RECAP DIRCOM'!$G$6:$EV$12,126,FALSE) -> 1% | L13: =VLOOKUP($A13,'RECAP DIRCOM'!$G$6:$EV$12,127,FALSE) -> 2 | M13: =VLOOKUP($A13,'RECAP DIRCOM'!$G$6:$EV$12,128,FALSE) -> 3% | N13: =VLOOKUP($A13,'RECAP DIRCOM'!$G$6:$EV$12,129,FALSE) -> 2% | O13: =VLOOKUP($A13,'RECAP DIRCOM'!$G$6:$EV$12,130,FALSE) -> 3
A14: 110 | B14: Meurthe et Moselle Meuse | C14: =VLOOKUP($A14,'RECAP DIRCOM'!$G$6:$EV$12,3,FALSE) -> 271 | D14: =VLOOKUP($A14,'RECAP DIRCOM'!$G$6:$EV$12,119,FALSE) -> 90% | E14: =VLOOKUP($A14,'RECAP DIRCOM'!$G$6:$EV$12,120,FALSE) -> 7% | F14: =VLOOKUP($A14,'RECAP DIRCOM'!$G$6:$EV$12,121,FALSE) -> 7 | G14: =VLOOKUP($A14,'RECAP DIRCOM'!$G$6:$EV$12,122,FALSE) -> 74% | H14: =VLOOKUP($A14,'RECAP DIRCOM'!$G$6:$EV$12,123,FALSE) -> 3% | I14: =VLOOKUP($A14,'RECAP DIRCOM'!$G$6:$EV$12,124,FALSE) -> 4 | J14: =VLOOKUP($A14,'RECAP DIRCOM'!$G$6:$EV$12,125,FALSE) -> 73% | K14: =VLOOKUP($A14,'RECAP DIRCOM'!$G$6:$EV$12,126,FALSE) -> 27% | L14: =VLOOKUP($A14,'RECAP DIRCOM'!$G$6:$EV$12,127,FALSE) -> 6 | M14: =VLOOKUP($A14,'RECAP DIRCOM'!$G$6:$EV$12,128,FALSE) -> 14% | N14: =VLOOKUP($A14,'RECAP DIRCOM'!$G$6:$EV$12,129,FALSE) -> 13% | O14: =VLOOKUP($A14,'RECAP DIRCOM'!$G$6:$EV$12,130,FALSE) -> 6
A15: 160 | B15: Moselle | C15: =VLOOKUP($A15,'RECAP DIRCOM'!$G$6:$EV$12,3,FALSE) -> 315 | D15: =VLOOKUP($A15,'RECAP DIRCOM'!$G$6:$EV$12,119,FALSE) -> 91% | E15: =VLOOKUP($A15,'RECAP DIRCOM'!$G$6:$EV$12,120,FALSE) -> 6% | F15: =VLOOKUP($A15,'RECAP DIRCOM'!$G$6:$EV$12,121,FALSE) -> 6 | G15: =VLOOKUP($A15,'RECAP DIRCOM'!$G$6:$EV$12,122,FALSE) -> 76% | H15: =VLOOKUP($A15,'RECAP DIRCOM'!$G$6:$EV$12,123,FALSE) -> 0% | I15: =VLOOKUP($A15,'RECAP DIRCOM'!$G$6:$EV$12,124,FALSE) -> 2 | J15: =VLOOKUP($A15,'RECAP DIRCOM'!$G$6:$EV$12,125,FALSE) -> 96% | K15: =VLOOKUP($A15,'RECAP DIRCOM'!$G$6:$EV$12,126,FALSE) -> 4% | L15: =VLOOKUP($A15,'RECAP DIRCOM'!$G$6:$EV$12,127,FALSE) -> 5 | M15: =VLOOKUP($A15,'RECAP DIRCOM'!$G$6:$EV$12,128,FALSE) -> 4% | N15: =VLOOKUP($A15,'RECAP DIRCOM'!$G$6:$EV$12,129,FALSE) -> 3% | O15: =VLOOKUP($A15,'RECAP DIRCOM'!$G$6:$EV$12,130,FALSE) -> 4
A16: 80 | B16: Vosges | C16: =VLOOKUP($A16,'RECAP DIRCOM'!$G$6:$EV$12,3,FALSE) -> 150 | D16: =VLOOKUP($A16,'RECAP DIRCOM'!$G$6:$EV$12,119,FALSE) -> 97% | E16: =VLOOKUP($A16,'RECAP DIRCOM'!$G$6:$EV$12,120,FALSE) -> 0% | F16: =VLOOKUP($A16,'RECAP DIRCOM'!$G$6:$EV$12,121,FALSE) -> 1 | G16: =VLOOKUP($A16,'RECAP DIRCOM'!$G$6:$EV$12,122,FALSE) -> 76% | H16: =VLOOKUP($A16,'RECAP DIRCOM'!$G$6:$EV$12,123,FALSE) -> 0% | I16: =VLOOKUP($A16,'RECAP DIRCOM'!$G$6:$EV$12,124,FALSE) -> 1 | J16: =VLOOKUP($A16,'RECAP DIRCOM'!$G$6:$EV$12,125,FALSE) -> 98% | K16: =VLOOKUP($A16,'RECAP DIRCOM'!$G$6:$EV$12,126,FALSE) -> 2% | L16: =VLOOKUP($A16,'RECAP DIRCOM'!$G$6:$EV$12,127,FALSE) -> 3 | M16: =VLOOKUP($A16,'RECAP DIRCOM'!$G$6:$EV$12,128,FALSE) -> 1% | N16: =VLOOKUP($A16,'RECAP DIRCOM'!$G$6:$EV$12,129,FALSE) -> 0% | O16: =VLOOKUP($A16,'RECAP DIRCOM'!$G$6:$EV$12,130,FALSE) -> 1
A17: Total CEGEE Directions Commerciales | C17: =SUM(C10:C16) -> 1617

Sheet DC_SATISFACTION
A1: Accueil | D1: BAROMETRE BDD - DIRECTIONS COMMERCIALES
D2: SATISFACTION CLIENTS
D3: =ACCUEIL!H7 -> 2019-02-28
D7: N P S | G7: Enquête Qualité Haute Définition | J7: Total Satisfaction Clients
E8: coef | F8: ='RECAP DIRCOM'!EO4 -> 5% | H8: coef | I8: ='RECAP DIRCOM'!ER4 -> 5% | K8: coef | L8: ='RECAP DIRCOM'!EU4 -> 10%
A9: eds | B9: Direction | C9: ETP | E9: % Ecart au 1er | F9: Rang | H9: % Ecart au 1er | I9: Rang | J9: Moyenne ecart au 1er | K9: % Ecart au 1er | L9: Rang CEGEE
A10: 50 | B10: Aube Haute Marne | C10: =VLOOKUP($A10,'RECAP DIRCOM'!$G$6:$EV$12,3,FALSE) -> 152 | D10: =VLOOKUP($A10,'RECAP DIRCOM'!$G$6:$EV$12,137,FALSE) -> -12 | E10: =VLOOKUP($A10,'RECAP DIRCOM'!$G$6:$EV$12,138,FALSE) -> 57% | F10: =VLOOKUP($A10,'RECAP DIRCOM'!$G$6:$EV$12,139,FALSE) -> 2 | G10: =VLOOKUP($A10,'RECAP DIRCOM'!$G$6:$EV$12,140,FALSE) -> 74% | H10: =VLOOKUP($A10,'RECAP DIRCOM'!$G$6:$EV$12,141,FALSE) -> 4% | I10: =VLOOKUP($A10,'RECAP DIRCOM'!$G$6:$EV$12,142,FALSE) -> 5 | J10: =VLOOKUP($A10,'RECAP DIRCOM'!$G$6:$EV$12,143,FALSE) -> 30% | K10: =VLOOKUP($A10,'RECAP DIRCOM'!$G$6:$EV$12,144,FALSE) -> 29% | L10: =VLOOKUP($A10,'RECAP DIRCOM'!$G$6:$EV$12,145,FALSE) -> 2
A11: 262 | B11: Bas-Rhin | C11: =VLOOKUP($A11,'RECAP DIRCOM'!$G$6:$EV$12,3,FALSE) -> 299 | D11: =VLOOKUP($A11,'RECAP DIRCOM'!$G$6:$EV$12,137,FALSE) -> -25 | E11: =VLOOKUP($A11,'RECAP DIRCOM'!$G$6:$EV$12,138,FALSE) -> 150% | F11: =VLOOKUP($A11,'RECAP DIRCOM'!$G$6:$EV$12,139,FALSE) -> 7 | G11: =VLOOKUP($A11,'RECAP DIRCOM'!$G$6:$EV$12,140,FALSE) -> 70% | H11: =VLOOKUP($A11,'RECAP DIRCOM'!$G$6:$EV$12,141,FALSE) -> 9% | I11: =VLOOKUP($A11,'RECAP DIRCOM'!$G$6:$EV$12,142,FALSE) -> 7 | J11: =VLOOKUP($A11,'RECAP DIRCOM'!$G$6:$EV$12,143,FALSE) -> 79% | K11: =VLOOKUP($A11,'RECAP DIRCOM'!$G$6:$EV$12,144,FALSE) -> 78% | L11: =VLOOKUP($A11,'RECAP DIRCOM'!$G$6:$EV$12,145,FALSE) -> 7
A12: 264 | B12: Haut-Rhin | C12: =VLOOKUP($A12,'RECAP DIRCOM'!$G$6:$EV$12,3,FALSE) -> 188 | D12: =VLOOKUP($A12,'RECAP DIRCOM'!$G$6:$EV$12,137,FALSE) -> -23 | E12: =VLOOKUP($A12,'RECAP DIRCOM'!$G$6:$EV$12,138,FALSE) -> 136% | F12: =VLOOKUP($A12,'RECAP DIRCOM'!$G$6:$EV$12,139,FALSE) -> 6 | G12: =VLOOKUP($A12,'RECAP DIRCOM'!$G$6:$EV$12,140,FALSE) -> 75% | H12: =VLOOKUP($A12,'RECAP DIRCOM'!$G$6:$EV$12,141,FALSE) -> 3% | I12: =VLOOKUP($A12,'RECAP DIRCOM'!$G$6:$EV$12,142,FALSE) -> 4 | J12: =VLOOKUP($A12,'RECAP DIRCOM'!$G$6:$EV$12,143,FALSE) -> 69% | K12: =VLOOKUP($A12,'RECAP DIRCOM'!$G$6:$EV$12,144,FALSE) -> 69% | L12: =VLOOKUP($A12,'RECAP DIRCOM'!$G$6:$EV$12,145,FALSE) -> 6
A13: 30 | B13: Marne-Ardennes | C13: =VLOOKUP($A13,'RECAP DIRCOM'!$G$6:$EV$12,3,FALSE) -> 242 | D13: =VLOOKUP($A13,'RECAP DIRCOM'!$G$6:$EV$12,137,FALSE) -> -4 | E13: =VLOOKUP($A13,'RECAP DIRCOM'!$G$6:$EV$12,138,FALSE) -> 0% | F13: =VLOOKUP($A13,'RECAP DIRCOM'!$G$6:$EV$12,139,FALSE) -> 1 | G13: =VLOOKUP($A13,'RECAP DIRCOM'!$G$6:$EV$12,140,FALSE) -> 76% | H13: =VLOOKUP($A13,'RECAP DIRCOM'!$G$6:$EV$12,141,FALSE) -> 2% | I13: =VLOOKUP($A13,'RECAP DIRCOM'!$G$6:$EV$12,142,FALSE) -> 3 | J13: =VLOOKUP($A13,'RECAP DIRCOM'!$G$6:$EV$12,143,FALSE) -> 1% | K13: =VLOOKUP($A13,'RECAP DIRCOM'!$G$6:$EV$12,144,FALSE) -> 0% | L13: =VLOOKUP($A13,'RECAP DIRCOM'!$G$6:$EV$12,145,FALSE) -> 1
A14: 110 | B14: Meurthe et Moselle Meuse | C14: =VLOOKUP($A14,'RECAP DIRCOM'!$G$6:$EV$12,3,FALSE) -> 271 | D14: =VLOOKUP($A14,'RECAP DIRCOM'!$G$6:$EV$12,137,FALSE) -> -15 | E14: =VLOOKUP($A14,'RECAP DIRCOM'!$G$6:$EV$12,138,FALSE) -> 79% | F14: =VLOOKUP($A14,'RECAP DIRCOM'!$G$6:$EV$12,139,FALSE) -> 3 | G14: =VLOOKUP($A14,'RECAP DIRCOM'!$G$6:$EV$12,140,FALSE) -> 73% | H14: =VLOOKUP($A14,'RECAP DIRCOM'!$G$6:$EV$12,141,FALSE) -> 6% | I14: =VLOOKUP($A14,'RECAP DIRCOM'!$G$6:$EV$12,142,FALSE) -> 6 | J14: =VLOOKUP($A14,'RECAP DIRCOM'!$G$6:$EV$12,143,FALSE) -> 42% | K14: =VLOOKUP($A14,'RECAP DIRCOM'!$G$6:$EV$12,144,FALSE) -> 41% | L14: =VLOOKUP($A14,'RECAP DIRCOM'!$G$6:$EV$12,145,FALSE) -> 4
A15: 160 | B15: Moselle | C15: =VLOOKUP($A15,'RECAP DIRCOM'!$G$6:$EV$12,3,FALSE) -> 315 | D15: =VLOOKUP($A15,'RECAP DIRCOM'!$G$6:$EV$12,137,FALSE) -> -17 | E15: =VLOOKUP($A15,'RECAP DIRCOM'!$G$6:$EV$12,138,FALSE) -> 93% | F15: =VLOOKUP($A15,'RECAP DIRCOM'!$G$6:$EV$12,139,FALSE) -> 5 | G15: =VLOOKUP($A15,'RECAP DIRCOM'!$G$6:$EV$12,140,FALSE) -> 77% | H15: =VLOOKUP($A15,'RECAP DIRCOM'!$G$6:$EV$12,141,FALSE) -> 0% | I15: =VLOOKUP($A15,'RECAP DIRCOM'!$G$6:$EV$12,142,FALSE) -> 1 | J15: =VLOOKUP($A15,'RECAP DIRCOM'!$G$6:$EV$12,143,FALSE) -> 46% | K15: =VLOOKUP($A15,'RECAP DIRCOM'!$G$6:$EV$12,144,FALSE) -> 45% | L15: =VLOOKUP($A15,'RECAP DIRCOM'!$G$6:$EV$12,145,FALSE) -> 5
A16: 80 | B16: Vosges | C16: =VLOOKUP($A16,'RECAP DIRCOM'!$G$6:$EV$12,3,FALSE) -> 150 | D16: =VLOOKUP($A16,'RECAP DIRCOM'!$G$6:$EV$12,137,FALSE) -> -15 | E16: =VLOOKUP($A16,'RECAP DIRCOM'!$G$6:$EV$12,138,FALSE) -> 79% | F16: =VLOOKUP($A16,'RECAP DIRCOM'!$G$6:$EV$12,139,FALSE) -> 3 | G16: =VLOOKUP($A16,'RECAP DIRCOM'!$G$6:$EV$12,140,FALSE) -> 77% | H16: =VLOOKUP($A16,'RECAP DIRCOM'!$G$6:$EV$12,141,FALSE) -> 0% | I16: =VLOOKUP($A16,'RECAP DIRCOM'!$G$6:$EV$12,142,FALSE) -> 2 | J16: =VLOOKUP($A16,'RECAP DIRCOM'!$G$6:$EV$12,143,FALSE) -> 39% | K16: =VLOOKUP($A16,'RECAP DIRCOM'!$G$6:$EV$12,144,FALSE) -> 38% | L16: =VLOOKUP($A16,'RECAP DIRCOM'!$G$6:$EV$12,145,FALSE) -> 3
A17: Total CEGEE Directions Commerciales | C17: =SUM(C10:C16) -> 1617

Sheet SE_FICHE
A1: Accueil
A2: BAROMETRE BDD
A4: UNITE: | B4: SECTEUR | K4: ETP : | L4: =VLOOKUP(A5,'RECAP SECT'!$G$6:$I$82,3,FALSE) -> 9.54
A5: =VLOOKUP(B5,LISTES!$H$6:$I$82,2,FALSE) -> 33 | B5: COMMERCY
C6: Coefficient du critére | E6: Résultats | I6: Ecart au 1ier | M6: Evolution
E7: du 1ier | G7: du secteur | I7: Du mois | K7: Au 31/12/2018
A9: RANG au CLASSEMENT GENERAL | I9: =VLOOKUP($A$5,'RECAP SECT'!$G$6:$FE$312,154,FALSE) -> 74 | K9: =VLOOKUP($A$5,'RECAP SECT AN'!$G$6:$FE$312,154,FALSE) -> 73 | M9: =+K9-I9 -> -1
A11: CRITERE CONQUETE | C11: 15%
B12: Evolution nette Clients Bancarisés Principaux (BP +JBP) par ETP | C12: 4% | E12: ='RECAP SECT'!K4 -> 1.9 | G12: =VLOOKUP($A$5,'RECAP SECT'!$G$6:$FE$312,5,FALSE) -> -1.6 | I12: =VLOOKUP($A$5,'RECAP SECT'!$G$6:$FE$312,6,FALSE) -> 96% | K12: =VLOOKUP($A$5,'RECAP SECT AN'!$G$6:$FE$312,6,FALSE) -> 137% | M12: =+K12-I12 -> 40%
B13: Evolution nette relations Premium par ETP | C13: 4% | E13: ='RECAP SECT'!N4 -> 1.3 | G13: =VLOOKUP($A$5,'RECAP SECT'!$G$6:$FE$312,8,FALSE) -> 0.3 | I13: =VLOOKUP($A$5,'RECAP SECT'!$G$6:$FE$312,9,FALSE) -> 76% | K13: =VLOOKUP($A$5,'RECAP SECT AN'!$G$6:$FE$312,9,FALSE) -> 109% | M13: =+K13-I13 -> 33%
B14: Evolution nette Clients Bancarisés Principaux équipés par ETP | C14: 3% | E14: ='RECAP SECT'!Q4 -> 2.5 | G14: =VLOOKUP($A$5,'RECAP SECT'!$G$6:$FE$312,11,FALSE) -> -1.4 | I14: =VLOOKUP($A$5,'RECAP SECT'!$G$6:$FE$312,12,FALSE) -> 92% | K14: =VLOOKUP($A$5,'RECAP SECT AN'!$G$6:$FE$312,12,FALSE) -> 84% | M14: -8%
B15: Evolution nette Clients Pro actif équipés par rapport à l’objectif fixé | C15: 4% | E15: ='RECAP SECT'!T4 -> 150% | G15: =VLOOKUP($A$5,'RECAP SECT'!$G$6:$FE$312,14,FALSE) -> 25% | I15: =VLOOKUP($A$5,'RECAP SECT'!$G$6:$FE$312,15,FALSE) -> 83% | K15: =VLOOKUP($A$5,'RECAP SECT AN'!$G$6:$FE$312,15,FALSE) -> 51% | M15: -33%
A17: CRITERE EQUIPEMENT BANCARISATION | C17: 15%
B18: Ventes nettes forfaits (+ 2 options) par ETP | C18: 3% | E18: ='RECAP SECT'!AF4 -> -2.3 | G18: =VLOOKUP($A$5,'RECAP SECT'!$G$6:$FE$312,26,FALSE) -> -8.5 | I18: =VLOOKUP($A$5,'RECAP SECT'!$G$6:$FE$312,27,FALSE) -> 146% | K18: =VLOOKUP($A$5,'RECAP SECT AN'!$G$6:$FE$312,27,FALSE) -> 114% | M18: =+K18-I18 -> -32%
B19: Ventes nettes IZICARTES par ETP | C19: 3% | E19: ='RECAP SECT'!AI4 -> 9.5 | G19: =VLOOKUP($A$5,'RECAP SECT'!$G$6:$FE$312,29,FALSE) -> 0.7 | I19: =VLOOKUP($A$5,'RECAP SECT'!$G$6:$FE$312,30,FALSE) -> 92% | K19: =VLOOKUP($A$5,'RECAP SECT AN'!$G$6:$FE$312,30,FALSE) -> 80% | M19: -12%
B20: Ventes nettes cartes HDG par ETP | C20: 3% | E20: ='RECAP SECT'!AL4 -> 8.7 | G20: =VLOOKUP($A$5,'RECAP SECT'!$G$6:$FE$312,32,FALSE) -> 0.7 | I20: =VLOOKUP($A$5,'RECAP SECT'!$G$6:$FE$312,33,FALSE) -> 92% | K20: =VLOOKUP($A$5,'RECAP SECT AN'!$G$6:$FE$312,33,FALSE) -> 43% | M20: -48%
B21: Vente nette CB débit différé par ETP | C21: 3% | E21: ='RECAP SECT'!AO4 -> 4.1 | G21: =VLOOKUP($A$5,'RECAP SECT'!$G$6:$FE$312,35,FALSE) -> -1.4 | I21: =VLOOKUP($A$5,'RECAP SECT'!$G$6:$FE$312,36,FALSE) -> 133% | K21: =VLOOKUP($A$5,'RECAP SECT AN'!$G$6:$FE$312,36,FALSE) -> 71% | M21: -63%
B22: Ventes nettes banca Pro Forfaits Pro, Carte pro par rapport à l’objectif | C22: 3% | E22: ='RECAP SECT'!AR4 -> 92% | G22: =VLOOKUP($A$5,'RECAP SECT'!$G$6:$FE$312,38,FALSE) -> 20% | I22: =VLOOKUP($A$5,'RECAP SECT'!$G$6:$FE$312,39,FALSE) -> 53% | K22: =VLOOKUP($A$5,'RECAP SECT AN'!$G$6:$FE$312,39,FALSE) -> 94% | M22: 40%
A24: CRITERE EPARGNE | C24: 15%
B25: Excédents de collecte (y.c DAV) par ETP | C25: 2% | E25: ='RECAP SECT'!BD4 -> 212.9 | G25: =VLOOKUP($A$5,'RECAP SECT'!$G$6:$FE$312,50,FALSE) -> 18.6 | I25: =VLOOKUP($A$5,'RECAP SECT'!$G$6:$FE$312,51,FALSE) -> 66% | K25: =VLOOKUP($A$5,'RECAP SECT AN'!$G$6:$FE$312,51,FALSE) -> 116% | M25: =+K25-I25 -> 50%
B26: CA assurance vie par ETP | C26: 2% | E26: ='RECAP SECT'!BG4 -> 234.1 | G26: =VLOOKUP($A$5,'RECAP SECT'!$G$6:$FE$312,53,FALSE) -> 109.2 | I26: =VLOOKUP($A$5,'RECAP SECT'!$G$6:$FE$312,54,FALSE) -> 53% | K26: =VLOOKUP($A$5,'RECAP SECT AN'!$G$6:$FE$312,54,FALSE) -> 67% | M26: 13%
B27: Activité UC (CA+arbitrage) par ETP | C27: 2% | E27: ='RECAP SECT'!BJ4 -> 83.9 | G27: =VLOOKUP($A$5,'RECAP SECT'!$G$6:$FE$312,56,FALSE) -> 24.9 | I27: =VLOOKUP($A$5,'RECAP SECT'!$G$6:$FE$312,57,FALSE) -> 70% | K27: =VLOOKUP($A$5,'RECAP SECT AN'!$G$6:$FE$312,57,FALSE) -> 77% | M27: 6%
B28: Excédents Assurance-vie par ETP | C28: 2% | E28: ='RECAP SECT'!BM4 -> 162.2 | G28: =VLOOKUP($A$5,'RECAP SECT'!$G$6:$FE$312,59,FALSE) -> 49.0 | I28: =VLOOKUP($A$5,'RECAP SECT'!$G$6:$FE$312,60,FALSE) -> 65% | K28: =VLOOKUP($A$5,'RECAP SECT AN'!$G$6:$FE$312,60,FALSE) -> 96% | M28: 31%
B29: Excédents Epargne Bilan (Hors Emprunts CTO) par ETP | C29: 7% | E29: ='RECAP SECT'!BP4 -> 324.1 | G29: =VLOOKUP($A$5,'RECAP SECT'!$G$6:$FE$312,62,FALSE) -> 87.9 | I29: =VLOOKUP($A$5,'RECAP SECT'!$G$6:$FE$312,63,FALSE) -> 73% | K29: =VLOOKUP($A$5,'RECAP SECT AN'!$G$6:$FE$312,63,FALSE) -> 86% | M29: 13%
A31: CRITERE CREDITS | C31: 15%
B32: Engagement Conso par ETP (hors clients 9) | C32: 3% | E32: ='RECAP SECT'!CB4 -> 185.1 | G32: =VLOOKUP($A$5,'RECAP SECT'!$G$6:$FE$312,74,FALSE) -> 61.7 | I32: =VLOOKUP($A$5,'RECAP SECT'!$G$6:$FE$312,75,FALSE) -> 67% | K32: =VLOOKUP($A$5,'RECAP SECT AN'!$G$6:$FE$312,75,FALSE) -> 29% | M32: =+K32-I32 -> -38%
B33: % CNP sur Conso en valeur absolue | C33: 2% | E33: ='RECAP SECT'!CE4 -> 102% | G33: =VLOOKUP($A$5,'RECAP SECT'!$G$6:$FE$312,77,FALSE) -> 84% | I33: =VLOOKUP($A$5,'RECAP SECT'!$G$6:$FE$312,78,FALSE) -> 18% | K33: =VLOOKUP($A$5,'RECAP SECT AN'!$G$6:$FE$312,78,FALSE) -> 14% | M33: -4%
B34: Engagements Immo par rapport à l’objectif | C34: 3% | E34: ='RECAP SECT'!CH4 -> 25% | G34: =VLOOKUP($A$5,'RECAP SECT'!$G$6:$FE$312,80,FALSE) -> 14% | I34: =VLOOKUP($A$5,'RECAP SECT'!$G$6:$FE$312,81,FALSE) -> 43% | K34: =VLOOKUP($A$5,'RECAP SECT AN'!$G$6:$FE$312,81,FALSE) -> 53% | M34: 9%
B35: % CNP sur crédits immo en valeur absolue | C35: 2% | E35: ='RECAP SECT'!CK4 -> 100% | G35: =VLOOKUP($A$5,'RECAP SECT'!$G$6:$FE$312,83,FALSE) -> 68% | I35: =VLOOKUP($A$5,'RECAP SECT'!$G$6:$FE$312,84,FALSE) -> 32% | K35: =VLOOKUP($A$5,'RECAP SECT AN'!$G$6:$FE$312,84,FALSE) -> 8% | M35: -24%
B36: Taux de couverture SACCEF | C36: 2% | E36: ='RECAP SECT'!CN4 -> 111% | G36: =VLOOKUP($A$5,'RECAP SECT'!$G$6:$FE$312,86,FALSE) -> 100% | I36: =VLOOKUP($A$5,'RECAP SECT'!$G$6:$FE$312,87,FALSE) -> 10% | K36: =VLOOKUP($A$5,'RECAP SECT AN'!$G$6:$FE$312,87,FALSE) -> 26% | M36: 16%
B37: Engagements CMLT + CB par rapport à l’objectif | C37: 3% | E37: ='RECAP SECT'!CQ4 -> 54% | G37: =VLOOKUP($A$5,'RECAP SECT'!$G$6:$FE$312,89,FALSE) -> 3% | I37: =VLOOKUP($A$5,'RECAP SECT'!$G$6:$FE$312,90,FALSE) -> 95% | K37: =VLOOKUP($A$5,'RECAP SECT AN'!$G$6:$FE$312,90,FALSE) -> 74% | M37: -20%
A39: CRITERE IARD PREVOYANCE | C39: 20%
B40: Ventes nettes IARD (Auto+MRH+ Pro) par ETP | C40: 7% | E40: ='RECAP SECT'!DC4 -> 5.2 | G40: =VLOOKUP($A$5,'RECAP SECT'!$G$6:$FE$312,101,FALSE) -> -0.3 | I40: =VLOOKUP($A$5,'RECAP SECT'!$G$6:$FE$312,102,FALSE) -> 106% | K40: =VLOOKUP($A$5,'RECAP SECT AN'!$G$6:$FE$312,102,FALSE) -> 87% | M40: =+K40-I40 -> -19%
B41: Ventes nettes Prévoyance (GAV, secur.f,prevoy loc,santé,assist.vie, obséques, Pro) par ETP | C41: 7% | E41: ='RECAP SECT'!DF4 -> 4.4 | G41: =VLOOKUP($A$5,'RECAP SECT'!$G$6:$FE$312,104,FALSE) -> 1.6 | I41: =VLOOKUP($A$5,'RECAP SECT'!$G$6:$FE$312,105,FALSE) -> 64% | K41: =VLOOKUP($A$5,'RECAP SECT AN'!$G$6:$FE$312,105,FALSE) -> 66% | M41: 1%
B42: Chiffre d’affaires IARD (Yc Pro) par ETP | C42: 6% | E42: ='RECAP SECT'!DI4 -> 3.7 | G42: =VLOOKUP($A$5,'RECAP SECT'!$G$6:$FE$312,107,FALSE) -> 1.9 | I42: =VLOOKUP($A$5,'RECAP SECT'!$G$6:$FE$312,108,FALSE) -> 50% | K42: =VLOOKUP($A$5,'RECAP SECT AN'!$G$6:$FE$312,108,FALSE) -> 40% | M42: -10%
A44: CRITERE RISQUES | C44: 10%
B45: Complétude, conformité et fiabilisation des nouvelles EER sur flux BDD | C45: 3% | E45: ='RECAP SECT'!DU4 -> 100% | G45: =VLOOKUP($A$5,'RECAP SECT'!$G$6:$FE$312,119,FALSE) -> 100% | I45: =VLOOKUP($A$5,'RECAP SECT'!$G$6:$FE$312,120,FALSE) -> 0% | K45: =VLOOKUP($A$5,'RECAP SECT AN'!$G$6:$FE$312,120,FALSE) -> 5% | M45: =+K45-I45 -> 5%
B46: Complétude, conformité et fiabilisation des EER sur flux cumulé et stock | C46: 3% | E46: ='RECAP SECT'!DX4 -> 82% | G46: =VLOOKUP($A$5,'RECAP SECT'!$G$6:$FE$312,122,FALSE) -> 75% | I46: =VLOOKUP($A$5,'RECAP SECT'!$G$6:$FE$312,123,FALSE) -> 8% | K46: =VLOOKUP($A$5,'RECAP SECT AN'!$G$6:$FE$312,123,FALSE) -> 8% | M46: 0%
B47: Traitement et qualité du traitement des alertes Vigiclient | C47: 4% | E47: ='RECAP SECT'!EA4 -> 100% | G47: =VLOOKUP($A$5,'RECAP SECT'!$G$6:$FE$312,125,FALSE) -> 100% | I47: =VLOOKUP($A$5,'RECAP SECT'!$G$6:$FE$312,126,FALSE) -> 0% | K47: =VLOOKUP($A$5,'RECAP SECT AN'!$G$6:$FE$312,126,FALSE) -> 0% | M47: 0%
A49: CRITERE Satisfaction Clients | C49: 10%
B50: Objectifs NPS* | C50: 5% | E50: ='RECAP SECT'!EM4 -> 19 | G50: =VLOOKUP($A$5,'RECAP SECT'!$G$6:$FE$312,137,FALSE) -> -22 | I50: =VLOOKUP($A$5,'RECAP SECT'!$G$6:$FE$312,138,FALSE) -> 90% | K50: =VLOOKUP($A$5,'RECAP SECT AN'!$G$6:$FE$312,138,FALSE) -> 103% | M50: =+K50-I50 -> 13%
B51: Enquête Qualité Haute Définition | C51: 5% | E51: ='RECAP SECT'!EP4 -> 88% | G51: =VLOOKUP($A$5,'RECAP SECT'!$G$6:$FE$312,140,FALSE) -> 48% | I51: =VLOOKUP($A$5,'RECAP SECT'!$G$6:$FE$312,141,FALSE) -> 45% | K51: =VLOOKUP($A$5,'RECAP SECT AN'!$G$6:$FE$312,141,FALSE) -> 31% | M51: -14%

Sheet SE_OBJECTIF
A1: Accueil | F1: BAROMETRE BDD - DIRECTIONS COMMERCIALES
F2: PV PART SUR OBJECTIFS
F3: =ACCUEIL!H7 -> 2019-02-28
F7: Excédent de collecte par ETP yc DAV | I7: Engagements crédit conso par ETP (hors clients note octroi à 9 et DRC complet) | L7: Ventes brutes IARD prevoyance Part et Pro (si DRC complet) par ETP | O7: Evolution des Bpe+JBPe par ETP | R7: PNB sur activité nouvelle par ETP
G8: Taux d'atteinte saisonalisé | H8: x % | J8: Taux d'atteinte saisonalisé | K8: x % | M8: Taux d'atteinte saisonalisé | N8: x % | P8: Taux d'atteinte saisonalisé | Q8: x % | S8: Taux d'atteinte saisonalisé | T8: x %
A9: eds | B9: Direction | C9: eds | D9: Secteur | E9: ETP | F9: Réal | G9: Obj | H9: % | I9: Réal | J9: Obj | K9: % | L9: Réal | M9: Obj | N9: % | O9: Réal | P9: Obj | Q9: % | R9: Réal | S9: Obj | T9: %
A10: 50 | B10: AUBE HAUTE MARNE | C10: 20 | D10: SECTEUR BAR SUR AUBE | E10: =VLOOKUP($C10,'RECAP SECT'!$G$6:$EV$312,3,FALSE) -> 12.8 | F10: =VLOOKUP($C10,'RECAP SECT'!$G$6:$FZ$85,158,FALSE) -> -49 | G10: =VLOOKUP($C10,'RECAP SECT'!$G$6:$FZ$85,159,FALSE) -> 123 | H10: =VLOOKUP($C10,'RECAP SECT'!$G$6:$FZ$85,160,FALSE) -> -40% | I10: =VLOOKUP($C10,'RECAP SECT'!$G$6:$FZ$85,161,FALSE) -> 140 | J10: =VLOOKUP($C10,'RECAP SECT'!$G$6:$FZ$85,162,FALSE) -> 467 | K10: =VLOOKUP($C10,'RECAP SECT'!$G$6:$FZ$85,163,FALSE) -> 30% | L10: =VLOOKUP($C10,'RECAP SECT'!$G$6:$FZ$85,164,FALSE) -> 11 | M10: =VLOOKUP($C10,'RECAP SECT'!$G$6:$FZ$85,165,FALSE) -> 58 | N10: =VLOOKUP($C10,'RECAP SECT'!$G$6:$FZ$85,166,FALSE) -> 18% | O10: =VLOOKUP($C10,'RECAP SECT'!$G$6:$FZ$85,167,FALSE) -> -2 | P10: =VLOOKUP($C10,'RECAP SECT'!$G$6:$FZ$85,168,FALSE) -> 4 | Q10: =VLOOKUP($C10,'RECAP SECT'!$G$6:$FZ$85,169,FALSE) -> -59% | R10: =VLOOKUP($C10,'RECAP SECT'!$G$6:$FZ$85,170,FALSE) -> 26 | S10: =VLOOKUP($C10,'RECAP SECT'!$G$6:$FZ$85,171,FALSE) -> 144 | T10: =VLOOKUP($C10,'RECAP SECT'!$G$6:$FZ$85,172,FALSE) -> 18%
A11: 50 | B11: AUBE HAUTE MARNE | C11: 21 | D11: SECTEUR CHAUMONT HOTEL DE VILLE | E11: =VLOOKUP($C11,'RECAP SECT'!$G$6:$EV$312,3,FALSE) -> 15.9 | F11: =VLOOKUP($C11,'RECAP SECT'!$G$6:$FZ$85,158,FALSE) -> 39 | G11: =VLOOKUP($C11,'RECAP SECT'!$G$6:$FZ$85,159,FALSE) -> 117 | H11: =VLOOKUP($C11,'RECAP SECT'!$G$6:$FZ$85,160,FALSE) -> 33% | I11: =VLOOKUP($C11,'RECAP SECT'!$G$6:$FZ$85,161,FALSE) -> 185 | J11: =VLOOKUP($C11,'RECAP SECT'!$G$6:$FZ$85,162,FALSE) -> 467 | K11: =VLOOKUP($C11,'RECAP SECT'!$G$6:$FZ$85,163,FALSE) -> 40% | L11: =VLOOKUP($C11,'RECAP SECT'!$G$6:$FZ$85,164,FALSE) -> 12 | M11: =VLOOKUP($C11,'RECAP SECT'!$G$6:$FZ$85,165,FALSE) -> 59 | N11: =VLOOKUP($C11,'RECAP SECT'!$G$6:$FZ$85,166,FALSE) -> 21% | O11: =VLOOKUP($C11,'RECAP SECT'!$G$6:$FZ$85,167,FALSE) -> 1 | P11: =VLOOKUP($C11,'RECAP SECT'!$G$6:$FZ$85,168,FALSE) -> 4 | Q11: =VLOOKUP($C11,'RECAP SECT'!$G$6:$FZ$85,169,FALSE) -> 16% | R11: =VLOOKUP($C11,'RECAP SECT'!$G$6:$FZ$85,170,FALSE) -> 28 | S11: =VLOOKUP($C11,'RECAP SECT'!$G$6:$FZ$85,171,FALSE) -> 135 | T11: =VLOOKUP($C11,'RECAP SECT'!$G$6:$FZ$85,172,FALSE) -> 21%
A12: 50 | B12: AUBE HAUTE MARNE | C12: 22 | D12: SECTEUR JOINVILLE | E12: =VLOOKUP($C12,'RECAP SECT'!$G$6:$EV$312,3,FALSE) -> 6.5 | F12: =VLOOKUP($C12,'RECAP SECT'!$G$6:$FZ$85,158,FALSE) -> 19 | G12: =VLOOKUP($C12,'RECAP SECT'!$G$6:$FZ$85,159,FALSE) -> 106 | H12: =VLOOKUP($C12,'RECAP SECT'!$G$6:$FZ$85,160,FALSE) -> 18% | I12: =VLOOKUP($C12,'RECAP SECT'!$G$6:$FZ$85,161,FALSE) -> 84 | J12: =VLOOKUP($C12,'RECAP SECT'!$G$6:$FZ$85,162,FALSE) -> 467 | K12: =VLOOKUP($C12,'RECAP SECT'!$G$6:$FZ$85,163,FALSE) -> 18% | L12: =VLOOKUP($C12,'RECAP SECT'!$G$6:$FZ$85,164,FALSE) -> 9 | M12: =VLOOKUP($C12,'RECAP SECT'!$G$6:$FZ$85,165,FALSE) -> 59 | N12: =VLOOKUP($C12,'RECAP SECT'!$G$6:$FZ$85,166,FALSE) -> 15% | O12: =VLOOKUP($C12,'RECAP SECT'!$G$6:$FZ$85,167,FALSE) -> -1 | P12: =VLOOKUP($C12,'RECAP SECT'!$G$6:$FZ$85,168,FALSE) -> 4 | Q12: =VLOOKUP($C12,'RECAP SECT'!$G$6:$FZ$85,169,FALSE) -> -31% | R12: =VLOOKUP($C12,'RECAP SECT'!$G$6:$FZ$85,170,FALSE) -> 16 | S12: =VLOOKUP($C12,'RECAP SECT'!$G$6:$FZ$85,171,FALSE) -> 124 | T12: =VLOOKUP($C12,'RECAP SECT'!$G$6:$FZ$85,172,FALSE) -> 13%
A13: 50 | B13: AUBE HAUTE MARNE | C13: 19 | D13: SECTEUR LANGRES | E13: =VLOOKUP($C13,'RECAP SECT'!$G$6:$EV$312,3,FALSE) -> 13.5 | F13: =VLOOKUP($C13,'RECAP SECT'!$G$6:$FZ$85,158,FALSE) -> -94 | G13: =VLOOKUP($C13,'RECAP SECT'!$G$6:$FZ$85,159,FALSE) -> 103 | H13: =VLOOKUP($C13,'RECAP SECT'!$G$6:$FZ$85,160,FALSE) -> -91% | I13: =VLOOKUP($C13,'RECAP SECT'!$G$6:$FZ$85,161,FALSE) -> 118 | J13: =VLOOKUP($C13,'RECAP SECT'!$G$6:$FZ$85,162,FALSE) -> 467 | K13: =VLOOKUP($C13,'RECAP SECT'!$G$6:$FZ$85,163,FALSE) -> 25% | L13: =VLOOKUP($C13,'RECAP SECT'!$G$6:$FZ$85,164,FALSE) -> 11 | M13: =VLOOKUP($C13,'RECAP SECT'!$G$6:$FZ$85,165,FALSE) -> 58 | N13: =VLOOKUP($C13,'RECAP SECT'!$G$6:$FZ$85,166,FALSE) -> 19% | O13: =VLOOKUP($C13,'RECAP SECT'!$G$6:$FZ$85,167,FALSE) -> 0 | P13: =VLOOKUP($C13,'RECAP SECT'!$G$6:$FZ$85,168,FALSE) -> 4 | Q13: =VLOOKUP($C13,'RECAP SECT'!$G$6:$FZ$85,169,FALSE) -> 2% | R13: =VLOOKUP($C13,'RECAP SECT'!$G$6:$FZ$85,170,FALSE) -> 11 | S13: =VLOOKUP($C13,'RECAP SECT'!$G$6:$FZ$85,171,FALSE) -> 120 | T13: =VLOOKUP($C13,'RECAP SECT'!$G$6:$FZ$85,172,FALSE) -> 9%
A14: 50 | B14: AUBE HAUTE MARNE | C14: 18 | D14: SECTEUR ROMILLY SUR SEINE | E14: =VLOOKUP($C14,'RECAP SECT'!$G$6:$EV$312,3,FALSE) -> 17.2 | F14: =VLOOKUP($C14,'RECAP SECT'!$G$6:$FZ$85,158,FALSE) -> -87 | G14: =VLOOKUP($C14,'RECAP SECT'!$G$6:$FZ$85,159,FALSE) -> 131 | H14: =VLOOKUP($C14,'RECAP SECT'!$G$6:$FZ$85,160,FALSE) -> -67% | I14: =VLOOKUP($C14,'RECAP SECT'!$G$6:$FZ$85,161,FALSE) -> 115 | J14: =VLOOKUP($C14,'RECAP SECT'!$G$6:$FZ$85,162,FALSE) -> 467 | K14: =VLOOKUP($C14,'RECAP SECT'!$G$6:$FZ$85,163,FALSE) -> 25% | L14: =VLOOKUP($C14,'RECAP SECT'!$G$6:$FZ$85,164,FALSE) -> 8 | M14: =VLOOKUP($C14,'RECAP SECT'!$G$6:$FZ$85,165,FALSE) -> 59 | N14: =VLOOKUP($C14,'RECAP SECT'!$G$6:$FZ$85,166,FALSE) -> 13% | O14: =VLOOKUP($C14,'RECAP SECT'!$G$6:$FZ$85,167,FALSE) -> -1 | P14: =VLOOKUP($C14,'RECAP SECT'!$G$6:$FZ$85,168,FALSE) -> 4 | Q14: =VLOOKUP($C14,'RECAP SECT'!$G$6:$FZ$85,169,FALSE) -> -28% | R14: =VLOOKUP($C14,'RECAP SECT'!$G$6:$FZ$85,170,FALSE) -> 22 | S14: =VLOOKUP($C14,'RECAP SECT'!$G$6:$FZ$85,171,FALSE) -> 133 | T14: =VLOOKUP($C14,'RECAP SECT'!$G$6:$FZ$85,172,FALSE) -> 17%
A15: 50 | B15: AUBE HAUTE MARNE | C15: 23 | D15: SECTEUR SAINT DIZIER CENTRE | E15: =VLOOKUP($C15,'RECAP SECT'!$G$6:$EV$312,3,FALSE) -> 12.2 | F15: =VLOOKUP($C15,'RECAP SECT'!$G$6:$FZ$85,158,FALSE) -> -186 | G15: =VLOOKUP($C15,'RECAP SECT'!$G$6:$FZ$85,159,FALSE) -> 103 | H15: =VLOOKUP($C15,'RECAP SECT'!$G$6:$FZ$85,160,FALSE) -> -181% | I15: =VLOOKUP($C15,'RECAP SECT'!$G$6:$FZ$85,161,FALSE) -> 111 | J15: =VLOOKUP($C15,'RECAP SECT'!$G$6:$FZ$85,162,FALSE) -> 467 | K15: =VLOOKUP($C15,'RECAP SECT'!$G$6:$FZ$85,163,FALSE) -> 24% | L15: =VLOOKUP($C15,'RECAP SECT'!$G$6:$FZ$85,164,FALSE) -> 9 | M15: =VLOOKUP($C15,'RECAP SECT'!$G$6:$FZ$85,165,FALSE) -> 58 | N15: =VLOOKUP($C15,'RECAP SECT'!$G$6:$FZ$85,166,FALSE) -> 16% | O15: =VLOOKUP($C15,'RECAP SECT'!$G$6:$FZ$85,167,FALSE) -> 0 | P15: =VLOOKUP($C15,'RECAP SECT'!$G$6:$FZ$85,168,FALSE) -> 4 | Q15: =VLOOKUP($C15,'RECAP SECT'!$G$6:$FZ$85,169,FALSE) -> 8% | R15: =VLOOKUP($C15,'RECAP SECT'!$G$6:$FZ$85,170,FALSE) -> 17 | S15: =VLOOKUP($C15,'RECAP SECT'!$G$6:$FZ$85,171,FALSE) -> 123 | T15: =VLOOKUP($C15,'RECAP SECT'!$G$6:$FZ$85,172,FALSE) -> 14%
A16: 50 | B16: AUBE HAUTE MARNE | C16: 17 | D16: SECTEUR SAINT JULIEN LES VILLAS | E16: =VLOOKUP($C16,'RECAP SECT'!$G$6:$EV$312,3,FALSE) -> 16.9 | F16: =VLOOKUP($C16,'RECAP SECT'!$G$6:$FZ$85,158,FALSE) -> -119 | G16: =VLOOKUP($C16,'RECAP SECT'!$G$6:$FZ$85,159,FALSE) -> 118 | H16: =VLOOKUP($C16,'RECAP SECT'!$G$6:$FZ$85,160,FALSE) -> -101% | I16: =VLOOKUP($C16,'RECAP SECT'!$G$6:$FZ$85,161,FALSE) -> 78 | J16: =VLOOKUP($C16,'RECAP SECT'!$G$6:$FZ$85,162,FALSE) -> 467 | K16: =VLOOKUP($C16,'RECAP SECT'!$G$6:$FZ$85,163,FALSE) -> 17% | L16: =VLOOKUP($C16,'RECAP SECT'!$G$6:$FZ$85,164,FALSE) -> 7 | M16: =VLOOKUP($C16,'RECAP SECT'!$G$6:$FZ$85,165,FALSE) -> 59 | N16: =VLOOKUP($C16,'RECAP SECT'!$G$6:$FZ$85,166,FALSE) -> 11% | O16: =VLOOKUP($C16,'RECAP SECT'!$G$6:$FZ$85,167,FALSE) -> -1 | P16: =VLOOKUP($C16,'RECAP SECT'!$G$6:$FZ$85,168,FALSE) -> 4 | Q16: =VLOOKUP($C16,'RECAP SECT'!$G$6:$FZ$85,169,FALSE) -> -16% | R16: =VLOOKUP($C16,'RECAP SECT'!$G$6:$FZ$85,170,FALSE) -> 18 | S16: =VLOOKUP($C16,'RECAP SECT'!$G$6:$FZ$85,171,FALSE) -> 137 | T16: =VLOOKUP($C16,'RECAP SECT'!$G$6:$FZ$85,172,FALSE) -> 13%
A17: 50 | B17: AUBE HAUTE MARNE | C17: 16 | D17: SECTEUR SAINTE SAVINE | E17: =VLOOKUP($C17,'RECAP SECT'!$G$6:$EV$312,3,FALSE) -> 7.5 | F17: =VLOOKUP($C17,'RECAP SECT'!$G$6:$FZ$85,158,FALSE) -> -118 | G17: =VLOOKUP($C17,'RECAP SECT'!$G$6:$FZ$85,159,FALSE) -> 135 | H17: =VLOOKUP($C17,'RECAP SECT'!$G$6:$FZ$85,160,FALSE) -> -87% | I17: =VLOOKUP($C17,'RECAP SECT'!$G$6:$FZ$85,161,FALSE) -> 83 | J17: =VLOOKUP($C17,'RECAP SECT'!$G$6:$FZ$85,162,FALSE) -> 467 | K17: =VLOOKUP($C17,'RECAP SECT'!$G$6:$FZ$85,163,FALSE) -> 18% | L17: =VLOOKUP($C17,'RECAP SECT'!$G$6:$FZ$85,164,FALSE) -> 6 | M17: =VLOOKUP($C17,'RECAP SECT'!$G$6:$FZ$85,165,FALSE) -> 60 | N17: =VLOOKUP($C17,'RECAP SECT'!$G$6:$FZ$85,166,FALSE) -> 10% | O17: =VLOOKUP($C17,'RECAP SECT'!$G$6:$FZ$85,167,FALSE) -> 0 | P17: =VLOOKUP($C17,'RECAP SECT'!$G$6:$FZ$85,168,FALSE) -> 4 | Q17: =VLOOKUP($C17,'RECAP SECT'!$G$6:$FZ$85,169,FALSE) -> 7% | R17: =VLOOKUP($C17,'RECAP SECT'!$G$6:$FZ$85,170,FALSE) -> 11 | S17: =VLOOKUP($C17,'RECAP SECT'!$G$6:$FZ$85,171,FALSE) -> 137 | T17: =VLOOKUP($C17,'RECAP SECT'!$G$6:$FZ$85,172,FALSE) -> 8%
A18: 50 | B18: AUBE HAUTE MARNE | C18: 14 | D18: SECTEUR TROYES GAMBETTA | E18: =VLOOKUP($C18,'RECAP SECT'!$G$6:$EV$312,3,FALSE) -> 20.9 | F18: =VLOOKUP($C18,'RECAP SECT'!$G$6:$FZ$85,158,FALSE) -> -27 | G18: =VLOOKUP($C18,'RECAP SECT'!$G$6:$FZ$85,159,FALSE) -> 122 | H18: =VLOOKUP($C18,'RECAP SECT'!$G$6:$FZ$85,160,FALSE) -> -22% | I18: =VLOOKUP($C18,'RECAP SECT'!$G$6:$FZ$85,161,FALSE) -> 75 | J18: =VLOOKUP($C18,'RECAP SECT'!$G$6:$FZ$85,162,FALSE) -> 467 | K18: =VLOOKUP($C18,'RECAP SECT'!$G$6:$FZ$85,163,FALSE) -> 16% | L18: =VLOOKUP($C18,'RECAP SECT'!$G$6:$FZ$85,164,FALSE) -> 8 | M18: =VLOOKUP($C18,'RECAP SECT'!$G$6:$FZ$85,165,FALSE) -> 59 | N18: =VLOOKUP($C18,'RECAP SECT'!$G$6:$FZ$85,166,FALSE) -> 13% | O18: =VLOOKUP($C18,'RECAP SECT'!$G$6:$FZ$85,167,FALSE) -> 0 | P18: =VLOOKUP($C18,'RECAP SECT'!$G$6:$FZ$85,168,FALSE) -> 4 | Q18: =VLOOKUP($C18,'RECAP SECT'!$G$6:$FZ$85,169,FALSE) -> 12% | R18: =VLOOKUP($C18,'RECAP SECT'!$G$6:$FZ$85,170,FALSE) -> 12 | S18: =VLOOKUP($C18,'RECAP SECT'!$G$6:$FZ$85,171,FALSE) -> 134 | T18: =VLOOKUP($C18,'RECAP SECT'!$G$6:$FZ$85,172,FALSE) -> 9%
A19: 50 | B19: AUBE HAUTE MARNE | C19: 15 | D19: SECTEUR TROYES ZOLA | E19: =VLOOKUP($C19,'RECAP SECT'!$G$6:$EV$312,3,FALSE) -> 8.6 | F19: =VLOOKUP($C19,'RECAP SECT'!$G$6:$FZ$85,158,FALSE) -> 96 | G19: =VLOOKUP($C19,'RECAP SECT'!$G$6:$FZ$85,159,FALSE) -> 99 | H19: =VLOOKUP($C19,'RECAP SECT'!$G$6:$FZ$85,160,FALSE) -> 96% | I19: =VLOOKUP($C19,'RECAP SECT'!$G$6:$FZ$85,161,FALSE) -> 80 | J19: =VLOOKUP($C19,'RECAP SECT'!$G$6:$FZ$85,162,FALSE) -> 467 | K19: =VLOOKUP($C19,'RECAP SECT'!$G$6:$FZ$85,163,FALSE) -> 17% | L19: =VLOOKUP($C19,'RECAP SECT'!$G$6:$FZ$85,164,FALSE) -> 10 | M19: =VLOOKUP($C19,'RECAP SECT'!$G$6:$FZ$85,165,FALSE) -> 59 | N19: =VLOOKUP($C19,'RECAP SECT'!$G$6:$FZ$85,166,FALSE) -> 17% | O19: =VLOOKUP($C19,'RECAP SECT'!$G$6:$FZ$85,167,FALSE) -> 1 | P19: =VLOOKUP($C19,'RECAP SECT'!$G$6:$FZ$85,168,FALSE) -> 4 | Q19: =VLOOKUP($C19,'RECAP SECT'!$G$6:$FZ$85,169,FALSE) -> 32% | R19: =VLOOKUP($C19,'RECAP SECT'!$G$6:$FZ$85,170,FALSE) -> 18 | S19: =VLOOKUP($C19,'RECAP SECT'!$G$6:$FZ$85,171,FALSE) -> 131 | T19: =VLOOKUP($C19,'RECAP SECT'!$G$6:$FZ$85,172,FALSE) -> 14%
A20: 262 | B20: BAS-RHIN | C20: 5030 | D20: SECTEUR BRUMATH | E20: =VLOOKUP($C20,'RECAP SECT'!$G$6:$EV$312,3,FALSE) -> 21.5 | F20: =VLOOKUP($C20,'RECAP SECT'!$G$6:$FZ$85,158,FALSE) -> 7 | G20: =VLOOKUP($C20,'RECAP SECT'!$G$6:$FZ$85,159,FALSE) -> 131 | H20: =VLOOKUP($C20,'RECAP SECT'!$G$6:$FZ$85,160,FALSE) -> 6% | I20: =VLOOKUP($C20,'RECAP SECT'!$G$6:$FZ$85,161,FALSE) -> 72 | J20: =VLOOKUP($C20,'RECAP SECT'!$G$6:$FZ$85,162,FALSE) -> 467 | K20: =VLOOKUP($C20,'RECAP SECT'!$G$6:$FZ$85,163,FALSE) -> 15% | L20: =VLOOKUP($C20,'RECAP SECT'!$G$6:$FZ$85,164,FALSE) -> 12 | M20: =VLOOKUP($C20,'RECAP SECT'!$G$6:$FZ$85,165,FALSE) -> 59 | N20: =VLOOKUP($C20,'RECAP SECT'!$G$6:$FZ$85,166,FALSE) -> 20% | O20: =VLOOKUP($C20,'RECAP SECT'!$G$6:$FZ$85,167,FALSE) -> -1 | P20: =VLOOKUP($C20,'RECAP SECT'!$G$6:$FZ$85,168,FALSE) -> 4 | Q20: =VLOOKUP($C20,'RECAP SECT'!$G$6:$FZ$85,169,FALSE) -> -26% | R20: =VLOOKUP($C20,'RECAP SECT'!$G$6:$FZ$85,170,FALSE) -> 18 | S20: =VLOOKUP($C20,'RECAP SECT'!$G$6:$FZ$85,171,FALSE) -> 140 | T20: =VLOOKUP($C20,'RECAP SECT'!$G$6:$FZ$85,172,FALSE) -> 13%
A21: 262 | B21: BAS-RHIN | C21: 5047 | D21: SECTEUR CRONENBOURG | E21: =VLOOKUP($C21,'RECAP SECT'!$G$6:$EV$312,3,FALSE) -> 22.3 | F21: =VLOOKUP($C21,'RECAP SECT'!$G$6:$FZ$85,158,FALSE) -> -15 | G21: =VLOOKUP($C21,'RECAP SECT'!$G$6:$FZ$85,159,FALSE) -> 126 | H21: =VLOOKUP($C21,'RECAP SECT'!$G$6:$FZ$85,160,FALSE) -> -12% | I21: =VLOOKUP($C21,'RECAP SECT'!$G$6:$FZ$85,161,FALSE) -> 61 | J21: =VLOOKUP($C21,'RECAP SECT'!$G$6:$FZ$85,162,FALSE) -> 467 | K21: =VLOOKUP($C21,'RECAP SECT'!$G$6:$FZ$85,163,FALSE) -> 13% | L21: =VLOOKUP($C21,'RECAP SECT'!$G$6:$FZ$85,164,FALSE) -> 14 | M21: =VLOOKUP($C21,'RECAP SECT'!$G$6:$FZ$85,165,FALSE) -> 59 | N21: =VLOOKUP($C21,'RECAP SECT'!$G$6:$FZ$85,166,FALSE) -> 24% | O21: =VLOOKUP($C21,'RECAP SECT'!$G$6:$FZ$85,167,FALSE) -> 0 | P21: =VLOOKUP($C21,'RECAP SECT'!$G$6:$FZ$85,168,FALSE) -> 4 | Q21: =VLOOKUP($C21,'RECAP SECT'!$G$6:$FZ$85,169,FALSE) -> 10% | R21: =VLOOKUP($C21,'RECAP SECT'!$G$6:$FZ$85,170,FALSE) -> 13 | S21: =VLOOKUP($C21,'RECAP SECT'!$G$6:$FZ$85,171,FALSE) -> 138 | T21: =VLOOKUP($C21,'RECAP SECT'!$G$6:$FZ$85,172,FALSE) -> 9%
A22: 262 | B22: BAS-RHIN | C22: 5060 | D22: SECTEUR HAGUENAU | E22: =VLOOKUP($C22,'RECAP SECT'!$G$6:$EV$312,3,FALSE) -> 23.4 | F22: =VLOOKUP($C22,'RECAP SECT'!$G$6:$FZ$85,158,FALSE) -> -46 | G22: =VLOOKUP($C22,'RECAP SECT'!$G$6:$FZ$85,159,FALSE) -> 120 | H22: =VLOOKUP($C22,'RECAP SECT'!$G$6:$FZ$85,160,FALSE) -> -38% | I22: =VLOOKUP($C22,'RECAP SECT'!$G$6:$FZ$85,161,FALSE) -> 71 | J22: =VLOOKUP($C22,'RECAP SECT'!$G$6:$FZ$85,162,FALSE) -> 467 | K22: =VLOOKUP($C22,'RECAP SECT'!$G$6:$FZ$85,163,FALSE) -> 15% | L22: =VLOOKUP($C22,'RECAP SECT'!$G$6:$FZ$85,164,FALSE) -> 9 | M22: =VLOOKUP($C22,'RECAP SECT'!$G$6:$FZ$85,165,FALSE) -> 59 | N22: =VLOOKUP($C22,'RECAP SECT'!$G$6:$FZ$85,166,FALSE) -> 16% | O22: =VLOOKUP($C22,'RECAP SECT'!$G$6:$FZ$85,167,FALSE) -> -1 | P22: =VLOOKUP($C22,'RECAP SECT'!$G$6:$FZ$85,168,FALSE) -> 4 | Q22: =VLOOKUP($C22,'RECAP SECT'!$G$6:$FZ$85,169,FALSE) -> -30% | R22: =VLOOKUP($C22,'RECAP SECT'!$G$6:$FZ$85,170,FALSE) -> 13 | S22: =VLOOKUP($C22,'RECAP SECT'!$G$6:$FZ$85,171,FALSE) -> 132 | T22: =VLOOKUP($C22,'RECAP SECT'!$G$6:$FZ$85,172,FALSE) -> 10%
A23: 262 | B23: BAS-RHIN | C23: 5043 | D23: SECTEUR HALLES | E23: =VLOOKUP($C23,'RECAP SECT'!$G$6:$EV$312,3,FALSE) -> 24.6 | F23: =VLOOKUP($C23,'RECAP SECT'!$G$6:$FZ$85,158,FALSE) -> 9 | G23: =VLOOKUP($C23,'RECAP SECT'!$G$6:$FZ$85,159,FALSE) -> 129 | H23: =VLOOKUP($C23,'RECAP SECT'!$G$6:$FZ$85,160,FALSE) -> 7% | I23: =VLOOKUP($C23,'RECAP SECT'!$G$6:$FZ$85,161,FALSE) -> 44 | J23: =VLOOKUP($C23,'RECAP SECT'!$G$6:$FZ$85,162,FALSE) -> 467 | K23: =VLOOKUP($C23,'RECAP SECT'!$G$6:$FZ$85,163,FALSE) -> 9% | L23: =VLOOKUP($C23,'RECAP SECT'!$G$6:$FZ$85,164,FALSE) -> 9 | M23: =VLOOKUP($C23,'RECAP SECT'!$G$6:$FZ$85,165,FALSE) -> 59 | N23: =VLOOKUP($C23,'RECAP SECT'!$G$6:$FZ$85,166,FALSE) -> 15% | O23: =VLOOKUP($C23,'RECAP SECT'!$G$6:$FZ$85,167,FALSE) -> -0 | P23: =VLOOKUP($C23,'RECAP SECT'!$G$6:$FZ$85,168,FALSE) -> 4 | Q23: =VLOOKUP($C23,'RECAP SECT'!$G$6:$FZ$85,169,FALSE) -> -4% | R23: =VLOOKUP($C23,'RECAP SECT'!$G$6:$FZ$85,170,FALSE) -> 16 | S23: =VLOOKUP($C23,'RECAP SECT'!$G$6:$FZ$85,171,FALSE) -> 140 | T23: =VLOOKUP($C23,'RECAP SECT'!$G$6:$FZ$85,172,FALSE) -> 12%
A24: 262 | B24: BAS-RHIN | C24: 5007 | D24: SECTEUR ILLKIRCH | E24: =VLOOKUP($C24,'RECAP SECT'!$G$6:$EV$312,3,FALSE) -> 18.4 | F24: =VLOOKUP($C24,'RECAP SECT'!$G$6:$FZ$85,158,FALSE) -> 34 | G24: =VLOOKUP($C24,'RECAP SECT'!$G$6:$FZ$85,159,FALSE) -> 137 | H24: =VLOOKUP($C24,'RECAP SECT'!$G$6:$FZ$85,160,FALSE) -> 25% | I24: =VLOOKUP($C24,'RECAP SECT'!$G$6:$FZ$85,161,FALSE) -> 67 | J24: =VLOOKUP($C24,'RECAP SECT'!$G$6:$FZ$85,162,FALSE) -> 467 | K24: =VLOOKUP($C24,'RECAP SECT'!$G$6:$FZ$85,163,FALSE) -> 14% | L24: =VLOOKUP($C24,'RECAP SECT'!$G$6:$FZ$85,164,FALSE) -> 12 | M24: =VLOOKUP($C24,'RECAP SECT'!$G$6:$FZ$85,165,FALSE) -> 59 | N24: =VLOOKUP($C24,'RECAP SECT'!$G$6:$FZ$85,166,FALSE) -> 21% | O24: =VLOOKUP($C24,'RECAP SECT'!$G$6:$FZ$85,167,FALSE) -> -1 | P24: =VLOOKUP($C24,'RECAP SECT'!$G$6:$FZ$85,168,FALSE) -> 4 | Q24: =VLOOKUP($C24,'RECAP SECT'!$G$6:$FZ$85,169,FALSE) -> -15% | R24: =VLOOKUP($C24,'RECAP SECT'!$G$6:$FZ$85,170,FALSE) -> 15 | S24: =VLOOKUP($C24,'RECAP SECT'!$G$6:$FZ$85,171,FALSE) -> 142 | T24: =VLOOKUP($C24,'RECAP SECT'!$G$6:$FZ$85,172,FALSE) -> 11%
A25: 262 | B25: BAS-RHIN | C25: 5085 | D25: SECTEUR INGWILLER | E25: =VLOOKUP($C25,'RECAP SECT'!$G$6:$EV$312,3,FALSE) -> 20.0 | F25: =VLOOKUP($C25,'RECAP SECT'!$G$6:$FZ$85,158,FALSE) -> 20 | G25: =VLOOKUP($C25,'RECAP SECT'!$G$6:$FZ$85,159,FALSE) -> 121 | H25: =VLOOKUP($C25,'RECAP SECT'!$G$6:$FZ$85,160,FALSE) -> 17% | I25: =VLOOKUP($C25,'RECAP SECT'!$G$6:$FZ$85,161,FALSE) -> 81 | J25: =VLOOKUP($C25,'RECAP SECT'!$G$6:$FZ$85,162,FALSE) -> 467 | K25: =VLOOKUP($C25,'RECAP SECT'!$G$6:$FZ$85,163,FALSE) -> 17% | L25: =VLOOKUP($C25,'RECAP SECT'!$G$6:$FZ$85,164,FALSE) -> 12 | M25: =VLOOKUP($C25,'RECAP SECT'!$G$6:$FZ$85,165,FALSE) -> 59 | N25: =VLOOKUP($C25,'RECAP SECT'!$G$6:$FZ$85,166,FALSE) -> 21% | O25: =VLOOKUP($C25,'RECAP SECT'!$G$6:$FZ$85,167,FALSE) -> -1 | P25: =VLOOKUP($C25,'RECAP SECT'!$G$6:$FZ$85,168,FALSE) -> 4 | Q25: =VLOOKUP($C25,'RECAP SECT'!$G$6:$FZ$85,169,FALSE) -> -24% | R25: =VLOOKUP($C25,'RECAP SECT'!$G$6:$FZ$85,170,FALSE) -> 18 | S25: =VLOOKUP($C25,'RECAP SECT'!$G$6:$FZ$85,171,FALSE) -> 135 | T25: =VLOOKUP($C25,'RECAP SECT'!$G$6:$FZ$85,172,FALSE) -> 14%
A26: 262 | B26: BAS-RHIN | C26: 5116 | D26: SECTEUR MOLSHEIM | E26: =VLOOKUP($C26,'RECAP SECT'!$G$6:$EV$312,3,FALSE) -> 20.6 | F26: =VLOOKUP($C26,'RECAP SECT'!$G$6:$FZ$85,158,FALSE) -> 136 | G26: =VLOOKUP($C26,'RECAP SECT'!$G$6:$FZ$85,159,FALSE) -> 133 | H26: =VLOOKUP($C26,'RECAP SECT'!$G$6:$FZ$85,160,FALSE) -> 103% | I26: =VLOOKUP($C26,'RECAP SECT'!$G$6:$FZ$85,161,FALSE) -> 80 | J26: =VLOOKUP($C26,'RECAP SECT'!$G$6:$FZ$85,162,FALSE) -> 467 | K26: =VLOOKUP($C26,'RECAP SECT'!$G$6:$FZ$85,163,FALSE) -> 17% | L26: =VLOOKUP($C26,'RECAP SECT'!$G$6:$FZ$85,164,FALSE) -> 9 | M26: =VLOOKUP($C26,'RECAP SECT'!$G$6:$FZ$85,165,FALSE) -> 59 | N26: =VLOOKUP($C26,'RECAP SECT'!$G$6:$FZ$85,166,FALSE) -> 16% | O26: =VLOOKUP($C26,'RECAP SECT'!$G$6:$FZ$85,167,FALSE) -> -1 | P26: =VLOOKUP($C26,'RECAP SECT'!$G$6:$FZ$85,168,FALSE) -> 4 | Q26: =VLOOKUP($C26,'RECAP SECT'!$G$6:$FZ$85,169,FALSE) -> -22% | R26: =VLOOKUP($C26,'RECAP SECT'!$G$6:$FZ$85,170,FALSE) -> 20 | S26: =VLOOKUP($C26,'RECAP SECT'!$G$6:$FZ$85,171,FALSE) -> 138 | T26: =VLOOKUP($C26,'RECAP SECT'!$G$6:$FZ$85,172,FALSE) -> 14%
A27: 262 | B27: BAS-RHIN | C27: 5006 | D27: SECTEUR NEUDORF | E27: =VLOOKUP($C27,'RECAP SECT'!$G$6:$EV$312,3,FALSE) -> 22.3 | F27: =VLOOKUP($C27,'RECAP SECT'!$G$6:$FZ$85,158,FALSE) -> -28 | G27: =VLOOKUP($C27,'RECAP SECT'!$G$6:$FZ$85,159,FALSE) -> 122 | H27: =VLOOKUP($C27,'RECAP SECT'!$G$6:$FZ$85,160,FALSE) -> -23% | I27: =VLOOKUP($C27,'RECAP SECT'!$G$6:$FZ$85,161,FALSE) -> 62 | J27: =VLOOKUP($C27,'RECAP SECT'!$G$6:$FZ$85,162,FALSE) -> 467 | K27: =VLOOKUP($C27,'RECAP SECT'!$G$6:$FZ$85,163,FALSE) -> 13% | L27: =VLOOKUP($C27,'RECAP SECT'!$G$6:$FZ$85,164,FALSE) -> 8 | M27: =VLOOKUP($C27,'RECAP SECT'!$G$6:$FZ$85,165,FALSE) -> 59 | N27: =VLOOKUP($C27,'RECAP SECT'!$G$6:$FZ$85,166,FALSE) -> 13% | O27: =VLOOKUP($C27,'RECAP SECT'!$G$6:$FZ$85,167,FALSE) -> -3 | P27: =VLOOKUP($C27,'RECAP SECT'!$G$6:$FZ$85,168,FALSE) -> 4 | Q27: =VLOOKUP($C27,'RECAP SECT'!$G$6:$FZ$85,169,FALSE) -> -79% | R27: =VLOOKUP($C27,'RECAP SECT'!$G$6:$FZ$85,170,FALSE) -> 7 | S27: =VLOOKUP($C27,'RECAP SECT'!$G$6:$FZ$85,171,FALSE) -> 133 | T27: =VLOOKUP($C27,'RECAP SECT'!$G$6:$FZ$85,172,FALSE) -> 5%
A28: 262 | B28: BAS-RHIN | C28: 5119 | D28: SECTEUR OBERNAI | E28: =VLOOKUP($C28,'RECAP SECT'!$G$6:$EV$312,3,FALSE) -> 18.6 | F28: =VLOOKUP($C28,'RECAP SECT'!$G$6:$FZ$85,158,FALSE) -> -25 | G28: =VLOOKUP($C28,'RECAP SECT'!$G$6:$FZ$85,159,FALSE) -> 147 | H28: =VLOOKUP($C28,'RECAP SECT'!$G$6:$FZ$85,160,FALSE) -> -17% | I28: =VLOOKUP($C28,'RECAP SECT'!$G$6:$FZ$85,161,FALSE) -> 89 | J28: =VLOOKUP($C28,'RECAP SECT'!$G$6:$FZ$85,162,FALSE) -> 467 | K28: =VLOOKUP($C28,'RECAP SECT'!$G$6:$FZ$85,163,FALSE) -> 19% | L28: =VLOOKUP($C28,'RECAP SECT'!$G$6:$FZ$85,164,FALSE) -> 10 | M28: =VLOOKUP($C28,'RECAP SECT'!$G$6:$FZ$85,165,FALSE) -> 59 | N28: =VLOOKUP($C28,'RECAP SECT'!$G$6:$FZ$85,166,FALSE) -> 17% | O28: =VLOOKUP($C28,'RECAP SECT'!$G$6:$FZ$85,167,FALSE) -> -2 | P28: =VLOOKUP($C28,'RECAP SECT'!$G$6:$FZ$85,168,FALSE) -> 4 | Q28: =VLOOKUP($C28,'RECAP SECT'!$G$6:$FZ$85,169,FALSE) -> -51% | R28: =VLOOKUP($C28,'RECAP SECT'!$G$6:$FZ$85,170,FALSE) -> 14 | S28: =VLOOKUP($C28,'RECAP SECT'!$G$6:$FZ$85,171,FALSE) -> 142 | T28: =VLOOKUP($C28,'RECAP SECT'!$G$6:$FZ$85,172,FALSE) -> 10%
A29: 262 | B29: BAS-RHIN | C29: 5020 | D29: SECTEUR ROBERTSAU | E29: =VLOOKUP($C29,'RECAP SECT'!$G$6:$EV$312,3,FALSE) -> 19.0 | F29: =VLOOKUP($C29,'RECAP SECT'!$G$6:$FZ$85,158,FALSE) -> 92 | G29: =VLOOKUP($C29,'RECAP SECT'!$G$6:$FZ$85,159,FALSE) -> 121 | H29: =VLOOKUP($C29,'RECAP SECT'!$G$6:$FZ$85,160,FALSE) -> 76% | I29: =VLOOKUP($C29,'RECAP SECT'!$G$6:$FZ$85,161,FALSE) -> 81 | J29: =VLOOKUP($C29,'RECAP SECT'!$G$6:$FZ$85,162,FALSE) -> 467 | K29: =VLOOKUP($C29,'RECAP SECT'!$G$6:$FZ$85,163,FALSE) -> 17% | L29: =VLOOKUP($C29,'RECAP SECT'!$G$6:$FZ$85,164,FALSE) -> 7 | M29: =VLOOKUP($C29,'RECAP SECT'!$G$6:$FZ$85,165,FALSE) -> 59 | N29: =VLOOKUP($C29,'RECAP SECT'!$G$6:$FZ$85,166,FALSE) -> 12% | O29: =VLOOKUP($C29,'RECAP SECT'!$G$6:$FZ$85,167,FALSE) -> -1 | P29: =VLOOKUP($C29,'RECAP SECT'!$G$6:$FZ$85,168,FALSE) -> 4 | Q29: =VLOOKUP($C29,'RECAP SECT'!$G$6:$FZ$85,169,FALSE) -> -13% | R29: =VLOOKUP($C29,'RECAP SECT'!$G$6:$FZ$85,170,FALSE) -> 17 | S29: =VLOOKUP($C29,'RECAP SECT'!$G$6:$FZ$85,171,FALSE) -> 132 | T29: =VLOOKUP($C29,'RECAP SECT'!$G$6:$FZ$85,172,FALSE) -> 13%
A30: 262 | B30: BAS-RHIN | C30: 5087 | D30: SECTEUR SAVERNE | E30: =VLOOKUP($C30,'RECAP SECT'!$G$6:$EV$312,3,FALSE) -> 15.5 | F30: =VLOOKUP($C30,'RECAP SECT'!$G$6:$FZ$85,158,FALSE) -> 47 | G30: =VLOOKUP($C30,'RECAP SECT'!$G$6:$FZ$85,159,FALSE) -> 127 | H30: =VLOOKUP($C30,'RECAP SECT'!$G$6:$FZ$85,160,FALSE) -> 37% | I30: =VLOOKUP($C30,'RECAP SECT'!$G$6:$FZ$85,161,FALSE) -> 67 | J30: =VLOOKUP($C30,'RECAP SECT'!$G$6:$FZ$85,162,FALSE) -> 467 | K30: =VLOOKUP($C30,'RECAP SECT'!$G$6:$FZ$85,163,FALSE) -> 14% | L30: =VLOOKUP($C30,'RECAP SECT'!$G$6:$FZ$85,164,FALSE) -> 12 | M30: =VLOOKUP($C30,'RECAP SECT'!$G$6:$FZ$85,165,FALSE) -> 59 | N30: =VLOOKUP($C30,'RECAP SECT'!$G$6:$FZ$85,166,FALSE) -> 20% | O30: =VLOOKUP($C30,'RECAP SECT'!$G$6:$FZ$85,167,FALSE) -> -2 | P30: =VLOOKUP($C30,'RECAP SECT'!$G$6:$FZ$85,168,FALSE) -> 4 | Q30: =VLOOKUP($C30,'RECAP SECT'!$G$6:$FZ$85,169,FALSE) -> -50% | R30: =VLOOKUP($C30,'RECAP SECT'!$G$6:$FZ$85,170,FALSE) -> 18 | S30: =VLOOKUP($C30,'RECAP SECT'!$G$6:$FZ$85,171,FALSE) -> 130 | T30: =VLOOKUP($C30,'RECAP SECT'!$G$6:$FZ$85,172,FALSE) -> 14%
A31: 262 | B31: BAS-RHIN | C31: 5101 | D31: SECTEUR SELESTAT | E31: =VLOOKUP($C31,'RECAP SECT'!$G$6:$EV$312,3,FALSE) -> 18.4 | F31: =VLOOKUP($C31,'RECAP SECT'!$G$6:$FZ$85,158,FALSE) -> -3 | G31: =VLOOKUP($C31,'RECAP SECT'!$G$6:$FZ$85,159,FALSE) -> 127 | H31: =VLOOKUP($C31,'RECAP SECT'!$G$6:$FZ$85,160,FALSE) -> -2% | I31: =VLOOKUP($C31,'RECAP SECT'!$G$6:$FZ$85,161,FALSE) -> 56 | J31: =VLOOKUP($C31,'RECAP SECT'!$G$6:$FZ$85,162,FALSE) -> 467 | K31: =VLOOKUP($C31,'RECAP SECT'!$G$6:$FZ$85,163,FALSE) -> 12% | L31: =VLOOKUP($C31,'RECAP SECT'!$G$6:$FZ$85,164,FALSE) -> 10 | M31: =VLOOKUP($C31,'RECAP SECT'!$G$6:$FZ$85,165,FALSE) -> 59 | N31: =VLOOKUP($C31,'RECAP SECT'!$G$6:$FZ$85,166,FALSE) -> 17% | O31: =VLOOKUP($C31,'RECAP SECT'!$G$6:$FZ$85,167,FALSE) -> -1 | P31: =VLOOKUP($C31,'RECAP SECT'!$G$6:$FZ$85,168,FALSE) -> 4 | Q31: =VLOOKUP($C31,'RECAP SECT'!$G$6:$FZ$85,169,FALSE) -> -33% | R31: =VLOOKUP($C31,'RECAP SECT'!$G$6:$FZ$85,170,FALSE) -> 10 | S31: =VLOOKUP($C31,'RECAP SECT'!$G$6:$FZ$85,171,FALSE) -> 135 | T31: =VLOOKUP($C31,'RECAP SECT'!$G$6:$FZ$85,172,FALSE) -> 8%
A32: 262 | B32: BAS-RHIN | C32: 5071 | D32: SECTEUR WISSEMBOURG | E32: =VLOOKUP($C32,'RECAP SECT'!$G$6:$EV$312,3,FALSE) -> 15.1 | F32: =VLOOKUP($C32,'RECAP SECT'!$G$6:$FZ$85,158,FALSE) -> 8 | G32: =VLOOKUP($C32,'RECAP SECT'!$G$6:$FZ$85,159,FALSE) -> 118 | H32: =VLOOKUP($C32,'RECAP SECT'!$G$6:$FZ$85,160,FALSE) -> 7% | I32: =VLOOKUP($C32,'RECAP SECT'!$G$6:$FZ$85,161,FALSE) -> 76 | J32: =VLOOKUP($C32,'RECAP SECT'!$G$6:$FZ$85,162,FALSE) -> 467 | K32: =VLOOKUP($C32,'RECAP SECT'!$G$6:$FZ$85,163,FALSE) -> 16% | L32: =VLOOKUP($C32,'RECAP SECT'!$G$6:$FZ$85,164,FALSE) -> 11 | M32: =VLOOKUP($C32,'RECAP SECT'!$G$6:$FZ$85,165,FALSE) -> 59 | N32: =VLOOKUP($C32,'RECAP SECT'!$G$6:$FZ$85,166,FALSE) -> 18% | O32: =VLOOKUP($C32,'RECAP SECT'!$G$6:$FZ$85,167,FALSE) -> -1 | P32: =VLOOKUP($C32,'RECAP SECT'!$G$6:$FZ$85,168,FALSE) -> 4 | Q32: =VLOOKUP($C32,'RECAP SECT'!$G$6:$FZ$85,169,FALSE) -> -21% | R32: =VLOOKUP($C32,'RECAP SECT'!$G$6:$FZ$85,170,FALSE) -> 16 | S32: =VLOOKUP($C32,'RECAP SECT'!$G$6:$FZ$85,171,FALSE) -> 130 | T32: =VLOOKUP($C32,'RECAP SECT'!$G$6:$FZ$85,172,FALSE) -> 12%
A33: 264 | B33: HAUT-RHIN | C33: 5130 | D33: SECTEUR COLMAR | E33: =VLOOKUP($C33,'RECAP SECT'!$G$6:$EV$312,3,FALSE) -> 32.0 | F33: =VLOOKUP($C33,'RECAP SECT'!$G$6:$FZ$85,158,FALSE) -> -20 | G33: =VLOOKUP($C33,'RECAP SECT'!$G$6:$FZ$85,159,FALSE) -> 138 | H33: =VLOOKUP($C33,'RECAP SECT'!$G$6:$FZ$85,160,FALSE) -> -15% | I33: =VLOOKUP($C33,'RECAP SECT'!$G$6:$FZ$85,161,FALSE) -> 61 | J33: =VLOOKUP($C33,'RECAP SECT'!$G$6:$FZ$85,162,FALSE) -> 467 | K33: =VLOOKUP($C33,'RECAP SECT'!$G$6:$FZ$85,163,FALSE) -> 13% | L33: =VLOOKUP($C33,'RECAP SECT'!$G$6:$FZ$85,164,FALSE) -> 9 | M33: =VLOOKUP($C33,'RECAP SECT'!$G$6:$FZ$85,165,FALSE) -> 59 | N33: =VLOOKUP($C33,'RECAP SECT'!$G$6:$FZ$85,166,FALSE) -> 15% | O33: =VLOOKUP($C33,'RECAP SECT'!$G$6:$FZ$85,167,FALSE) -> -1 | P33: =VLOOKUP($C33,'RECAP SECT'!$G$6:$FZ$85,168,FALSE) -> 4 | Q33: =VLOOKUP($C33,'RECAP SECT'!$G$6:$FZ$85,169,FALSE) -> -31% | R33: =VLOOKUP($C33,'RECAP SECT'!$G$6:$FZ$85,170,FALSE) -> 15 | S33: =VLOOKUP($C33,'RECAP SECT'!$G$6:$FZ$85,171,FALSE) -> 143 | T33: =VLOOKUP($C33,'RECAP SECT'!$G$6:$FZ$85,172,FALSE) -> 11%
A34: 264 | B34: HAUT-RHIN | C34: 5147 | D34: SECTEUR GUEBWILLER | E34: =VLOOKUP($C34,'RECAP SECT'!$G$6:$EV$312,3,FALSE) -> 16.9 | F34: =VLOOKUP($C34,'RECAP SECT'!$G$6:$FZ$85,158,FALSE) -> 5 | G34: =VLOOKUP($C34,'RECAP SECT'!$G$6:$FZ$85,159,FALSE) -> 129 | H34: =VLOOKUP($C34,'RECAP SECT'!$G$6:$FZ$85,160,FALSE) -> 4% | I34: =VLOOKUP($C34,'RECAP SECT'!$G$6:$FZ$85,161,FALSE) -> 58 | J34: =VLOOKUP($C34,'RECAP SECT'!$G$6:$FZ$85,162,FALSE) -> 467 | K34: =VLOOKUP($C34,'RECAP SECT'!$G$6:$FZ$85,163,FALSE) -> 12% | L34: =VLOOKUP($C34,'RECAP SECT'!$G$6:$FZ$85,164,FALSE) -> 11 | M34: =VLOOKUP($C34,'RECAP SECT'!$G$6:$FZ$85,165,FALSE) -> 60 | N34: =VLOOKUP($C34,'RECAP SECT'!$G$6:$FZ$85,166,FALSE) -> 19% | O34: =VLOOKUP($C34,'RECAP SECT'!$G$6:$FZ$85,167,FALSE) -> -0 | P34: =VLOOKUP($C34,'RECAP SECT'!$G$6:$FZ$85,168,FALSE) -> 4 | Q34: =VLOOKUP($C34,'RECAP SECT'!$G$6:$FZ$85,169,FALSE) -> -5% | R34: =VLOOKUP($C34,'RECAP SECT'!$G$6:$FZ$85,170,FALSE) -> 14 | S34: =VLOOKUP($C34,'RECAP SECT'!$G$6:$FZ$85,171,FALSE) -> 141 | T34: =VLOOKUP($C34,'RECAP SECT'!$G$6:$FZ$85,172,FALSE) -> 10%
A35: 264 | B35: HAUT-RHIN | C35: 5184 | D35: SECTEUR ILLZACH | E35: =VLOOKUP($C35,'RECAP SECT'!$G$6:$EV$312,3,FALSE) -> 18.8 | F35: =VLOOKUP($C35,'RECAP SECT'!$G$6:$FZ$85,158,FALSE) -> -12 | G35: =VLOOKUP($C35,'RECAP SECT'!$G$6:$FZ$85,159,FALSE) -> 136 | H35: =VLOOKUP($C35,'RECAP SECT'!$G$6:$FZ$85,160,FALSE) -> -9% | I35: =VLOOKUP($C35,'RECAP SECT'!$G$6:$FZ$85,161,FALSE) -> 77 | J35: =VLOOKUP($C35,'RECAP SECT'!$G$6:$FZ$85,162,FALSE) -> 467 | K35: =VLOOKUP($C35,'RECAP SECT'!$G$6:$FZ$85,163,FALSE) -> 16% | L35: =VLOOKUP($C35,'RECAP SECT'!$G$6:$FZ$85,164,FALSE) -> 9 | M35: =VLOOKUP($C35,'RECAP SECT'!$G$6:$FZ$85,165,FALSE) -> 59 | N35: =VLOOKUP($C35,'RECAP SECT'!$G$6:$FZ$85,166,FALSE) -> 15% | O35: =VLOOKUP($C35,'RECAP SECT'!$G$6:$FZ$85,167,FALSE) -> -2 | P35: =VLOOKUP($C35,'RECAP SECT'!$G$6:$FZ$85,168,FALSE) -> 4 | Q35: =VLOOKUP($C35,'RECAP SECT'!$G$6:$FZ$85,169,FALSE) -> -55% | R35: =VLOOKUP($C35,'RECAP SECT'!$G$6:$FZ$85,170,FALSE) -> 19 | S35: =VLOOKUP($C35,'RECAP SECT'!$G$6:$FZ$85,171,FALSE) -> 146 | T35: =VLOOKUP($C35,'RECAP SECT'!$G$6:$FZ$85,172,FALSE) -> 13%
A36: 264 | B36: HAUT-RHIN | C36: 5143 | D36: SECTEUR MUNSTER | E36: =VLOOKUP($C36,'RECAP SECT'!$G$6:$EV$312,3,FALSE) -> 33.5 | F36: =VLOOKUP($C36,'RECAP SECT'!$G$6:$FZ$85,158,FALSE) -> 113 | G36: =VLOOKUP($C36,'RECAP SECT'!$G$6:$FZ$85,159,FALSE) -> 137 | H36: =VLOOKUP($C36,'RECAP SECT'!$G$6:$FZ$85,160,FALSE) -> 83% | I36: =VLOOKUP($C36,'RECAP SECT'!$G$6:$FZ$85,161,FALSE) -> 42 | J36: =VLOOKUP($C36,'RECAP SECT'!$G$6:$FZ$85,162,FALSE) -> 467 | K36: =VLOOKUP($C36,'RECAP SECT'!$G$6:$FZ$85,163,FALSE) -> 9% | L36: =VLOOKUP($C36,'RECAP SECT'!$G$6:$FZ$85,164,FALSE) -> 9 | M36: =VLOOKUP($C36,'RECAP SECT'!$G$6:$FZ$85,165,FALSE) -> 59 | N36: =VLOOKUP($C36,'RECAP SECT'!$G$6:$FZ$85,166,FALSE) -> 15% | O36: =VLOOKUP($C36,'RECAP SECT'!$G$6:$FZ$85,167,FALSE) -> -1 | P36: =VLOOKUP($C36,'RECAP SECT'!$G$6:$FZ$85,168,FALSE) -> 4 | Q36: =VLOOKUP($C36,'RECAP SECT'!$G$6:$FZ$85,169,FALSE) -> -20% | R36: =VLOOKUP($C36,'RECAP SECT'!$G$6:$FZ$85,170,FALSE) -> 14 | S36: =VLOOKUP($C36,'RECAP SECT'!$G$6:$FZ$85,171,FALSE) -> 135 | T36: =VLOOKUP($C36,'RECAP SECT'!$G$6:$FZ$85,172,FALSE) -> 10%
A37: 264 | B37: HAUT-RHIN | C37: 5169 | D37: SECTEUR ROOSEVELT | E37: =VLOOKUP($C37,'RECAP SECT'!$G$6:$EV$312,3,FALSE) -> 20.4 | F37: =VLOOKUP($C37,'RECAP SECT'!$G$6:$FZ$85,158,FALSE) -> -8 | G37: =VLOOKUP($C37,'RECAP SECT'!$G$6:$FZ$85,159,FALSE) -> 120 | H37: =VLOOKUP($C37,'RECAP SECT'!$G$6:$FZ$85,160,FALSE) -> -6% | I37: =VLOOKUP($C37,'RECAP SECT'!$G$6:$FZ$85,161,FALSE) -> 62 | J37: =VLOOKUP($C37,'RECAP SECT'!$G$6:$FZ$85,162,FALSE) -> 467 | K37: =VLOOKUP($C37,'RECAP SECT'!$G$6:$FZ$85,163,FALSE) -> 13% | L37: =VLOOKUP($C37,'RECAP SECT'!$G$6:$FZ$85,164,FALSE) -> 12 | M37: =VLOOKUP($C37,'RECAP SECT'!$G$6:$FZ$85,165,FALSE) -> 59 | N37: =VLOOKUP($C37,'RECAP SECT'!$G$6:$FZ$85,166,FALSE) -> 20% | O37: =VLOOKUP($C37,'RECAP SECT'!$G$6:$FZ$85,167,FALSE) -> -1 | P37: =VLOOKUP($C37,'RECAP SECT'!$G$6:$FZ$85,168,FALSE) -> 4 | Q37: =VLOOKUP($C37,'RECAP SECT'!$G$6:$FZ$85,169,FALSE) -> -31% | R37: =VLOOKUP($C37,'RECAP SECT'!$G$6:$FZ$85,170,FALSE) -> 13 | S37: =VLOOKUP($C37,'RECAP SECT'!$G$6:$FZ$85,171,FALSE) -> 132 | T37: =VLOOKUP($C37,'RECAP SECT'!$G$6:$FZ$85,172,FALSE) -> 10%
A38: 264 | B38: HAUT-RHIN | C38: 5178 | D38: SECTEUR SAINT LOUIS | E38: =VLOOKUP($C38,'RECAP SECT'!$G$6:$EV$312,3,FALSE) -> 16.2 | F38: =VLOOKUP($C38,'RECAP SECT'!$G$6:$FZ$85,158,FALSE) -> 92 | G38: =VLOOKUP($C38,'RECAP SECT'!$G$6:$FZ$85,159,FALSE) -> 147 | H38: =VLOOKUP($C38,'RECAP SECT'!$G$6:$FZ$85,160,FALSE) -> 63% | I38: =VLOOKUP($C38,'RECAP SECT'!$G$6:$FZ$85,161,FALSE) -> 71 | J38: =VLOOKUP($C38,'RECAP SECT'!$G$6:$FZ$85,162,FALSE) -> 467 | K38: =VLOOKUP($C38,'RECAP SECT'!$G$6:$FZ$85,163,FALSE) -> 15% | L38: =VLOOKUP($C38,'RECAP SECT'!$G$6:$FZ$85,164,FALSE) -> 9 | M38: =VLOOKUP($C38,'RECAP SECT'!$G$6:$FZ$85,165,FALSE) -> 59 | N38: =VLOOKUP($C38,'RECAP SECT'!$G$6:$FZ$85,166,FALSE) -> 16% | O38: =VLOOKUP($C38,'RECAP SECT'!$G$6:$FZ$85,167,FALSE) -> -1 | P38: =VLOOKUP($C38,'RECAP SECT'!$G$6:$FZ$85,168,FALSE) -> 4 | Q38: =VLOOKUP($C38,'RECAP SECT'!$G$6:$FZ$85,169,FALSE) -> -22% | R38: =VLOOKUP($C38,'RECAP SECT'!$G$6:$FZ$85,170,FALSE) -> 13 | S38: =VLOOKUP($C38,'RECAP SECT'!$G$6:$FZ$85,171,FALSE) -> 148 | T38: =VLOOKUP($C38,'RECAP SECT'!$G$6:$FZ$85,172,FALSE) -> 9%
A39: 264 | B39: HAUT-RHIN | C39: 5194 | D39: SECTEUR THANN | E39: =VLOOKUP($C39,'RECAP SECT'!$G$6:$EV$312,3,FALSE) -> 24.2 | F39: =VLOOKUP($C39,'RECAP SECT'!$G$6:$FZ$85,158,FALSE) -> -7 | G39: =VLOOKUP($C39,'RECAP SECT'!$G$6:$FZ$85,159,FALSE) -> 119 | H39: =VLOOKUP($C39,'RECAP SECT'!$G$6:$FZ$85,160,FALSE) -> -6% | I39: =VLOOKUP($C39,'RECAP SECT'!$G$6:$FZ$85,161,FALSE) -> 67 | J39: =VLOOKUP($C39,'RECAP SECT'!$G$6:$FZ$85,162,FALSE) -> 467 | K39: =VLOOKUP($C39,'RECAP SECT'!$G$6:$FZ$85,163,FALSE) -> 14% | L39: =VLOOKUP($C39,'RECAP SECT'!$G$6:$FZ$85,164,FALSE) -> 8 | M39: =VLOOKUP($C39,'RECAP SECT'!$G$6:$FZ$85,165,FALSE) -> 59 | N39: =VLOOKUP($C39,'RECAP SECT'!$G$6:$FZ$85,166,FALSE) -> 13% | O39: =VLOOKUP($C39,'RECAP SECT'!$G$6:$FZ$85,167,FALSE) -> -1 | P39: =VLOOKUP($C39,'RECAP SECT'!$G$6:$FZ$85,168,FALSE) -> 4 | Q39: =VLOOKUP($C39,'RECAP SECT'!$G$6:$FZ$85,169,FALSE) -> -19% | R39: =VLOOKUP($C39,'RECAP SECT'!$G$6:$FZ$85,170,FALSE) -> 14 | S39: =VLOOKUP($C39,'RECAP SECT'!$G$6:$FZ$85,171,FALSE) -> 137 | T39: =VLOOKUP($C39,'RECAP SECT'!$G$6:$FZ$85,172,FALSE) -> 10%
A40: 30 | B40: MARNE-ARDENNES | C40: 6 | D40: SECTEUR CHALONS VIVIERS | E40: =VLOOKUP($C40,'RECAP SECT'!$G$6:$EV$312,3,FALSE) -> 25.7 | F40: =VLOOKUP($C40,'RECAP SECT'!$G$6:$FZ$85,158,FALSE) -> 102 | G40: =VLOOKUP($C40,'RECAP SECT'!$G$6:$FZ$85,159,FALSE) -> 126 | H40: =VLOOKUP($C40,'RECAP SECT'!$G$6:$FZ$85,160,FALSE) -> 80% | I40: =VLOOKUP($C40,'RECAP SECT'!$G$6:$FZ$85,161,FALSE) -> 99 | J40: =VLOOKUP($C40,'RECAP SECT'!$G$6:$FZ$85,162,FALSE) -> 467 | K40: =VLOOKUP($C40,'RECAP SECT'!$G$6:$FZ$85,163,FALSE) -> 21% | L40: =VLOOKUP($C40,'RECAP SECT'!$G$6:$FZ$85,164,FALSE) -> 11 | M40: =VLOOKUP($C40,'RECAP SECT'!$G$6:$FZ$85,165,FALSE) -> 59 | N40: =VLOOKUP($C40,'RECAP SECT'!$G$6:$FZ$85,166,FALSE) -> 18% | O40: =VLOOKUP($C40,'RECAP SECT'!$G$6:$FZ$85,167,FALSE) -> -1 | P40: =VLOOKUP($C40,'RECAP SECT'!$G$6:$FZ$85,168,FALSE) -> 4 | Q40: =VLOOKUP($C40,'RECAP SECT'!$G$6:$FZ$85,169,FALSE) -> -18% | R40: =VLOOKUP($C40,'RECAP SECT'!$G$6:$FZ$85,170,FALSE) -> 27 | S40: =VLOOKUP($C40,'RECAP SECT'!$G$6:$FZ$85,171,FALSE) -> 137 | T40: =VLOOKUP($C40,'RECAP SECT'!$G$6:$FZ$85,172,FALSE) -> 20%
A41: 30 | B41: MARNE-ARDENNES | C41: 1 | D41: SECTEUR CHARLEVILLE JEAN JAURES | E41: =VLOOKUP($C41,'RECAP SECT'!$G$6:$EV$312,3,FALSE) -> 13.6 | F41: =VLOOKUP($C41,'RECAP SECT'!$G$6:$FZ$85,158,FALSE) -> -78 | G41: =VLOOKUP($C41,'RECAP SECT'!$G$6:$FZ$85,159,FALSE) -> 140 | H41: =VLOOKUP($C41,'RECAP SECT'!$G$6:$FZ$85,160,FALSE) -> -55% | I41: =VLOOKUP($C41,'RECAP SECT'!$G$6:$FZ$85,161,FALSE) -> 72 | J41: =VLOOKUP($C41,'RECAP SECT'!$G$6:$FZ$85,162,FALSE) -> 467 | K41: =VLOOKUP($C41,'RECAP SECT'!$G$6:$FZ$85,163,FALSE) -> 15% | L41: =VLOOKUP($C41,'RECAP SECT'!$G$6:$FZ$85,164,FALSE) -> 9 | M41: =VLOOKUP($C41,'RECAP SECT'!$G$6:$FZ$85,165,FALSE) -> 59 | N41: =VLOOKUP($C41,'RECAP SECT'!$G$6:$FZ$85,166,FALSE) -> 16% | O41: =VLOOKUP($C41,'RECAP SECT'!$G$6:$FZ$85,167,FALSE) -> -1 | P41: =VLOOKUP($C41,'RECAP SECT'!$G$6:$FZ$85,168,FALSE) -> 4 | Q41: =VLOOKUP($C41,'RECAP SECT'!$G$6:$FZ$85,169,FALSE) -> -21% | R41: =VLOOKUP($C41,'RECAP SECT'!$G$6:$FZ$85,170,FALSE) -> 21 | S41: =VLOOKUP($C41,'RECAP SECT'!$G$6:$FZ$85,171,FALSE) -> 140 | T41: =VLOOKUP($C41,'RECAP SECT'!$G$6:$FZ$85,172,FALSE) -> 15%
A42: 30 | B42: MARNE-ARDENNES | C42: 2 | D42: SECTEUR CHARLEVILLE MEZIERES | E42: =VLOOKUP($C42,'RECAP SECT'!$G$6:$EV$312,3,FALSE) -> 11.0 | F42: =VLOOKUP($C42,'RECAP SECT'!$G$6:$FZ$85,158,FALSE) -> -75 | G42: =VLOOKUP($C42,'RECAP SECT'!$G$6:$FZ$85,159,FALSE) -> 103 | H42: =VLOOKUP($C42,'RECAP SECT'!$G$6:$FZ$85,160,FALSE) -> -72% | I42: =VLOOKUP($C42,'RECAP SECT'!$G$6:$FZ$85,161,FALSE) -> 74 | J42: =VLOOKUP($C42,'RECAP SECT'!$G$6:$FZ$85,162,FALSE) -> 467 | K42: =VLOOKUP($C42,'RECAP SECT'!$G$6:$FZ$85,163,FALSE) -> 16% | L42: =VLOOKUP($C42,'RECAP SECT'!$G$6:$FZ$85,164,FALSE) -> 13 | M42: =VLOOKUP($C42,'RECAP SECT'!$G$6:$FZ$85,165,FALSE) -> 59 | N42: =VLOOKUP($C42,'RECAP SECT'!$G$6:$FZ$85,166,FALSE) -> 22% | O42: =VLOOKUP($C42,'RECAP SECT'!$G$6:$FZ$85,167,FALSE) -> 2 | P42: =VLOOKUP($C42,'RECAP SECT'!$G$6:$FZ$85,168,FALSE) -> 4 | Q42: =VLOOKUP($C42,'RECAP SECT'!$G$6:$FZ$85,169,FALSE) -> 63% | R42: =VLOOKUP($C42,'RECAP SECT'!$G$6:$FZ$85,170,FALSE) -> 27 | S42: =VLOOKUP($C42,'RECAP SECT'!$G$6:$FZ$85,171,FALSE) -> 128 | T42: =VLOOKUP($C42,'RECAP SECT'!$G$6:$FZ$85,172,FALSE) -> 21%
A43: 30 | B43: MARNE-ARDENNES | C43: 13 | D43: SECTEUR EPERNAY | E43: =VLOOKUP($C43,'RECAP SECT'!$G$6:$EV$312,3,FALSE) -> 25.0 | F43: =VLOOKUP($C43,'RECAP SECT'!$G$6:$FZ$85,158,FALSE) -> -122 | G43: =VLOOKUP($C43,'RECAP SECT'!$G$6:$FZ$85,159,FALSE) -> 153 | H43: =VLOOKUP($C43,'RECAP SECT'!$G$6:$FZ$85,160,FALSE) -> -80% | I43: =VLOOKUP($C43,'RECAP SECT'!$G$6:$FZ$85,161,FALSE) -> 113 | J43: =VLOOKUP($C43,'RECAP SECT'!$G$6:$FZ$85,162,FALSE) -> 467 | K43: =VLOOKUP($C43,'RECAP SECT'!$G$6:$FZ$85,163,FALSE) -> 24% | L43: =VLOOKUP($C43,'RECAP SECT'!$G$6:$FZ$85,164,FALSE) -> 9 | M43: =VLOOKUP($C43,'RECAP SECT'!$G$6:$FZ$85,165,FALSE) -> 58 | N43: =VLOOKUP($C43,'RECAP SECT'!$G$6:$FZ$85,166,FALSE) -> 16% | O43: =VLOOKUP($C43,'RECAP SECT'!$G$6:$FZ$85,167,FALSE) -> 0 | P43: =VLOOKUP($C43,'RECAP SECT'!$G$6:$FZ$85,168,FALSE) -> 4 | Q43: =VLOOKUP($C43,'RECAP SECT'!$G$6:$FZ$85,169,FALSE) -> 7% | R43: =VLOOKUP($C43,'RECAP SECT'!$G$6:$FZ$85,170,FALSE) -> 22 | S43: =VLOOKUP($C43,'RECAP SECT'!$G$6:$FZ$85,171,FALSE) -> 153 | T43: =VLOOKUP($C43,'RECAP SECT'!$G$6:$FZ$85,172,FALSE) -> 15%
A44: 30 | B44: MARNE-ARDENNES | C44: 11 | D44: SECTEUR REIMS CENTRE VILLE | E44: =VLOOKUP($C44,'RECAP SECT'!$G$6:$EV$312,3,FALSE) -> 20.5 | F44: =VLOOKUP($C44,'RECAP SECT'!$G$6:$FZ$85,158,FALSE) -> 96 | G44: =VLOOKUP($C44,'RECAP SECT'!$G$6:$FZ$85,159,FALSE) -> 131 | H44: =VLOOKUP($C44,'RECAP SECT'!$G$6:$FZ$85,160,FALSE) -> 73% | I44: =VLOOKUP($C44,'RECAP SECT'!$G$6:$FZ$85,161,FALSE) -> 94 | J44: =VLOOKUP($C44,'RECAP SECT'!$G$6:$FZ$85,162,FALSE) -> 467 | K44: =VLOOKUP($C44,'RECAP SECT'!$G$6:$FZ$85,163,FALSE) -> 20% | L44: =VLOOKUP($C44,'RECAP SECT'!$G$6:$FZ$85,164,FALSE) -> 10 | M44: =VLOOKUP($C44,'RECAP SECT'!$G$6:$FZ$85,165,FALSE) -> 59 | N44: =VLOOKUP($C44,'RECAP SECT'!$G$6:$FZ$85,166,FALSE) -> 17% | O44: =VLOOKUP($C44,'RECAP SECT'!$G$6:$FZ$85,167,FALSE) -> -0 | P44: =VLOOKUP($C44,'RECAP SECT'!$G$6:$FZ$85,168,FALSE) -> 4 | Q44: =VLOOKUP($C44,'RECAP SECT'!$G$6:$FZ$85,169,FALSE) -> -4% | R44: =VLOOKUP($C44,'RECAP SECT'!$G$6:$FZ$85,170,FALSE) -> 21 | S44: =VLOOKUP($C44,'RECAP SECT'!$G$6:$FZ$85,171,FALSE) -> 143 | T44: =VLOOKUP($C44,'RECAP SECT'!$G$6:$FZ$85,172,FALSE) -> 14%
A45: 30 | B45: MARNE-ARDENNES | C45: 9 | D45: SECTEUR REIMS HOTEL DE VILLE | E45: =VLOOKUP($C45,'RECAP SECT'!$G$6:$EV$312,3,FALSE) -> 22.4 | F45: =VLOOKUP($C45,'RECAP SECT'!$G$6:$FZ$85,158,FALSE) -> 178 | G45: =VLOOKUP($C45,'RECAP SECT'!$G$6:$FZ$85,159,FALSE) -> 144 | H45: =VLOOKUP($C45,'RECAP SECT'!$G$6:$FZ$85,160,FALSE) -> 123% | I45: =VLOOKUP($C45,'RECAP SECT'!$G$6:$FZ$85,161,FALSE) -> 103 | J45: =VLOOKUP($C45,'RECAP SECT'!$G$6:$FZ$85,162,FALSE) -> 467 | K45: =VLOOKUP($C45,'RECAP SECT'!$G$6:$FZ$85,163,FALSE) -> 22% | L45: =VLOOKUP($C45,'RECAP SECT'!$G$6:$FZ$85,164,FALSE) -> 10 | M45: =VLOOKUP($C45,'RECAP SECT'!$G$6:$FZ$85,165,FALSE) -> 59 | N45: =VLOOKUP($C45,'RECAP SECT'!$G$6:$FZ$85,166,FALSE) -> 17% | O45: =VLOOKUP($C45,'RECAP SECT'!$G$6:$FZ$85,167,FALSE) -> 0 | P45: =VLOOKUP($C45,'RECAP SECT'!$G$6:$FZ$85,168,FALSE) -> 4 | Q45: =VLOOKUP($C45,'RECAP SECT'!$G$6:$FZ$85,169,FALSE) -> 12% | R45: =VLOOKUP($C45,'RECAP SECT'!$G$6:$FZ$85,170,FALSE) -> 30 | S45: =VLOOKUP($C45,'RECAP SECT'!$G$6:$FZ$85,171,FALSE) -> 145 | T45: =VLOOKUP($C45,'RECAP SECT'!$G$6:$FZ$85,172,FALSE) -> 21%
A46: 30 | B46: MARNE-ARDENNES | C46: 10 | D46: SECTEUR REIMS SAINT THOMAS | E46: =VLOOKUP($C46,'RECAP SECT'!$G$6:$EV$312,3,FALSE) -> 12.7 | F46: =VLOOKUP($C46,'RECAP SECT'!$G$6:$FZ$85,158,FALSE) -> 6 | G46: =VLOOKUP($C46,'RECAP SECT'!$G$6:$FZ$85,159,FALSE) -> 140 | H46: =VLOOKUP($C46,'RECAP SECT'!$G$6:$FZ$85,160,FALSE) -> 4% | I46: =VLOOKUP($C46,'RECAP SECT'!$G$6:$FZ$85,161,FALSE) -> 78 | J46: =VLOOKUP($C46,'RECAP SECT'!$G$6:$FZ$85,162,FALSE) -> 467 | K46: =VLOOKUP($C46,'RECAP SECT'!$G$6:$FZ$85,163,FALSE) -> 17% | L46: =VLOOKUP($C46,'RECAP SECT'!$G$6:$FZ$85,164,FALSE) -> 9 | M46: =VLOOKUP($C46,'RECAP SECT'!$G$6:$FZ$85,165,FALSE) -> 59 | N46: =VLOOKUP($C46,'RECAP SECT'!$G$6:$FZ$85,166,FALSE) -> 16% | O46: =VLOOKUP($C46,'RECAP SECT'!$G$6:$FZ$85,167,FALSE) -> -3 | P46: =VLOOKUP($C46,'RECAP SECT'!$G$6:$FZ$85,168,FALSE) -> 4 | Q46: =VLOOKUP($C46,'RECAP SECT'!$G$6:$FZ$85,169,FALSE) -> -68% | R46: =VLOOKUP($C46,'RECAP SECT'!$G$6:$FZ$85,170,FALSE) -> 20 | S46: =VLOOKUP($C46,'RECAP SECT'!$G$6:$FZ$85,171,FALSE) -> 146 | T46: =VLOOKUP($C46,'RECAP SECT'!$G$6:$FZ$85,172,FALSE) -> 13%
A47: 30 | B47: MARNE-ARDENNES | C47: 4 | D47: SECTEUR RETHEL | E47: =VLOOKUP($C47,'RECAP SECT'!$G$6:$EV$312,3,FALSE) -> 10.9 | F47: =VLOOKUP($C47,'RECAP SECT'!$G$6:$FZ$85,158,FALSE) -> 53 | G47: =VLOOKUP($C47,'RECAP SECT'!$G$6:$FZ$85,159,FALSE) -> 116 | H47: =VLOOKUP($C47,'RECAP SECT'!$G$6:$FZ$85,160,FALSE) -> 46% | I47: =VLOOKUP($C47,'RECAP SECT'!$G$6:$FZ$85,161,FALSE) -> 84 | J47: =VLOOKUP($C47,'RECAP SECT'!$G$6:$FZ$85,162,FALSE) -> 467 | K47: =VLOOKUP($C47,'RECAP SECT'!$G$6:$FZ$85,163,FALSE) -> 18% | L47: =VLOOKUP($C47,'RECAP SECT'!$G$6:$FZ$85,164,FALSE) -> 14 | M47: =VLOOKUP($C47,'RECAP SECT'!$G$6:$FZ$85,165,FALSE) -> 58 | N47: =VLOOKUP($C47,'RECAP SECT'!$G$6:$FZ$85,166,FALSE) -> 24% | O47: =VLOOKUP($C47,'RECAP SECT'!$G$6:$FZ$85,167,FALSE) -> 0 | P47: =VLOOKUP($C47,'RECAP SECT'!$G$6:$FZ$85,168,FALSE) -> 4 | Q47: =VLOOKUP($C47,'RECAP SECT'!$G$6:$FZ$85,169,FALSE) -> 0% | R47: =VLOOKUP($C47,'RECAP SECT'!$G$6:$FZ$85,170,FALSE) -> 18 | S47: =VLOOKUP($C47,'RECAP SECT'!$G$6:$FZ$85,171,FALSE) -> 128 | T47: =VLOOKUP($C47,'RECAP SECT'!$G$6:$FZ$85,172,FALSE) -> 14%
A48: 30 | B48: MARNE-ARDENNES | C48: 5 | D48: SECTEUR REVIN | E48: =VLOOKUP($C48,'RECAP SECT'!$G$6:$EV$312,3,FALSE) -> 12.3 | F48: =VLOOKUP($C48,'RECAP SECT'!$G$6:$FZ$85,158,FALSE) -> -149 | G48: =VLOOKUP($C48,'RECAP SECT'!$G$6:$FZ$85,159,FALSE) -> 114 | H48: =VLOOKUP($C48,'RECAP SECT'!$G$6:$FZ$85,160,FALSE) -> -131% | I48: =VLOOKUP($C48,'RECAP SECT'!$G$6:$FZ$85,161,FALSE) -> 101 | J48: =VLOOKUP($C48,'RECAP SECT'!$G$6:$FZ$85,162,FALSE) -> 467 | K48: =VLOOKUP($C48,'RECAP SECT'!$G$6:$FZ$85,163,FALSE) -> 22% | L48: =VLOOKUP($C48,'RECAP SECT'!$G$6:$FZ$85,164,FALSE) -> 10 | M48: =VLOOKUP($C48,'RECAP SECT'!$G$6:$FZ$85,165,FALSE) -> 59 | N48: =VLOOKUP($C48,'RECAP SECT'!$G$6:$FZ$85,166,FALSE) -> 16% | O48: =VLOOKUP($C48,'RECAP SECT'!$G$6:$FZ$85,167,FALSE) -> -1 | P48: =VLOOKUP($C48,'RECAP SECT'!$G$6:$FZ$85,168,FALSE) -> 4 | Q48: =VLOOKUP($C48,'RECAP SECT'!$G$6:$FZ$85,169,FALSE) -> -31% | R48: =VLOOKUP($C48,'RECAP SECT'!$G$6:$FZ$85,170,FALSE) -> 15 | S48: =VLOOKUP($C48,'RECAP SECT'!$G$6:$FZ$85,171,FALSE) -> 125 | T48: =VLOOKUP($C48,'RECAP SECT'!$G$6:$FZ$85,172,FALSE) -> 12%
A49: 30 | B49: MARNE-ARDENNES | C49: 3 | D49: SECTEUR SEDAN | E49: =VLOOKUP($C49,'RECAP SECT'!$G$6:$EV$312,3,FALSE) -> 16.8 | F49: =VLOOKUP($C49,'RECAP SECT'!$G$6:$FZ$85,158,FALSE) -> -58 | G49: =VLOOKUP($C49,'RECAP SECT'!$G$6:$FZ$85,159,FALSE) -> 129 | H49: =VLOOKUP($C49,'RECAP SECT'!$G$6:$FZ$85,160,FALSE) -> -45% | I49: =VLOOKUP($C49,'RECAP SECT'!$G$6:$FZ$85,161,FALSE) -> 79 | J49: =VLOOKUP($C49,'RECAP SECT'!$G$6:$FZ$85,162,FALSE) -> 467 | K49: =VLOOKUP($C49,'RECAP SECT'!$G$6:$FZ$85,163,FALSE) -> 17% | L49: =VLOOKUP($C49,'RECAP SECT'!$G$6:$FZ$85,164,FALSE) -> 11 | M49: =VLOOKUP($C49,'RECAP SECT'!$G$6:$FZ$85,165,FALSE) -> 59 | N49: =VLOOKUP($C49,'RECAP SECT'!$G$6:$FZ$85,166,FALSE) -> 19% | O49: =VLOOKUP($C49,'RECAP SECT'!$G$6:$FZ$85,167,FALSE) -> 2 | P49: =VLOOKUP($C49,'RECAP SECT'!$G$6:$FZ$85,168,FALSE) -> 4 | Q49: =VLOOKUP($C49,'RECAP SECT'!$G$6:$FZ$85,169,FALSE) -> 44% | R49: =VLOOKUP($C49,'RECAP SECT'!$G$6:$FZ$85,170,FALSE) -> 18 | S49: =VLOOKUP($C49,'RECAP SECT'!$G$6:$FZ$85,171,FALSE) -> 134 | T49: =VLOOKUP($C49,'RECAP SECT'!$G$6:$FZ$85,172,FALSE) -> 13%
A50: 30 | B50: MARNE-ARDENNES | C50: 8 | D50: SECTEUR SEZANNE | E50: =VLOOKUP($C50,'RECAP SECT'!$G$6:$EV$312,3,FALSE) -> 12.8 | F50: =VLOOKUP($C50,'RECAP SECT'!$G$6:$FZ$85,158,FALSE) -> -228 | G50: =VLOOKUP($C50,'RECAP SECT'!$G$6:$FZ$85,159,FALSE) -> 145 | H50: =VLOOKUP($C50,'RECAP SECT'!$G$6:$FZ$85,160,FALSE) -> -158% | I50: =VLOOKUP($C50,'RECAP SECT'!$G$6:$FZ$85,161,FALSE) -> 96 | J50: =VLOOKUP($C50,'RECAP SECT'!$G$6:$FZ$85,162,FALSE) -> 467 | K50: =VLOOKUP($C50,'RECAP SECT'!$G$6:$FZ$85,163,FALSE) -> 21% | L50: =VLOOKUP($C50,'RECAP SECT'!$G$6:$FZ$85,164,FALSE) -> 8 | M50: =VLOOKUP($C50,'RECAP SECT'!$G$6:$FZ$85,165,FALSE) -> 59 | N50: =VLOOKUP($C50,'RECAP SECT'!$G$6:$FZ$85,166,FALSE) -> 14% | O50: =VLOOKUP($C50,'RECAP SECT'!$G$6:$FZ$85,167,FALSE) -> -1 | P50: =VLOOKUP($C50,'RECAP SECT'!$G$6:$FZ$85,168,FALSE) -> 4 | Q50: =VLOOKUP($C50,'RECAP SECT'!$G$6:$FZ$85,169,FALSE) -> -18% | R50: =VLOOKUP($C50,'RECAP SECT'!$G$6:$FZ$85,170,FALSE) -> 15 | S50: =VLOOKUP($C50,'RECAP SECT'!$G$6:$FZ$85,171,FALSE) -> 148 | T50: =VLOOKUP($C50,'RECAP SECT'!$G$6:$FZ$85,172,FALSE) -> 10%
A51: 30 | B51: MARNE-ARDENNES | C51: 12 | D51: SECTEUR TINQUEUX | E51: =VLOOKUP($C51,'RECAP SECT'!$G$6:$EV$312,3,FALSE) -> 12.2 | F51: =VLOOKUP($C51,'RECAP SECT'!$G$6:$FZ$85,158,FALSE) -> 124 | G51: =VLOOKUP($C51,'RECAP SECT'!$G$6:$FZ$85,159,FALSE) -> 144 | H51: =VLOOKUP($C51,'RECAP SECT'!$G$6:$FZ$85,160,FALSE) -> 86% | I51: =VLOOKUP($C51,'RECAP SECT'!$G$6:$FZ$85,161,FALSE) -> 116 | J51: =VLOOKUP($C51,'RECAP SECT'!$G$6:$FZ$85,162,FALSE) -> 467 | K51: =VLOOKUP($C51,'RECAP SECT'!$G$6:$FZ$85,163,FALSE) -> 25% | L51: =VLOOKUP($C51,'RECAP SECT'!$G$6:$FZ$85,164,FALSE) -> 12 | M51: =VLOOKUP($C51,'RECAP SECT'!$G$6:$FZ$85,165,FALSE) -> 59 | N51: =VLOOKUP($C51,'RECAP SECT'!$G$6:$FZ$85,166,FALSE) -> 20% | O51: =VLOOKUP($C51,'RECAP SECT'!$G$6:$FZ$85,167,FALSE) -> 1 | P51: =VLOOKUP($C51,'RECAP SECT'!$G$6:$FZ$85,168,FALSE) -> 4 | Q51: =VLOOKUP($C51,'RECAP SECT'!$G$6:$FZ$85,169,FALSE) -> 23% | R51: =VLOOKUP($C51,'RECAP SECT'!$G$6:$FZ$85,170,FALSE) -> 31 | S51: =VLOOKUP($C51,'RECAP SECT'!$G$6:$FZ$85,171,FALSE) -> 153 | T51: =VLOOKUP($C51,'RECAP SECT'!$G$6:$FZ$85,172,FALSE) -> 20%
A52: 30 | B52: MARNE-ARDENNES | C52: 7 | D52: SECTEUR VITRY LE FRANCOIS | E52: =VLOOKUP($C52,'RECAP SECT'!$G$6:$EV$312,3,FALSE) -> 10.9 | F52: =VLOOKUP($C52,'RECAP SECT'!$G$6:$FZ$85,158,FALSE) -> -21 | G52: =VLOOKUP($C52,'RECAP SECT'!$G$6:$FZ$85,159,FALSE) -> 120 | H52: =VLOOKUP($C52,'RECAP SECT'!$G$6:$FZ$85,160,FALSE) -> -18% | I52: =VLOOKUP($C52,'RECAP SECT'!$G$6:$FZ$85,161,FALSE) -> 68 | J52: =VLOOKUP($C52,'RECAP SECT'!$G$6:$FZ$85,162,FALSE) -> 467 | K52: =VLOOKUP($C52,'RECAP SECT'!$G$6:$FZ$85,163,FALSE) -> 15% | L52: =VLOOKUP($C52,'RECAP SECT'!$G$6:$FZ$85,164,FALSE) -> 7 | M52: =VLOOKUP($C52,'RECAP SECT'!$G$6:$FZ$85,165,FALSE) -> 58 | N52: =VLOOKUP($C52,'RECAP SECT'!$G$6:$FZ$85,166,FALSE) -> 13% | O52: =VLOOKUP($C52,'RECAP SECT'!$G$6:$FZ$85,167,FALSE) -> -1 | P52: =VLOOKUP($C52,'RECAP SECT'!$G$6:$FZ$85,168,FALSE) -> 4 | Q52: =VLOOKUP($C52,'RECAP SECT'!$G$6:$FZ$85,169,FALSE) -> -23% | R52: =VLOOKUP($C52,'RECAP SECT'!$G$6:$FZ$85,170,FALSE) -> 12 | S52: =VLOOKUP($C52,'RECAP SECT'!$G$6:$FZ$85,171,FALSE) -> 124 | T52: =VLOOKUP($C52,'RECAP SECT'!$G$6:$FZ$85,172,FALSE) -> 9%
A53: 110 | B53: MEURTHE ET MOSELLE MEUSE | C53: 32 | D53: SECTEUR BAR LE DUC | E53: =VLOOKUP($C53,'RECAP SECT'!$G$6:$EV$312,3,FALSE) -> 17.6 | F53: =VLOOKUP($C53,'RECAP SECT'!$G$6:$FZ$85,158,FALSE) -> -155 | G53: =VLOOKUP($C53,'RECAP SECT'!$G$6:$FZ$85,159,FALSE) -> 124 | H53: =VLOOKUP($C53,'RECAP SECT'!$G$6:$FZ$85,160,FALSE) -> -125% | I53: =VLOOKUP($C53,'RECAP SECT'!$G$6:$FZ$85,161,FALSE) -> 114 | J53: =VLOOKUP($C53,'RECAP SECT'!$G$6:$FZ$85,162,FALSE) -> 467 | K53: =VLOOKUP($C53,'RECAP SECT'!$G$6:$FZ$85,163,FALSE) -> 24% | L53: =VLOOKUP($C53,'RECAP SECT'!$G$6:$FZ$85,164,FALSE) -> 6 | M53: =VLOOKUP($C53,'RECAP SECT'!$G$6:$FZ$85,165,FALSE) -> 58 | N53: =VLOOKUP($C53,'RECAP SECT'!$G$6:$FZ$85,166,FALSE) -> 10% | O53: =VLOOKUP($C53,'RECAP SECT'!$G$6:$FZ$85,167,FALSE) -> -1 | P53: =VLOOKUP($C53,'RECAP SECT'!$G$6:$FZ$85,168,FALSE) -> 4 | Q53: =VLOOKUP($C53,'RECAP SECT'!$G$6:$FZ$85,169,FALSE) -> -21% | R53: =VLOOKUP($C53,'RECAP SECT'!$G$6:$FZ$85,170,FALSE) -> 18 | S53: =VLOOKUP($C53,'RECAP SECT'!$G$6:$FZ$85,171,FALSE) -> 125 | T53: =VLOOKUP($C53,'RECAP SECT'!$G$6:$FZ$85,172,FALSE) -> 15%
A54: 110 | B54: MEURTHE ET MOSELLE MEUSE | C54: 33 | D54: SECTEUR COMMERCY | E54: =VLOOKUP($C54,'RECAP SECT'!$G$6:$EV$312,3,FALSE) -> 9.5 | F54: =VLOOKUP($C54,'RECAP SECT'!$G$6:$FZ$85,158,FALSE) -> 19 | G54: =VLOOKUP($C54,'RECAP SECT'!$G$6:$FZ$85,159,FALSE) -> 112 | H54: =VLOOKUP($C54,'RECAP SECT'!$G$6:$FZ$85,160,FALSE) -> 17% | I54: =VLOOKUP($C54,'RECAP SECT'!$G$6:$FZ$85,161,FALSE) -> 62 | J54: =VLOOKUP($C54,'RECAP SECT'!$G$6:$FZ$85,162,FALSE) -> 467 | K54: =VLOOKUP($C54,'RECAP SECT'!$G$6:$FZ$85,163,FALSE) -> 13% | L54: =VLOOKUP($C54,'RECAP SECT'!$G$6:$FZ$85,164,FALSE) -> 8 | M54: =VLOOKUP($C54,'RECAP SECT'!$G$6:$FZ$85,165,FALSE) -> 59 | N54: =VLOOKUP($C54,'RECAP SECT'!$G$6:$FZ$85,166,FALSE) -> 14% | O54: =VLOOKUP($C54,'RECAP SECT'!$G$6:$FZ$85,167,FALSE) -> -1 | P54: =VLOOKUP($C54,'RECAP SECT'!$G$6:$FZ$85,168,FALSE) -> 4 | Q54: =VLOOKUP($C54,'RECAP SECT'!$G$6:$FZ$85,169,FALSE) -> -35% | R54: =VLOOKUP($C54,'RECAP SECT'!$G$6:$FZ$85,170,FALSE) -> 11 | S54: =VLOOKUP($C54,'RECAP SECT'!$G$6:$FZ$85,171,FALSE) -> 124 | T54: =VLOOKUP($C54,'RECAP SECT'!$G$6:$FZ$85,172,FALSE) -> 9%
A55: 110 | B55: MEURTHE ET MOSELLE MEUSE | C55: 28 | D55: SECTEUR JARNY | E55: =VLOOKUP($C55,'RECAP SECT'!$G$6:$EV$312,3,FALSE) -> 14.7 | F55: =VLOOKUP($C55,'RECAP SECT'!$G$6:$FZ$85,158,FALSE) -> -31 | G55: =VLOOKUP($C55,'RECAP SECT'!$G$6:$FZ$85,159,FALSE) -> 117 | H55: =VLOOKUP($C55,'RECAP SECT'!$G$6:$FZ$85,160,FALSE) -> -26% | I55: =VLOOKUP($C55,'RECAP SECT'!$G$6:$FZ$85,161,FALSE) -> 76 | J55: =VLOOKUP($C55,'RECAP SECT'!$G$6:$FZ$85,162,FALSE) -> 467 | K55: =VLOOKUP($C55,'RECAP SECT'!$G$6:$FZ$85,163,FALSE) -> 16% | L55: =VLOOKUP($C55,'RECAP SECT'!$G$6:$FZ$85,164,FALSE) -> 10 | M55: =VLOOKUP($C55,'RECAP SECT'!$G$6:$FZ$85,165,FALSE) -> 59 | N55: =VLOOKUP($C55,'RECAP SECT'!$G$6:$FZ$85,166,FALSE) -> 17% | O55: =VLOOKUP($C55,'RECAP SECT'!$G$6:$FZ$85,167,FALSE) -> -1 | P55: =VLOOKUP($C55,'RECAP SECT'!$G$6:$FZ$85,168,FALSE) -> 4 | Q55: =VLOOKUP($C55,'RECAP SECT'!$G$6:$FZ$85,169,FALSE) -> -37% | R55: =VLOOKUP($C55,'RECAP SECT'!$G$6:$FZ$85,170,FALSE) -> 15 | S55: =VLOOKUP($C55,'RECAP SECT'!$G$6:$FZ$85,171,FALSE) -> 131 | T55: =VLOOKUP($C55,'RECAP SECT'!$G$6:$FZ$85,172,FALSE) -> 11%
A56: 110 | B56: MEURTHE ET MOSELLE MEUSE | C56: 29 | D56: SECTEUR LONGWY HAUT | E56: =VLOOKUP($C56,'RECAP SECT'!$G$6:$EV$312,3,FALSE) -> 17.0 | F56: =VLOOKUP($C56,'RECAP SECT'!$G$6:$FZ$85,158,FALSE) -> 29 | G56: =VLOOKUP($C56,'RECAP SECT'!$G$6:$FZ$85,159,FALSE) -> 115 | H56: =VLOOKUP($C56,'RECAP SECT'!$G$6:$FZ$85,160,FALSE) -> 25% | I56: =VLOOKUP($C56,'RECAP SECT'!$G$6:$FZ$85,161,FALSE) -> 90 | J56: =VLOOKUP($C56,'RECAP SECT'!$G$6:$FZ$85,162,FALSE) -> 467 | K56: =VLOOKUP($C56,'RECAP SECT'!$G$6:$FZ$85,163,FALSE) -> 19% | L56: =VLOOKUP($C56,'RECAP SECT'!$G$6:$FZ$85,164,FALSE) -> 8 | M56: =VLOOKUP($C56,'RECAP SECT'!$G$6:$FZ$85,165,FALSE) -> 59 | N56: =VLOOKUP($C56,'RECAP SECT'!$G$6:$FZ$85,166,FALSE) -> 13% | O56: =VLOOKUP($C56,'RECAP SECT'!$G$6:$FZ$85,167,FALSE) -> -1 | P56: =VLOOKUP($C56,'RECAP SECT'!$G$6:$FZ$85,168,FALSE) -> 4 | Q56: =VLOOKUP($C56,'RECAP SECT'!$G$6:$FZ$85,169,FALSE) -> -25% | R56: =VLOOKUP($C56,'RECAP SECT'!$G$6:$FZ$85,170,FALSE) -> 18 | S56: =VLOOKUP($C56,'RECAP SECT'!$G$6:$FZ$85,171,FALSE) -> 135 | T56: =VLOOKUP($C56,'RECAP SECT'!$G$6:$FZ$85,172,FALSE) -> 13%
A57: 110 | B57: MEURTHE ET MOSELLE MEUSE | C57: 24 | D57: SECTEUR LUNEVILLE CARNOT | E57: =VLOOKUP($C57,'RECAP SECT'!$G$6:$EV$312,3,FALSE) -> 20.6 | F57: =VLOOKUP($C57,'RECAP SECT'!$G$6:$FZ$85,158,FALSE) -> -57 | G57: =VLOOKUP($C57,'RECAP SECT'!$G$6:$FZ$85,159,FALSE) -> 117 | H57: =VLOOKUP($C57,'RECAP SECT'!$G$6:$FZ$85,160,FALSE) -> -49% | I57: =VLOOKUP($C57,'RECAP SECT'!$G$6:$FZ$85,161,FALSE) -> 87 | J57: =VLOOKUP($C57,'RECAP SECT'!$G$6:$FZ$85,162,FALSE) -> 467 | K57: =VLOOKUP($C57,'RECAP SECT'!$G$6:$FZ$85,163,FALSE) -> 19% | L57: =VLOOKUP($C57,'RECAP SECT'!$G$6:$FZ$85,164,FALSE) -> 10 | M57: =VLOOKUP($C57,'RECAP SECT'!$G$6:$FZ$85,165,FALSE) -> 59 | N57: =VLOOKUP($C57,'RECAP SECT'!$G$6:$FZ$85,166,FALSE) -> 17% | O57: =VLOOKUP($C57,'RECAP SECT'!$G$6:$FZ$85,167,FALSE) -> 1 | P57: =VLOOKUP($C57,'RECAP SECT'!$G$6:$FZ$85,168,FALSE) -> 4 | Q57: =VLOOKUP($C57,'RECAP SECT'!$G$6:$FZ$85,169,FALSE) -> 16% | R57: =VLOOKUP($C57,'RECAP SECT'!$G$6:$FZ$85,170,FALSE) -> 15 | S57: =VLOOKUP($C57,'RECAP SECT'!$G$6:$FZ$85,171,FALSE) -> 130 | T57: =VLOOKUP($C57,'RECAP SECT'!$G$6:$FZ$85,172,FALSE) -> 12%
A58: 110 | B58: MEURTHE ET MOSELLE MEUSE | C58: 30 | D58: SECTEUR MONTMEDY | E58: =VLOOKUP($C58,'RECAP SECT'!$G$6:$EV$312,3,FALSE) -> 6.7 | F58: =VLOOKUP($C58,'RECAP SECT'!$G$6:$FZ$85,158,FALSE) -> 78 | G58: =VLOOKUP($C58,'RECAP SECT'!$G$6:$FZ$85,159,FALSE) -> 103 | H58: =VLOOKUP($C58,'RECAP SECT'!$G$6:$FZ$85,160,FALSE) -> 76% | I58: =VLOOKUP($C58,'RECAP SECT'!$G$6:$FZ$85,161,FALSE) -> 84 | J58: =VLOOKUP($C58,'RECAP SECT'!$G$6:$FZ$85,162,FALSE) -> 467 | K58: =VLOOKUP($C58,'RECAP SECT'!$G$6:$FZ$85,163,FALSE) -> 18% | L58: =VLOOKUP($C58,'RECAP SECT'!$G$6:$FZ$85,164,FALSE) -> 10 | M58: =VLOOKUP($C58,'RECAP SECT'!$G$6:$FZ$85,165,FALSE) -> 59 | N58: =VLOOKUP($C58,'RECAP SECT'!$G$6:$FZ$85,166,FALSE) -> 18% | O58: =VLOOKUP($C58,'RECAP SECT'!$G$6:$FZ$85,167,FALSE) -> -0 | P58: =VLOOKUP($C58,'RECAP SECT'!$G$6:$FZ$85,168,FALSE) -> 4 | Q58: =VLOOKUP($C58,'RECAP SECT'!$G$6:$FZ$85,169,FALSE) -> -11% | R58: =VLOOKUP($C58,'RECAP SECT'!$G$6:$FZ$85,170,FALSE) -> 20 | S58: =VLOOKUP($C58,'RECAP SECT'!$G$6:$FZ$85,171,FALSE) -> 129 | T58: =VLOOKUP($C58,'RECAP SECT'!$G$6:$FZ$85,172,FALSE) -> 16%
A59: 110 | B59: MEURTHE ET MOSELLE MEUSE | C59: 26 | D59: SECTEUR NANCY PLACE DOMBASLE | E59: =VLOOKUP($C59,'RECAP SECT'!$G$6:$EV$312,3,FALSE) -> 36.3 | F59: =VLOOKUP($C59,'RECAP SECT'!$G$6:$FZ$85,158,FALSE) -> 88 | G59: =VLOOKUP($C59,'RECAP SECT'!$G$6:$FZ$85,159,FALSE) -> 124 | H59: =VLOOKUP($C59,'RECAP SECT'!$G$6:$FZ$85,160,FALSE) -> 71% | I59: =VLOOKUP($C59,'RECAP SECT'!$G$6:$FZ$85,161,FALSE) -> 89 | J59: =VLOOKUP($C59,'RECAP SECT'!$G$6:$FZ$85,162,FALSE) -> 467 | K59: =VLOOKUP($C59,'RECAP SECT'!$G$6:$FZ$85,163,FALSE) -> 19% | L59: =VLOOKUP($C59,'RECAP SECT'!$G$6:$FZ$85,164,FALSE) -> 11 | M59: =VLOOKUP($C59,'RECAP SECT'!$G$6:$FZ$85,165,FALSE) -> 59 | N59: =VLOOKUP($C59,'RECAP SECT'!$G$6:$FZ$85,166,FALSE) -> 19% | O59: =VLOOKUP($C59,'RECAP SECT'!$G$6:$FZ$85,167,FALSE) -> 1 | P59: =VLOOKUP($C59,'RECAP SECT'!$G$6:$FZ$85,168,FALSE) -> 4 | Q59: =VLOOKUP($C59,'RECAP SECT'!$G$6:$FZ$85,169,FALSE) -> 13% | R59: =VLOOKUP($C59,'RECAP SECT'!$G$6:$FZ$85,170,FALSE) -> 21 | S59: =VLOOKUP($C59,'RECAP SECT'!$G$6:$FZ$85,171,FALSE) -> 134 | T59: =VLOOKUP($C59,'RECAP SECT'!$G$6:$FZ$85,172,FALSE) -> 16%
A60: 110 | B60: MEURTHE ET MOSELLE MEUSE | C60: 27 | D60: SECTEUR PONT A MOUSSON CENTRALE | E60: =VLOOKUP($C60,'RECAP SECT'!$G$6:$EV$312,3,FALSE) -> 28.0 | F60: =VLOOKUP($C60,'RECAP SECT'!$G$6:$FZ$85,158,FALSE) -> 35 | G60: =VLOOKUP($C60,'RECAP SECT'!$G$6:$FZ$85,159,FALSE) -> 116 | H60: =VLOOKUP($C60,'RECAP SECT'!$G$6:$FZ$85,160,FALSE) -> 30% | I60: =VLOOKUP($C60,'RECAP SECT'!$G$6:$FZ$85,161,FALSE) -> 91 | J60: =VLOOKUP($C60,'RECAP SECT'!$G$6:$FZ$85,162,FALSE) -> 467 | K60: =VLOOKUP($C60,'RECAP SECT'!$G$6:$FZ$85,163,FALSE) -> 19% | L60: =VLOOKUP($C60,'RECAP SECT'!$G$6:$FZ$85,164,FALSE) -> 9 | M60: =VLOOKUP($C60,'RECAP SECT'!$G$6:$FZ$85,165,FALSE) -> 59 | N60: =VLOOKUP($C60,'RECAP SECT'!$G$6:$FZ$85,166,FALSE) -> 15% | O60: =VLOOKUP($C60,'RECAP SECT'!$G$6:$FZ$85,167,FALSE) -> -0 | P60: =VLOOKUP($C60,'RECAP SECT'!$G$6:$FZ$85,168,FALSE) -> 4 | Q60: =VLOOKUP($C60,'RECAP SECT'!$G$6:$FZ$85,169,FALSE) -> -2% | R60: =VLOOKUP($C60,'RECAP SECT'!$G$6:$FZ$85,170,FALSE) -> 17 | S60: =VLOOKUP($C60,'RECAP SECT'!$G$6:$FZ$85,171,FALSE) -> 134 | T60: =VLOOKUP($C60,'RECAP SECT'!$G$6:$FZ$85,172,FALSE) -> 13%
A61: 110 | B61: MEURTHE ET MOSELLE MEUSE | C61: 34 | D61: SECTEUR TOUL | E61: =VLOOKUP($C61,'RECAP SECT'!$G$6:$EV$312,3,FALSE) -> 22.7 | F61: =VLOOKUP($C61,'RECAP SECT'!$G$6:$FZ$85,158,FALSE) -> 35 | G61: =VLOOKUP($C61,'RECAP SECT'!$G$6:$FZ$85,159,FALSE) -> 123 | H61: =VLOOKUP($C61,'RECAP SECT'!$G$6:$FZ$85,160,FALSE) -> 28% | I61: =VLOOKUP($C61,'RECAP SECT'!$G$6:$FZ$85,161,FALSE) -> 60 | J61: =VLOOKUP($C61,'RECAP SECT'!$G$6:$FZ$85,162,FALSE) -> 467 | K61: =VLOOKUP($C61,'RECAP SECT'!$G$6:$FZ$85,163,FALSE) -> 13% | L61: =VLOOKUP($C61,'RECAP SECT'!$G$6:$FZ$85,164,FALSE) -> 8 | M61: =VLOOKUP($C61,'RECAP SECT'!$G$6:$FZ$85,165,FALSE) -> 59 | N61: =VLOOKUP($C61,'RECAP SECT'!$G$6:$FZ$85,166,FALSE) -> 14% | O61: =VLOOKUP($C61,'RECAP SECT'!$G$6:$FZ$85,167,FALSE) -> 0 | P61: =VLOOKUP($C61,'RECAP SECT'!$G$6:$FZ$85,168,FALSE) -> 4 | Q61: =VLOOKUP($C61,'RECAP SECT'!$G$6:$FZ$85,169,FALSE) -> 10% | R61: =VLOOKUP($C61,'RECAP SECT'!$G$6:$FZ$85,170,FALSE) -> 13 | S61: =VLOOKUP($C61,'RECAP SECT'!$G$6:$FZ$85,171,FALSE) -> 135 | T61: =VLOOKUP($C61,'RECAP SECT'!$G$6:$FZ$85,172,FALSE) -> 9%
A62: 110 | B62: MEURTHE ET MOSELLE MEUSE | C62: 35 | D62: SECTEUR VANDOEUVRE LES NANCY | E62: =VLOOKUP($C62,'RECAP SECT'!$G$6:$EV$312,3,FALSE) -> 23.3 | F62: =VLOOKUP($C62,'RECAP SECT'!$G$6:$FZ$85,158,FALSE) -> -7 | G62: =VLOOKUP($C62,'RECAP SECT'!$G$6:$FZ$85,159,FALSE) -> 111 | H62: =VLOOKUP($C62,'RECAP SECT'!$G$6:$FZ$85,160,FALSE) -> -7% | I62: =VLOOKUP($C62,'RECAP SECT'!$G$6:$FZ$85,161,FALSE) -> 70 | J62: =VLOOKUP($C62,'RECAP SECT'!$G$6:$FZ$85,162,FALSE) -> 467 | K62: =VLOOKUP($C62,'RECAP SECT'!$G$6:$FZ$85,163,FALSE) -> 15% | L62: =VLOOKUP($C62,'RECAP SECT'!$G$6:$FZ$85,164,FALSE) -> 10 | M62: =VLOOKUP($C62,'RECAP SECT'!$G$6:$FZ$85,165,FALSE) -> 58 | N62: =VLOOKUP($C62,'RECAP SECT'!$G$6:$FZ$85,166,FALSE) -> 17% | O62: =VLOOKUP($C62,'RECAP SECT'!$G$6:$FZ$85,167,FALSE) -> -0 | P62: =VLOOKUP($C62,'RECAP SECT'!$G$6:$FZ$85,168,FALSE) -> 4 | Q62: =VLOOKUP($C62,'RECAP SECT'!$G$6:$FZ$85,169,FALSE) -> -7% | R62: =VLOOKUP($C62,'RECAP SECT'!$G$6:$FZ$85,170,FALSE) -> 12 | S62: =VLOOKUP($C62,'RECAP SECT'!$G$6:$FZ$85,171,FALSE) -> 129 | T62: =VLOOKUP($C62,'RECAP SECT'!$G$6:$FZ$85,172,FALSE) -> 10%
A63: 110 | B63: MEURTHE ET MOSELLE MEUSE | C63: 31 | D63: SECTEUR VERDUN CENTRALE | E63: =VLOOKUP($C63,'RECAP SECT'!$G$6:$EV$312,3,FALSE) -> 17.6 | F63: =VLOOKUP($C63,'RECAP SECT'!$G$6:$FZ$85,158,FALSE) -> 194 | G63: =VLOOKUP($C63,'RECAP SECT'!$G$6:$FZ$85,159,FALSE) -> 115 | H63: =VLOOKUP($C63,'RECAP SECT'!$G$6:$FZ$85,160,FALSE) -> 169% | I63: =VLOOKUP($C63,'RECAP SECT'!$G$6:$FZ$85,161,FALSE) -> 64 | J63: =VLOOKUP($C63,'RECAP SECT'!$G$6:$FZ$85,162,FALSE) -> 467 | K63: =VLOOKUP($C63,'RECAP SECT'!$G$6:$FZ$85,163,FALSE) -> 14% | L63: =VLOOKUP($C63,'RECAP SECT'!$G$6:$FZ$85,164,FALSE) -> 7 | M63: =VLOOKUP($C63,'RECAP SECT'!$G$6:$FZ$85,165,FALSE) -> 59 | N63: =VLOOKUP($C63,'RECAP SECT'!$G$6:$FZ$85,166,FALSE) -> 13% | O63: =VLOOKUP($C63,'RECAP SECT'!$G$6:$FZ$85,167,FALSE) -> -1 | P63: =VLOOKUP($C63,'RECAP SECT'!$G$6:$FZ$85,168,FALSE) -> 4 | Q63: =VLOOKUP($C63,'RECAP SECT'!$G$6:$FZ$85,169,FALSE) -> -34% | R63: =VLOOKUP($C63,'RECAP SECT'!$G$6:$FZ$85,170,FALSE) -> 24 | S63: =VLOOKUP($C63,'RECAP SECT'!$G$6:$FZ$85,171,FALSE) -> 135 | T63: =VLOOKUP($C63,'RECAP SECT'!$G$6:$FZ$85,172,FALSE) -> 18%
A64: 110 | B64: MEURTHE ET MOSELLE MEUSE | C64: 36 | D64: SECTEUR VILLERS GENERAL LECLERC | E64: =VLOOKUP($C64,'RECAP SECT'!$G$6:$EV$312,3,FALSE) -> 26.5 | F64: =VLOOKUP($C64,'RECAP SECT'!$G$6:$FZ$85,158,FALSE) -> 29 | G64: =VLOOKUP($C64,'RECAP SECT'!$G$6:$FZ$85,159,FALSE) -> 117 | H64: =VLOOKUP($C64,'RECAP SECT'!$G$6:$FZ$85,160,FALSE) -> 25% | I64: =VLOOKUP($C64,'RECAP SECT'!$G$6:$FZ$85,161,FALSE) -> 112 | J64: =VLOOKUP($C64,'RECAP SECT'!$G$6:$FZ$85,162,FALSE) -> 467 | K64: =VLOOKUP($C64,'RECAP SECT'!$G$6:$FZ$85,163,FALSE) -> 24% | L64: =VLOOKUP($C64,'RECAP SECT'!$G$6:$FZ$85,164,FALSE) -> 14 | M64: =VLOOKUP($C64,'RECAP SECT'!$G$6:$FZ$85,165,FALSE) -> 58 | N64: =VLOOKUP($C64,'RECAP SECT'!$G$6:$FZ$85,166,FALSE) -> 23% | O64: =VLOOKUP($C64,'RECAP SECT'!$G$6:$FZ$85,167,FALSE) -> 1 | P64: =VLOOKUP($C64,'RECAP SECT'!$G$6:$FZ$85,168,FALSE) -> 4 | Q64: =VLOOKUP($C64,'RECAP SECT'!$G$6:$FZ$85,169,FALSE) -> 20% | R64: =VLOOKUP($C64,'RECAP SECT'!$G$6:$FZ$85,170,FALSE) -> 25 | S64: =VLOOKUP($C64,'RECAP SECT'!$G$6:$FZ$85,171,FALSE) -> 130 | T64: =VLOOKUP($C64,'RECAP SECT'!$G$6:$FZ$85,172,FALSE) -> 19%
A65: 160 | B65: MOSELLE | C65: 47 | D65: SECTEUR BASSE YUTZ | E65: =VLOOKUP($C65,'RECAP SECT'!$G$6:$EV$312,3,FALSE) -> 15.1 | F65: =VLOOKUP($C65,'RECAP SECT'!$G$6:$FZ$85,158,FALSE) -> 117 | G65: =VLOOKUP($C65,'RECAP SECT'!$G$6:$FZ$85,159,FALSE) -> 126 | H65: =VLOOKUP($C65,'RECAP SECT'!$G$6:$FZ$85,160,FALSE) -> 93% | I65: =VLOOKUP($C65,'RECAP SECT'!$G$6:$FZ$85,161,FALSE) -> 93 | J65: =VLOOKUP($C65,'RECAP SECT'!$G$6:$FZ$85,162,FALSE) -> 467 | K65: =VLOOKUP($C65,'RECAP SECT'!$G$6:$FZ$85,163,FALSE) -> 20% | L65: =VLOOKUP($C65,'RECAP SECT'!$G$6:$FZ$85,164,FALSE) -> 10 | M65: =VLOOKUP($C65,'RECAP SECT'!$G$6:$FZ$85,165,FALSE) -> 59 | N65: =VLOOKUP($C65,'RECAP SECT'!$G$6:$FZ$85,166,FALSE) -> 17% | O65: =VLOOKUP($C65,'RECAP SECT'!$G$6:$FZ$85,167,FALSE) -> -1 | P65: =VLOOKUP($C65,'RECAP SECT'!$G$6:$FZ$85,168,FALSE) -> 4 | Q65: =VLOOKUP($C65,'RECAP SECT'!$G$6:$FZ$85,169,FALSE) -> -33% | R65: =VLOOKUP($C65,'RECAP SECT'!$G$6:$FZ$85,170,FALSE) -> 19 | S65: =VLOOKUP($C65,'RECAP SECT'!$G$6:$FZ$85,171,FALSE) -> 138 | T65: =VLOOKUP($C65,'RECAP SECT'!$G$6:$FZ$85,172,FALSE) -> 14%
A66: 160 | B66: MOSELLE | C66: 39 | D66: SECTEUR DIEUZE | E66: =VLOOKUP($C66,'RECAP SECT'!$G$6:$EV$312,3,FALSE) -> 14.8 | F66: =VLOOKUP($C66,'RECAP SECT'!$G$6:$FZ$85,158,FALSE) -> 107 | G66: =VLOOKUP($C66,'RECAP SECT'!$G$6:$FZ$85,159,FALSE) -> 92 | H66: =VLOOKUP($C66,'RECAP SECT'!$G$6:$FZ$85,160,FALSE) -> 117% | I66: =VLOOKUP($C66,'RECAP SECT'!$G$6:$FZ$85,161,FALSE) -> 74 | J66: =VLOOKUP($C66,'RECAP SECT'!$G$6:$FZ$85,162,FALSE) -> 467 | K66: =VLOOKUP($C66,'RECAP SECT'!$G$6:$FZ$85,163,FALSE) -> 16% | L66: =VLOOKUP($C66,'RECAP SECT'!$G$6:$FZ$85,164,FALSE) -> 14 | M66: =VLOOKUP($C66,'RECAP SECT'!$G$6:$FZ$85,165,FALSE) -> 59 | N66: =VLOOKUP($C66,'RECAP SECT'!$G$6:$FZ$85,166,FALSE) -> 24% | O66: =VLOOKUP($C66,'RECAP SECT'!$G$6:$FZ$85,167,FALSE) -> -1 | P66: =VLOOKUP($C66,'RECAP SECT'!$G$6:$FZ$85,168,FALSE) -> 4 | Q66: =VLOOKUP($C66,'RECAP SECT'!$G$6:$FZ$85,169,FALSE) -> -17% | R66: =VLOOKUP($C66,'RECAP SECT'!$G$6:$FZ$85,170,FALSE) -> 24 | S66: =VLOOKUP($C66,'RECAP SECT'!$G$6:$FZ$85,171,FALSE) -> 125 | T66: =VLOOKUP($C66,'RECAP SECT'!$G$6:$FZ$85,172,FALSE) -> 19%
A67: 160 | B67: MOSELLE | C67: 49 | D67: SECTEUR FLORANGE | E67: =VLOOKUP($C67,'RECAP SECT'!$G$6:$EV$312,3,FALSE) -> 14.8 | F67: =VLOOKUP($C67,'RECAP SECT'!$G$6:$FZ$85,158,FALSE) -> -20 | G67: =VLOOKUP($C67,'RECAP SECT'!$G$6:$FZ$85,159,FALSE) -> 111 | H67: =VLOOKUP($C67,'RECAP SECT'!$G$6:$FZ$85,160,FALSE) -> -18% | I67: =VLOOKUP($C67,'RECAP SECT'!$G$6:$FZ$85,161,FALSE) -> 113 | J67: =VLOOKUP($C67,'RECAP SECT'!$G$6:$FZ$85,162,FALSE) -> 467 | K67: =VLOOKUP($C67,'RECAP SECT'!$G$6:$FZ$85,163,FALSE) -> 24% | L67: =VLOOKUP($C67,'RECAP SECT'!$G$6:$FZ$85,164,FALSE) -> 9 | M67: =VLOOKUP($C67,'RECAP SECT'!$G$6:$FZ$85,165,FALSE) -> 59 | N67: =VLOOKUP($C67,'RECAP SECT'!$G$6:$FZ$85,166,FALSE) -> 16% | O67: =VLOOKUP($C67,'RECAP SECT'!$G$6:$FZ$85,167,FALSE) -> -0 | P67: =VLOOKUP($C67,'RECAP SECT'!$G$6:$FZ$85,168,FALSE) -> 4 | Q67: =VLOOKUP($C67,'RECAP SECT'!$G$6:$FZ$85,169,FALSE) -> -8% | R67: =VLOOKUP($C67,'RECAP SECT'!$G$6:$FZ$85,170,FALSE) -> 25 | S67: =VLOOKUP($C67,'RECAP SECT'!$G$6:$FZ$85,171,FALSE) -> 133 | T67: =VLOOKUP($C67,'RECAP SECT'!$G$6:$FZ$85,172,FALSE) -> 19%
A68: 160 | B68: MOSELLE | C68: 43 | D68: SECTEUR FORBACH CENTRALE | E68: =VLOOKUP($C68,'RECAP SECT'!$G$6:$EV$312,3,FALSE) -> 15.2 | F68: =VLOOKUP($C68,'RECAP SECT'!$G$6:$FZ$85,158,FALSE) -> -21 | G68: =VLOOKUP($C68,'RECAP SECT'!$G$6:$FZ$85,159,FALSE) -> 115 | H68: =VLOOKUP($C68,'RECAP SECT'!$G$6:$FZ$85,160,FALSE) -> -18% | I68: =VLOOKUP($C68,'RECAP SECT'!$G$6:$FZ$85,161,FALSE) -> 71 | J68: =VLOOKUP($C68,'RECAP SECT'!$G$6:$FZ$85,162,FALSE) -> 467 | K68: =VLOOKUP($C68,'RECAP SECT'!$G$6:$FZ$85,163,FALSE) -> 15% | L68: =VLOOKUP($C68,'RECAP SECT'!$G$6:$FZ$85,164,FALSE) -> 9 | M68: =VLOOKUP($C68,'RECAP SECT'!$G$6:$FZ$85,165,FALSE) -> 59 | N68: =VLOOKUP($C68,'RECAP SECT'!$G$6:$FZ$85,166,FALSE) -> 15% | O68: =VLOOKUP($C68,'RECAP SECT'!$G$6:$FZ$85,167,FALSE) -> -0 | P68: =VLOOKUP($C68,'RECAP SECT'!$G$6:$FZ$85,168,FALSE) -> 4 | Q68: =VLOOKUP($C68,'RECAP SECT'!$G$6:$FZ$85,169,FALSE) -> -3% | R68: =VLOOKUP($C68,'RECAP SECT'!$G$6:$FZ$85,170,FALSE) -> 17 | S68: =VLOOKUP($C68,'RECAP SECT'!$G$6:$FZ$85,171,FALSE) -> 129 | T68: =VLOOKUP($C68,'RECAP SECT'!$G$6:$FZ$85,172,FALSE) -> 14%
A69: 160 | B69: MOSELLE | C69: 44 | D69: SECTEUR HAGONDANGE | E69: =VLOOKUP($C69,'RECAP SECT'!$G$6:$EV$312,3,FALSE) -> 22.3 | F69: =VLOOKUP($C69,'RECAP SECT'!$G$6:$FZ$85,158,FALSE) -> 17 | G69: =VLOOKUP($C69,'RECAP SECT'!$G$6:$FZ$85,159,FALSE) -> 119 | H69: =VLOOKUP($C69,'RECAP SECT'!$G$6:$FZ$85,160,FALSE) -> 15% | I69: =VLOOKUP($C69,'RECAP SECT'!$G$6:$FZ$85,161,FALSE) -> 93 | J69: =VLOOKUP($C69,'RECAP SECT'!$G$6:$FZ$85,162,FALSE) -> 467 | K69: =VLOOKUP($C69,'RECAP SECT'!$G$6:$FZ$85,163,FALSE) -> 20% | L69: =VLOOKUP($C69,'RECAP SECT'!$G$6:$FZ$85,164,FALSE) -> 12 | M69: =VLOOKUP($C69,'RECAP SECT'!$G$6:$FZ$85,165,FALSE) -> 59 | N69: =VLOOKUP($C69,'RECAP SECT'!$G$6:$FZ$85,166,FALSE) -> 21% | O69: =VLOOKUP($C69,'RECAP SECT'!$G$6:$FZ$85,167,FALSE) -> -1 | P69: =VLOOKUP($C69,'RECAP SECT'!$G$6:$FZ$85,168,FALSE) -> 4 | Q69: =VLOOKUP($C69,'RECAP SECT'!$G$6:$FZ$85,169,FALSE) -> -16% | R69: =VLOOKUP($C69,'RECAP SECT'!$G$6:$FZ$85,170,FALSE) -> 23 | S69: =VLOOKUP($C69,'RECAP SECT'!$G$6:$FZ$85,171,FALSE) -> 134 | T69: =VLOOKUP($C69,'RECAP SECT'!$G$6:$FZ$85,172,FALSE) -> 17%
A70: 160 | B70: MOSELLE | C70: 50 | D70: SECTEUR HAYANGE | E70: =VLOOKUP($C70,'RECAP SECT'!$G$6:$EV$312,3,FALSE) -> 17.3 | F70: =VLOOKUP($C70,'RECAP SECT'!$G$6:$FZ$85,158,FALSE) -> 22 | G70: =VLOOKUP($C70,'RECAP SECT'!$G$6:$FZ$85,159,FALSE) -> 117 | H70: =VLOOKUP($C70,'RECAP SECT'!$G$6:$FZ$85,160,FALSE) -> 19% | I70: =VLOOKUP($C70,'RECAP SECT'!$G$6:$FZ$85,161,FALSE) -> 86 | J70: =VLOOKUP($C70,'RECAP SECT'!$G$6:$FZ$85,162,FALSE) -> 467 | K70: =VLOOKUP($C70,'RECAP SECT'!$G$6:$FZ$85,163,FALSE) -> 18% | L70: =VLOOKUP($C70,'RECAP SECT'!$G$6:$FZ$85,164,FALSE) -> 9 | M70: =VLOOKUP($C70,'RECAP SECT'!$G$6:$FZ$85,165,FALSE) -> 59 | N70: =VLOOKUP($C70,'RECAP SECT'!$G$6:$FZ$85,166,FALSE) -> 15% | O70: =VLOOKUP($C70,'RECAP SECT'!$G$6:$FZ$85,167,FALSE) -> 0 | P70: =VLOOKUP($C70,'RECAP SECT'!$G$6:$FZ$85,168,FALSE) -> 4 | Q70: =VLOOKUP($C70,'RECAP SECT'!$G$6:$FZ$85,169,FALSE) -> 9% | R70: =VLOOKUP($C70,'RECAP SECT'!$G$6:$FZ$85,170,FALSE) -> 16 | S70: =VLOOKUP($C70,'RECAP SECT'!$G$6:$FZ$85,171,FALSE) -> 136 | T70: =VLOOKUP($C70,'RECAP SECT'!$G$6:$FZ$85,172,FALSE) -> 11%
A71: 160 | B71: MOSELLE | C71: 37 | D71: SECTEUR MERLEBACH | E71: =VLOOKUP($C71,'RECAP SECT'!$G$6:$EV$312,3,FALSE) -> 7.4 | F71: =VLOOKUP($C71,'RECAP SECT'!$G$6:$FZ$85,158,FALSE) -> 39 | G71: =VLOOKUP($C71,'RECAP SECT'!$G$6:$FZ$85,159,FALSE) -> 143 | H71: =VLOOKUP($C71,'RECAP SECT'!$G$6:$FZ$85,160,FALSE) -> 27% | I71: =VLOOKUP($C71,'RECAP SECT'!$G$6:$FZ$85,161,FALSE) -> 56 | J71: =VLOOKUP($C71,'RECAP SECT'!$G$6:$FZ$85,162,FALSE) -> 467 | K71: =VLOOKUP($C71,'RECAP SECT'!$G$6:$FZ$85,163,FALSE) -> 12% | L71: =VLOOKUP($C71,'RECAP SECT'!$G$6:$FZ$85,164,FALSE) -> 12 | M71: =VLOOKUP($C71,'RECAP SECT'!$G$6:$FZ$85,165,FALSE) -> 59 | N71: =VLOOKUP($C71,'RECAP SECT'!$G$6:$FZ$85,166,FALSE) -> 20% | O71: =VLOOKUP($C71,'RECAP SECT'!$G$6:$FZ$85,167,FALSE) -> -3 | P71: =VLOOKUP($C71,'RECAP SECT'!$G$6:$FZ$85,168,FALSE) -> 4 | Q71: =VLOOKUP($C71,'RECAP SECT'!$G$6:$FZ$85,169,FALSE) -> -81% | R71: =VLOOKUP($C71,'RECAP SECT'!$G$6:$FZ$85,170,FALSE) -> 8 | S71: =VLOOKUP($C71,'RECAP SECT'!$G$6:$FZ$85,171,FALSE) -> 141 | T71: =VLOOKUP($C71,'RECAP SECT'!$G$6:$FZ$85,172,FALSE) -> 6%
A72: 160 | B72: MOSELLE | C72: 45 | D72: SECTEUR METZ REPUBLIQUE | E72: =VLOOKUP($C72,'RECAP SECT'!$G$6:$EV$312,3,FALSE) -> 34.9 | F72: =VLOOKUP($C72,'RECAP SECT'!$G$6:$FZ$85,158,FALSE) -> 47 | G72: =VLOOKUP($C72,'RECAP SECT'!$G$6:$FZ$85,159,FALSE) -> 125 | H72: =VLOOKUP($C72,'RECAP SECT'!$G$6:$FZ$85,160,FALSE) -> 37% | I72: =VLOOKUP($C72,'RECAP SECT'!$G$6:$FZ$85,161,FALSE) -> 73 | J72: =VLOOKUP($C72,'RECAP SECT'!$G$6:$FZ$85,162,FALSE) -> 467 | K72: =VLOOKUP($C72,'RECAP SECT'!$G$6:$FZ$85,163,FALSE) -> 16% | L72: =VLOOKUP($C72,'RECAP SECT'!$G$6:$FZ$85,164,FALSE) -> 9 | M72: =VLOOKUP($C72,'RECAP SECT'!$G$6:$FZ$85,165,FALSE) -> 59 | N72: =VLOOKUP($C72,'RECAP SECT'!$G$6:$FZ$85,166,FALSE) -> 15% | O72: =VLOOKUP($C72,'RECAP SECT'!$G$6:$FZ$85,167,FALSE) -> -0 | P72: =VLOOKUP($C72,'RECAP SECT'!$G$6:$FZ$85,168,FALSE) -> 4 | Q72: =VLOOKUP($C72,'RECAP SECT'!$G$6:$FZ$85,169,FALSE) -> -11% | R72: =VLOOKUP($C72,'RECAP SECT'!$G$6:$FZ$85,170,FALSE) -> 20 | S72: =VLOOKUP($C72,'RECAP SECT'!$G$6:$FZ$85,171,FALSE) -> 136 | T72: =VLOOKUP($C72,'RECAP SECT'!$G$6:$FZ$85,172,FALSE) -> 15%
A73: 160 | B73: MOSELLE | C73: 46 | D73: SECTEUR METZ SAINT LOUIS | E73: =VLOOKUP($C73,'RECAP SECT'!$G$6:$EV$312,3,FALSE) -> 30.9 | F73: =VLOOKUP($C73,'RECAP SECT'!$G$6:$FZ$85,158,FALSE) -> 213 | G73: =VLOOKUP($C73,'RECAP SECT'!$G$6:$FZ$85,159,FALSE) -> 116 | H73: =VLOOKUP($C73,'RECAP SECT'!$G$6:$FZ$85,160,FALSE) -> 183% | I73: =VLOOKUP($C73,'RECAP SECT'!$G$6:$FZ$85,161,FALSE) -> 101 | J73: =VLOOKUP($C73,'RECAP SECT'!$G$6:$FZ$85,162,FALSE) -> 467 | K73: =VLOOKUP($C73,'RECAP SECT'!$G$6:$FZ$85,163,FALSE) -> 22% | L73: =VLOOKUP($C73,'RECAP SECT'!$G$6:$FZ$85,164,FALSE) -> 10 | M73: =VLOOKUP($C73,'RECAP SECT'!$G$6:$FZ$85,165,FALSE) -> 58 | N73: =VLOOKUP($C73,'RECAP SECT'!$G$6:$FZ$85,166,FALSE) -> 18% | O73: =VLOOKUP($C73,'RECAP SECT'!$G$6:$FZ$85,167,FALSE) -> 0 | P73: =VLOOKUP($C73,'RECAP SECT'!$G$6:$FZ$85,168,FALSE) -> 4 | Q73: =VLOOKUP($C73,'RECAP SECT'!$G$6:$FZ$85,169,FALSE) -> 0% | R73: =VLOOKUP($C73,'RECAP SECT'!$G$6:$FZ$85,170,FALSE) -> 29 | S73: =VLOOKUP($C73,'RECAP SECT'!$G$6:$FZ$85,171,FALSE) -> 136 | T73: =VLOOKUP($C73,'RECAP SECT'!$G$6:$FZ$85,172,FALSE) -> 21%
A74: 160 | B74: MOSELLE | C74: 41 | D74: SECTEUR MONTIGNY LES METZ | E74: =VLOOKUP($C74,'RECAP SECT'!$G$6:$EV$312,3,FALSE) -> 19.5 | F74: =VLOOKUP($C74,'RECAP SECT'!$G$6:$FZ$85,158,FALSE) -> 105 | G74: =VLOOKUP($C74,'RECAP SECT'!$G$6:$FZ$85,159,FALSE) -> 139 | H74: =VLOOKUP($C74,'RECAP SECT'!$G$6:$FZ$85,160,FALSE) -> 76% | I74: =VLOOKUP($C74,'RECAP SECT'!$G$6:$FZ$85,161,FALSE) -> 115 | J74: =VLOOKUP($C74,'RECAP SECT'!$G$6:$FZ$85,162,FALSE) -> 467 | K74: =VLOOKUP($C74,'RECAP SECT'!$G$6:$FZ$85,163,FALSE) -> 25% | L74: =VLOOKUP($C74,'RECAP SECT'!$G$6:$FZ$85,164,FALSE) -> 11 | M74: =VLOOKUP($C74,'RECAP SECT'!$G$6:$FZ$85,165,FALSE) -> 58 | N74: =VLOOKUP($C74,'RECAP SECT'!$G$6:$FZ$85,166,FALSE) -> 18% | O74: =VLOOKUP($C74,'RECAP SECT'!$G$6:$FZ$85,167,FALSE) -> 0 | P74: =VLOOKUP($C74,'RECAP SECT'!$G$6:$FZ$85,168,FALSE) -> 4 | Q74: =VLOOKUP($C74,'RECAP SECT'!$G$6:$FZ$85,169,FALSE) -> 3% | R74: =VLOOKUP($C74,'RECAP SECT'!$G$6:$FZ$85,170,FALSE) -> 26 | S74: =VLOOKUP($C74,'RECAP SECT'!$G$6:$FZ$85,171,FALSE) -> 140 | T74: =VLOOKUP($C74,'RECAP SECT'!$G$6:$FZ$85,172,FALSE) -> 19%
A75: 160 | B75: MOSELLE | C75: 51 | D75: SECTEUR ROMBAS | E75: =VLOOKUP($C75,'RECAP SECT'!$G$6:$EV$312,3,FALSE) -> 21.3 | F75: =VLOOKUP($C75,'RECAP SECT'!$G$6:$FZ$85,158,FALSE) -> -44 | G75: =VLOOKUP($C75,'RECAP SECT'!$G$6:$FZ$85,159,FALSE) -> 123 | H75: =VLOOKUP($C75,'RECAP SECT'!$G$6:$FZ$85,160,FALSE) -> -36% | I75: =VLOOKUP($C75,'RECAP SECT'!$G$6:$FZ$85,161,FALSE) -> 60 | J75: =VLOOKUP($C75,'RECAP SECT'!$G$6:$FZ$85,162,FALSE) -> 467 | K75: =VLOOKUP($C75,'RECAP SECT'!$G$6:$FZ$85,163,FALSE) -> 13% | L75: =VLOOKUP($C75,'RECAP SECT'!$G$6:$FZ$85,164,FALSE) -> 10 | M75: =VLOOKUP($C75,'RECAP SECT'!$G$6:$FZ$85,165,FALSE) -> 59 | N75: =VLOOKUP($C75,'RECAP SECT'!$G$6:$FZ$85,166,FALSE) -> 16% | O75: =VLOOKUP($C75,'RECAP SECT'!$G$6:$FZ$85,167,FALSE) -> -2 | P75: =VLOOKUP($C75,'RECAP SECT'!$G$6:$FZ$85,168,FALSE) -> 4 | Q75: =VLOOKUP($C75,'RECAP SECT'!$G$6:$FZ$85,169,FALSE) -> -38% | R75: =VLOOKUP($C75,'RECAP SECT'!$G$6:$FZ$85,170,FALSE) -> 15 | S75: =VLOOKUP($C75,'RECAP SECT'!$G$6:$FZ$85,171,FALSE) -> 134 | T75: =VLOOKUP($C75,'RECAP SECT'!$G$6:$FZ$85,172,FALSE) -> 11%
A76: 160 | B76: MOSELLE | C76: 40 | D76: SECTEUR SAINT AVOLD | E76: =VLOOKUP($C76,'RECAP SECT'!$G$6:$EV$312,3,FALSE) -> 19.1 | F76: =VLOOKUP($C76,'RECAP SECT'!$G$6:$FZ$85,158,FALSE) -> 37 | G76: =VLOOKUP($C76,'RECAP SECT'!$G$6:$FZ$85,159,FALSE) -> 105 | H76: =VLOOKUP($C76,'RECAP SECT'!$G$6:$FZ$85,160,FALSE) -> 35% | I76: =VLOOKUP($C76,'RECAP SECT'!$G$6:$FZ$85,161,FALSE) -> 88 | J76: =VLOOKUP($C76,'RECAP SECT'!$G$6:$FZ$85,162,FALSE) -> 467 | K76: =VLOOKUP($C76,'RECAP SECT'!$G$6:$FZ$85,163,FALSE) -> 19% | L76: =VLOOKUP($C76,'RECAP SECT'!$G$6:$FZ$85,164,FALSE) -> 9 | M76: =VLOOKUP($C76,'RECAP SECT'!$G$6:$FZ$85,165,FALSE) -> 58 | N76: =VLOOKUP($C76,'RECAP SECT'!$G$6:$FZ$85,166,FALSE) -> 16% | O76: =VLOOKUP($C76,'RECAP SECT'!$G$6:$FZ$85,167,FALSE) -> -1 | P76: =VLOOKUP($C76,'RECAP SECT'!$G$6:$FZ$85,168,FALSE) -> 4 | Q76: =VLOOKUP($C76,'RECAP SECT'!$G$6:$FZ$85,169,FALSE) -> -17% | R76: =VLOOKUP($C76,'RECAP SECT'!$G$6:$FZ$85,170,FALSE) -> 29 | S76: =VLOOKUP($C76,'RECAP SECT'!$G$6:$FZ$85,171,FALSE) -> 127 | T76: =VLOOKUP($C76,'RECAP SECT'!$G$6:$FZ$85,172,FALSE) -> 23%
A77: 160 | B77: MOSELLE | C77: 38 | D77: SECTEUR SARREBOURG | E77: =VLOOKUP($C77,'RECAP SECT'!$G$6:$EV$312,3,FALSE) -> 13.8 | F77: =VLOOKUP($C77,'RECAP SECT'!$G$6:$FZ$85,158,FALSE) -> 6 | G77: =VLOOKUP($C77,'RECAP SECT'!$G$6:$FZ$85,159,FALSE) -> 107 | H77: =VLOOKUP($C77,'RECAP SECT'!$G$6:$FZ$85,160,FALSE) -> 6% | I77: =VLOOKUP($C77,'RECAP SECT'!$G$6:$FZ$85,161,FALSE) -> 85 | J77: =VLOOKUP($C77,'RECAP SECT'!$G$6:$FZ$85,162,FALSE) -> 467 | K77: =VLOOKUP($C77,'RECAP SECT'!$G$6:$FZ$85,163,FALSE) -> 18% | L77: =VLOOKUP($C77,'RECAP SECT'!$G$6:$FZ$85,164,FALSE) -> 9 | M77: =VLOOKUP($C77,'RECAP SECT'!$G$6:$FZ$85,165,FALSE) -> 58 | N77: =VLOOKUP($C77,'RECAP SECT'!$G$6:$FZ$85,166,FALSE) -> 15% | O77: =VLOOKUP($C77,'RECAP SECT'!$G$6:$FZ$85,167,FALSE) -> -1 | P77: =VLOOKUP($C77,'RECAP SECT'!$G$6:$FZ$85,168,FALSE) -> 4 | Q77: =VLOOKUP($C77,'RECAP SECT'!$G$6:$FZ$85,169,FALSE) -> -28% | R77: =VLOOKUP($C77,'RECAP SECT'!$G$6:$FZ$85,170,FALSE) -> 20 | S77: =VLOOKUP($C77,'RECAP SECT'!$G$6:$FZ$85,171,FALSE) -> 139 | T77: =VLOOKUP($C77,'RECAP SECT'!$G$6:$FZ$85,172,FALSE) -> 14%
A78: 160 | B78: MOSELLE | C78: 42 | D78: SECTEUR SARREGUEMINES | E78: =VLOOKUP($C78,'RECAP SECT'!$G$6:$EV$312,3,FALSE) -> 19.9 | F78: =VLOOKUP($C78,'RECAP SECT'!$G$6:$FZ$85,158,FALSE) -> 44 | G78: =VLOOKUP($C78,'RECAP SECT'!$G$6:$FZ$85,159,FALSE) -> 102 | H78: =VLOOKUP($C78,'RECAP SECT'!$G$6:$FZ$85,160,FALSE) -> 43% | I78: =VLOOKUP($C78,'RECAP SECT'!$G$6:$FZ$85,161,FALSE) -> 84 | J78: =VLOOKUP($C78,'RECAP SECT'!$G$6:$FZ$85,162,FALSE) -> 467 | K78: =VLOOKUP($C78,'RECAP SECT'!$G$6:$FZ$85,163,FALSE) -> 18% | L78: =VLOOKUP($C78,'RECAP SECT'!$G$6:$FZ$85,164,FALSE) -> 6 | M78: =VLOOKUP($C78,'RECAP SECT'!$G$6:$FZ$85,165,FALSE) -> 59 | N78: =VLOOKUP($C78,'RECAP SECT'!$G$6:$FZ$85,166,FALSE) -> 11% | O78: =VLOOKUP($C78,'RECAP SECT'!$G$6:$FZ$85,167,FALSE) -> -1 | P78: =VLOOKUP($C78,'RECAP SECT'!$G$6:$FZ$85,168,FALSE) -> 4 | Q78: =VLOOKUP($C78,'RECAP SECT'!$G$6:$FZ$85,169,FALSE) -> -19% | R78: =VLOOKUP($C78,'RECAP SECT'!$G$6:$FZ$85,170,FALSE) -> 20 | S78: =VLOOKUP($C78,'RECAP SECT'!$G$6:$FZ$85,171,FALSE) -> 131 | T78: =VLOOKUP($C78,'RECAP SECT'!$G$6:$FZ$85,172,FALSE) -> 15%
A79: 160 | B79: MOSELLE | C79: 48 | D79: SECTEUR THIONVILLE CENTRALE | E79: =VLOOKUP($C79,'RECAP SECT'!$G$6:$EV$312,3,FALSE) -> 14.3 | F79: =VLOOKUP($C79,'RECAP SECT'!$G$6:$FZ$85,158,FALSE) -> 33 | G79: =VLOOKUP($C79,'RECAP SECT'!$G$6:$FZ$85,159,FALSE) -> 120 | H79: =VLOOKUP($C79,'RECAP SECT'!$G$6:$FZ$85,160,FALSE) -> 27% | I79: =VLOOKUP($C79,'RECAP SECT'!$G$6:$FZ$85,161,FALSE) -> 88 | J79: =VLOOKUP($C79,'RECAP SECT'!$G$6:$FZ$85,162,FALSE) -> 467 | K79: =VLOOKUP($C79,'RECAP SECT'!$G$6:$FZ$85,163,FALSE) -> 19% | L79: =VLOOKUP($C79,'RECAP SECT'!$G$6:$FZ$85,164,FALSE) -> 10 | M79: =VLOOKUP($C79,'RECAP SECT'!$G$6:$FZ$85,165,FALSE) -> 59 | N79: =VLOOKUP($C79,'RECAP SECT'!$G$6:$FZ$85,166,FALSE) -> 17% | O79: =VLOOKUP($C79,'RECAP SECT'!$G$6:$FZ$85,167,FALSE) -> -1 | P79: =VLOOKUP($C79,'RECAP SECT'!$G$6:$FZ$85,168,FALSE) -> 4 | Q79: =VLOOKUP($C79,'RECAP SECT'!$G$6:$FZ$85,169,FALSE) -> -18% | R79: =VLOOKUP($C79,'RECAP SECT'!$G$6:$FZ$85,170,FALSE) -> 18 | S79: =VLOOKUP($C79,'RECAP SECT'!$G$6:$FZ$85,171,FALSE) -> 127 | T79: =VLOOKUP($C79,'RECAP SECT'!$G$6:$FZ$85,172,FALSE) -> 15%
A80: 80 | B80: VOSGES | C80: 57 | D80: SECTEUR EPINAL ARISTIDE BRIAND | E80: =VLOOKUP($C80,'RECAP SECT'!$G$6:$EV$312,3,FALSE) -> 21.5 | F80: =VLOOKUP($C80,'RECAP SECT'!$G$6:$FZ$85,158,FALSE) -> 87 | G80: =VLOOKUP($C80,'RECAP SECT'!$G$6:$FZ$85,159,FALSE) -> 118 | H80: =VLOOKUP($C80,'RECAP SECT'!$G$6:$FZ$85,160,FALSE) -> 74% | I80: =VLOOKUP($C80,'RECAP SECT'!$G$6:$FZ$85,161,FALSE) -> 89 | J80: =VLOOKUP($C80,'RECAP SECT'!$G$6:$FZ$85,162,FALSE) -> 467 | K80: =VLOOKUP($C80,'RECAP SECT'!$G$6:$FZ$85,163,FALSE) -> 19% | L80: =VLOOKUP($C80,'RECAP SECT'!$G$6:$FZ$85,164,FALSE) -> 9 | M80: =VLOOKUP($C80,'RECAP SECT'!$G$6:$FZ$85,165,FALSE) -> 59 | N80: =VLOOKUP($C80,'RECAP SECT'!$G$6:$FZ$85,166,FALSE) -> 16% | O80: =VLOOKUP($C80,'RECAP SECT'!$G$6:$FZ$85,167,FALSE) -> 1 | P80: =VLOOKUP($C80,'RECAP SECT'!$G$6:$FZ$85,168,FALSE) -> 4 | Q80: =VLOOKUP($C80,'RECAP SECT'!$G$6:$FZ$85,169,FALSE) -> 27% | R80: =VLOOKUP($C80,'RECAP SECT'!$G$6:$FZ$85,170,FALSE) -> 20 | S80: =VLOOKUP($C80,'RECAP SECT'!$G$6:$FZ$85,171,FALSE) -> 135 | T80: =VLOOKUP($C80,'RECAP SECT'!$G$6:$FZ$85,172,FALSE) -> 15%
A81: 80 | B81: VOSGES | C81: 52 | D81: SECTEUR GERARDMER | E81: =VLOOKUP($C81,'RECAP SECT'!$G$6:$EV$312,3,FALSE) -> 22.6 | F81: =VLOOKUP($C81,'RECAP SECT'!$G$6:$FZ$85,158,FALSE) -> 138 | G81: =VLOOKUP($C81,'RECAP SECT'!$G$6:$FZ$85,159,FALSE) -> 115 | H81: =VLOOKUP($C81,'RECAP SECT'!$G$6:$FZ$85,160,FALSE) -> 120% | I81: =VLOOKUP($C81,'RECAP SECT'!$G$6:$FZ$85,161,FALSE) -> 112 | J81: =VLOOKUP($C81,'RECAP SECT'!$G$6:$FZ$85,162,FALSE) -> 467 | K81: =VLOOKUP($C81,'RECAP SECT'!$G$6:$FZ$85,163,FALSE) -> 24% | L81: =VLOOKUP($C81,'RECAP SECT'!$G$6:$FZ$85,164,FALSE) -> 10 | M81: =VLOOKUP($C81,'RECAP SECT'!$G$6:$FZ$85,165,FALSE) -> 59 | N81: =VLOOKUP($C81,'RECAP SECT'!$G$6:$FZ$85,166,FALSE) -> 17% | O81: =VLOOKUP($C81,'RECAP SECT'!$G$6:$FZ$85,167,FALSE) -> -2 | P81: =VLOOKUP($C81,'RECAP SECT'!$G$6:$FZ$85,168,FALSE) -> 4 | Q81: =VLOOKUP($C81,'RECAP SECT'!$G$6:$FZ$85,169,FALSE) -> -55% | R81: =VLOOKUP($C81,'RECAP SECT'!$G$6:$FZ$85,170,FALSE) -> 26 | S81: =VLOOKUP($C81,'RECAP SECT'!$G$6:$FZ$85,171,FALSE) -> 129 | T81: =VLOOKUP($C81,'RECAP SECT'!$G$6:$FZ$85,172,FALSE) -> 20%
A82: 80 | B82: VOSGES | C82: 58 | D82: SECTEUR MIRECOURT | E82: =VLOOKUP($C82,'RECAP SECT'!$G$6:$EV$312,3,FALSE) -> 14.8 | F82: =VLOOKUP($C82,'RECAP SECT'!$G$6:$FZ$85,158,FALSE) -> 31 | G82: =VLOOKUP($C82,'RECAP SECT'!$G$6:$FZ$85,159,FALSE) -> 105 | H82: =VLOOKUP($C82,'RECAP SECT'!$G$6:$FZ$85,160,FALSE) -> 30% | I82: =VLOOKUP($C82,'RECAP SECT'!$G$6:$FZ$85,161,FALSE) -> 95 | J82: =VLOOKUP($C82,'RECAP SECT'!$G$6:$FZ$85,162,FALSE) -> 467 | K82: =VLOOKUP($C82,'RECAP SECT'!$G$6:$FZ$85,163,FALSE) -> 20% | L82: =VLOOKUP($C82,'RECAP SECT'!$G$6:$FZ$85,164,FALSE) -> 13 | M82: =VLOOKUP($C82,'RECAP SECT'!$G$6:$FZ$85,165,FALSE) -> 59 | N82: =VLOOKUP($C82,'RECAP SECT'!$G$6:$FZ$85,166,FALSE) -> 22% | O82: =VLOOKUP($C82,'RECAP SECT'!$G$6:$FZ$85,167,FALSE) -> 1 | P82: =VLOOKUP($C82,'RECAP SECT'!$G$6:$FZ$85,168,FALSE) -> 4 | Q82: =VLOOKUP($C82,'RECAP SECT'!$G$6:$FZ$85,169,FALSE) -> 17% | R82: =VLOOKUP($C82,'RECAP SECT'!$G$6:$FZ$85,170,FALSE) -> 23 | S82: =VLOOKUP($C82,'RECAP SECT'!$G$6:$FZ$85,171,FALSE) -> 124 | T82: =VLOOKUP($C82,'RECAP SECT'!$G$6:$FZ$85,172,FALSE) -> 18%
A83: 80 | B83: VOSGES | C83: 54 | D83: SECTEUR RAON L ETAPE | E83: =VLOOKUP($C83,'RECAP SECT'!$G$6:$EV$312,3,FALSE) -> 15.2 | F83: =VLOOKUP($C83,'RECAP SECT'!$G$6:$FZ$85,158,FALSE) -> 87 | G83: =VLOOKUP($C83,'RECAP SECT'!$G$6:$FZ$85,159,FALSE) -> 95 | H83: =VLOOKUP($C83,'RECAP SECT'!$G$6:$FZ$85,160,FALSE) -> 91% | I83: =VLOOKUP($C83,'RECAP SECT'!$G$6:$FZ$85,161,FALSE) -> 89 | J83: =VLOOKUP($C83,'RECAP SECT'!$G$6:$FZ$85,162,FALSE) -> 467 | K83: =VLOOKUP($C83,'RECAP SECT'!$G$6:$FZ$85,163,FALSE) -> 19% | L83: =VLOOKUP($C83,'RECAP SECT'!$G$6:$FZ$85,164,FALSE) -> 10 | M83: =VLOOKUP($C83,'RECAP SECT'!$G$6:$FZ$85,165,FALSE) -> 58 | N83: =VLOOKUP($C83,'RECAP SECT'!$G$6:$FZ$85,166,FALSE) -> 16% | O83: =VLOOKUP($C83,'RECAP SECT'!$G$6:$FZ$85,167,FALSE) -> -0 | P83: =VLOOKUP($C83,'RECAP SECT'!$G$6:$FZ$85,168,FALSE) -> 4 | Q83: =VLOOKUP($C83,'RECAP SECT'!$G$6:$FZ$85,169,FALSE) -> -12% | R83: =VLOOKUP($C83,'RECAP SECT'!$G$6:$FZ$85,170,FALSE) -> 20 | S83: =VLOOKUP($C83,'RECAP SECT'!$G$6:$FZ$85,171,FALSE) -> 120 | T83: =VLOOKUP($C83,'RECAP SECT'!$G$6:$FZ$85,172,FALSE) -> 17%
A84: 80 | B84: VOSGES | C84: 56 | D84: SECTEUR REMIREMONT | E84: =VLOOKUP($C84,'RECAP SECT'!$G$6:$EV$312,3,FALSE) -> 19.9 | F84: =VLOOKUP($C84,'RECAP SECT'!$G$6:$FZ$85,158,FALSE) -> 44 | G84: =VLOOKUP($C84,'RECAP SECT'!$G$6:$FZ$85,159,FALSE) -> 107 | H84: =VLOOKUP($C84,'RECAP SECT'!$G$6:$FZ$85,160,FALSE) -> 41% | I84: =VLOOKUP($C84,'RECAP SECT'!$G$6:$FZ$85,161,FALSE) -> 63 | J84: =VLOOKUP($C84,'RECAP SECT'!$G$6:$FZ$85,162,FALSE) -> 467 | K84: =VLOOKUP($C84,'RECAP SECT'!$G$6:$FZ$85,163,FALSE) -> 13% | L84: =VLOOKUP($C84,'RECAP SECT'!$G$6:$FZ$85,164,FALSE) -> 9 | M84: =VLOOKUP($C84,'RECAP SECT'!$G$6:$FZ$85,165,FALSE) -> 59 | N84: =VLOOKUP($C84,'RECAP SECT'!$G$6:$FZ$85,166,FALSE) -> 15% | O84: =VLOOKUP($C84,'RECAP SECT'!$G$6:$FZ$85,167,FALSE) -> 0 | P84: =VLOOKUP($C84,'RECAP SECT'!$G$6:$FZ$85,168,FALSE) -> 4 | Q84: =VLOOKUP($C84,'RECAP SECT'!$G$6:$FZ$85,169,FALSE) -> 10% | R84: =VLOOKUP($C84,'RECAP SECT'!$G$6:$FZ$85,170,FALSE) -> 14 | S84: =VLOOKUP($C84,'RECAP SECT'!$G$6:$FZ$85,171,FALSE) -> 124 | T84: =VLOOKUP($C84,'RECAP SECT'!$G$6:$FZ$85,172,FALSE) -> 11%
A85: 80 | B85: VOSGES | C85: 55 | D85: SECTEUR SAINT DIE | E85: =VLOOKUP($C85,'RECAP SECT'!$G$6:$EV$312,3,FALSE) -> 22.2 | F85: =VLOOKUP($C85,'RECAP SECT'!$G$6:$FZ$85,158,FALSE) -> 79 | G85: =VLOOKUP($C85,'RECAP SECT'!$G$6:$FZ$85,159,FALSE) -> 122 | H85: =VLOOKUP($C85,'RECAP SECT'!$G$6:$FZ$85,160,FALSE) -> 65% | I85: =VLOOKUP($C85,'RECAP SECT'!$G$6:$FZ$85,161,FALSE) -> 95 | J85: =VLOOKUP($C85,'RECAP SECT'!$G$6:$FZ$85,162,FALSE) -> 467 | K85: =VLOOKUP($C85,'RECAP SECT'!$G$6:$FZ$85,163,FALSE) -> 20% | L85: =VLOOKUP($C85,'RECAP SECT'!$G$6:$FZ$85,164,FALSE) -> 11 | M85: =VLOOKUP($C85,'RECAP SECT'!$G$6:$FZ$85,165,FALSE) -> 59 | N85: =VLOOKUP($C85,'RECAP SECT'!$G$6:$FZ$85,166,FALSE) -> 19% | O85: =VLOOKUP($C85,'RECAP SECT'!$G$6:$FZ$85,167,FALSE) -> -1 | P85: =VLOOKUP($C85,'RECAP SECT'!$G$6:$FZ$85,168,FALSE) -> 4 | Q85: =VLOOKUP($C85,'RECAP SECT'!$G$6:$FZ$85,169,FALSE) -> -14% | R85: =VLOOKUP($C85,'RECAP SECT'!$G$6:$FZ$85,170,FALSE) -> 21 | S85: =VLOOKUP($C85,'RECAP SECT'!$G$6:$FZ$85,171,FALSE) -> 130 | T85: =VLOOKUP($C85,'RECAP SECT'!$G$6:$FZ$85,172,FALSE) -> 16%
A86: 80 | B86: VOSGES | C86: 53 | D86: SECTEUR VITTEL | E86: =VLOOKUP($C86,'RECAP SECT'!$G$6:$EV$312,3,FALSE) -> 13.7 | F86: =VLOOKUP($C86,'RECAP SECT'!$G$6:$FZ$85,158,FALSE) -> -50 | G86: =VLOOKUP($C86,'RECAP SECT'!$G$6:$FZ$85,159,FALSE) -> 98 | H86: =VLOOKUP($C86,'RECAP SECT'!$G$6:$FZ$85,160,FALSE) -> -51% | I86: =VLOOKUP($C86,'RECAP SECT'!$G$6:$FZ$85,161,FALSE) -> 79 | J86: =VLOOKUP($C86,'RECAP SECT'!$G$6:$FZ$85,162,FALSE) -> 467 | K86: =VLOOKUP($C86,'RECAP SECT'!$G$6:$FZ$85,163,FALSE) -> 17% | L86: =VLOOKUP($C86,'RECAP SECT'!$G$6:$FZ$85,164,FALSE) -> 9 | M86: =VLOOKUP($C86,'RECAP SECT'!$G$6:$FZ$85,165,FALSE) -> 59 | N86: =VLOOKUP($C86,'RECAP SECT'!$G$6:$FZ$85,166,FALSE) -> 16% | O86: =VLOOKUP($C86,'RECAP SECT'!$G$6:$FZ$85,167,FALSE) -> -4 | P86: =VLOOKUP($C86,'RECAP SECT'!$G$6:$FZ$85,168,FALSE) -> 4 | Q86: =VLOOKUP($C86,'RECAP SECT'!$G$6:$FZ$85,169,FALSE) -> -97% | R86: =VLOOKUP($C86,'RECAP SECT'!$G$6:$FZ$85,170,FALSE) -> 11 | S86: =VLOOKUP($C86,'RECAP SECT'!$G$6:$FZ$85,171,FALSE) -> 119 | T86: =VLOOKUP($C86,'RECAP SECT'!$G$6:$FZ$85,172,FALSE) -> 9%
A87: Total CEGEE Directions Commerciales | E87: =SUM(E10:E86) -> 1412

Sheet SE_TOTAL
A1: Accueil | F1: BAROMETRE BDD - DIRECTIONS COMMERCIALES
F2: TOTAL GENERAL
F3: =ACCUEIL!H7 -> 2019-02-28
F7: TOTAL GENERAL | I7: Total Conquête | L7: Total Equipement Bancarisation | O7: Total Epargne | R7: Total Crédits | U7: Total IARD Prévoyance | X7: Total Risques | AA7: Total Satisfaction Clients
G8: coef | H8: 100% | J8: coef | K8: ='RECAP DIRCOM'!$Y$4 -> 15% | M8: coef | N8: ='RECAP DIRCOM'!$AW$4 -> 15% | P8: coef | Q8: ='RECAP DIRCOM'!$BU$4 -> 15% | S8: coef | T8: ='RECAP DIRCOM'!$CV$4 -> 15% | V8: coef | W8: ='RECAP DIRCOM'!$DN$4 -> 20% | Y8: coef | Z8: ='RECAP DIRCOM'!$EF$4 -> 10% | AB8: coef | AC8: ='RECAP DIRCOM'!$EU$4 -> 10%
A9: eds | B9: Direction | C9: eds | D9: Secteur | E9: ETP | F9: Moyenne ecart au 1er | G9: % Ecart au 1er | H9: Rang CEGEE | I9: Moyenne ecart au 1er | J9: % Ecart au 1er | K9: Rang CEGEE | L9: Moyenne ecart au 1er | M9: % Ecart au 1er | N9: Rang CEGEE | O9: Moyenne ecart au 1er | P9: % Ecart au 1er | Q9: Rang CEGEE | R9: Moyenne ecart au 1er | S9: % Ecart au 1er | T9: Rang CEGEE | U9: Moyenne ecart au 1er | V9: % Ecart au 1er | W9: Rang CEGEE | X9: Moyenne ecart au 1er | Y9: % Ecart au 1er | Z9: Rang CEGEE | AA9: Moyenne ecart au 1er | AB9: % Ecart au 1er | AC9: Rang CEGEE
A10: 50 | B10: AUBE HAUTE MARNE | C10: 2 | D10: SECTEUR CHARLEVILLE MEZIERES | E10: 11.0 | F10: 18% | G10: 0% | H10: 1 | I10: 34% | J10: 0% | K10: 1 | L10: 45% | M10: 19% | N10: 5 | O10: 89% | P10: 63% | Q10: 74 | R10: 22% | S10: 0% | T10: 1 | U10: 30% | V10: 15% | W10: 6 | X10: 7% | Y10: 6% | Z10: 47 | AA10: 30% | AB10: 24% | AC10: 11
A11: 50 | B11: AUBE HAUTE MARNE | C11: 39 | D11: SECTEUR DIEUZE | E11: 14.8 | F11: 22% | G11: 4% | H11: 2 | I11: 74% | J11: 40% | K11: 38 | L11: 36% | M11: 11% | N11: 2 | O11: 64% | P11: 38% | Q11: 21 | R11: 43% | S11: 21% | T11: 44 | U11: 28% | V11: 13% | W11: 5 | X11: 5% | Y11: 4% | Z11: 34 | AA11: 35% | AB11: 29% | AC11: 17
A12: 50 | B12: AUBE HAUTE MARNE | C12: 12 | D12: SECTEUR TINQUEUX | E12: 12.2 | F12: 22% | G12: 4% | H12: 3 | I12: 60% | J12: 25% | K12: 9 | L12: 76% | M12: 51% | N12: 47 | O12: 46% | P12: 20% | Q12: 6 | R12: 37% | S12: 15% | T12: 22 | U12: 37% | V12: 22% | W12: 11 | X12: 7% | Y12: 6% | Z12: 44 | AA12: 11% | AB12: 5% | AC12: 2
A13: 50 | B13: AUBE HAUTE MARNE | C13: 36 | D13: SECTEUR VILLERS GENERAL LECLERC | E13: 26.5 | F13: 24% | G13: 6% | H13: 4 | I13: 49% | J13: 15% | K13: 4 | L13: 81% | M13: 56% | N13: 56 | O13: 55% | P13: 29% | Q13: 10 | R13: 36% | S13: 14% | T13: 18 | U13: 24% | V13: 9% | W13: 4 | X13: 17% | Y13: 16% | Z13: 63 | AA13: 44% | AB13: 38% | AC13: 37
A14: 50 | B14: AUBE HAUTE MARNE | C14: 46 | D14: SECTEUR METZ SAINT LOUIS | E14: 30.9 | F14: 24% | G14: 6% | H14: 5 | I14: 72% | J14: 37% | K14: 34 | L14: 56% | M14: 31% | N14: 10 | O14: 26% | P14: 0% | Q14: 1 | R14: 44% | S14: 22% | T14: 47 | U14: 49% | V14: 34% | W14: 23 | X14: 11% | Y14: 10% | Z14: 57 | AA14: 37% | AB14: 31% | AC14: 21
A15: 50 | B15: AUBE HAUTE MARNE | C15: 9 | D15: SECTEUR REIMS HOTEL DE VILLE | E15: 22.4 | F15: 25% | G15: 6% | H15: 6 | I15: 74% | J15: 39% | K15: 37 | L15: 67% | M15: 42% | N15: 27 | O15: 42% | P15: 16% | Q15: 5 | R15: 30% | S15: 8% | T15: 8 | U15: 52% | V15: 37% | W15: 33 | X15: 8% | Y15: 7% | Z15: 48 | AA15: 14% | AB15: 8% | AC15: 4
A16: 50 | B16: AUBE HAUTE MARNE | C16: 40 | D16: SECTEUR SAINT AVOLD | E16: 19.1 | F16: 25% | G16: 7% | H16: 7 | I16: 71% | J16: 37% | K16: 32 | L16: 25% | M16: 0% | N16: 1 | O16: 65% | P16: 39% | Q16: 24 | R16: 23% | S16: 1% | T16: 3 | U16: 67% | V16: 52% | W16: 63 | X16: 3% | Y16: 2% | Z16: 13 | AA16: 37% | AB16: 31% | AC16: 22
A17: 50 | B17: AUBE HAUTE MARNE | C17: 55 | D17: SECTEUR SAINT DIE | E17: 22.2 | F17: 26% | G17: 7% | H17: 8 | I17: 62% | J17: 27% | K17: 15 | L17: 69% | M17: 43% | N17: 28 | O17: 50% | P17: 24% | Q17: 8 | R17: 42% | S17: 20% | T17: 37 | U17: 40% | V17: 25% | W17: 12 | X17: 4% | Y17: 3% | Z17: 23 | AA17: 39% | AB17: 33% | AC17: 26
A18: 50 | B18: AUBE HAUTE MARNE | C18: 44 | D18: SECTEUR HAGONDANGE | E18: 22.3 | F18: 26% | G18: 7% | H18: 9 | I18: 69% | J18: 35% | K18: 29 | L18: 41% | M18: 16% | N18: 3 | O18: 77% | P18: 51% | Q18: 50 | R18: 43% | S18: 21% | T18: 46 | U18: 32% | V18: 17% | W18: 8 | X18: 1% | Y18: 0% | Z18: 1 | AA18: 46% | AB18: 41% | AC18: 42
A19: 50 | B19: AUBE HAUTE MARNE | C19: 6 | D19: SECTEUR CHALONS VIVIERS | E19: 25.7 | F19: 26% | G19: 8% | H19: 10 | I19: 81% | J19: 47% | K19: 49 | L19: 50% | M19: 25% | N19: 8 | O19: 41% | P19: 15% | Q19: 4 | R19: 30% | S19: 8% | T19: 7 | U19: 51% | V19: 36% | W19: 29 | X19: 4% | Y19: 3% | Z19: 28 | AA19: 53% | AB19: 47% | AC19: 55
A20: 262 | B20: BAS-RHIN | C20: 5087 | D20: SECTEUR SAVERNE | E20: 15.5 | F20: 27% | G20: 8% | H20: 11 | I20: 83% | J20: 48% | K20: 53 | L20: 74% | M20: 48% | N20: 39 | O20: 39% | P20: 13% | Q20: 3 | R20: 36% | S20: 14% | T20: 20 | U20: 32% | V20: 17% | W20: 7 | X20: 18% | Y20: 17% | Z20: 64 | AA20: 38% | AB20: 32% | AC20: 24
A21: 262 | B21: BAS-RHIN | C21: 52 | D21: SECTEUR GERARDMER | E21: 22.6 | F21: 28% | G21: 9% | H21: 12 | I21: 90% | J21: 55% | K21: 62 | L21: 64% | M21: 39% | N21: 18 | O21: 57% | P21: 31% | Q21: 11 | R21: 23% | S21: 1% | T21: 2 | U21: 48% | V21: 33% | W21: 20 | X21: 3% | Y21: 2% | Z21: 14 | AA21: 26% | AB21: 20% | AC21: 7
A22: 262 | B22: BAS-RHIN | C22: 20 | D22: SECTEUR BAR SUR AUBE | E22: 12.8 | F22: 29% | G22: 10% | H22: 13 | I22: 70% | J22: 36% | K22: 31 | L22: 66% | M22: 41% | N22: 23 | O22: 76% | P22: 51% | Q22: 47 | R22: 23% | S22: 1% | T22: 4 | U22: 42% | V22: 27% | W22: 14 | X22: 6% | Y22: 5% | Z22: 37 | AA22: 41% | AB22: 35% | AC22: 31
A23: 262 | B23: BAS-RHIN | C23: 13 | D23: SECTEUR EPERNAY | E23: 25.0 | F23: 29% | G23: 11% | H23: 14 | I23: 81% | J23: 46% | K23: 47 | L23: 66% | M23: 41% | N23: 22 | O23: 75% | P23: 49% | Q23: 42 | R23: 34% | S23: 12% | T23: 15 | U23: 46% | V23: 31% | W23: 17 | X23: 5% | Y23: 4% | Z23: 31 | AA23: 11% | AB23: 6% | AC23: 3
A24: 262 | B24: BAS-RHIN | C24: 58 | D24: SECTEUR MIRECOURT | E24: 14.8 | F24: 29% | G24: 11% | H24: 15 | I24: 80% | J24: 46% | K24: 45 | L24: 65% | M24: 39% | N24: 19 | O24: 69% | P24: 43% | Q24: 29 | R24: 44% | S24: 22% | T24: 49 | U24: 18% | V24: 3% | W24: 2 | X24: 3% | Y24: 2% | Z24: 15 | AA24: 67% | AB24: 61% | AC24: 70
A25: 262 | B25: BAS-RHIN | C25: 54 | D25: SECTEUR RAON L ETAPE | E25: 15.2 | F25: 29% | G25: 11% | H25: 16 | I25: 52% | J25: 18% | K25: 6 | L25: 82% | M25: 57% | N25: 59 | O25: 66% | P25: 40% | Q25: 26 | R25: 38% | S25: 16% | T25: 23 | U25: 52% | V25: 37% | W25: 34 | X25: 3% | Y25: 2% | Z25: 12 | AA25: 29% | AB25: 23% | AC25: 9
A26: 262 | B26: BAS-RHIN | C26: 4 | D26: SECTEUR RETHEL | E26: 10.9 | F26: 30% | G26: 11% | H26: 17 | I26: 90% | J26: 56% | K26: 65 | L26: 79% | M26: 54% | N26: 52 | O26: 60% | P26: 34% | Q26: 15 | R26: 39% | S26: 17% | T26: 25 | U26: 15% | V26: 0% | W26: 1 | X26: 3% | Y26: 2% | Z26: 10 | AA26: 61% | AB26: 55% | AC26: 63
A27: 262 | B27: BAS-RHIN | C27: 26 | D27: SECTEUR NANCY PLACE DOMBASLE | E27: 36.3 | F27: 30% | G27: 11% | H27: 18 | I27: 68% | J27: 34% | K27: 26 | L27: 74% | M27: 49% | N27: 40 | O27: 50% | P27: 24% | Q27: 9 | R27: 47% | S27: 25% | T27: 63 | U27: 36% | V27: 21% | W27: 10 | X27: 23% | Y27: 22% | Z27: 71 | AA27: 42% | AB27: 36% | AC27: 33
A28: 262 | B28: BAS-RHIN | C28: 41 | D28: SECTEUR MONTIGNY LES METZ | E28: 19.5 | F28: 30% | G28: 12% | H28: 19 | I28: 72% | J28: 37% | K28: 33 | L28: 67% | M28: 42% | N28: 25 | O28: 46% | P28: 21% | Q28: 7 | R28: 46% | S28: 24% | T28: 62 | U28: 43% | V28: 28% | W28: 15 | X28: 12% | Y28: 11% | Z28: 60 | AA28: 54% | AB28: 48% | AC28: 58
A29: 262 | B29: BAS-RHIN | C29: 3 | D29: SECTEUR SEDAN | E29: 16.8 | F29: 30% | G29: 12% | H29: 20 | I29: 52% | J29: 17% | K29: 5 | L29: 85% | M29: 60% | N29: 66 | O29: 72% | P29: 46% | Q29: 37 | R29: 42% | S29: 20% | T29: 35 | U29: 41% | V29: 26% | W29: 13 | X29: 3% | Y29: 2% | Z29: 16 | AA29: 40% | AB29: 34% | AC29: 27
A30: 262 | B30: BAS-RHIN | C30: 45 | D30: SECTEUR METZ REPUBLIQUE | E30: 34.9 | F30: 30% | G30: 12% | H30: 21 | I30: 61% | J30: 26% | K30: 11 | L30: 44% | M30: 19% | N30: 4 | O30: 69% | P30: 43% | Q30: 30 | R30: 41% | S30: 19% | T30: 31 | U30: 62% | V30: 47% | W30: 54 | X30: 9% | Y30: 8% | Z30: 52 | AA30: 46% | AB30: 40% | AC30: 41
A31: 262 | B31: BAS-RHIN | C31: 5030 | D31: SECTEUR BRUMATH | E31: 21.5 | F31: 30% | G31: 12% | H31: 22 | I31: 67% | J31: 33% | K31: 24 | L31: 70% | M31: 45% | N31: 34 | O31: 75% | P31: 49% | Q31: 44 | R31: 42% | S31: 20% | T31: 40 | U31: 36% | V31: 21% | W31: 9 | X31: 7% | Y31: 6% | Z31: 43 | AA31: 41% | AB31: 36% | AC31: 32
A32: 262 | B32: BAS-RHIN | C32: 57 | D32: SECTEUR EPINAL ARISTIDE BRIAND | E32: 21.5 | F32: 30% | G32: 12% | H32: 23 | I32: 41% | J32: 7% | K32: 2 | L32: 80% | M32: 55% | N32: 54 | O32: 62% | P32: 36% | Q32: 17 | R32: 30% | S32: 8% | T32: 9 | U32: 70% | V32: 55% | W32: 69 | X32: 3% | Y32: 2% | Z32: 8 | AA32: 40% | AB32: 34% | AC32: 28
A33: 264 | B33: HAUT-RHIN | C33: 21 | D33: SECTEUR CHAUMONT HOTEL DE VILLE | E33: 15.9 | F33: 30% | G33: 12% | H33: 24 | I33: 62% | J33: 28% | K33: 16 | L33: 76% | M33: 51% | N33: 46 | O33: 69% | P33: 43% | Q33: 32 | R33: 35% | S33: 13% | T33: 17 | U33: 49% | V33: 34% | W33: 25 | X33: 3% | Y33: 2% | Z33: 9 | AA33: 36% | AB33: 31% | AC33: 20
A34: 264 | B34: HAUT-RHIN | C34: 11 | D34: SECTEUR REIMS CENTRE VILLE | E34: 20.5 | F34: 31% | G34: 13% | H34: 25 | I34: 69% | J34: 34% | K34: 28 | L34: 71% | M34: 46% | N34: 36 | O34: 57% | P34: 31% | Q34: 13 | R34: 42% | S34: 20% | T34: 41 | U34: 53% | V34: 38% | W34: 37 | X34: 7% | Y34: 6% | Z34: 46 | AA34: 37% | AB34: 31% | AC34: 23
A35: 264 | B35: HAUT-RHIN | C35: 47 | D35: SECTEUR BASSE YUTZ | E35: 15.1 | F35: 31% | G35: 13% | H35: 26 | I35: 58% | J35: 24% | K35: 8 | L35: 60% | M35: 34% | N35: 13 | O35: 61% | P35: 35% | Q35: 16 | R35: 46% | S35: 24% | T35: 61 | U35: 58% | V35: 43% | W35: 45 | X35: 9% | Y35: 8% | Z35: 51 | AA35: 48% | AB35: 42% | AC35: 46
A36: 264 | B36: HAUT-RHIN | C36: 5047 | D36: SECTEUR CRONENBOURG | E36: 22.3 | F36: 31% | G36: 13% | H36: 27 | I36: 61% | J36: 27% | K36: 14 | L36: 67% | M36: 42% | N36: 26 | O36: 77% | P36: 51% | Q36: 51 | R36: 50% | S36: 28% | T36: 70 | U36: 22% | V36: 7% | W36: 3 | X36: 30% | Y36: 29% | Z36: 73 | AA36: 55% | AB36: 50% | AC36: 59
A37: 264 | B37: HAUT-RHIN | C37: 23 | D37: SECTEUR SAINT DIZIER CENTRE | E37: 12.2 | F37: 33% | G37: 14% | H37: 28 | I37: 60% | J37: 26% | K37: 10 | L37: 62% | M37: 37% | N37: 14 | O37: 103% | P37: 77% | Q37: 77 | R37: 32% | S37: 10% | T37: 11 | U37: 50% | V37: 35% | W37: 27 | X37: 3% | Y37: 2% | Z37: 7 | AA37: 36% | AB37: 30% | AC37: 18
A38: 264 | B38: HAUT-RHIN | C38: 38 | D38: SECTEUR SARREBOURG | E38: 13.8 | F38: 33% | G38: 15% | H38: 29 | I38: 75% | J38: 40% | K38: 41 | L38: 50% | M38: 25% | N38: 9 | O38: 77% | P38: 51% | Q38: 48 | R38: 39% | S38: 17% | T38: 27 | U38: 65% | V38: 50% | W38: 59 | X38: 4% | Y38: 3% | Z38: 22 | AA38: 32% | AB38: 26% | AC38: 13
A39: 264 | B39: HAUT-RHIN | C39: 42 | D39: SECTEUR SARREGUEMINES | E39: 19.9 | F39: 33% | G39: 15% | H39: 30 | I39: 61% | J39: 26% | K39: 12 | L39: 45% | M39: 20% | N39: 6 | O39: 70% | P39: 44% | Q39: 33 | R39: 56% | S39: 34% | T39: 75 | U39: 67% | V39: 52% | W39: 62 | X39: 4% | Y39: 3% | Z39: 27 | AA39: 43% | AB39: 37% | AC39: 36
A40: 30 | B40: MARNE-ARDENNES | C40: 49 | D40: SECTEUR FLORANGE | E40: 14.8 | F40: 33% | G40: 15% | H40: 31 | I40: 67% | J40: 33% | K40: 25 | L40: 59% | M40: 34% | N40: 12 | O40: 81% | P40: 56% | Q40: 63 | R40: 31% | S40: 9% | T40: 10 | U40: 56% | V40: 41% | W40: 41 | X40: 11% | Y40: 10% | Z40: 56 | AA40: 51% | AB40: 46% | AC40: 52
A41: 30 | B41: MARNE-ARDENNES | C41: 30 | D41: SECTEUR MONTMEDY | E41: 6.7 | F41: 34% | G41: 15% | H41: 32 | I41: 75% | J41: 40% | K41: 40 | L41: 70% | M41: 45% | N41: 33 | O41: 64% | P41: 38% | Q41: 22 | R41: 41% | S41: 19% | T41: 32 | U41: 62% | V41: 47% | W41: 52 | X41: 4% | Y41: 3% | Z41: 25 | AA41: 34% | AB41: 28% | AC41: 16
A42: 30 | B42: MARNE-ARDENNES | C42: 27 | D42: SECTEUR PONT A MOUSSON CENTRALE | E42: 28.0 | F42: 34% | G42: 16% | H42: 33 | I42: 45% | J42: 11% | K42: 3 | L42: 86% | M42: 61% | N42: 69 | O42: 75% | P42: 49% | Q42: 43 | R42: 41% | S42: 18% | T42: 30 | U42: 60% | V42: 45% | W42: 49 | X42: 9% | Y42: 7% | Z42: 49 | AA42: 41% | AB42: 35% | AC42: 30
A43: 30 | B43: MARNE-ARDENNES | C43: 43 | D43: SECTEUR FORBACH CENTRALE | E43: 15.2 | F43: 34% | G43: 16% | H43: 34 | I43: 68% | J43: 34% | K43: 27 | L43: 48% | M43: 23% | N43: 7 | O43: 72% | P43: 47% | Q43: 38 | R43: 46% | S43: 24% | T43: 59 | U43: 70% | V43: 55% | W43: 68 | X43: 3% | Y43: 2% | Z43: 17 | AA43: 44% | AB43: 39% | AC43: 39
A44: 30 | B44: MARNE-ARDENNES | C44: 5 | D44: SECTEUR REVIN | E44: 12.3 | F44: 34% | G44: 16% | H44: 35 | I44: 81% | J44: 47% | K44: 48 | L44: 63% | M44: 38% | N44: 16 | O44: 99% | P44: 74% | Q44: 76 | R44: 43% | S44: 21% | T44: 43 | U44: 51% | V44: 36% | W44: 31 | X44: 3% | Y44: 2% | Z44: 11 | AA44: 6% | AB44: 0% | AC44: 1
A45: 30 | B45: MARNE-ARDENNES | C45: 48 | D45: SECTEUR THIONVILLE CENTRALE | E45: 14.3 | F45: 35% | G45: 17% | H45: 36 | I45: 67% | J45: 33% | K45: 23 | L45: 57% | M45: 32% | N45: 11 | O45: 63% | P45: 37% | Q45: 19 | R45: 44% | S45: 22% | T45: 51 | U45: 56% | V45: 41% | W45: 40 | X45: 5% | Y45: 4% | Z45: 33 | AA45: 87% | AB45: 81% | AC45: 77
A46: 30 | B46: MARNE-ARDENNES | C46: 10 | D46: SECTEUR REIMS SAINT THOMAS | E46: 12.7 | F46: 35% | G46: 17% | H46: 37 | I46: 83% | J46: 48% | K46: 52 | L46: 87% | M46: 62% | N46: 70 | O46: 65% | P46: 39% | Q46: 23 | R46: 27% | S46: 5% | T46: 5 | U46: 51% | V46: 36% | W46: 28 | X46: 4% | Y46: 3% | Z46: 24 | AA46: 51% | AB46: 45% | AC46: 50
A47: 30 | B47: MARNE-ARDENNES | C47: 56 | D47: SECTEUR REMIREMONT | E47: 19.9 | F47: 36% | G47: 18% | H47: 38 | I47: 64% | J47: 29% | K47: 19 | L47: 75% | M47: 50% | N47: 42 | O47: 69% | P47: 43% | Q47: 31 | R47: 46% | S47: 24% | T47: 60 | U47: 64% | V47: 49% | W47: 55 | X47: 2% | Y47: 1% | Z47: 2 | AA47: 47% | AB47: 41% | AC47: 43
A48: 30 | B48: MARNE-ARDENNES | C48: 5071 | D48: SECTEUR WISSEMBOURG | E48: 15.1 | F48: 36% | G48: 18% | H48: 39 | I48: 63% | J48: 29% | K48: 18 | L48: 66% | M48: 40% | N48: 21 | O48: 81% | P48: 55% | Q48: 61 | R48: 44% | S48: 22% | T48: 48 | U48: 48% | V48: 33% | W48: 22 | X48: 38% | Y48: 37% | Z48: 75 | AA48: 43% | AB48: 37% | AC48: 34
A49: 30 | B49: MARNE-ARDENNES | C49: 5116 | D49: SECTEUR MOLSHEIM | E49: 20.6 | F49: 36% | G49: 18% | H49: 40 | I49: 72% | J49: 38% | K49: 35 | L49: 70% | M49: 45% | N49: 31 | O49: 70% | P49: 45% | Q49: 34 | R49: 33% | S49: 11% | T49: 14 | U49: 56% | V49: 41% | W49: 39 | X49: 16% | Y49: 15% | Z49: 62 | AA49: 63% | AB49: 57% | AC49: 66
A50: 30 | B50: MARNE-ARDENNES | C50: 19 | D50: SECTEUR LANGRES | E50: 13.5 | F50: 36% | G50: 18% | H50: 41 | I50: 74% | J50: 40% | K50: 39 | L50: 70% | M50: 44% | N50: 29 | O50: 94% | P50: 68% | Q50: 75 | R50: 49% | S50: 27% | T50: 68 | U50: 49% | V50: 34% | W50: 24 | X50: 5% | Y50: 3% | Z50: 30 | AA50: 25% | AB50: 19% | AC50: 6
A51: 30 | B51: MARNE-ARDENNES | C51: 31 | D51: SECTEUR VERDUN CENTRALE | E51: 17.6 | F51: 36% | G51: 18% | H51: 42 | I51: 84% | J51: 49% | K51: 55 | L51: 89% | M51: 64% | N51: 73 | O51: 37% | P51: 12% | Q51: 2 | R51: 42% | S51: 19% | T51: 34 | U51: 68% | V51: 53% | W51: 64 | X51: 16% | Y51: 15% | Z51: 61 | AA51: 30% | AB51: 24% | AC51: 12
A52: 30 | B52: MARNE-ARDENNES | C52: 5085 | D52: SECTEUR INGWILLER | E52: 20.0 | F52: 36% | G52: 18% | H52: 43 | I52: 94% | J52: 59% | K52: 69 | L52: 64% | M52: 39% | N52: 17 | O52: 73% | P52: 47% | Q52: 39 | R52: 40% | S52: 18% | T52: 28 | U52: 47% | V52: 32% | W52: 19 | X52: 34% | Y52: 33% | Z52: 74 | AA52: 27% | AB52: 21% | AC52: 8
A53: 110 | B53: MEURTHE ET MOSELLE MEUSE | C53: 5147 | D53: SECTEUR GUEBWILLER | E53: 16.9 | F53: 36% | G53: 18% | H53: 44 | I53: 56% | J53: 21% | K53: 7 | L53: 78% | M53: 53% | N53: 51 | O53: 78% | P53: 52% | Q53: 52 | R53: 45% | S53: 23% | T53: 56 | U53: 49% | V53: 34% | W53: 26 | X53: 12% | Y53: 11% | Z53: 59 | AA53: 65% | AB53: 59% | AC53: 67
A54: 110 | B54: MEURTHE ET MOSELLE MEUSE | C54: 1 | D54: SECTEUR CHARLEVILLE JEAN JAURES | E54: 13.6 | F54: 37% | G54: 18% | H54: 45 | I54: 77% | J54: 42% | K54: 43 | L54: 70% | M54: 45% | N54: 30 | O54: 79% | P54: 53% | Q54: 56 | R54: 36% | S54: 14% | T54: 19 | U54: 56% | V54: 41% | W54: 42 | X54: 7% | Y54: 6% | Z54: 45 | AA54: 53% | AB54: 47% | AC54: 57
A55: 110 | B55: MEURTHE ET MOSELLE MEUSE | C55: 5143 | D55: SECTEUR MUNSTER | E55: 33.5 | F55: 37% | G55: 19% | H55: 46 | I55: 90% | J55: 55% | K55: 63 | L55: 70% | M55: 45% | N55: 35 | O55: 57% | P55: 31% | Q55: 12 | R55: 51% | S55: 29% | T55: 72 | U55: 57% | V55: 42% | W55: 43 | X55: 4% | Y55: 3% | Z55: 20 | AA55: 51% | AB55: 45% | AC55: 51
A56: 110 | B56: MEURTHE ET MOSELLE MEUSE | C56: 8 | D56: SECTEUR SEZANNE | E56: 12.8 | F56: 37% | G56: 19% | H56: 47 | I56: 70% | J56: 36% | K56: 30 | L56: 70% | M56: 45% | N56: 32 | O56: 86% | P56: 60% | Q56: 70 | R56: 37% | S56: 14% | T56: 21 | U56: 65% | V56: 50% | W56: 58 | X56: 10% | Y56: 9% | Z56: 54 | AA56: 39% | AB56: 33% | AC56: 25
A57: 110 | B57: MEURTHE ET MOSELLE MEUSE | C57: 24 | D57: SECTEUR LUNEVILLE CARNOT | E57: 20.6 | F57: 38% | G57: 19% | H57: 48 | I57: 61% | J57: 27% | K57: 13 | L57: 85% | M57: 59% | N57: 65 | O57: 80% | P57: 54% | Q57: 59 | R57: 42% | S57: 20% | T57: 39 | U57: 47% | V57: 32% | W57: 18 | X57: 19% | Y57: 18% | Z57: 65 | AA57: 62% | AB57: 56% | AC57: 65
A58: 110 | B58: MEURTHE ET MOSELLE MEUSE | C58: 29 | D58: SECTEUR LONGWY HAUT | E58: 17.0 | F58: 38% | G58: 19% | H58: 49 | I58: 63% | J58: 28% | K58: 17 | L58: 89% | M58: 63% | N58: 72 | O58: 80% | P58: 54% | Q58: 58 | R58: 29% | S58: 7% | T58: 6 | U58: 65% | V58: 50% | W58: 57 | X58: 20% | Y58: 19% | Z58: 67 | AA58: 36% | AB58: 30% | AC58: 19
A59: 110 | B59: MEURTHE ET MOSELLE MEUSE | C59: 5130 | D59: SECTEUR COLMAR | E59: 32.0 | F59: 38% | G59: 19% | H59: 50 | I59: 81% | J59: 47% | K59: 50 | L59: 65% | M59: 40% | N59: 20 | O59: 72% | P59: 46% | Q59: 36 | R59: 49% | S59: 27% | T59: 67 | U59: 60% | V59: 45% | W59: 48 | X59: 7% | Y59: 6% | Z59: 42 | AA59: 49% | AB59: 43% | AC59: 48
A60: 110 | B60: MEURTHE ET MOSELLE MEUSE | C60: 50 | D60: SECTEUR HAYANGE | E60: 17.3 | F60: 38% | G60: 20% | H60: 51 | I60: 64% | J60: 29% | K60: 20 | L60: 76% | M60: 51% | N60: 44 | O60: 80% | P60: 54% | Q60: 60 | R60: 44% | S60: 22% | T60: 52 | U60: 60% | V60: 45% | W60: 47 | X60: 5% | Y60: 4% | Z60: 35 | AA60: 59% | AB60: 53% | AC60: 62
A61: 110 | B61: MEURTHE ET MOSELLE MEUSE | C61: 35 | D61: SECTEUR VANDOEUVRE LES NANCY | E61: 23.3 | F61: 39% | G61: 20% | H61: 52 | I61: 64% | J61: 30% | K61: 21 | L61: 83% | M61: 58% | N61: 62 | O61: 77% | P61: 51% | Q61: 49 | R61: 46% | S61: 24% | T61: 57 | U61: 53% | V61: 38% | W61: 36 | X61: 23% | Y61: 22% | Z61: 70 | AA61: 51% | AB61: 45% | AC61: 49
A62: 110 | B62: MEURTHE ET MOSELLE MEUSE | C62: 18 | D62: SECTEUR ROMILLY SUR SEINE | E62: 17.2 | F62: 39% | G62: 20% | H62: 53 | I62: 83% | J62: 48% | K62: 54 | L62: 67% | M62: 42% | N62: 24 | O62: 89% | P62: 63% | Q62: 72 | R62: 34% | S62: 12% | T62: 16 | U62: 61% | V62: 46% | W62: 50 | X62: 4% | Y62: 3% | Z62: 19 | AA62: 52% | AB62: 46% | AC62: 53
A63: 110 | B63: MEURTHE ET MOSELLE MEUSE | C63: 32 | D63: SECTEUR BAR LE DUC | E63: 17.6 | F63: 39% | G63: 20% | H63: 54 | I63: 78% | J63: 43% | K63: 44 | L63: 75% | M63: 50% | N63: 43 | O63: 73% | P63: 47% | Q63: 40 | R63: 44% | S63: 22% | T63: 50 | U63: 77% | V63: 62% | W63: 73 | X63: 6% | Y63: 5% | Z63: 39 | AA63: 22% | AB63: 16% | AC63: 5
A64: 110 | B64: MEURTHE ET MOSELLE MEUSE | C64: 22 | D64: SECTEUR JOINVILLE | E64: 6.5 | F64: 39% | G64: 21% | H64: 55 | I64: 94% | J64: 60% | K64: 70 | L64: 80% | M64: 55% | N64: 55 | O64: 73% | P64: 48% | Q64: 41 | R64: 55% | S64: 33% | T64: 74 | U64: 51% | V64: 36% | W64: 32 | X64: 4% | Y64: 3% | Z64: 21 | AA64: 32% | AB64: 26% | AC64: 14
A65: 160 | B65: MOSELLE | C65: 51 | D65: SECTEUR ROMBAS | E65: 21.3 | F65: 40% | G65: 22% | H65: 56 | I65: 121% | J65: 87% | K65: 76 | L65: 62% | M65: 37% | N65: 15 | O65: 80% | P65: 54% | Q65: 57 | R65: 42% | S65: 20% | T65: 36 | U65: 53% | V65: 38% | W65: 35 | X65: 3% | Y65: 2% | Z65: 18 | AA65: 33% | AB65: 27% | AC65: 15
A66: 160 | B66: MOSELLE | C66: 14 | D66: SECTEUR TROYES GAMBETTA | E66: 20.9 | F66: 40% | G66: 22% | H66: 57 | I66: 82% | J66: 47% | K66: 51 | L66: 84% | M66: 59% | N66: 64 | O66: 79% | P66: 53% | Q66: 53 | R66: 33% | S66: 11% | T66: 13 | U66: 66% | V66: 51% | W66: 60 | X66: 6% | Y66: 5% | Z66: 41 | AA66: 48% | AB66: 42% | AC66: 45
A67: 160 | B67: MOSELLE | C67: 15 | D67: SECTEUR TROYES ZOLA | E67: 8.6 | F67: 40% | G67: 22% | H67: 58 | I67: 101% | J67: 67% | K67: 73 | L67: 86% | M67: 61% | N67: 68 | O67: 69% | P67: 43% | Q67: 28 | R67: 42% | S67: 20% | T67: 42 | U67: 54% | V67: 39% | W67: 38 | X67: 2% | Y67: 1% | Z67: 5 | AA67: 45% | AB67: 39% | AC67: 40
A68: 160 | B68: MOSELLE | C68: 17 | D68: SECTEUR SAINT JULIEN LES VILLAS | E68: 16.9 | F68: 41% | G68: 22% | H68: 59 | I68: 81% | J68: 46% | K68: 46 | L68: 72% | M68: 46% | N68: 37 | O68: 86% | P68: 60% | Q68: 69 | R68: 41% | S68: 19% | T68: 33 | U68: 69% | V68: 54% | W68: 66 | X68: 5% | Y68: 4% | Z68: 32 | AA68: 43% | AB68: 37% | AC68: 35
A69: 160 | B69: MOSELLE | C69: 5007 | D69: SECTEUR ILLKIRCH | E69: 18.4 | F69: 41% | G69: 23% | H69: 60 | I69: 90% | J69: 56% | K69: 66 | L69: 76% | M69: 51% | N69: 45 | O69: 57% | P69: 32% | Q69: 14 | R69: 45% | S69: 23% | T69: 55 | U69: 48% | V69: 33% | W69: 21 | X69: 42% | Y69: 41% | Z69: 77 | AA69: 67% | AB69: 61% | AC69: 71
A70: 160 | B70: MOSELLE | C70: 37 | D70: SECTEUR MERLEBACH | E70: 7.4 | F70: 42% | G70: 23% | H70: 61 | I70: 97% | J70: 62% | K70: 71 | L70: 84% | M70: 59% | N70: 63 | O70: 82% | P70: 56% | Q70: 64 | R70: 68% | S70: 46% | T70: 77 | U70: 45% | V70: 30% | W70: 16 | X70: 3% | Y70: 2% | Z70: 6 | AA70: 29% | AB70: 23% | AC70: 10
A71: 160 | B71: MOSELLE | C71: 5020 | D71: SECTEUR ROBERTSAU | E71: 19.0 | F71: 42% | G71: 24% | H71: 62 | I71: 86% | J71: 51% | K71: 56 | L71: 78% | M71: 53% | N71: 49 | O71: 63% | P71: 37% | Q71: 20 | R71: 38% | S71: 16% | T71: 24 | U71: 79% | V71: 64% | W71: 74 | X71: 12% | Y71: 11% | Z71: 58 | AA71: 53% | AB71: 47% | AC71: 56
A72: 160 | B72: MOSELLE | C72: 5184 | D72: SECTEUR ILLZACH | E72: 18.8 | F72: 42% | G72: 24% | H72: 63 | I72: 103% | J72: 69% | K72: 74 | L72: 88% | M72: 63% | N72: 71 | O72: 62% | P72: 36% | Q72: 18 | R72: 43% | S72: 21% | T72: 45 | U72: 62% | V72: 47% | W72: 53 | X72: 4% | Y72: 3% | Z72: 29 | AA72: 49% | AB72: 43% | AC72: 47
A73: 160 | B73: MOSELLE | C73: 5169 | D73: SECTEUR ROOSEVELT | E73: 20.4 | F73: 43% | G73: 25% | H73: 64 | I73: 93% | J73: 59% | K73: 68 | L73: 91% | M73: 66% | N73: 76 | O73: 81% | P73: 55% | Q73: 62 | R73: 39% | S73: 17% | T73: 26 | U73: 51% | V73: 36% | W73: 30 | X73: 6% | Y73: 5% | Z73: 36 | AA73: 65% | AB73: 59% | AC73: 68
A74: 160 | B74: MOSELLE | C74: 7 | D74: SECTEUR VITRY LE FRANCOIS | E74: 10.9 | F74: 43% | G74: 25% | H74: 65 | I74: 76% | J74: 42% | K74: 42 | L74: 81% | M74: 56% | N74: 57 | O74: 79% | P74: 53% | Q74: 55 | R74: 44% | S74: 22% | T74: 54 | U74: 79% | V74: 64% | W74: 76 | X74: 6% | Y74: 5% | Z74: 38 | AA74: 44% | AB74: 38% | AC74: 38
A75: 160 | B75: MOSELLE | C75: 34 | D75: SECTEUR TOUL | E75: 22.7 | F75: 43% | G75: 25% | H75: 66 | I75: 73% | J75: 39% | K75: 36 | L75: 89% | M75: 64% | N75: 74 | O75: 76% | P75: 51% | Q75: 45 | R75: 48% | S75: 26% | T75: 65 | U75: 67% | V75: 52% | W75: 61 | X75: 20% | Y75: 19% | Z75: 68 | AA75: 47% | AB75: 41% | AC75: 44
A76: 160 | B76: MOSELLE | C76: 5178 | D76: SECTEUR SAINT LOUIS | E76: 16.2 | F76: 43% | G76: 25% | H76: 67 | I76: 92% | J76: 58% | K76: 67 | L76: 86% | M76: 61% | N76: 67 | O76: 65% | P76: 40% | Q76: 25 | R76: 49% | S76: 27% | T76: 69 | U76: 57% | V76: 42% | W76: 44 | X76: 6% | Y76: 5% | Z76: 40 | AA76: 70% | AB76: 64% | AC76: 73
A77: 160 | B77: MOSELLE | C77: 5194 | D77: SECTEUR THANN | E77: 24.2 | F77: 44% | G77: 25% | H77: 68 | I77: 89% | J77: 55% | K77: 60 | L77: 82% | M77: 57% | N77: 61 | O77: 79% | P77: 53% | Q77: 54 | R77: 42% | S77: 20% | T77: 38 | U77: 73% | V77: 58% | W77: 70 | X77: 10% | Y77: 9% | Z77: 55 | AA77: 41% | AB77: 35% | AC77: 29
A78: 160 | B78: MOSELLE | C78: 28 | D78: SECTEUR JARNY | E78: 14.7 | F78: 44% | G78: 26% | H78: 69 | I78: 86% | J78: 52% | K78: 58 | L78: 89% | M78: 64% | N78: 75 | O78: 76% | P78: 51% | Q78: 46 | R78: 33% | S78: 11% | T78: 12 | U78: 62% | V78: 47% | W78: 51 | X78: 27% | Y78: 26% | Z78: 72 | AA78: 61% | AB78: 55% | AC78: 64
A79: 160 | B79: MOSELLE | C79: 5060 | D79: SECTEUR HAGUENAU | E79: 23.4 | F79: 44% | G79: 26% | H79: 70 | I79: 89% | J79: 55% | K79: 61 | L79: 82% | M79: 57% | N79: 60 | O79: 85% | P79: 59% | Q79: 68 | R79: 51% | S79: 29% | T79: 71 | U79: 59% | V79: 44% | W79: 46 | X79: 9% | Y79: 8% | Z79: 50 | AA79: 52% | AB79: 47% | AC79: 54
A80: 80 | B80: VOSGES | C80: 16 | D80: SECTEUR SAINTE SAVINE | E80: 7.5 | F80: 44% | G80: 26% | H80: 71 | I80: 66% | J80: 32% | K80: 22 | L80: 80% | M80: 55% | N80: 53 | O80: 89% | P80: 63% | Q80: 73 | R80: 47% | S80: 25% | T80: 64 | U80: 79% | V80: 64% | W80: 75 | X80: 2% | Y80: 1% | Z80: 3 | AA80: 57% | AB80: 51% | AC80: 60
A81: 80 | B81: VOSGES | C81: 5101 | D81: SECTEUR SELESTAT | E81: 18.4 | F81: 45% | G81: 26% | H81: 72 | I81: 90% | J81: 56% | K81: 64 | L81: 77% | M81: 52% | N81: 48 | O81: 84% | P81: 58% | Q81: 66 | R81: 40% | S81: 18% | T81: 29 | U81: 73% | V81: 58% | W81: 71 | X81: 4% | Y81: 3% | Z81: 26 | AA81: 58% | AB81: 52% | AC81: 61
A82: 80 | B82: VOSGES | C82: 53 | D82: SECTEUR VITTEL | E82: 13.7 | F82: 48% | G82: 29% | H82: 73 | I82: 104% | J82: 70% | K82: 75 | L82: 78% | M82: 53% | N82: 50 | O82: 82% | P82: 56% | Q82: 65 | R82: 46% | S82: 24% | T82: 58 | U82: 68% | V82: 53% | W82: 65 | X82: 9% | Y82: 8% | Z82: 53 | AA82: 66% | AB82: 60% | AC82: 69
A83: 80 | B83: VOSGES | C83: 33 | D83: SECTEUR COMMERCY | E83: 9.5 | F83: 48% | G83: 30% | H83: 74 | I83: 86% | J83: 52% | K83: 59 | L83: 103% | M83: 78% | N83: 77 | O83: 68% | P83: 42% | Q83: 27 | R83: 49% | S83: 27% | T83: 66 | U83: 74% | V83: 59% | W83: 72 | X83: 2% | Y83: 1% | Z83: 4 | AA83: 68% | AB83: 62% | AC83: 72
A84: 80 | B84: VOSGES | C84: 5043 | D84: SECTEUR HALLES | E84: 24.6 | F84: 50% | G84: 32% | H84: 75 | I84: 86% | J84: 52% | K84: 57 | L84: 73% | M84: 47% | N84: 38 | O84: 71% | P84: 45% | Q84: 35 | R84: 59% | S84: 37% | T84: 76 | U84: 69% | V84: 54% | W84: 67 | X84: 41% | Y84: 40% | Z84: 76 | AA84: 86% | AB84: 80% | AC84: 76
A85: 80 | B85: VOSGES | C85: 5119 | D85: SECTEUR OBERNAI | E85: 18.6 | F85: 52% | G85: 33% | H85: 76 | I85: 122% | J85: 87% | K85: 77 | L85: 75% | M85: 50% | N85: 41 | O85: 84% | P85: 58% | Q85: 67 | R85: 44% | S85: 22% | T85: 53 | U85: 65% | V85: 50% | W85: 56 | X85: 20% | Y85: 19% | Z85: 66 | AA85: 79% | AB85: 73% | AC85: 75
A86: 80 | B86: VOSGES | C86: 5006 | D86: SECTEUR NEUDORF | E86: 22.3 | F86: 57% | G86: 39% | H86: 77 | I86: 98% | J86: 64% | K86: 72 | L86: 82% | M86: 57% | N86: 58 | O86: 87% | P86: 61% | Q86: 71 | R86: 53% | S86: 31% | T86: 73 | U86: 96% | V86: 81% | W86: 77 | X86: 22% | Y86: 21% | Z86: 69 | AA86: 76% | AB86: 70% | AC86: 74
A87: Total CEGEE Directions Commerciales | E87: =SUM(E10:E86) -> 1412

Sheet SE_BANCA
A1: Accueil | F1: BAROMETRE BDD - DIRECTIONS COMMERCIALES
F2: EQUIPEMENT BANCARISATION
F3: =ACCUEIL!H7 -> 2019-02-28
F7: Ventes nettes FORFAITS avec 2 options | I7: Ventes nettes IZICARTES | L7: Ventes nettes Cartes HDG | O7: Ventes nettes CB débit différé | R7: Ventes nettes banca Pro | U7: Total Equipement Bancarisation
G8: coef | H8: ='RECAP DIRCOM'!AH4 -> 3% | J8: coef | K8: ='RECAP DIRCOM'!AK4 -> 3% | M8: coef | N8: ='RECAP DIRCOM'!AN4 -> 3% | P8: coef | Q8: ='RECAP DIRCOM'!AQ4 -> 3% | S8: coef | T8: ='RECAP DIRCOM'!AT4 -> 3% | V8: coef | W8: ='RECAP DIRCOM'!AW4 -> 15%
A9: eds | B9: Direction | C9: eds | D9: Secteur | E9: ETP | F9: Nb / ETP | G9: % Ecart au 1er | H9: Rang | I9: Nb / ETP | J9: % Ecart au 1er | K9: Rang | L9: Nb / ETP | M9: % Ecart au 1er | N9: Rang | O9: Nb / ETP | P9: % Ecart au 1er | Q9: Rang | R9: Taux réal objectif | S9: % Ecart au 1er | T9: Rang | U9: Moyenne ecart au 1er | V9: % Ecart au 1er | W9: Rang CEGEE
A10: 50 | B10: AUBE HAUTE MARNE | C10: 20 | D10: SECTEUR BAR SUR AUBE | E10: =VLOOKUP($C10,'RECAP SECT'!$G$6:$EV$312,3,FALSE) -> 12.8 | F10: =VLOOKUP($C10,'RECAP SECT'!$G$6:$EV$312,26,FALSE) -> -5.47 | G10: =VLOOKUP($C10,'RECAP SECT'!$G$6:$EV$312,27,FALSE) -> 74% | H10: =VLOOKUP($C10,'RECAP SECT'!$G$6:$EV$312,28,FALSE) -> 50 | I10: =VLOOKUP($C10,'RECAP SECT'!$G$6:$EV$312,29,FALSE) -> 2.03 | J10: =VLOOKUP($C10,'RECAP SECT'!$G$6:$EV$312,30,FALSE) -> 79% | K10: =VLOOKUP($C10,'RECAP SECT'!$G$6:$EV$312,31,FALSE) -> 34 | L10: =VLOOKUP($C10,'RECAP SECT'!$G$6:$EV$312,32,FALSE) -> 3.44 | M10: =VLOOKUP($C10,'RECAP SECT'!$G$6:$EV$312,33,FALSE) -> 61% | N10: =VLOOKUP($C10,'RECAP SECT'!$G$6:$EV$312,34,FALSE) -> 19 | O10: =VLOOKUP($C10,'RECAP SECT'!$G$6:$EV$312,35,FALSE) -> 1.48 | P10: =VLOOKUP($C10,'RECAP SECT'!$G$6:$EV$312,36,FALSE) -> 64% | Q10: =VLOOKUP($C10,'RECAP SECT'!$G$6:$EV$312,37,FALSE) -> 13 | R10: =VLOOKUP($C10,'RECAP SECT'!$G$6:$EV$312,38,FALSE) -> 19% | S10: =VLOOKUP($C10,'RECAP SECT'!$G$6:$EV$312,39,FALSE) -> 54% | T10: =VLOOKUP($C10,'RECAP SECT'!$G$6:$EV$312,40,FALSE) -> 38 | U10: =VLOOKUP($C10,'RECAP SECT'!$G$6:$EV$312,41,FALSE) -> 66% | V10: =VLOOKUP($C10,'RECAP SECT'!$G$6:$EV$312,42,FALSE) -> 41% | W10: =VLOOKUP($C10,'RECAP SECT'!$G$6:$EV$312,43,FALSE) -> 23
A11: 50 | B11: AUBE HAUTE MARNE | C11: 21 | D11: SECTEUR CHAUMONT HOTEL DE VILLE | E11: =VLOOKUP($C11,'RECAP SECT'!$G$6:$EV$312,3,FALSE) -> 15.9 | F11: =VLOOKUP($C11,'RECAP SECT'!$G$6:$EV$312,26,FALSE) -> -4.58 | G11: =VLOOKUP($C11,'RECAP SECT'!$G$6:$EV$312,27,FALSE) -> 53% | H11: =VLOOKUP($C11,'RECAP SECT'!$G$6:$EV$312,28,FALSE) -> 27 | I11: =VLOOKUP($C11,'RECAP SECT'!$G$6:$EV$312,29,FALSE) -> 3.14 | J11: =VLOOKUP($C11,'RECAP SECT'!$G$6:$EV$312,30,FALSE) -> 67% | K11: =VLOOKUP($C11,'RECAP SECT'!$G$6:$EV$312,31,FALSE) -> 19 | L11: =VLOOKUP($C11,'RECAP SECT'!$G$6:$EV$312,32,FALSE) -> 0.06 | M11: =VLOOKUP($C11,'RECAP SECT'!$G$6:$EV$312,33,FALSE) -> 99% | N11: =VLOOKUP($C11,'RECAP SECT'!$G$6:$EV$312,34,FALSE) -> 69 | O11: =VLOOKUP($C11,'RECAP SECT'!$G$6:$EV$312,35,FALSE) -> -0.75 | P11: =VLOOKUP($C11,'RECAP SECT'!$G$6:$EV$312,36,FALSE) -> 118% | Q11: =VLOOKUP($C11,'RECAP SECT'!$G$6:$EV$312,37,FALSE) -> 74 | R11: =VLOOKUP($C11,'RECAP SECT'!$G$6:$EV$312,38,FALSE) -> 33% | S11: =VLOOKUP($C11,'RECAP SECT'!$G$6:$EV$312,39,FALSE) -> 44% | T11: =VLOOKUP($C11,'RECAP SECT'!$G$6:$EV$312,40,FALSE) -> 15 | U11: =VLOOKUP($C11,'RECAP SECT'!$G$6:$EV$312,41,FALSE) -> 76% | V11: =VLOOKUP($C11,'RECAP SECT'!$G$6:$EV$312,42,FALSE) -> 51% | W11: =VLOOKUP($C11,'RECAP SECT'!$G$6:$EV$312,43,FALSE) -> 46
A12: 50 | B12: AUBE HAUTE MARNE | C12: 22 | D12: SECTEUR JOINVILLE | E12: =VLOOKUP($C12,'RECAP SECT'!$G$6:$EV$312,3,FALSE) -> 6.5 | F12: =VLOOKUP($C12,'RECAP SECT'!$G$6:$EV$312,26,FALSE) -> -4.45 | G12: =VLOOKUP($C12,'RECAP SECT'!$G$6:$EV$312,27,FALSE) -> 50% | H12: =VLOOKUP($C12,'RECAP SECT'!$G$6:$EV$312,28,FALSE) -> 24 | I12: =VLOOKUP($C12,'RECAP SECT'!$G$6:$EV$312,29,FALSE) -> 0.31 | J12: =VLOOKUP($C12,'RECAP SECT'!$G$6:$EV$312,30,FALSE) -> 97% | K12: =VLOOKUP($C12,'RECAP SECT'!$G$6:$EV$312,31,FALSE) -> 66 | L12: =VLOOKUP($C12,'RECAP SECT'!$G$6:$EV$312,32,FALSE) -> -0.31 | M12: =VLOOKUP($C12,'RECAP SECT'!$G$6:$EV$312,33,FALSE) -> 104% | N12: =VLOOKUP($C12,'RECAP SECT'!$G$6:$EV$312,34,FALSE) -> 72 | O12: =VLOOKUP($C12,'RECAP SECT'!$G$6:$EV$312,35,FALSE) -> 0.31 | P12: =VLOOKUP($C12,'RECAP SECT'!$G$6:$EV$312,36,FALSE) -> 92% | Q12: =VLOOKUP($C12,'RECAP SECT'!$G$6:$EV$312,37,FALSE) -> 39 | R12: =VLOOKUP($C12,'RECAP SECT'!$G$6:$EV$312,38,FALSE) -> 14% | S12: =VLOOKUP($C12,'RECAP SECT'!$G$6:$EV$312,39,FALSE) -> 58% | T12: =VLOOKUP($C12,'RECAP SECT'!$G$6:$EV$312,40,FALSE) -> 46 | U12: =VLOOKUP($C12,'RECAP SECT'!$G$6:$EV$312,41,FALSE) -> 80% | V12: =VLOOKUP($C12,'RECAP SECT'!$G$6:$EV$312,42,FALSE) -> 55% | W12: =VLOOKUP($C12,'RECAP SECT'!$G$6:$EV$312,43,FALSE) -> 55
A13: 50 | B13: AUBE HAUTE MARNE | C13: 19 | D13: SECTEUR LANGRES | E13: =VLOOKUP($C13,'RECAP SECT'!$G$6:$EV$312,3,FALSE) -> 13.5 | F13: =VLOOKUP($C13,'RECAP SECT'!$G$6:$EV$312,26,FALSE) -> -3.56 | G13: =VLOOKUP($C13,'RECAP SECT'!$G$6:$EV$312,27,FALSE) -> 29% | H13: =VLOOKUP($C13,'RECAP SECT'!$G$6:$EV$312,28,FALSE) -> 10 | I13: =VLOOKUP($C13,'RECAP SECT'!$G$6:$EV$312,29,FALSE) -> 1.04 | J13: =VLOOKUP($C13,'RECAP SECT'!$G$6:$EV$312,30,FALSE) -> 89% | K13: =VLOOKUP($C13,'RECAP SECT'!$G$6:$EV$312,31,FALSE) -> 48 | L13: =VLOOKUP($C13,'RECAP SECT'!$G$6:$EV$312,32,FALSE) -> 1.56 | M13: =VLOOKUP($C13,'RECAP SECT'!$G$6:$EV$312,33,FALSE) -> 82% | N13: =VLOOKUP($C13,'RECAP SECT'!$G$6:$EV$312,34,FALSE) -> 39 | O13: =VLOOKUP($C13,'RECAP SECT'!$G$6:$EV$312,35,FALSE) -> 0.59 | P13: =VLOOKUP($C13,'RECAP SECT'!$G$6:$EV$312,36,FALSE) -> 85% | Q13: =VLOOKUP($C13,'RECAP SECT'!$G$6:$EV$312,37,FALSE) -> 30 | R13: =VLOOKUP($C13,'RECAP SECT'!$G$6:$EV$312,38,FALSE) -> 8% | S13: =VLOOKUP($C13,'RECAP SECT'!$G$6:$EV$312,39,FALSE) -> 63% | T13: =VLOOKUP($C13,'RECAP SECT'!$G$6:$EV$312,40,FALSE) -> 57 | U13: =VLOOKUP($C13,'RECAP SECT'!$G$6:$EV$312,41,FALSE) -> 70% | V13: =VLOOKUP($C13,'RECAP SECT'!$G$6:$EV$312,42,FALSE) -> 44% | W13: =VLOOKUP($C13,'RECAP SECT'!$G$6:$EV$312,43,FALSE) -> 29
A14: 50 | B14: AUBE HAUTE MARNE | C14: 18 | D14: SECTEUR ROMILLY SUR SEINE | E14: =VLOOKUP($C14,'RECAP SECT'!$G$6:$EV$312,3,FALSE) -> 17.2 | F14: =VLOOKUP($C14,'RECAP SECT'!$G$6:$EV$312,26,FALSE) -> -5.35 | G14: =VLOOKUP($C14,'RECAP SECT'!$G$6:$EV$312,27,FALSE) -> 71% | H14: =VLOOKUP($C14,'RECAP SECT'!$G$6:$EV$312,28,FALSE) -> 46 | I14: =VLOOKUP($C14,'RECAP SECT'!$G$6:$EV$312,29,FALSE) -> 6.75 | J14: =VLOOKUP($C14,'RECAP SECT'!$G$6:$EV$312,30,FALSE) -> 29% | K14: =VLOOKUP($C14,'RECAP SECT'!$G$6:$EV$312,31,FALSE) -> 3 | L14: =VLOOKUP($C14,'RECAP SECT'!$G$6:$EV$312,32,FALSE) -> 3.26 | M14: =VLOOKUP($C14,'RECAP SECT'!$G$6:$EV$312,33,FALSE) -> 63% | N14: =VLOOKUP($C14,'RECAP SECT'!$G$6:$EV$312,34,FALSE) -> 22 | O14: =VLOOKUP($C14,'RECAP SECT'!$G$6:$EV$312,35,FALSE) -> -0.12 | P14: =VLOOKUP($C14,'RECAP SECT'!$G$6:$EV$312,36,FALSE) -> 103% | Q14: =VLOOKUP($C14,'RECAP SECT'!$G$6:$EV$312,37,FALSE) -> 58 | R14: =VLOOKUP($C14,'RECAP SECT'!$G$6:$EV$312,38,FALSE) -> 0% | S14: =VLOOKUP($C14,'RECAP SECT'!$G$6:$EV$312,39,FALSE) -> 68% | T14: =VLOOKUP($C14,'RECAP SECT'!$G$6:$EV$312,40,FALSE) -> 66 | U14: =VLOOKUP($C14,'RECAP SECT'!$G$6:$EV$312,41,FALSE) -> 67% | V14: =VLOOKUP($C14,'RECAP SECT'!$G$6:$EV$312,42,FALSE) -> 42% | W14: =VLOOKUP($C14,'RECAP SECT'!$G$6:$EV$312,43,FALSE) -> 24
A15: 50 | B15: AUBE HAUTE MARNE | C15: 23 | D15: SECTEUR SAINT DIZIER CENTRE | E15: =VLOOKUP($C15,'RECAP SECT'!$G$6:$EV$312,3,FALSE) -> 12.2 | F15: =VLOOKUP($C15,'RECAP SECT'!$G$6:$EV$312,26,FALSE) -> -6.21 | G15: =VLOOKUP($C15,'RECAP SECT'!$G$6:$EV$312,27,FALSE) -> 92% | H15: =VLOOKUP($C15,'RECAP SECT'!$G$6:$EV$312,28,FALSE) -> 63 | I15: =VLOOKUP($C15,'RECAP SECT'!$G$6:$EV$312,29,FALSE) -> 2.37 | J15: =VLOOKUP($C15,'RECAP SECT'!$G$6:$EV$312,30,FALSE) -> 75% | K15: =VLOOKUP($C15,'RECAP SECT'!$G$6:$EV$312,31,FALSE) -> 32 | L15: =VLOOKUP($C15,'RECAP SECT'!$G$6:$EV$312,32,FALSE) -> 5.56 | M15: =VLOOKUP($C15,'RECAP SECT'!$G$6:$EV$312,33,FALSE) -> 36% | N15: =VLOOKUP($C15,'RECAP SECT'!$G$6:$EV$312,34,FALSE) -> 12 | O15: =VLOOKUP($C15,'RECAP SECT'!$G$6:$EV$312,35,FALSE) -> 0.90 | P15: =VLOOKUP($C15,'RECAP SECT'!$G$6:$EV$312,36,FALSE) -> 78% | Q15: =VLOOKUP($C15,'RECAP SECT'!$G$6:$EV$312,37,FALSE) -> 20 | R15: =VLOOKUP($C15,'RECAP SECT'!$G$6:$EV$312,38,FALSE) -> 54% | S15: =VLOOKUP($C15,'RECAP SECT'!$G$6:$EV$312,39,FALSE) -> 28% | T15: =VLOOKUP($C15,'RECAP SECT'!$G$6:$EV$312,40,FALSE) -> 8 | U15: =VLOOKUP($C15,'RECAP SECT'!$G$6:$EV$312,41,FALSE) -> 62% | V15: =VLOOKUP($C15,'RECAP SECT'!$G$6:$EV$312,42,FALSE) -> 37% | W15: =VLOOKUP($C15,'RECAP SECT'!$G$6:$EV$312,43,FALSE) -> 14
A16: 50 | B16: AUBE HAUTE MARNE | C16: 17 | D16: SECTEUR SAINT JULIEN LES VILLAS | E16: =VLOOKUP($C16,'RECAP SECT'!$G$6:$EV$312,3,FALSE) -> 16.9 | F16: =VLOOKUP($C16,'RECAP SECT'!$G$6:$EV$312,26,FALSE) -> -5.10 | G16: =VLOOKUP($C16,'RECAP SECT'!$G$6:$EV$312,27,FALSE) -> 65% | H16: =VLOOKUP($C16,'RECAP SECT'!$G$6:$EV$312,28,FALSE) -> 37 | I16: =VLOOKUP($C16,'RECAP SECT'!$G$6:$EV$312,29,FALSE) -> 1.48 | J16: =VLOOKUP($C16,'RECAP SECT'!$G$6:$EV$312,30,FALSE) -> 84% | K16: =VLOOKUP($C16,'RECAP SECT'!$G$6:$EV$312,31,FALSE) -> 39 | L16: =VLOOKUP($C16,'RECAP SECT'!$G$6:$EV$312,32,FALSE) -> 4.50 | M16: =VLOOKUP($C16,'RECAP SECT'!$G$6:$EV$312,33,FALSE) -> 48% | N16: =VLOOKUP($C16,'RECAP SECT'!$G$6:$EV$312,34,FALSE) -> 17 | O16: =VLOOKUP($C16,'RECAP SECT'!$G$6:$EV$312,35,FALSE) -> -0.18 | P16: =VLOOKUP($C16,'RECAP SECT'!$G$6:$EV$312,36,FALSE) -> 104% | Q16: =VLOOKUP($C16,'RECAP SECT'!$G$6:$EV$312,37,FALSE) -> 60 | R16: =VLOOKUP($C16,'RECAP SECT'!$G$6:$EV$312,38,FALSE) -> 18% | S16: =VLOOKUP($C16,'RECAP SECT'!$G$6:$EV$312,39,FALSE) -> 55% | T16: =VLOOKUP($C16,'RECAP SECT'!$G$6:$EV$312,40,FALSE) -> 40 | U16: =VLOOKUP($C16,'RECAP SECT'!$G$6:$EV$312,41,FALSE) -> 72% | V16: =VLOOKUP($C16,'RECAP SECT'!$G$6:$EV$312,42,FALSE) -> 46% | W16: =VLOOKUP($C16,'RECAP SECT'!$G$6:$EV$312,43,FALSE) -> 37
A17: 50 | B17: AUBE HAUTE MARNE | C17: 16 | D17: SECTEUR SAINTE SAVINE | E17: =VLOOKUP($C17,'RECAP SECT'!$G$6:$EV$312,3,FALSE) -> 7.5 | F17: =VLOOKUP($C17,'RECAP SECT'!$G$6:$EV$312,26,FALSE) -> -4.90 | G17: =VLOOKUP($C17,'RECAP SECT'!$G$6:$EV$312,27,FALSE) -> 61% | H17: =VLOOKUP($C17,'RECAP SECT'!$G$6:$EV$312,28,FALSE) -> 34 | I17: =VLOOKUP($C17,'RECAP SECT'!$G$6:$EV$312,29,FALSE) -> 1.99 | J17: =VLOOKUP($C17,'RECAP SECT'!$G$6:$EV$312,30,FALSE) -> 79% | K17: =VLOOKUP($C17,'RECAP SECT'!$G$6:$EV$312,31,FALSE) -> 36 | L17: =VLOOKUP($C17,'RECAP SECT'!$G$6:$EV$312,32,FALSE) -> 0.00 | M17: =VLOOKUP($C17,'RECAP SECT'!$G$6:$EV$312,33,FALSE) -> 100% | N17: =VLOOKUP($C17,'RECAP SECT'!$G$6:$EV$312,34,FALSE) -> 70 | O17: =VLOOKUP($C17,'RECAP SECT'!$G$6:$EV$312,35,FALSE) -> 0.00 | P17: =VLOOKUP($C17,'RECAP SECT'!$G$6:$EV$312,36,FALSE) -> 100% | Q17: =VLOOKUP($C17,'RECAP SECT'!$G$6:$EV$312,37,FALSE) -> 51 | R17: =VLOOKUP($C17,'RECAP SECT'!$G$6:$EV$312,38,FALSE) -> 13% | S17: =VLOOKUP($C17,'RECAP SECT'!$G$6:$EV$312,39,FALSE) -> 59% | T17: =VLOOKUP($C17,'RECAP SECT'!$G$6:$EV$312,40,FALSE) -> 48 | U17: =VLOOKUP($C17,'RECAP SECT'!$G$6:$EV$312,41,FALSE) -> 80% | V17: =VLOOKUP($C17,'RECAP SECT'!$G$6:$EV$312,42,FALSE) -> 55% | W17: =VLOOKUP($C17,'RECAP SECT'!$G$6:$EV$312,43,FALSE) -> 53
A18: 50 | B18: AUBE HAUTE MARNE | C18: 14 | D18: SECTEUR TROYES GAMBETTA | E18: =VLOOKUP($C18,'RECAP SECT'!$G$6:$EV$312,3,FALSE) -> 20.9 | F18: =VLOOKUP($C18,'RECAP SECT'!$G$6:$EV$312,26,FALSE) -> -6.35 | G18: =VLOOKUP($C18,'RECAP SECT'!$G$6:$EV$312,27,FALSE) -> 95% | H18: =VLOOKUP($C18,'RECAP SECT'!$G$6:$EV$312,28,FALSE) -> 66 | I18: =VLOOKUP($C18,'RECAP SECT'!$G$6:$EV$312,29,FALSE) -> 1.48 | J18: =VLOOKUP($C18,'RECAP SECT'!$G$6:$EV$312,30,FALSE) -> 84% | K18: =VLOOKUP($C18,'RECAP SECT'!$G$6:$EV$312,31,FALSE) -> 40 | L18: =VLOOKUP($C18,'RECAP SECT'!$G$6:$EV$312,32,FALSE) -> 0.48 | M18: =VLOOKUP($C18,'RECAP SECT'!$G$6:$EV$312,33,FALSE) -> 95% | N18: =VLOOKUP($C18,'RECAP SECT'!$G$6:$EV$312,34,FALSE) -> 62 | O18: =VLOOKUP($C18,'RECAP SECT'!$G$6:$EV$312,35,FALSE) -> 0.05 | P18: =VLOOKUP($C18,'RECAP SECT'!$G$6:$EV$312,36,FALSE) -> 99% | Q18: =VLOOKUP($C18,'RECAP SECT'!$G$6:$EV$312,37,FALSE) -> 49 | R18: =VLOOKUP($C18,'RECAP SECT'!$G$6:$EV$312,38,FALSE) -> 26% | S18: =VLOOKUP($C18,'RECAP SECT'!$G$6:$EV$312,39,FALSE) -> 49% | T18: =VLOOKUP($C18,'RECAP SECT'!$G$6:$EV$312,40,FALSE) -> 23 | U18: =VLOOKUP($C18,'RECAP SECT'!$G$6:$EV$312,41,FALSE) -> 84% | V18: =VLOOKUP($C18,'RECAP SECT'!$G$6:$EV$312,42,FALSE) -> 59% | W18: =VLOOKUP($C18,'RECAP SECT'!$G$6:$EV$312,43,FALSE) -> 64
A19: 50 | B19: AUBE HAUTE MARNE | C19: 15 | D19: SECTEUR TROYES ZOLA | E19: =VLOOKUP($C19,'RECAP SECT'!$G$6:$EV$312,3,FALSE) -> 8.6 | F19: =VLOOKUP($C19,'RECAP SECT'!$G$6:$EV$312,26,FALSE) -> -7.40 | G19: =VLOOKUP($C19,'RECAP SECT'!$G$6:$EV$312,27,FALSE) -> 120% | H19: =VLOOKUP($C19,'RECAP SECT'!$G$6:$EV$312,28,FALSE) -> 73 | I19: =VLOOKUP($C19,'RECAP SECT'!$G$6:$EV$312,29,FALSE) -> 1.16 | J19: =VLOOKUP($C19,'RECAP SECT'!$G$6:$EV$312,30,FALSE) -> 88% | K19: =VLOOKUP($C19,'RECAP SECT'!$G$6:$EV$312,31,FALSE) -> 45 | L19: =VLOOKUP($C19,'RECAP SECT'!$G$6:$EV$312,32,FALSE) -> 1.85 | M19: =VLOOKUP($C19,'RECAP SECT'!$G$6:$EV$312,33,FALSE) -> 79% | N19: =VLOOKUP($C19,'RECAP SECT'!$G$6:$EV$312,34,FALSE) -> 36 | O19: =VLOOKUP($C19,'RECAP SECT'!$G$6:$EV$312,35,FALSE) -> 0.35 | P19: =VLOOKUP($C19,'RECAP SECT'!$G$6:$EV$312,36,FALSE) -> 91% | Q19: =VLOOKUP($C19,'RECAP SECT'!$G$6:$EV$312,37,FALSE) -> 37 | R19: =VLOOKUP($C19,'RECAP SECT'!$G$6:$EV$312,38,FALSE) -> 21% | S19: =VLOOKUP($C19,'RECAP SECT'!$G$6:$EV$312,39,FALSE) -> 53% | T19: =VLOOKUP($C19,'RECAP SECT'!$G$6:$EV$312,40,FALSE) -> 31 | U19: =VLOOKUP($C19,'RECAP SECT'!$G$6:$EV$312,41,FALSE) -> 86% | V19: =VLOOKUP($C19,'RECAP SECT'!$G$6:$EV$312,42,FALSE) -> 61% | W19: =VLOOKUP($C19,'RECAP SECT'!$G$6:$EV$312,43,FALSE) -> 68
A20: 262 | B20: BAS-RHIN | C20: 5030 | D20: SECTEUR BRUMATH | E20: =VLOOKUP($C20,'RECAP SECT'!$G$6:$EV$312,3,FALSE) -> 21.5 | F20: =VLOOKUP($C20,'RECAP SECT'!$G$6:$EV$312,26,FALSE) -> -3.68 | G20: =VLOOKUP($C20,'RECAP SECT'!$G$6:$EV$312,27,FALSE) -> 32% | H20: =VLOOKUP($C20,'RECAP SECT'!$G$6:$EV$312,28,FALSE) -> 11 | I20: =VLOOKUP($C20,'RECAP SECT'!$G$6:$EV$312,29,FALSE) -> 1.07 | J20: =VLOOKUP($C20,'RECAP SECT'!$G$6:$EV$312,30,FALSE) -> 89% | K20: =VLOOKUP($C20,'RECAP SECT'!$G$6:$EV$312,31,FALSE) -> 47 | L20: =VLOOKUP($C20,'RECAP SECT'!$G$6:$EV$312,32,FALSE) -> 2.28 | M20: =VLOOKUP($C20,'RECAP SECT'!$G$6:$EV$312,33,FALSE) -> 74% | N20: =VLOOKUP($C20,'RECAP SECT'!$G$6:$EV$312,34,FALSE) -> 31 | O20: =VLOOKUP($C20,'RECAP SECT'!$G$6:$EV$312,35,FALSE) -> 0.28 | P20: =VLOOKUP($C20,'RECAP SECT'!$G$6:$EV$312,36,FALSE) -> 93% | Q20: =VLOOKUP($C20,'RECAP SECT'!$G$6:$EV$312,37,FALSE) -> 41 | R20: =VLOOKUP($C20,'RECAP SECT'!$G$6:$EV$312,38,FALSE) -> 8% | S20: =VLOOKUP($C20,'RECAP SECT'!$G$6:$EV$312,39,FALSE) -> 63% | T20: =VLOOKUP($C20,'RECAP SECT'!$G$6:$EV$312,40,FALSE) -> 57 | U20: =VLOOKUP($C20,'RECAP SECT'!$G$6:$EV$312,41,FALSE) -> 70% | V20: =VLOOKUP($C20,'RECAP SECT'!$G$6:$EV$312,42,FALSE) -> 45% | W20: =VLOOKUP($C20,'RECAP SECT'!$G$6:$EV$312,43,FALSE) -> 34
A21: 262 | B21: BAS-RHIN | C21: 5047 | D21: SECTEUR CRONENBOURG | E21: =VLOOKUP($C21,'RECAP SECT'!$G$6:$EV$312,3,FALSE) -> 22.3 | F21: =VLOOKUP($C21,'RECAP SECT'!$G$6:$EV$312,26,FALSE) -> -2.87 | G21: =VLOOKUP($C21,'RECAP SECT'!$G$6:$EV$312,27,FALSE) -> 12% | H21: =VLOOKUP($C21,'RECAP SECT'!$G$6:$EV$312,28,FALSE) -> 3 | I21: =VLOOKUP($C21,'RECAP SECT'!$G$6:$EV$312,29,FALSE) -> 0.36 | J21: =VLOOKUP($C21,'RECAP SECT'!$G$6:$EV$312,30,FALSE) -> 96% | K21: =VLOOKUP($C21,'RECAP SECT'!$G$6:$EV$312,31,FALSE) -> 63 | L21: =VLOOKUP($C21,'RECAP SECT'!$G$6:$EV$312,32,FALSE) -> 2.42 | M21: =VLOOKUP($C21,'RECAP SECT'!$G$6:$EV$312,33,FALSE) -> 72% | N21: =VLOOKUP($C21,'RECAP SECT'!$G$6:$EV$312,34,FALSE) -> 30 | O21: =VLOOKUP($C21,'RECAP SECT'!$G$6:$EV$312,35,FALSE) -> 0.18 | P21: =VLOOKUP($C21,'RECAP SECT'!$G$6:$EV$312,36,FALSE) -> 96% | Q21: =VLOOKUP($C21,'RECAP SECT'!$G$6:$EV$312,37,FALSE) -> 44 | R21: =VLOOKUP($C21,'RECAP SECT'!$G$6:$EV$312,38,FALSE) -> 12% | S21: =VLOOKUP($C21,'RECAP SECT'!$G$6:$EV$312,39,FALSE) -> 60% | T21: =VLOOKUP($C21,'RECAP SECT'!$G$6:$EV$312,40,FALSE) -> 52 | U21: =VLOOKUP($C21,'RECAP SECT'!$G$6:$EV$312,41,FALSE) -> 67% | V21: =VLOOKUP($C21,'RECAP SECT'!$G$6:$EV$312,42,FALSE) -> 42% | W21: =VLOOKUP($C21,'RECAP SECT'!$G$6:$EV$312,43,FALSE) -> 26
A22: 262 | B22: BAS-RHIN | C22: 5060 | D22: SECTEUR HAGUENAU | E22: =VLOOKUP($C22,'RECAP SECT'!$G$6:$EV$312,3,FALSE) -> 23.4 | F22: =VLOOKUP($C22,'RECAP SECT'!$G$6:$EV$312,26,FALSE) -> -4.61 | G22: =VLOOKUP($C22,'RECAP SECT'!$G$6:$EV$312,27,FALSE) -> 54% | H22: =VLOOKUP($C22,'RECAP SECT'!$G$6:$EV$312,28,FALSE) -> 29 | I22: =VLOOKUP($C22,'RECAP SECT'!$G$6:$EV$312,29,FALSE) -> -0.26 | J22: =VLOOKUP($C22,'RECAP SECT'!$G$6:$EV$312,30,FALSE) -> 103% | K22: =VLOOKUP($C22,'RECAP SECT'!$G$6:$EV$312,31,FALSE) -> 72 | L22: =VLOOKUP($C22,'RECAP SECT'!$G$6:$EV$312,32,FALSE) -> 0.94 | M22: =VLOOKUP($C22,'RECAP SECT'!$G$6:$EV$312,33,FALSE) -> 89% | N22: =VLOOKUP($C22,'RECAP SECT'!$G$6:$EV$312,34,FALSE) -> 52 | O22: =VLOOKUP($C22,'RECAP SECT'!$G$6:$EV$312,35,FALSE) -> -0.26 | P22: =VLOOKUP($C22,'RECAP SECT'!$G$6:$EV$312,36,FALSE) -> 106% | Q22: =VLOOKUP($C22,'RECAP SECT'!$G$6:$EV$312,37,FALSE) -> 62 | R22: =VLOOKUP($C22,'RECAP SECT'!$G$6:$EV$312,38,FALSE) -> 13% | S22: =VLOOKUP($C22,'RECAP SECT'!$G$6:$EV$312,39,FALSE) -> 58% | T22: =VLOOKUP($C22,'RECAP SECT'!$G$6:$EV$312,40,FALSE) -> 47 | U22: =VLOOKUP($C22,'RECAP SECT'!$G$6:$EV$312,41,FALSE) -> 82% | V22: =VLOOKUP($C22,'RECAP SECT'!$G$6:$EV$312,42,FALSE) -> 57% | W22: =VLOOKUP($C22,'RECAP SECT'!$G$6:$EV$312,43,FALSE) -> 60
A23: 262 | B23: BAS-RHIN | C23: 5043 | D23: SECTEUR HALLES | E23: =VLOOKUP($C23,'RECAP SECT'!$G$6:$EV$312,3,FALSE) -> 24.6 | F23: =VLOOKUP($C23,'RECAP SECT'!$G$6:$EV$312,26,FALSE) -> -3.21 | G23: =VLOOKUP($C23,'RECAP SECT'!$G$6:$EV$312,27,FALSE) -> 21% | H23: =VLOOKUP($C23,'RECAP SECT'!$G$6:$EV$312,28,FALSE) -> 8 | I23: =VLOOKUP($C23,'RECAP SECT'!$G$6:$EV$312,29,FALSE) -> 0.37 | J23: =VLOOKUP($C23,'RECAP SECT'!$G$6:$EV$312,30,FALSE) -> 96% | K23: =VLOOKUP($C23,'RECAP SECT'!$G$6:$EV$312,31,FALSE) -> 62 | L23: =VLOOKUP($C23,'RECAP SECT'!$G$6:$EV$312,32,FALSE) -> 0.24 | M23: =VLOOKUP($C23,'RECAP SECT'!$G$6:$EV$312,33,FALSE) -> 97% | N23: =VLOOKUP($C23,'RECAP SECT'!$G$6:$EV$312,34,FALSE) -> 68 | O23: =VLOOKUP($C23,'RECAP SECT'!$G$6:$EV$312,35,FALSE) -> 0.08 | P23: =VLOOKUP($C23,'RECAP SECT'!$G$6:$EV$312,36,FALSE) -> 98% | Q23: =VLOOKUP($C23,'RECAP SECT'!$G$6:$EV$312,37,FALSE) -> 48 | R23: =VLOOKUP($C23,'RECAP SECT'!$G$6:$EV$312,38,FALSE) -> 23% | S23: =VLOOKUP($C23,'RECAP SECT'!$G$6:$EV$312,39,FALSE) -> 51% | T23: =VLOOKUP($C23,'RECAP SECT'!$G$6:$EV$312,40,FALSE) -> 27 | U23: =VLOOKUP($C23,'RECAP SECT'!$G$6:$EV$312,41,FALSE) -> 73% | V23: =VLOOKUP($C23,'RECAP SECT'!$G$6:$EV$312,42,FALSE) -> 47% | W23: =VLOOKUP($C23,'RECAP SECT'!$G$6:$EV$312,43,FALSE) -> 38
A24: 262 | B24: BAS-RHIN | C24: 5007 | D24: SECTEUR ILLKIRCH | E24: =VLOOKUP($C24,'RECAP SECT'!$G$6:$EV$312,3,FALSE) -> 18.4 | F24: =VLOOKUP($C24,'RECAP SECT'!$G$6:$EV$312,26,FALSE) -> -4.35 | G24: =VLOOKUP($C24,'RECAP SECT'!$G$6:$EV$312,27,FALSE) -> 48% | H24: =VLOOKUP($C24,'RECAP SECT'!$G$6:$EV$312,28,FALSE) -> 22 | I24: =VLOOKUP($C24,'RECAP SECT'!$G$6:$EV$312,29,FALSE) -> 1.25 | J24: =VLOOKUP($C24,'RECAP SECT'!$G$6:$EV$312,30,FALSE) -> 87% | K24: =VLOOKUP($C24,'RECAP SECT'!$G$6:$EV$312,31,FALSE) -> 43 | L24: =VLOOKUP($C24,'RECAP SECT'!$G$6:$EV$312,32,FALSE) -> 0.43 | M24: =VLOOKUP($C24,'RECAP SECT'!$G$6:$EV$312,33,FALSE) -> 95% | N24: =VLOOKUP($C24,'RECAP SECT'!$G$6:$EV$312,34,FALSE) -> 63 | O24: =VLOOKUP($C24,'RECAP SECT'!$G$6:$EV$312,35,FALSE) -> 0.76 | P24: =VLOOKUP($C24,'RECAP SECT'!$G$6:$EV$312,36,FALSE) -> 81% | Q24: =VLOOKUP($C24,'RECAP SECT'!$G$6:$EV$312,37,FALSE) -> 27 | R24: =VLOOKUP($C24,'RECAP SECT'!$G$6:$EV$312,38,FALSE) -> -3% | S24: =VLOOKUP($C24,'RECAP SECT'!$G$6:$EV$312,39,FALSE) -> 70% | T24: =VLOOKUP($C24,'RECAP SECT'!$G$6:$EV$312,40,FALSE) -> 73 | U24: =VLOOKUP($C24,'RECAP SECT'!$G$6:$EV$312,41,FALSE) -> 76% | V24: =VLOOKUP($C24,'RECAP SECT'!$G$6:$EV$312,42,FALSE) -> 51% | W24: =VLOOKUP($C24,'RECAP SECT'!$G$6:$EV$312,43,FALSE) -> 45
A25: 262 | B25: BAS-RHIN | C25: 5085 | D25: SECTEUR INGWILLER | E25: =VLOOKUP($C25,'RECAP SECT'!$G$6:$EV$312,3,FALSE) -> 20.0 | F25: =VLOOKUP($C25,'RECAP SECT'!$G$6:$EV$312,26,FALSE) -> -3.10 | G25: =VLOOKUP($C25,'RECAP SECT'!$G$6:$EV$312,27,FALSE) -> 18% | H25: =VLOOKUP($C25,'RECAP SECT'!$G$6:$EV$312,28,FALSE) -> 6 | I25: =VLOOKUP($C25,'RECAP SECT'!$G$6:$EV$312,29,FALSE) -> 0.70 | J25: =VLOOKUP($C25,'RECAP SECT'!$G$6:$EV$312,30,FALSE) -> 93% | K25: =VLOOKUP($C25,'RECAP SECT'!$G$6:$EV$312,31,FALSE) -> 56 | L25: =VLOOKUP($C25,'RECAP SECT'!$G$6:$EV$312,32,FALSE) -> 2.65 | M25: =VLOOKUP($C25,'RECAP SECT'!$G$6:$EV$312,33,FALSE) -> 70% | N25: =VLOOKUP($C25,'RECAP SECT'!$G$6:$EV$312,34,FALSE) -> 28 | O25: =VLOOKUP($C25,'RECAP SECT'!$G$6:$EV$312,35,FALSE) -> 0.85 | P25: =VLOOKUP($C25,'RECAP SECT'!$G$6:$EV$312,36,FALSE) -> 79% | Q25: =VLOOKUP($C25,'RECAP SECT'!$G$6:$EV$312,37,FALSE) -> 22 | R25: =VLOOKUP($C25,'RECAP SECT'!$G$6:$EV$312,38,FALSE) -> 11% | S25: =VLOOKUP($C25,'RECAP SECT'!$G$6:$EV$312,39,FALSE) -> 60% | T25: =VLOOKUP($C25,'RECAP SECT'!$G$6:$EV$312,40,FALSE) -> 53 | U25: =VLOOKUP($C25,'RECAP SECT'!$G$6:$EV$312,41,FALSE) -> 64% | V25: =VLOOKUP($C25,'RECAP SECT'!$G$6:$EV$312,42,FALSE) -> 39% | W25: =VLOOKUP($C25,'RECAP SECT'!$G$6:$EV$312,43,FALSE) -> 17
A26: 262 | B26: BAS-RHIN | C26: 5116 | D26: SECTEUR MOLSHEIM | E26: =VLOOKUP($C26,'RECAP SECT'!$G$6:$EV$312,3,FALSE) -> 20.6 | F26: =VLOOKUP($C26,'RECAP SECT'!$G$6:$EV$312,26,FALSE) -> -5.55 | G26: =VLOOKUP($C26,'RECAP SECT'!$G$6:$EV$312,27,FALSE) -> 76% | H26: =VLOOKUP($C26,'RECAP SECT'!$G$6:$EV$312,28,FALSE) -> 52 | I26: =VLOOKUP($C26,'RECAP SECT'!$G$6:$EV$312,29,FALSE) -> 1.99 | J26: =VLOOKUP($C26,'RECAP SECT'!$G$6:$EV$312,30,FALSE) -> 79% | K26: =VLOOKUP($C26,'RECAP SECT'!$G$6:$EV$312,31,FALSE) -> 35 | L26: =VLOOKUP($C26,'RECAP SECT'!$G$6:$EV$312,32,FALSE) -> 3.16 | M26: =VLOOKUP($C26,'RECAP SECT'!$G$6:$EV$312,33,FALSE) -> 64% | N26: =VLOOKUP($C26,'RECAP SECT'!$G$6:$EV$312,34,FALSE) -> 24 | O26: =VLOOKUP($C26,'RECAP SECT'!$G$6:$EV$312,35,FALSE) -> 1.17 | P26: =VLOOKUP($C26,'RECAP SECT'!$G$6:$EV$312,36,FALSE) -> 71% | Q26: =VLOOKUP($C26,'RECAP SECT'!$G$6:$EV$312,37,FALSE) -> 18 | R26: =VLOOKUP($C26,'RECAP SECT'!$G$6:$EV$312,38,FALSE) -> 12% | S26: =VLOOKUP($C26,'RECAP SECT'!$G$6:$EV$312,39,FALSE) -> 59% | T26: =VLOOKUP($C26,'RECAP SECT'!$G$6:$EV$312,40,FALSE) -> 51 | U26: =VLOOKUP($C26,'RECAP SECT'!$G$6:$EV$312,41,FALSE) -> 70% | V26: =VLOOKUP($C26,'RECAP SECT'!$G$6:$EV$312,42,FALSE) -> 45% | W26: =VLOOKUP($C26,'RECAP SECT'!$G$6:$EV$312,43,FALSE) -> 31
A27: 262 | B27: BAS-RHIN | C27: 5006 | D27: SECTEUR NEUDORF | E27: =VLOOKUP($C27,'RECAP SECT'!$G$6:$EV$312,3,FALSE) -> 22.3 | F27: =VLOOKUP($C27,'RECAP SECT'!$G$6:$EV$312,26,FALSE) -> -5.44 | G27: =VLOOKUP($C27,'RECAP SECT'!$G$6:$EV$312,27,FALSE) -> 73% | H27: =VLOOKUP($C27,'RECAP SECT'!$G$6:$EV$312,28,FALSE) -> 48 | I27: =VLOOKUP($C27,'RECAP SECT'!$G$6:$EV$312,29,FALSE) -> 0.81 | J27: =VLOOKUP($C27,'RECAP SECT'!$G$6:$EV$312,30,FALSE) -> 91% | K27: =VLOOKUP($C27,'RECAP SECT'!$G$6:$EV$312,31,FALSE) -> 53 | L27: =VLOOKUP($C27,'RECAP SECT'!$G$6:$EV$312,32,FALSE) -> 0.27 | M27: =VLOOKUP($C27,'RECAP SECT'!$G$6:$EV$312,33,FALSE) -> 97% | N27: =VLOOKUP($C27,'RECAP SECT'!$G$6:$EV$312,34,FALSE) -> 67 | O27: =VLOOKUP($C27,'RECAP SECT'!$G$6:$EV$312,35,FALSE) -> 0.76 | P27: =VLOOKUP($C27,'RECAP SECT'!$G$6:$EV$312,36,FALSE) -> 81% | Q27: =VLOOKUP($C27,'RECAP SECT'!$G$6:$EV$312,37,FALSE) -> 26 | R27: =VLOOKUP($C27,'RECAP SECT'!$G$6:$EV$312,38,FALSE) -> 3% | S27: =VLOOKUP($C27,'RECAP SECT'!$G$6:$EV$312,39,FALSE) -> 66% | T27: =VLOOKUP($C27,'RECAP SECT'!$G$6:$EV$312,40,FALSE) -> 65 | U27: =VLOOKUP($C27,'RECAP SECT'!$G$6:$EV$312,41,FALSE) -> 82% | V27: =VLOOKUP($C27,'RECAP SECT'!$G$6:$EV$312,42,FALSE) -> 57% | W27: =VLOOKUP($C27,'RECAP SECT'!$G$6:$EV$312,43,FALSE) -> 58
A28: 262 | B28: BAS-RHIN | C28: 5119 | D28: SECTEUR OBERNAI | E28: =VLOOKUP($C28,'RECAP SECT'!$G$6:$EV$312,3,FALSE) -> 18.6 | F28: =VLOOKUP($C28,'RECAP SECT'!$G$6:$EV$312,26,FALSE) -> -4.36 | G28: =VLOOKUP($C28,'RECAP SECT'!$G$6:$EV$312,27,FALSE) -> 48% | H28: =VLOOKUP($C28,'RECAP SECT'!$G$6:$EV$312,28,FALSE) -> 23 | I28: =VLOOKUP($C28,'RECAP SECT'!$G$6:$EV$312,29,FALSE) -> 0.22 | J28: =VLOOKUP($C28,'RECAP SECT'!$G$6:$EV$312,30,FALSE) -> 98% | K28: =VLOOKUP($C28,'RECAP SECT'!$G$6:$EV$312,31,FALSE) -> 67 | L28: =VLOOKUP($C28,'RECAP SECT'!$G$6:$EV$312,32,FALSE) -> 1.72 | M28: =VLOOKUP($C28,'RECAP SECT'!$G$6:$EV$312,33,FALSE) -> 80% | N28: =VLOOKUP($C28,'RECAP SECT'!$G$6:$EV$312,34,FALSE) -> 37 | O28: =VLOOKUP($C28,'RECAP SECT'!$G$6:$EV$312,35,FALSE) -> 0.22 | P28: =VLOOKUP($C28,'RECAP SECT'!$G$6:$EV$312,36,FALSE) -> 95% | Q28: =VLOOKUP($C28,'RECAP SECT'!$G$6:$EV$312,37,FALSE) -> 42 | R28: =VLOOKUP($C28,'RECAP SECT'!$G$6:$EV$312,38,FALSE) -> 21% | S28: =VLOOKUP($C28,'RECAP SECT'!$G$6:$EV$312,39,FALSE) -> 53% | T28: =VLOOKUP($C28,'RECAP SECT'!$G$6:$EV$312,40,FALSE) -> 31 | U28: =VLOOKUP($C28,'RECAP SECT'!$G$6:$EV$312,41,FALSE) -> 75% | V28: =VLOOKUP($C28,'RECAP SECT'!$G$6:$EV$312,42,FALSE) -> 50% | W28: =VLOOKUP($C28,'RECAP SECT'!$G$6:$EV$312,43,FALSE) -> 41
A29: 262 | B29: BAS-RHIN | C29: 5020 | D29: SECTEUR ROBERTSAU | E29: =VLOOKUP($C29,'RECAP SECT'!$G$6:$EV$312,3,FALSE) -> 19.0 | F29: =VLOOKUP($C29,'RECAP SECT'!$G$6:$EV$312,26,FALSE) -> -4.58 | G29: =VLOOKUP($C29,'RECAP SECT'!$G$6:$EV$312,27,FALSE) -> 53% | H29: =VLOOKUP($C29,'RECAP SECT'!$G$6:$EV$312,28,FALSE) -> 28 | I29: =VLOOKUP($C29,'RECAP SECT'!$G$6:$EV$312,29,FALSE) -> 1.00 | J29: =VLOOKUP($C29,'RECAP SECT'!$G$6:$EV$312,30,FALSE) -> 89% | K29: =VLOOKUP($C29,'RECAP SECT'!$G$6:$EV$312,31,FALSE) -> 50 | L29: =VLOOKUP($C29,'RECAP SECT'!$G$6:$EV$312,32,FALSE) -> 1.63 | M29: =VLOOKUP($C29,'RECAP SECT'!$G$6:$EV$312,33,FALSE) -> 81% | N29: =VLOOKUP($C29,'RECAP SECT'!$G$6:$EV$312,34,FALSE) -> 38 | O29: =VLOOKUP($C29,'RECAP SECT'!$G$6:$EV$312,35,FALSE) -> 0.42 | P29: =VLOOKUP($C29,'RECAP SECT'!$G$6:$EV$312,36,FALSE) -> 90% | Q29: =VLOOKUP($C29,'RECAP SECT'!$G$6:$EV$312,37,FALSE) -> 35 | R29: =VLOOKUP($C29,'RECAP SECT'!$G$6:$EV$312,38,FALSE) -> -9% | S29: =VLOOKUP($C29,'RECAP SECT'!$G$6:$EV$312,39,FALSE) -> 75% | T29: =VLOOKUP($C29,'RECAP SECT'!$G$6:$EV$312,40,FALSE) -> 74 | U29: =VLOOKUP($C29,'RECAP SECT'!$G$6:$EV$312,41,FALSE) -> 78% | V29: =VLOOKUP($C29,'RECAP SECT'!$G$6:$EV$312,42,FALSE) -> 53% | W29: =VLOOKUP($C29,'RECAP SECT'!$G$6:$EV$312,43,FALSE) -> 49
A30: 262 | B30: BAS-RHIN | C30: 5087 | D30: SECTEUR SAVERNE | E30: =VLOOKUP($C30,'RECAP SECT'!$G$6:$EV$312,3,FALSE) -> 15.5 | F30: =VLOOKUP($C30,'RECAP SECT'!$G$6:$EV$312,26,FALSE) -> -4.57 | G30: =VLOOKUP($C30,'RECAP SECT'!$G$6:$EV$312,27,FALSE) -> 53% | H30: =VLOOKUP($C30,'RECAP SECT'!$G$6:$EV$312,28,FALSE) -> 26 | I30: =VLOOKUP($C30,'RECAP SECT'!$G$6:$EV$312,29,FALSE) -> 1.03 | J30: =VLOOKUP($C30,'RECAP SECT'!$G$6:$EV$312,30,FALSE) -> 89% | K30: =VLOOKUP($C30,'RECAP SECT'!$G$6:$EV$312,31,FALSE) -> 49 | L30: =VLOOKUP($C30,'RECAP SECT'!$G$6:$EV$312,32,FALSE) -> 1.48 | M30: =VLOOKUP($C30,'RECAP SECT'!$G$6:$EV$312,33,FALSE) -> 83% | N30: =VLOOKUP($C30,'RECAP SECT'!$G$6:$EV$312,34,FALSE) -> 42 | O30: =VLOOKUP($C30,'RECAP SECT'!$G$6:$EV$312,35,FALSE) -> 0.32 | P30: =VLOOKUP($C30,'RECAP SECT'!$G$6:$EV$312,36,FALSE) -> 92% | Q30: =VLOOKUP($C30,'RECAP SECT'!$G$6:$EV$312,37,FALSE) -> 38 | R30: =VLOOKUP($C30,'RECAP SECT'!$G$6:$EV$312,38,FALSE) -> 24% | S30: =VLOOKUP($C30,'RECAP SECT'!$G$6:$EV$312,39,FALSE) -> 50% | T30: =VLOOKUP($C30,'RECAP SECT'!$G$6:$EV$312,40,FALSE) -> 26 | U30: =VLOOKUP($C30,'RECAP SECT'!$G$6:$EV$312,41,FALSE) -> 74% | V30: =VLOOKUP($C30,'RECAP SECT'!$G$6:$EV$312,42,FALSE) -> 48% | W30: =VLOOKUP($C30,'RECAP SECT'!$G$6:$EV$312,43,FALSE) -> 39
A31: 262 | B31: BAS-RHIN | C31: 5101 | D31: SECTEUR SELESTAT | E31: =VLOOKUP($C31,'RECAP SECT'!$G$6:$EV$312,3,FALSE) -> 18.4 | F31: =VLOOKUP($C31,'RECAP SECT'!$G$6:$EV$312,26,FALSE) -> -2.88 | G31: =VLOOKUP($C31,'RECAP SECT'!$G$6:$EV$312,27,FALSE) -> 13% | H31: =VLOOKUP($C31,'RECAP SECT'!$G$6:$EV$312,28,FALSE) -> 4 | I31: =VLOOKUP($C31,'RECAP SECT'!$G$6:$EV$312,29,FALSE) -> -0.43 | J31: =VLOOKUP($C31,'RECAP SECT'!$G$6:$EV$312,30,FALSE) -> 105% | K31: =VLOOKUP($C31,'RECAP SECT'!$G$6:$EV$312,31,FALSE) -> 75 | L31: =VLOOKUP($C31,'RECAP SECT'!$G$6:$EV$312,32,FALSE) -> 0.49 | M31: =VLOOKUP($C31,'RECAP SECT'!$G$6:$EV$312,33,FALSE) -> 94% | N31: =VLOOKUP($C31,'RECAP SECT'!$G$6:$EV$312,34,FALSE) -> 61 | O31: =VLOOKUP($C31,'RECAP SECT'!$G$6:$EV$312,35,FALSE) -> -0.43 | P31: =VLOOKUP($C31,'RECAP SECT'!$G$6:$EV$312,36,FALSE) -> 111% | Q31: =VLOOKUP($C31,'RECAP SECT'!$G$6:$EV$312,37,FALSE) -> 69 | R31: =VLOOKUP($C31,'RECAP SECT'!$G$6:$EV$312,38,FALSE) -> 7% | S31: =VLOOKUP($C31,'RECAP SECT'!$G$6:$EV$312,39,FALSE) -> 63% | T31: =VLOOKUP($C31,'RECAP SECT'!$G$6:$EV$312,40,FALSE) -> 60 | U31: =VLOOKUP($C31,'RECAP SECT'!$G$6:$EV$312,41,FALSE) -> 77% | V31: =VLOOKUP($C31,'RECAP SECT'!$G$6:$EV$312,42,FALSE) -> 52% | W31: =VLOOKUP($C31,'RECAP SECT'!$G$6:$EV$312,43,FALSE) -> 48
A32: 262 | B32: BAS-RHIN | C32: 5071 | D32: SECTEUR WISSEMBOURG | E32: =VLOOKUP($C32,'RECAP SECT'!$G$6:$EV$312,3,FALSE) -> 15.1 | F32: =VLOOKUP($C32,'RECAP SECT'!$G$6:$EV$312,26,FALSE) -> -2.97 | G32: =VLOOKUP($C32,'RECAP SECT'!$G$6:$EV$312,27,FALSE) -> 15% | H32: =VLOOKUP($C32,'RECAP SECT'!$G$6:$EV$312,28,FALSE) -> 5 | I32: =VLOOKUP($C32,'RECAP SECT'!$G$6:$EV$312,29,FALSE) -> 0.79 | J32: =VLOOKUP($C32,'RECAP SECT'!$G$6:$EV$312,30,FALSE) -> 92% | K32: =VLOOKUP($C32,'RECAP SECT'!$G$6:$EV$312,31,FALSE) -> 54 | L32: =VLOOKUP($C32,'RECAP SECT'!$G$6:$EV$312,32,FALSE) -> 1.52 | M32: =VLOOKUP($C32,'RECAP SECT'!$G$6:$EV$312,33,FALSE) -> 83% | N32: =VLOOKUP($C32,'RECAP SECT'!$G$6:$EV$312,34,FALSE) -> 40 | O32: =VLOOKUP($C32,'RECAP SECT'!$G$6:$EV$312,35,FALSE) -> 0.66 | P32: =VLOOKUP($C32,'RECAP SECT'!$G$6:$EV$312,36,FALSE) -> 84% | Q32: =VLOOKUP($C32,'RECAP SECT'!$G$6:$EV$312,37,FALSE) -> 29 | R32: =VLOOKUP($C32,'RECAP SECT'!$G$6:$EV$312,38,FALSE) -> 18% | S32: =VLOOKUP($C32,'RECAP SECT'!$G$6:$EV$312,39,FALSE) -> 55% | T32: =VLOOKUP($C32,'RECAP SECT'!$G$6:$EV$312,40,FALSE) -> 39 | U32: =VLOOKUP($C32,'RECAP SECT'!$G$6:$EV$312,41,FALSE) -> 66% | V32: =VLOOKUP($C32,'RECAP SECT'!$G$6:$EV$312,42,FALSE) -> 40% | W32: =VLOOKUP($C32,'RECAP SECT'!$G$6:$EV$312,43,FALSE) -> 21
A33: 264 | B33: HAUT-RHIN | C33: 5130 | D33: SECTEUR COLMAR | E33: =VLOOKUP($C33,'RECAP SECT'!$G$6:$EV$312,3,FALSE) -> 32.0 | F33: =VLOOKUP($C33,'RECAP SECT'!$G$6:$EV$312,26,FALSE) -> -2.34 | G33: =VLOOKUP($C33,'RECAP SECT'!$G$6:$EV$312,27,FALSE) -> 0% | H33: =VLOOKUP($C33,'RECAP SECT'!$G$6:$EV$312,28,FALSE) -> 1 | I33: =VLOOKUP($C33,'RECAP SECT'!$G$6:$EV$312,29,FALSE) -> 0.31 | J33: =VLOOKUP($C33,'RECAP SECT'!$G$6:$EV$312,30,FALSE) -> 97% | K33: =VLOOKUP($C33,'RECAP SECT'!$G$6:$EV$312,31,FALSE) -> 65 | L33: =VLOOKUP($C33,'RECAP SECT'!$G$6:$EV$312,32,FALSE) -> 0.38 | M33: =VLOOKUP($C33,'RECAP SECT'!$G$6:$EV$312,33,FALSE) -> 96% | N33: =VLOOKUP($C33,'RECAP SECT'!$G$6:$EV$312,34,FALSE) -> 66 | O33: =VLOOKUP($C33,'RECAP SECT'!$G$6:$EV$312,35,FALSE) -> 0.84 | P33: =VLOOKUP($C33,'RECAP SECT'!$G$6:$EV$312,36,FALSE) -> 79% | Q33: =VLOOKUP($C33,'RECAP SECT'!$G$6:$EV$312,37,FALSE) -> 23 | R33: =VLOOKUP($C33,'RECAP SECT'!$G$6:$EV$312,38,FALSE) -> 19% | S33: =VLOOKUP($C33,'RECAP SECT'!$G$6:$EV$312,39,FALSE) -> 54% | T33: =VLOOKUP($C33,'RECAP SECT'!$G$6:$EV$312,40,FALSE) -> 37 | U33: =VLOOKUP($C33,'RECAP SECT'!$G$6:$EV$312,41,FALSE) -> 65% | V33: =VLOOKUP($C33,'RECAP SECT'!$G$6:$EV$312,42,FALSE) -> 40% | W33: =VLOOKUP($C33,'RECAP SECT'!$G$6:$EV$312,43,FALSE) -> 20
A34: 264 | B34: HAUT-RHIN | C34: 5147 | D34: SECTEUR GUEBWILLER | E34: =VLOOKUP($C34,'RECAP SECT'!$G$6:$EV$312,3,FALSE) -> 16.9 | F34: =VLOOKUP($C34,'RECAP SECT'!$G$6:$EV$312,26,FALSE) -> -4.79 | G34: =VLOOKUP($C34,'RECAP SECT'!$G$6:$EV$312,27,FALSE) -> 58% | H34: =VLOOKUP($C34,'RECAP SECT'!$G$6:$EV$312,28,FALSE) -> 31 | I34: =VLOOKUP($C34,'RECAP SECT'!$G$6:$EV$312,29,FALSE) -> 0.47 | J34: =VLOOKUP($C34,'RECAP SECT'!$G$6:$EV$312,30,FALSE) -> 95% | K34: =VLOOKUP($C34,'RECAP SECT'!$G$6:$EV$312,31,FALSE) -> 60 | L34: =VLOOKUP($C34,'RECAP SECT'!$G$6:$EV$312,32,FALSE) -> 1.18 | M34: =VLOOKUP($C34,'RECAP SECT'!$G$6:$EV$312,33,FALSE) -> 86% | N34: =VLOOKUP($C34,'RECAP SECT'!$G$6:$EV$312,34,FALSE) -> 47 | O34: =VLOOKUP($C34,'RECAP SECT'!$G$6:$EV$312,35,FALSE) -> 0.30 | P34: =VLOOKUP($C34,'RECAP SECT'!$G$6:$EV$312,36,FALSE) -> 93% | Q34: =VLOOKUP($C34,'RECAP SECT'!$G$6:$EV$312,37,FALSE) -> 40 | R34: =VLOOKUP($C34,'RECAP SECT'!$G$6:$EV$312,38,FALSE) -> 11% | S34: =VLOOKUP($C34,'RECAP SECT'!$G$6:$EV$312,39,FALSE) -> 60% | T34: =VLOOKUP($C34,'RECAP SECT'!$G$6:$EV$312,40,FALSE) -> 54 | U34: =VLOOKUP($C34,'RECAP SECT'!$G$6:$EV$312,41,FALSE) -> 78% | V34: =VLOOKUP($C34,'RECAP SECT'!$G$6:$EV$312,42,FALSE) -> 53% | W34: =VLOOKUP($C34,'RECAP SECT'!$G$6:$EV$312,43,FALSE) -> 51
A35: 264 | B35: HAUT-RHIN | C35: 5184 | D35: SECTEUR ILLZACH | E35: =VLOOKUP($C35,'RECAP SECT'!$G$6:$EV$312,3,FALSE) -> 18.8 | F35: =VLOOKUP($C35,'RECAP SECT'!$G$6:$EV$312,26,FALSE) -> -5.16 | G35: =VLOOKUP($C35,'RECAP SECT'!$G$6:$EV$312,27,FALSE) -> 67% | H35: =VLOOKUP($C35,'RECAP SECT'!$G$6:$EV$312,28,FALSE) -> 38 | I35: =VLOOKUP($C35,'RECAP SECT'!$G$6:$EV$312,29,FALSE) -> -0.37 | J35: =VLOOKUP($C35,'RECAP SECT'!$G$6:$EV$312,30,FALSE) -> 104% | K35: =VLOOKUP($C35,'RECAP SECT'!$G$6:$EV$312,31,FALSE) -> 74 | L35: =VLOOKUP($C35,'RECAP SECT'!$G$6:$EV$312,32,FALSE) -> 0.43 | M35: =VLOOKUP($C35,'RECAP SECT'!$G$6:$EV$312,33,FALSE) -> 95% | N35: =VLOOKUP($C35,'RECAP SECT'!$G$6:$EV$312,34,FALSE) -> 64 | O35: =VLOOKUP($C35,'RECAP SECT'!$G$6:$EV$312,35,FALSE) -> -0.69 | P35: =VLOOKUP($C35,'RECAP SECT'!$G$6:$EV$312,36,FALSE) -> 117% | Q35: =VLOOKUP($C35,'RECAP SECT'!$G$6:$EV$312,37,FALSE) -> 72 | R35: =VLOOKUP($C35,'RECAP SECT'!$G$6:$EV$312,38,FALSE) -> 13% | S35: =VLOOKUP($C35,'RECAP SECT'!$G$6:$EV$312,39,FALSE) -> 59% | T35: =VLOOKUP($C35,'RECAP SECT'!$G$6:$EV$312,40,FALSE) -> 48 | U35: =VLOOKUP($C35,'RECAP SECT'!$G$6:$EV$312,41,FALSE) -> 88% | V35: =VLOOKUP($C35,'RECAP SECT'!$G$6:$EV$312,42,FALSE) -> 63% | W35: =VLOOKUP($C35,'RECAP SECT'!$G$6:$EV$312,43,FALSE) -> 71
A36: 264 | B36: HAUT-RHIN | C36: 5143 | D36: SECTEUR MUNSTER | E36: =VLOOKUP($C36,'RECAP SECT'!$G$6:$EV$312,3,FALSE) -> 33.5 | F36: =VLOOKUP($C36,'RECAP SECT'!$G$6:$EV$312,26,FALSE) -> -2.54 | G36: =VLOOKUP($C36,'RECAP SECT'!$G$6:$EV$312,27,FALSE) -> 5% | H36: =VLOOKUP($C36,'RECAP SECT'!$G$6:$EV$312,28,FALSE) -> 2 | I36: =VLOOKUP($C36,'RECAP SECT'!$G$6:$EV$312,29,FALSE) -> -0.27 | J36: =VLOOKUP($C36,'RECAP SECT'!$G$6:$EV$312,30,FALSE) -> 103% | K36: =VLOOKUP($C36,'RECAP SECT'!$G$6:$EV$312,31,FALSE) -> 73 | L36: =VLOOKUP($C36,'RECAP SECT'!$G$6:$EV$312,32,FALSE) -> 0.66 | M36: =VLOOKUP($C36,'RECAP SECT'!$G$6:$EV$312,33,FALSE) -> 92% | N36: =VLOOKUP($C36,'RECAP SECT'!$G$6:$EV$312,34,FALSE) -> 59 | O36: =VLOOKUP($C36,'RECAP SECT'!$G$6:$EV$312,35,FALSE) -> 0.03 | P36: =VLOOKUP($C36,'RECAP SECT'!$G$6:$EV$312,36,FALSE) -> 99% | Q36: =VLOOKUP($C36,'RECAP SECT'!$G$6:$EV$312,37,FALSE) -> 50 | R36: =VLOOKUP($C36,'RECAP SECT'!$G$6:$EV$312,38,FALSE) -> 20% | S36: =VLOOKUP($C36,'RECAP SECT'!$G$6:$EV$312,39,FALSE) -> 53% | T36: =VLOOKUP($C36,'RECAP SECT'!$G$6:$EV$312,40,FALSE) -> 33 | U36: =VLOOKUP($C36,'RECAP SECT'!$G$6:$EV$312,41,FALSE) -> 70% | V36: =VLOOKUP($C36,'RECAP SECT'!$G$6:$EV$312,42,FALSE) -> 45% | W36: =VLOOKUP($C36,'RECAP SECT'!$G$6:$EV$312,43,FALSE) -> 35
A37: 264 | B37: HAUT-RHIN | C37: 5169 | D37: SECTEUR ROOSEVELT | E37: =VLOOKUP($C37,'RECAP SECT'!$G$6:$EV$312,3,FALSE) -> 20.4 | F37: =VLOOKUP($C37,'RECAP SECT'!$G$6:$EV$312,26,FALSE) -> -5.92 | G37: =VLOOKUP($C37,'RECAP SECT'!$G$6:$EV$312,27,FALSE) -> 85% | H37: =VLOOKUP($C37,'RECAP SECT'!$G$6:$EV$312,28,FALSE) -> 59 | I37: =VLOOKUP($C37,'RECAP SECT'!$G$6:$EV$312,29,FALSE) -> 0.20 | J37: =VLOOKUP($C37,'RECAP SECT'!$G$6:$EV$312,30,FALSE) -> 98% | K37: =VLOOKUP($C37,'RECAP SECT'!$G$6:$EV$312,31,FALSE) -> 68 | L37: =VLOOKUP($C37,'RECAP SECT'!$G$6:$EV$312,32,FALSE) -> -0.15 | M37: =VLOOKUP($C37,'RECAP SECT'!$G$6:$EV$312,33,FALSE) -> 102% | N37: =VLOOKUP($C37,'RECAP SECT'!$G$6:$EV$312,34,FALSE) -> 71 | O37: =VLOOKUP($C37,'RECAP SECT'!$G$6:$EV$312,35,FALSE) -> -0.29 | P37: =VLOOKUP($C37,'RECAP SECT'!$G$6:$EV$312,36,FALSE) -> 107% | Q37: =VLOOKUP($C37,'RECAP SECT'!$G$6:$EV$312,37,FALSE) -> 64 | R37: =VLOOKUP($C37,'RECAP SECT'!$G$6:$EV$312,38,FALSE) -> 6% | S37: =VLOOKUP($C37,'RECAP SECT'!$G$6:$EV$312,39,FALSE) -> 64% | T37: =VLOOKUP($C37,'RECAP SECT'!$G$6:$EV$312,40,FALSE) -> 61 | U37: =VLOOKUP($C37,'RECAP SECT'!$G$6:$EV$312,41,FALSE) -> 91% | V37: =VLOOKUP($C37,'RECAP SECT'!$G$6:$EV$312,42,FALSE) -> 66% | W37: =VLOOKUP($C37,'RECAP SECT'!$G$6:$EV$312,43,FALSE) -> 76
A38: 264 | B38: HAUT-RHIN | C38: 5178 | D38: SECTEUR SAINT LOUIS | E38: =VLOOKUP($C38,'RECAP SECT'!$G$6:$EV$312,3,FALSE) -> 16.2 | F38: =VLOOKUP($C38,'RECAP SECT'!$G$6:$EV$312,26,FALSE) -> -4.25 | G38: =VLOOKUP($C38,'RECAP SECT'!$G$6:$EV$312,27,FALSE) -> 45% | H38: =VLOOKUP($C38,'RECAP SECT'!$G$6:$EV$312,28,FALSE) -> 20 | I38: =VLOOKUP($C38,'RECAP SECT'!$G$6:$EV$312,29,FALSE) -> -1.05 | J38: =VLOOKUP($C38,'RECAP SECT'!$G$6:$EV$312,30,FALSE) -> 111% | K38: =VLOOKUP($C38,'RECAP SECT'!$G$6:$EV$312,31,FALSE) -> 77 | L38: =VLOOKUP($C38,'RECAP SECT'!$G$6:$EV$312,32,FALSE) -> -0.55 | M38: =VLOOKUP($C38,'RECAP SECT'!$G$6:$EV$312,33,FALSE) -> 106% | N38: =VLOOKUP($C38,'RECAP SECT'!$G$6:$EV$312,34,FALSE) -> 75 | O38: =VLOOKUP($C38,'RECAP SECT'!$G$6:$EV$312,35,FALSE) -> -0.80 | P38: =VLOOKUP($C38,'RECAP SECT'!$G$6:$EV$312,36,FALSE) -> 120% | Q38: =VLOOKUP($C38,'RECAP SECT'!$G$6:$EV$312,37,FALSE) -> 75 | R38: =VLOOKUP($C38,'RECAP SECT'!$G$6:$EV$312,38,FALSE) -> 27% | S38: =VLOOKUP($C38,'RECAP SECT'!$G$6:$EV$312,39,FALSE) -> 49% | T38: =VLOOKUP($C38,'RECAP SECT'!$G$6:$EV$312,40,FALSE) -> 20 | U38: =VLOOKUP($C38,'RECAP SECT'!$G$6:$EV$312,41,FALSE) -> 86% | V38: =VLOOKUP($C38,'RECAP SECT'!$G$6:$EV$312,42,FALSE) -> 61% | W38: =VLOOKUP($C38,'RECAP SECT'!$G$6:$EV$312,43,FALSE) -> 67
A39: 264 | B39: HAUT-RHIN | C39: 5194 | D39: SECTEUR THANN | E39: =VLOOKUP($C39,'RECAP SECT'!$G$6:$EV$312,3,FALSE) -> 24.2 | F39: =VLOOKUP($C39,'RECAP SECT'!$G$6:$EV$312,26,FALSE) -> -5.09 | G39: =VLOOKUP($C39,'RECAP SECT'!$G$6:$EV$312,27,FALSE) -> 65% | H39: =VLOOKUP($C39,'RECAP SECT'!$G$6:$EV$312,28,FALSE) -> 36 | I39: =VLOOKUP($C39,'RECAP SECT'!$G$6:$EV$312,29,FALSE) -> -0.25 | J39: =VLOOKUP($C39,'RECAP SECT'!$G$6:$EV$312,30,FALSE) -> 103% | K39: =VLOOKUP($C39,'RECAP SECT'!$G$6:$EV$312,31,FALSE) -> 71 | L39: =VLOOKUP($C39,'RECAP SECT'!$G$6:$EV$312,32,FALSE) -> 0.62 | M39: =VLOOKUP($C39,'RECAP SECT'!$G$6:$EV$312,33,FALSE) -> 93% | N39: =VLOOKUP($C39,'RECAP SECT'!$G$6:$EV$312,34,FALSE) -> 60 | O39: =VLOOKUP($C39,'RECAP SECT'!$G$6:$EV$312,35,FALSE) -> 0.12 | P39: =VLOOKUP($C39,'RECAP SECT'!$G$6:$EV$312,36,FALSE) -> 97% | Q39: =VLOOKUP($C39,'RECAP SECT'!$G$6:$EV$312,37,FALSE) -> 45 | R39: =VLOOKUP($C39,'RECAP SECT'!$G$6:$EV$312,38,FALSE) -> 20% | S39: =VLOOKUP($C39,'RECAP SECT'!$G$6:$EV$312,39,FALSE) -> 54% | T39: =VLOOKUP($C39,'RECAP SECT'!$G$6:$EV$312,40,FALSE) -> 36 | U39: =VLOOKUP($C39,'RECAP SECT'!$G$6:$EV$312,41,FALSE) -> 82% | V39: =VLOOKUP($C39,'RECAP SECT'!$G$6:$EV$312,42,FALSE) -> 57% | W39: =VLOOKUP($C39,'RECAP SECT'!$G$6:$EV$312,43,FALSE) -> 61
A40: 30 | B40: MARNE-ARDENNES | C40: 6 | D40: SECTEUR CHALONS VIVIERS | E40: =VLOOKUP($C40,'RECAP SECT'!$G$6:$EV$312,3,FALSE) -> 25.7 | F40: =VLOOKUP($C40,'RECAP SECT'!$G$6:$EV$312,26,FALSE) -> -5.95 | G40: =VLOOKUP($C40,'RECAP SECT'!$G$6:$EV$312,27,FALSE) -> 86% | H40: =VLOOKUP($C40,'RECAP SECT'!$G$6:$EV$312,28,FALSE) -> 60 | I40: =VLOOKUP($C40,'RECAP SECT'!$G$6:$EV$312,29,FALSE) -> 9.49 | J40: =VLOOKUP($C40,'RECAP SECT'!$G$6:$EV$312,30,FALSE) -> 0% | K40: =VLOOKUP($C40,'RECAP SECT'!$G$6:$EV$312,31,FALSE) -> 1 | L40: =VLOOKUP($C40,'RECAP SECT'!$G$6:$EV$312,32,FALSE) -> 3.38 | M40: =VLOOKUP($C40,'RECAP SECT'!$G$6:$EV$312,33,FALSE) -> 61% | N40: =VLOOKUP($C40,'RECAP SECT'!$G$6:$EV$312,34,FALSE) -> 21 | O40: =VLOOKUP($C40,'RECAP SECT'!$G$6:$EV$312,35,FALSE) -> 0.82 | P40: =VLOOKUP($C40,'RECAP SECT'!$G$6:$EV$312,36,FALSE) -> 80% | Q40: =VLOOKUP($C40,'RECAP SECT'!$G$6:$EV$312,37,FALSE) -> 24 | R40: =VLOOKUP($C40,'RECAP SECT'!$G$6:$EV$312,38,FALSE) -> 63% | S40: =VLOOKUP($C40,'RECAP SECT'!$G$6:$EV$312,39,FALSE) -> 22% | T40: =VLOOKUP($C40,'RECAP SECT'!$G$6:$EV$312,40,FALSE) -> 5 | U40: =VLOOKUP($C40,'RECAP SECT'!$G$6:$EV$312,41,FALSE) -> 50% | V40: =VLOOKUP($C40,'RECAP SECT'!$G$6:$EV$312,42,FALSE) -> 25% | W40: =VLOOKUP($C40,'RECAP SECT'!$G$6:$EV$312,43,FALSE) -> 8
A41: 30 | B41: MARNE-ARDENNES | C41: 1 | D41: SECTEUR CHARLEVILLE JEAN JAURES | E41: =VLOOKUP($C41,'RECAP SECT'!$G$6:$EV$312,3,FALSE) -> 13.6 | F41: =VLOOKUP($C41,'RECAP SECT'!$G$6:$EV$312,26,FALSE) -> -6.26 | G41: =VLOOKUP($C41,'RECAP SECT'!$G$6:$EV$312,27,FALSE) -> 93% | H41: =VLOOKUP($C41,'RECAP SECT'!$G$6:$EV$312,28,FALSE) -> 64 | I41: =VLOOKUP($C41,'RECAP SECT'!$G$6:$EV$312,29,FALSE) -> 1.25 | J41: =VLOOKUP($C41,'RECAP SECT'!$G$6:$EV$312,30,FALSE) -> 87% | K41: =VLOOKUP($C41,'RECAP SECT'!$G$6:$EV$312,31,FALSE) -> 42 | L41: =VLOOKUP($C41,'RECAP SECT'!$G$6:$EV$312,32,FALSE) -> 2.65 | M41: =VLOOKUP($C41,'RECAP SECT'!$G$6:$EV$312,33,FALSE) -> 70% | N41: =VLOOKUP($C41,'RECAP SECT'!$G$6:$EV$312,34,FALSE) -> 27 | O41: =VLOOKUP($C41,'RECAP SECT'!$G$6:$EV$312,35,FALSE) -> 1.55 | P41: =VLOOKUP($C41,'RECAP SECT'!$G$6:$EV$312,36,FALSE) -> 62% | Q41: =VLOOKUP($C41,'RECAP SECT'!$G$6:$EV$312,37,FALSE) -> 11 | R41: =VLOOKUP($C41,'RECAP SECT'!$G$6:$EV$312,38,FALSE) -> 42% | S41: =VLOOKUP($C41,'RECAP SECT'!$G$6:$EV$312,39,FALSE) -> 37% | T41: =VLOOKUP($C41,'RECAP SECT'!$G$6:$EV$312,40,FALSE) -> 10 | U41: =VLOOKUP($C41,'RECAP SECT'!$G$6:$EV$312,41,FALSE) -> 70% | V41: =VLOOKUP($C41,'RECAP SECT'!$G$6:$EV$312,42,FALSE) -> 45% | W41: =VLOOKUP($C41,'RECAP SECT'!$G$6:$EV$312,43,FALSE) -> 30
A42: 30 | B42: MARNE-ARDENNES | C42: 2 | D42: SECTEUR CHARLEVILLE MEZIERES | E42: =VLOOKUP($C42,'RECAP SECT'!$G$6:$EV$312,3,FALSE) -> 11.0 | F42: =VLOOKUP($C42,'RECAP SECT'!$G$6:$EV$312,26,FALSE) -> -5.46 | G42: =VLOOKUP($C42,'RECAP SECT'!$G$6:$EV$312,27,FALSE) -> 74% | H42: =VLOOKUP($C42,'RECAP SECT'!$G$6:$EV$312,28,FALSE) -> 49 | I42: =VLOOKUP($C42,'RECAP SECT'!$G$6:$EV$312,29,FALSE) -> 8.10 | J42: =VLOOKUP($C42,'RECAP SECT'!$G$6:$EV$312,30,FALSE) -> 15% | K42: =VLOOKUP($C42,'RECAP SECT'!$G$6:$EV$312,31,FALSE) -> 2 | L42: =VLOOKUP($C42,'RECAP SECT'!$G$6:$EV$312,32,FALSE) -> 4.73 | M42: =VLOOKUP($C42,'RECAP SECT'!$G$6:$EV$312,33,FALSE) -> 46% | N42: =VLOOKUP($C42,'RECAP SECT'!$G$6:$EV$312,34,FALSE) -> 16 | O42: =VLOOKUP($C42,'RECAP SECT'!$G$6:$EV$312,35,FALSE) -> 1.18 | P42: =VLOOKUP($C42,'RECAP SECT'!$G$6:$EV$312,36,FALSE) -> 71% | Q42: =VLOOKUP($C42,'RECAP SECT'!$G$6:$EV$312,37,FALSE) -> 17 | R42: =VLOOKUP($C42,'RECAP SECT'!$G$6:$EV$312,38,FALSE) -> 68% | S42: =VLOOKUP($C42,'RECAP SECT'!$G$6:$EV$312,39,FALSE) -> 18% | T42: =VLOOKUP($C42,'RECAP SECT'!$G$6:$EV$312,40,FALSE) -> 3 | U42: =VLOOKUP($C42,'RECAP SECT'!$G$6:$EV$312,41,FALSE) -> 45% | V42: =VLOOKUP($C42,'RECAP SECT'!$G$6:$EV$312,42,FALSE) -> 19% | W42: =VLOOKUP($C42,'RECAP SECT'!$G$6:$EV$312,43,FALSE) -> 5
A43: 30 | B43: MARNE-ARDENNES | C43: 13 | D43: SECTEUR EPERNAY | E43: =VLOOKUP($C43,'RECAP SECT'!$G$6:$EV$312,3,FALSE) -> 25.0 | F43: =VLOOKUP($C43,'RECAP SECT'!$G$6:$EV$312,26,FALSE) -> -4.16 | G43: =VLOOKUP($C43,'RECAP SECT'!$G$6:$EV$312,27,FALSE) -> 43% | H43: =VLOOKUP($C43,'RECAP SECT'!$G$6:$EV$312,28,FALSE) -> 17 | I43: =VLOOKUP($C43,'RECAP SECT'!$G$6:$EV$312,29,FALSE) -> 5.84 | J43: =VLOOKUP($C43,'RECAP SECT'!$G$6:$EV$312,30,FALSE) -> 38% | K43: =VLOOKUP($C43,'RECAP SECT'!$G$6:$EV$312,31,FALSE) -> 4 | L43: =VLOOKUP($C43,'RECAP SECT'!$G$6:$EV$312,32,FALSE) -> 2.08 | M43: =VLOOKUP($C43,'RECAP SECT'!$G$6:$EV$312,33,FALSE) -> 76% | N43: =VLOOKUP($C43,'RECAP SECT'!$G$6:$EV$312,34,FALSE) -> 32 | O43: =VLOOKUP($C43,'RECAP SECT'!$G$6:$EV$312,35,FALSE) -> -0.56 | P43: =VLOOKUP($C43,'RECAP SECT'!$G$6:$EV$312,36,FALSE) -> 114% | Q43: =VLOOKUP($C43,'RECAP SECT'!$G$6:$EV$312,37,FALSE) -> 71 | R43: =VLOOKUP($C43,'RECAP SECT'!$G$6:$EV$312,38,FALSE) -> 12% | S43: =VLOOKUP($C43,'RECAP SECT'!$G$6:$EV$312,39,FALSE) -> 59% | T43: =VLOOKUP($C43,'RECAP SECT'!$G$6:$EV$312,40,FALSE) -> 50 | U43: =VLOOKUP($C43,'RECAP SECT'!$G$6:$EV$312,41,FALSE) -> 66% | V43: =VLOOKUP($C43,'RECAP SECT'!$G$6:$EV$312,42,FALSE) -> 41% | W43: =VLOOKUP($C43,'RECAP SECT'!$G$6:$EV$312,43,FALSE) -> 22
A44: 30 | B44: MARNE-ARDENNES | C44: 11 | D44: SECTEUR REIMS CENTRE VILLE | E44: =VLOOKUP($C44,'RECAP SECT'!$G$6:$EV$312,3,FALSE) -> 20.5 | F44: =VLOOKUP($C44,'RECAP SECT'!$G$6:$EV$312,26,FALSE) -> -5.32 | G44: =VLOOKUP($C44,'RECAP SECT'!$G$6:$EV$312,27,FALSE) -> 71% | H44: =VLOOKUP($C44,'RECAP SECT'!$G$6:$EV$312,28,FALSE) -> 44 | I44: =VLOOKUP($C44,'RECAP SECT'!$G$6:$EV$312,29,FALSE) -> 4.30 | J44: =VLOOKUP($C44,'RECAP SECT'!$G$6:$EV$312,30,FALSE) -> 55% | K44: =VLOOKUP($C44,'RECAP SECT'!$G$6:$EV$312,31,FALSE) -> 11 | L44: =VLOOKUP($C44,'RECAP SECT'!$G$6:$EV$312,32,FALSE) -> 1.32 | M44: =VLOOKUP($C44,'RECAP SECT'!$G$6:$EV$312,33,FALSE) -> 85% | N44: =VLOOKUP($C44,'RECAP SECT'!$G$6:$EV$312,34,FALSE) -> 45 | O44: =VLOOKUP($C44,'RECAP SECT'!$G$6:$EV$312,35,FALSE) -> 0.10 | P44: =VLOOKUP($C44,'RECAP SECT'!$G$6:$EV$312,36,FALSE) -> 98% | Q44: =VLOOKUP($C44,'RECAP SECT'!$G$6:$EV$312,37,FALSE) -> 46 | R44: =VLOOKUP($C44,'RECAP SECT'!$G$6:$EV$312,38,FALSE) -> 26% | S44: =VLOOKUP($C44,'RECAP SECT'!$G$6:$EV$312,39,FALSE) -> 49% | T44: =VLOOKUP($C44,'RECAP SECT'!$G$6:$EV$312,40,FALSE) -> 22 | U44: =VLOOKUP($C44,'RECAP SECT'!$G$6:$EV$312,41,FALSE) -> 71% | V44: =VLOOKUP($C44,'RECAP SECT'!$G$6:$EV$312,42,FALSE) -> 46% | W44: =VLOOKUP($C44,'RECAP SECT'!$G$6:$EV$312,43,FALSE) -> 36
A45: 30 | B45: MARNE-ARDENNES | C45: 9 | D45: SECTEUR REIMS HOTEL DE VILLE | E45: =VLOOKUP($C45,'RECAP SECT'!$G$6:$EV$312,3,FALSE) -> 22.4 | F45: =VLOOKUP($C45,'RECAP SECT'!$G$6:$EV$312,26,FALSE) -> -4.86 | G45: =VLOOKUP($C45,'RECAP SECT'!$G$6:$EV$312,27,FALSE) -> 60% | H45: =VLOOKUP($C45,'RECAP SECT'!$G$6:$EV$312,28,FALSE) -> 33 | I45: =VLOOKUP($C45,'RECAP SECT'!$G$6:$EV$312,29,FALSE) -> 4.91 | J45: =VLOOKUP($C45,'RECAP SECT'!$G$6:$EV$312,30,FALSE) -> 48% | K45: =VLOOKUP($C45,'RECAP SECT'!$G$6:$EV$312,31,FALSE) -> 7 | L45: =VLOOKUP($C45,'RECAP SECT'!$G$6:$EV$312,32,FALSE) -> 1.87 | M45: =VLOOKUP($C45,'RECAP SECT'!$G$6:$EV$312,33,FALSE) -> 79% | N45: =VLOOKUP($C45,'RECAP SECT'!$G$6:$EV$312,34,FALSE) -> 35 | O45: =VLOOKUP($C45,'RECAP SECT'!$G$6:$EV$312,35,FALSE) -> 0.80 | P45: =VLOOKUP($C45,'RECAP SECT'!$G$6:$EV$312,36,FALSE) -> 80% | Q45: =VLOOKUP($C45,'RECAP SECT'!$G$6:$EV$312,37,FALSE) -> 25 | R45: =VLOOKUP($C45,'RECAP SECT'!$G$6:$EV$312,38,FALSE) -> -2% | S45: =VLOOKUP($C45,'RECAP SECT'!$G$6:$EV$312,39,FALSE) -> 70% | T45: =VLOOKUP($C45,'RECAP SECT'!$G$6:$EV$312,40,FALSE) -> 71 | U45: =VLOOKUP($C45,'RECAP SECT'!$G$6:$EV$312,41,FALSE) -> 67% | V45: =VLOOKUP($C45,'RECAP SECT'!$G$6:$EV$312,42,FALSE) -> 42% | W45: =VLOOKUP($C45,'RECAP SECT'!$G$6:$EV$312,43,FALSE) -> 27
A46: 30 | B46: MARNE-ARDENNES | C46: 10 | D46: SECTEUR REIMS SAINT THOMAS | E46: =VLOOKUP($C46,'RECAP SECT'!$G$6:$EV$312,3,FALSE) -> 12.7 | F46: =VLOOKUP($C46,'RECAP SECT'!$G$6:$EV$312,26,FALSE) -> -7.64 | G46: =VLOOKUP($C46,'RECAP SECT'!$G$6:$EV$312,27,FALSE) -> 126% | H46: =VLOOKUP($C46,'RECAP SECT'!$G$6:$EV$312,28,FALSE) -> 75 | I46: =VLOOKUP($C46,'RECAP SECT'!$G$6:$EV$312,29,FALSE) -> 2.76 | J46: =VLOOKUP($C46,'RECAP SECT'!$G$6:$EV$312,30,FALSE) -> 71% | K46: =VLOOKUP($C46,'RECAP SECT'!$G$6:$EV$312,31,FALSE) -> 24 | L46: =VLOOKUP($C46,'RECAP SECT'!$G$6:$EV$312,32,FALSE) -> -0.95 | M46: =VLOOKUP($C46,'RECAP SECT'!$G$6:$EV$312,33,FALSE) -> 111% | N46: =VLOOKUP($C46,'RECAP SECT'!$G$6:$EV$312,34,FALSE) -> 77 | O46: =VLOOKUP($C46,'RECAP SECT'!$G$6:$EV$312,35,FALSE) -> 0.55 | P46: =VLOOKUP($C46,'RECAP SECT'!$G$6:$EV$312,36,FALSE) -> 86% | Q46: =VLOOKUP($C46,'RECAP SECT'!$G$6:$EV$312,37,FALSE) -> 32 | R46: =VLOOKUP($C46,'RECAP SECT'!$G$6:$EV$312,38,FALSE) -> 34% | S46: =VLOOKUP($C46,'RECAP SECT'!$G$6:$EV$312,39,FALSE) -> 43% | T46: =VLOOKUP($C46,'RECAP SECT'!$G$6:$EV$312,40,FALSE) -> 14 | U46: =VLOOKUP($C46,'RECAP SECT'!$G$6:$EV$312,41,FALSE) -> 87% | V46: =VLOOKUP($C46,'RECAP SECT'!$G$6:$EV$312,42,FALSE) -> 62% | W46: =VLOOKUP($C46,'RECAP SECT'!$G$6:$EV$312,43,FALSE) -> 70
A47: 30 | B47: MARNE-ARDENNES | C47: 4 | D47: SECTEUR RETHEL | E47: =VLOOKUP($C47,'RECAP SECT'!$G$6:$EV$312,3,FALSE) -> 10.9 | F47: =VLOOKUP($C47,'RECAP SECT'!$G$6:$EV$312,26,FALSE) -> -6.51 | G47: =VLOOKUP($C47,'RECAP SECT'!$G$6:$EV$312,27,FALSE) -> 99% | H47: =VLOOKUP($C47,'RECAP SECT'!$G$6:$EV$312,28,FALSE) -> 68 | I47: =VLOOKUP($C47,'RECAP SECT'!$G$6:$EV$312,29,FALSE) -> 2.48 | J47: =VLOOKUP($C47,'RECAP SECT'!$G$6:$EV$312,30,FALSE) -> 74% | K47: =VLOOKUP($C47,'RECAP SECT'!$G$6:$EV$312,31,FALSE) -> 31 | L47: =VLOOKUP($C47,'RECAP SECT'!$G$6:$EV$312,32,FALSE) -> 0.73 | M47: =VLOOKUP($C47,'RECAP SECT'!$G$6:$EV$312,33,FALSE) -> 92% | N47: =VLOOKUP($C47,'RECAP SECT'!$G$6:$EV$312,34,FALSE) -> 58 | O47: =VLOOKUP($C47,'RECAP SECT'!$G$6:$EV$312,35,FALSE) -> -0.09 | P47: =VLOOKUP($C47,'RECAP SECT'!$G$6:$EV$312,36,FALSE) -> 102% | Q47: =VLOOKUP($C47,'RECAP SECT'!$G$6:$EV$312,37,FALSE) -> 56 | R47: =VLOOKUP($C47,'RECAP SECT'!$G$6:$EV$312,38,FALSE) -> 55% | S47: =VLOOKUP($C47,'RECAP SECT'!$G$6:$EV$312,39,FALSE) -> 28% | T47: =VLOOKUP($C47,'RECAP SECT'!$G$6:$EV$312,40,FALSE) -> 7 | U47: =VLOOKUP($C47,'RECAP SECT'!$G$6:$EV$312,41,FALSE) -> 79% | V47: =VLOOKUP($C47,'RECAP SECT'!$G$6:$EV$312,42,FALSE) -> 54% | W47: =VLOOKUP($C47,'RECAP SECT'!$G$6:$EV$312,43,FALSE) -> 52
A48: 30 | B48: MARNE-ARDENNES | C48: 5 | D48: SECTEUR REVIN | E48: =VLOOKUP($C48,'RECAP SECT'!$G$6:$EV$312,3,FALSE) -> 12.3 | F48: =VLOOKUP($C48,'RECAP SECT'!$G$6:$EV$312,26,FALSE) -> -5.51 | G48: =VLOOKUP($C48,'RECAP SECT'!$G$6:$EV$312,27,FALSE) -> 75% | H48: =VLOOKUP($C48,'RECAP SECT'!$G$6:$EV$312,28,FALSE) -> 51 | I48: =VLOOKUP($C48,'RECAP SECT'!$G$6:$EV$312,29,FALSE) -> 3.00 | J48: =VLOOKUP($C48,'RECAP SECT'!$G$6:$EV$312,30,FALSE) -> 68% | K48: =VLOOKUP($C48,'RECAP SECT'!$G$6:$EV$312,31,FALSE) -> 20 | L48: =VLOOKUP($C48,'RECAP SECT'!$G$6:$EV$312,32,FALSE) -> 3.40 | M48: =VLOOKUP($C48,'RECAP SECT'!$G$6:$EV$312,33,FALSE) -> 61% | N48: =VLOOKUP($C48,'RECAP SECT'!$G$6:$EV$312,34,FALSE) -> 20 | O48: =VLOOKUP($C48,'RECAP SECT'!$G$6:$EV$312,35,FALSE) -> 0.49 | P48: =VLOOKUP($C48,'RECAP SECT'!$G$6:$EV$312,36,FALSE) -> 88% | Q48: =VLOOKUP($C48,'RECAP SECT'!$G$6:$EV$312,37,FALSE) -> 33 | R48: =VLOOKUP($C48,'RECAP SECT'!$G$6:$EV$312,38,FALSE) -> 60% | S48: =VLOOKUP($C48,'RECAP SECT'!$G$6:$EV$312,39,FALSE) -> 24% | T48: =VLOOKUP($C48,'RECAP SECT'!$G$6:$EV$312,40,FALSE) -> 6 | U48: =VLOOKUP($C48,'RECAP SECT'!$G$6:$EV$312,41,FALSE) -> 63% | V48: =VLOOKUP($C48,'RECAP SECT'!$G$6:$EV$312,42,FALSE) -> 38% | W48: =VLOOKUP($C48,'RECAP SECT'!$G$6:$EV$312,43,FALSE) -> 16
A49: 30 | B49: MARNE-ARDENNES | C49: 3 | D49: SECTEUR SEDAN | E49: =VLOOKUP($C49,'RECAP SECT'!$G$6:$EV$312,3,FALSE) -> 16.8 | F49: =VLOOKUP($C49,'RECAP SECT'!$G$6:$EV$312,26,FALSE) -> -8.67 | G49: =VLOOKUP($C49,'RECAP SECT'!$G$6:$EV$312,27,FALSE) -> 150% | H49: =VLOOKUP($C49,'RECAP SECT'!$G$6:$EV$312,28,FALSE) -> 77 | I49: =VLOOKUP($C49,'RECAP SECT'!$G$6:$EV$312,29,FALSE) -> 5.05 | J49: =VLOOKUP($C49,'RECAP SECT'!$G$6:$EV$312,30,FALSE) -> 47% | K49: =VLOOKUP($C49,'RECAP SECT'!$G$6:$EV$312,31,FALSE) -> 6 | L49: =VLOOKUP($C49,'RECAP SECT'!$G$6:$EV$312,32,FALSE) -> 2.02 | M49: =VLOOKUP($C49,'RECAP SECT'!$G$6:$EV$312,33,FALSE) -> 77% | N49: =VLOOKUP($C49,'RECAP SECT'!$G$6:$EV$312,34,FALSE) -> 33 | O49: =VLOOKUP($C49,'RECAP SECT'!$G$6:$EV$312,35,FALSE) -> -0.06 | P49: =VLOOKUP($C49,'RECAP SECT'!$G$6:$EV$312,36,FALSE) -> 101% | Q49: =VLOOKUP($C49,'RECAP SECT'!$G$6:$EV$312,37,FALSE) -> 55 | R49: =VLOOKUP($C49,'RECAP SECT'!$G$6:$EV$312,38,FALSE) -> 23% | S49: =VLOOKUP($C49,'RECAP SECT'!$G$6:$EV$312,39,FALSE) -> 51% | T49: =VLOOKUP($C49,'RECAP SECT'!$G$6:$EV$312,40,FALSE) -> 28 | U49: =VLOOKUP($C49,'RECAP SECT'!$G$6:$EV$312,41,FALSE) -> 85% | V49: =VLOOKUP($C49,'RECAP SECT'!$G$6:$EV$312,42,FALSE) -> 60% | W49: =VLOOKUP($C49,'RECAP SECT'!$G$6:$EV$312,43,FALSE) -> 66
A50: 30 | B50: MARNE-ARDENNES | C50: 8 | D50: SECTEUR SEZANNE | E50: =VLOOKUP($C50,'RECAP SECT'!$G$6:$EV$312,3,FALSE) -> 12.8 | F50: =VLOOKUP($C50,'RECAP SECT'!$G$6:$EV$312,26,FALSE) -> -3.13 | G50: =VLOOKUP($C50,'RECAP SECT'!$G$6:$EV$312,27,FALSE) -> 19% | H50: =VLOOKUP($C50,'RECAP SECT'!$G$6:$EV$312,28,FALSE) -> 7 | I50: =VLOOKUP($C50,'RECAP SECT'!$G$6:$EV$312,29,FALSE) -> 0.86 | J50: =VLOOKUP($C50,'RECAP SECT'!$G$6:$EV$312,30,FALSE) -> 91% | K50: =VLOOKUP($C50,'RECAP SECT'!$G$6:$EV$312,31,FALSE) -> 52 | L50: =VLOOKUP($C50,'RECAP SECT'!$G$6:$EV$312,32,FALSE) -> 1.10 | M50: =VLOOKUP($C50,'RECAP SECT'!$G$6:$EV$312,33,FALSE) -> 87% | N50: =VLOOKUP($C50,'RECAP SECT'!$G$6:$EV$312,34,FALSE) -> 49 | O50: =VLOOKUP($C50,'RECAP SECT'!$G$6:$EV$312,35,FALSE) -> 0.70 | P50: =VLOOKUP($C50,'RECAP SECT'!$G$6:$EV$312,36,FALSE) -> 83% | Q50: =VLOOKUP($C50,'RECAP SECT'!$G$6:$EV$312,37,FALSE) -> 28 | R50: =VLOOKUP($C50,'RECAP SECT'!$G$6:$EV$312,38,FALSE) -> -2% | S50: =VLOOKUP($C50,'RECAP SECT'!$G$6:$EV$312,39,FALSE) -> 70% | T50: =VLOOKUP($C50,'RECAP SECT'!$G$6:$EV$312,40,FALSE) -> 72 | U50: =VLOOKUP($C50,'RECAP SECT'!$G$6:$EV$312,41,FALSE) -> 70% | V50: =VLOOKUP($C50,'RECAP SECT'!$G$6:$EV$312,42,FALSE) -> 45% | W50: =VLOOKUP($C50,'RECAP SECT'!$G$6:$EV$312,43,FALSE) -> 32
A51: 30 | B51: MARNE-ARDENNES | C51: 12 | D51: SECTEUR TINQUEUX | E51: =VLOOKUP($C51,'RECAP SECT'!$G$6:$EV$312,3,FALSE) -> 12.2 | F51: =VLOOKUP($C51,'RECAP SECT'!$G$6:$EV$312,26,FALSE) -> -6.54 | G51: =VLOOKUP($C51,'RECAP SECT'!$G$6:$EV$312,27,FALSE) -> 100% | H51: =VLOOKUP($C51,'RECAP SECT'!$G$6:$EV$312,28,FALSE) -> 69 | I51: =VLOOKUP($C51,'RECAP SECT'!$G$6:$EV$312,29,FALSE) -> 5.56 | J51: =VLOOKUP($C51,'RECAP SECT'!$G$6:$EV$312,30,FALSE) -> 41% | K51: =VLOOKUP($C51,'RECAP SECT'!$G$6:$EV$312,31,FALSE) -> 5 | L51: =VLOOKUP($C51,'RECAP SECT'!$G$6:$EV$312,32,FALSE) -> 0.90 | M51: =VLOOKUP($C51,'RECAP SECT'!$G$6:$EV$312,33,FALSE) -> 90% | N51: =VLOOKUP($C51,'RECAP SECT'!$G$6:$EV$312,34,FALSE) -> 54 | O51: =VLOOKUP($C51,'RECAP SECT'!$G$6:$EV$312,35,FALSE) -> -0.41 | P51: =VLOOKUP($C51,'RECAP SECT'!$G$6:$EV$312,36,FALSE) -> 110% | Q51: =VLOOKUP($C51,'RECAP SECT'!$G$6:$EV$312,37,FALSE) -> 67 | R51: =VLOOKUP($C51,'RECAP SECT'!$G$6:$EV$312,38,FALSE) -> 36% | S51: =VLOOKUP($C51,'RECAP SECT'!$G$6:$EV$312,39,FALSE) -> 42% | T51: =VLOOKUP($C51,'RECAP SECT'!$G$6:$EV$312,40,FALSE) -> 13 | U51: =VLOOKUP($C51,'RECAP SECT'!$G$6:$EV$312,41,FALSE) -> 76% | V51: =VLOOKUP($C51,'RECAP SECT'!$G$6:$EV$312,42,FALSE) -> 51% | W51: =VLOOKUP($C51,'RECAP SECT'!$G$6:$EV$312,43,FALSE) -> 47
A52: 30 | B52: MARNE-ARDENNES | C52: 7 | D52: SECTEUR VITRY LE FRANCOIS | E52: =VLOOKUP($C52,'RECAP SECT'!$G$6:$EV$312,3,FALSE) -> 10.9 | F52: =VLOOKUP($C52,'RECAP SECT'!$G$6:$EV$312,26,FALSE) -> -4.50 | G52: =VLOOKUP($C52,'RECAP SECT'!$G$6:$EV$312,27,FALSE) -> 51% | H52: =VLOOKUP($C52,'RECAP SECT'!$G$6:$EV$312,28,FALSE) -> 25 | I52: =VLOOKUP($C52,'RECAP SECT'!$G$6:$EV$312,29,FALSE) -> 3.31 | J52: =VLOOKUP($C52,'RECAP SECT'!$G$6:$EV$312,30,FALSE) -> 65% | K52: =VLOOKUP($C52,'RECAP SECT'!$G$6:$EV$312,31,FALSE) -> 17 | L52: =VLOOKUP($C52,'RECAP SECT'!$G$6:$EV$312,32,FALSE) -> 1.47 | M52: =VLOOKUP($C52,'RECAP SECT'!$G$6:$EV$312,33,FALSE) -> 83% | N52: =VLOOKUP($C52,'RECAP SECT'!$G$6:$EV$312,34,FALSE) -> 43 | O52: =VLOOKUP($C52,'RECAP SECT'!$G$6:$EV$312,35,FALSE) -> 0.55 | P52: =VLOOKUP($C52,'RECAP SECT'!$G$6:$EV$312,36,FALSE) -> 86% | Q52: =VLOOKUP($C52,'RECAP SECT'!$G$6:$EV$312,37,FALSE) -> 31 | R52: =VLOOKUP($C52,'RECAP SECT'!$G$6:$EV$312,38,FALSE) -> -70% | S52: =VLOOKUP($C52,'RECAP SECT'!$G$6:$EV$312,39,FALSE) -> 120% | T52: =VLOOKUP($C52,'RECAP SECT'!$G$6:$EV$312,40,FALSE) -> 76 | U52: =VLOOKUP($C52,'RECAP SECT'!$G$6:$EV$312,41,FALSE) -> 81% | V52: =VLOOKUP($C52,'RECAP SECT'!$G$6:$EV$312,42,FALSE) -> 56% | W52: =VLOOKUP($C52,'RECAP SECT'!$G$6:$EV$312,43,FALSE) -> 57
A53: 110 | B53: MEURTHE ET MOSELLE MEUSE | C53: 32 | D53: SECTEUR BAR LE DUC | E53: =VLOOKUP($C53,'RECAP SECT'!$G$6:$EV$312,3,FALSE) -> 17.6 | F53: =VLOOKUP($C53,'RECAP SECT'!$G$6:$EV$312,26,FALSE) -> -5.29 | G53: =VLOOKUP($C53,'RECAP SECT'!$G$6:$EV$312,27,FALSE) -> 70% | H53: =VLOOKUP($C53,'RECAP SECT'!$G$6:$EV$312,28,FALSE) -> 42 | I53: =VLOOKUP($C53,'RECAP SECT'!$G$6:$EV$312,29,FALSE) -> 2.73 | J53: =VLOOKUP($C53,'RECAP SECT'!$G$6:$EV$312,30,FALSE) -> 71% | K53: =VLOOKUP($C53,'RECAP SECT'!$G$6:$EV$312,31,FALSE) -> 26 | L53: =VLOOKUP($C53,'RECAP SECT'!$G$6:$EV$312,32,FALSE) -> 1.02 | M53: =VLOOKUP($C53,'RECAP SECT'!$G$6:$EV$312,33,FALSE) -> 88% | N53: =VLOOKUP($C53,'RECAP SECT'!$G$6:$EV$312,34,FALSE) -> 50 | O53: =VLOOKUP($C53,'RECAP SECT'!$G$6:$EV$312,35,FALSE) -> 0.00 | P53: =VLOOKUP($C53,'RECAP SECT'!$G$6:$EV$312,36,FALSE) -> 100% | Q53: =VLOOKUP($C53,'RECAP SECT'!$G$6:$EV$312,37,FALSE) -> 51 | R53: =VLOOKUP($C53,'RECAP SECT'!$G$6:$EV$312,38,FALSE) -> 29% | S53: =VLOOKUP($C53,'RECAP SECT'!$G$6:$EV$312,39,FALSE) -> 47% | T53: =VLOOKUP($C53,'RECAP SECT'!$G$6:$EV$312,40,FALSE) -> 19 | U53: =VLOOKUP($C53,'RECAP SECT'!$G$6:$EV$312,41,FALSE) -> 75% | V53: =VLOOKUP($C53,'RECAP SECT'!$G$6:$EV$312,42,FALSE) -> 50% | W53: =VLOOKUP($C53,'RECAP SECT'!$G$6:$EV$312,43,FALSE) -> 43
A54: 110 | B54: MEURTHE ET MOSELLE MEUSE | C54: 33 | D54: SECTEUR COMMERCY | E54: =VLOOKUP($C54,'RECAP SECT'!$G$6:$EV$312,3,FALSE) -> 9.5 | F54: =VLOOKUP($C54,'RECAP SECT'!$G$6:$EV$312,26,FALSE) -> -8.49 | G54: =VLOOKUP($C54,'RECAP SECT'!$G$6:$EV$312,27,FALSE) -> 146% | H54: =VLOOKUP($C54,'RECAP SECT'!$G$6:$EV$312,28,FALSE) -> 76 | I54: =VLOOKUP($C54,'RECAP SECT'!$G$6:$EV$312,29,FALSE) -> 0.73 | J54: =VLOOKUP($C54,'RECAP SECT'!$G$6:$EV$312,30,FALSE) -> 92% | K54: =VLOOKUP($C54,'RECAP SECT'!$G$6:$EV$312,31,FALSE) -> 55 | L54: =VLOOKUP($C54,'RECAP SECT'!$G$6:$EV$312,32,FALSE) -> 0.73 | M54: =VLOOKUP($C54,'RECAP SECT'!$G$6:$EV$312,33,FALSE) -> 92% | N54: =VLOOKUP($C54,'RECAP SECT'!$G$6:$EV$312,34,FALSE) -> 57 | O54: =VLOOKUP($C54,'RECAP SECT'!$G$6:$EV$312,35,FALSE) -> -1.36 | P54: =VLOOKUP($C54,'RECAP SECT'!$G$6:$EV$312,36,FALSE) -> 133% | Q54: =VLOOKUP($C54,'RECAP SECT'!$G$6:$EV$312,37,FALSE) -> 77 | R54: =VLOOKUP($C54,'RECAP SECT'!$G$6:$EV$312,38,FALSE) -> 20% | S54: =VLOOKUP($C54,'RECAP SECT'!$G$6:$EV$312,39,FALSE) -> 53% | T54: =VLOOKUP($C54,'RECAP SECT'!$G$6:$EV$312,40,FALSE) -> 34 | U54: =VLOOKUP($C54,'RECAP SECT'!$G$6:$EV$312,41,FALSE) -> 103% | V54: =VLOOKUP($C54,'RECAP SECT'!$G$6:$EV$312,42,FALSE) -> 78% | W54: =VLOOKUP($C54,'RECAP SECT'!$G$6:$EV$312,43,FALSE) -> 77
A55: 110 | B55: MEURTHE ET MOSELLE MEUSE | C55: 28 | D55: SECTEUR JARNY | E55: =VLOOKUP($C55,'RECAP SECT'!$G$6:$EV$312,3,FALSE) -> 14.7 | F55: =VLOOKUP($C55,'RECAP SECT'!$G$6:$EV$312,26,FALSE) -> -6.65 | G55: =VLOOKUP($C55,'RECAP SECT'!$G$6:$EV$312,27,FALSE) -> 102% | H55: =VLOOKUP($C55,'RECAP SECT'!$G$6:$EV$312,28,FALSE) -> 70 | I55: =VLOOKUP($C55,'RECAP SECT'!$G$6:$EV$312,29,FALSE) -> 0.14 | J55: =VLOOKUP($C55,'RECAP SECT'!$G$6:$EV$312,30,FALSE) -> 99% | K55: =VLOOKUP($C55,'RECAP SECT'!$G$6:$EV$312,31,FALSE) -> 69 | L55: =VLOOKUP($C55,'RECAP SECT'!$G$6:$EV$312,32,FALSE) -> 1.49 | M55: =VLOOKUP($C55,'RECAP SECT'!$G$6:$EV$312,33,FALSE) -> 83% | N55: =VLOOKUP($C55,'RECAP SECT'!$G$6:$EV$312,34,FALSE) -> 41 | O55: =VLOOKUP($C55,'RECAP SECT'!$G$6:$EV$312,35,FALSE) -> 0.00 | P55: =VLOOKUP($C55,'RECAP SECT'!$G$6:$EV$312,36,FALSE) -> 100% | Q55: =VLOOKUP($C55,'RECAP SECT'!$G$6:$EV$312,37,FALSE) -> 51 | R55: =VLOOKUP($C55,'RECAP SECT'!$G$6:$EV$312,38,FALSE) -> 6% | S55: =VLOOKUP($C55,'RECAP SECT'!$G$6:$EV$312,39,FALSE) -> 64% | T55: =VLOOKUP($C55,'RECAP SECT'!$G$6:$EV$312,40,FALSE) -> 62 | U55: =VLOOKUP($C55,'RECAP SECT'!$G$6:$EV$312,41,FALSE) -> 89% | V55: =VLOOKUP($C55,'RECAP SECT'!$G$6:$EV$312,42,FALSE) -> 64% | W55: =VLOOKUP($C55,'RECAP SECT'!$G$6:$EV$312,43,FALSE) -> 75
A56: 110 | B56: MEURTHE ET MOSELLE MEUSE | C56: 29 | D56: SECTEUR LONGWY HAUT | E56: =VLOOKUP($C56,'RECAP SECT'!$G$6:$EV$312,3,FALSE) -> 17.0 | F56: =VLOOKUP($C56,'RECAP SECT'!$G$6:$EV$312,26,FALSE) -> -5.34 | G56: =VLOOKUP($C56,'RECAP SECT'!$G$6:$EV$312,27,FALSE) -> 71% | H56: =VLOOKUP($C56,'RECAP SECT'!$G$6:$EV$312,28,FALSE) -> 45 | I56: =VLOOKUP($C56,'RECAP SECT'!$G$6:$EV$312,29,FALSE) -> 0.35 | J56: =VLOOKUP($C56,'RECAP SECT'!$G$6:$EV$312,30,FALSE) -> 96% | K56: =VLOOKUP($C56,'RECAP SECT'!$G$6:$EV$312,31,FALSE) -> 64 | L56: =VLOOKUP($C56,'RECAP SECT'!$G$6:$EV$312,32,FALSE) -> -0.41 | M56: =VLOOKUP($C56,'RECAP SECT'!$G$6:$EV$312,33,FALSE) -> 105% | N56: =VLOOKUP($C56,'RECAP SECT'!$G$6:$EV$312,34,FALSE) -> 73 | O56: =VLOOKUP($C56,'RECAP SECT'!$G$6:$EV$312,35,FALSE) -> -0.41 | P56: =VLOOKUP($C56,'RECAP SECT'!$G$6:$EV$312,36,FALSE) -> 110% | Q56: =VLOOKUP($C56,'RECAP SECT'!$G$6:$EV$312,37,FALSE) -> 68 | R56: =VLOOKUP($C56,'RECAP SECT'!$G$6:$EV$312,38,FALSE) -> 10% | S56: =VLOOKUP($C56,'RECAP SECT'!$G$6:$EV$312,39,FALSE) -> 61% | T56: =VLOOKUP($C56,'RECAP SECT'!$G$6:$EV$312,40,FALSE) -> 56 | U56: =VLOOKUP($C56,'RECAP SECT'!$G$6:$EV$312,41,FALSE) -> 89% | V56: =VLOOKUP($C56,'RECAP SECT'!$G$6:$EV$312,42,FALSE) -> 63% | W56: =VLOOKUP($C56,'RECAP SECT'!$G$6:$EV$312,43,FALSE) -> 72
A57: 110 | B57: MEURTHE ET MOSELLE MEUSE | C57: 24 | D57: SECTEUR LUNEVILLE CARNOT | E57: =VLOOKUP($C57,'RECAP SECT'!$G$6:$EV$312,3,FALSE) -> 20.6 | F57: =VLOOKUP($C57,'RECAP SECT'!$G$6:$EV$312,26,FALSE) -> -5.87 | G57: =VLOOKUP($C57,'RECAP SECT'!$G$6:$EV$312,27,FALSE) -> 84% | H57: =VLOOKUP($C57,'RECAP SECT'!$G$6:$EV$312,28,FALSE) -> 58 | I57: =VLOOKUP($C57,'RECAP SECT'!$G$6:$EV$312,29,FALSE) -> -0.53 | J57: =VLOOKUP($C57,'RECAP SECT'!$G$6:$EV$312,30,FALSE) -> 106% | K57: =VLOOKUP($C57,'RECAP SECT'!$G$6:$EV$312,31,FALSE) -> 76 | L57: =VLOOKUP($C57,'RECAP SECT'!$G$6:$EV$312,32,FALSE) -> 0.92 | M57: =VLOOKUP($C57,'RECAP SECT'!$G$6:$EV$312,33,FALSE) -> 89% | N57: =VLOOKUP($C57,'RECAP SECT'!$G$6:$EV$312,34,FALSE) -> 53 | O57: =VLOOKUP($C57,'RECAP SECT'!$G$6:$EV$312,35,FALSE) -> 0.10 | P57: =VLOOKUP($C57,'RECAP SECT'!$G$6:$EV$312,36,FALSE) -> 98% | Q57: =VLOOKUP($C57,'RECAP SECT'!$G$6:$EV$312,37,FALSE) -> 47 | R57: =VLOOKUP($C57,'RECAP SECT'!$G$6:$EV$312,38,FALSE) -> 29% | S57: =VLOOKUP($C57,'RECAP SECT'!$G$6:$EV$312,39,FALSE) -> 47% | T57: =VLOOKUP($C57,'RECAP SECT'!$G$6:$EV$312,40,FALSE) -> 18 | U57: =VLOOKUP($C57,'RECAP SECT'!$G$6:$EV$312,41,FALSE) -> 85% | V57: =VLOOKUP($C57,'RECAP SECT'!$G$6:$EV$312,42,FALSE) -> 59% | W57: =VLOOKUP($C57,'RECAP SECT'!$G$6:$EV$312,43,FALSE) -> 65
A58: 110 | B58: MEURTHE ET MOSELLE MEUSE | C58: 30 | D58: SECTEUR MONTMEDY | E58: =VLOOKUP($C58,'RECAP SECT'!$G$6:$EV$312,3,FALSE) -> 6.7 | F58: =VLOOKUP($C58,'RECAP SECT'!$G$6:$EV$312,26,FALSE) -> -3.29 | G58: =VLOOKUP($C58,'RECAP SECT'!$G$6:$EV$312,27,FALSE) -> 22% | H58: =VLOOKUP($C58,'RECAP SECT'!$G$6:$EV$312,28,FALSE) -> 9 | I58: =VLOOKUP($C58,'RECAP SECT'!$G$6:$EV$312,29,FALSE) -> 3.74 | J58: =VLOOKUP($C58,'RECAP SECT'!$G$6:$EV$312,30,FALSE) -> 61% | K58: =VLOOKUP($C58,'RECAP SECT'!$G$6:$EV$312,31,FALSE) -> 14 | L58: =VLOOKUP($C58,'RECAP SECT'!$G$6:$EV$312,32,FALSE) -> 2.69 | M58: =VLOOKUP($C58,'RECAP SECT'!$G$6:$EV$312,33,FALSE) -> 69% | N58: =VLOOKUP($C58,'RECAP SECT'!$G$6:$EV$312,34,FALSE) -> 26 | O58: =VLOOKUP($C58,'RECAP SECT'!$G$6:$EV$312,35,FALSE) -> -1.20 | P58: =VLOOKUP($C58,'RECAP SECT'!$G$6:$EV$312,36,FALSE) -> 129% | Q58: =VLOOKUP($C58,'RECAP SECT'!$G$6:$EV$312,37,FALSE) -> 76 | R58: =VLOOKUP($C58,'RECAP SECT'!$G$6:$EV$312,38,FALSE) -> 0% | S58: =VLOOKUP($C58,'RECAP SECT'!$G$6:$EV$312,39,FALSE) -> 68% | T58: =VLOOKUP($C58,'RECAP SECT'!$G$6:$EV$312,40,FALSE) -> 66 | U58: =VLOOKUP($C58,'RECAP SECT'!$G$6:$EV$312,41,FALSE) -> 70% | V58: =VLOOKUP($C58,'RECAP SECT'!$G$6:$EV$312,42,FALSE) -> 45% | W58: =VLOOKUP($C58,'RECAP SECT'!$G$6:$EV$312,43,FALSE) -> 33
A59: 110 | B59: MEURTHE ET MOSELLE MEUSE | C59: 26 | D59: SECTEUR NANCY PLACE DOMBASLE | E59: =VLOOKUP($C59,'RECAP SECT'!$G$6:$EV$312,3,FALSE) -> 36.3 | F59: =VLOOKUP($C59,'RECAP SECT'!$G$6:$EV$312,26,FALSE) -> -5.75 | G59: =VLOOKUP($C59,'RECAP SECT'!$G$6:$EV$312,27,FALSE) -> 81% | H59: =VLOOKUP($C59,'RECAP SECT'!$G$6:$EV$312,28,FALSE) -> 56 | I59: =VLOOKUP($C59,'RECAP SECT'!$G$6:$EV$312,29,FALSE) -> 1.62 | J59: =VLOOKUP($C59,'RECAP SECT'!$G$6:$EV$312,30,FALSE) -> 83% | K59: =VLOOKUP($C59,'RECAP SECT'!$G$6:$EV$312,31,FALSE) -> 38 | L59: =VLOOKUP($C59,'RECAP SECT'!$G$6:$EV$312,32,FALSE) -> 1.16 | M59: =VLOOKUP($C59,'RECAP SECT'!$G$6:$EV$312,33,FALSE) -> 87% | N59: =VLOOKUP($C59,'RECAP SECT'!$G$6:$EV$312,34,FALSE) -> 48 | O59: =VLOOKUP($C59,'RECAP SECT'!$G$6:$EV$312,35,FALSE) -> 0.88 | P59: =VLOOKUP($C59,'RECAP SECT'!$G$6:$EV$312,36,FALSE) -> 78% | Q59: =VLOOKUP($C59,'RECAP SECT'!$G$6:$EV$312,37,FALSE) -> 21 | R59: =VLOOKUP($C59,'RECAP SECT'!$G$6:$EV$312,38,FALSE) -> 33% | S59: =VLOOKUP($C59,'RECAP SECT'!$G$6:$EV$312,39,FALSE) -> 44% | T59: =VLOOKUP($C59,'RECAP SECT'!$G$6:$EV$312,40,FALSE) -> 15 | U59: =VLOOKUP($C59,'RECAP SECT'!$G$6:$EV$312,41,FALSE) -> 74% | V59: =VLOOKUP($C59,'RECAP SECT'!$G$6:$EV$312,42,FALSE) -> 49% | W59: =VLOOKUP($C59,'RECAP SECT'!$G$6:$EV$312,43,FALSE) -> 40
A60: 110 | B60: MEURTHE ET MOSELLE MEUSE | C60: 27 | D60: SECTEUR PONT A MOUSSON CENTRALE | E60: =VLOOKUP($C60,'RECAP SECT'!$G$6:$EV$312,3,FALSE) -> 28.0 | F60: =VLOOKUP($C60,'RECAP SECT'!$G$6:$EV$312,26,FALSE) -> -5.43 | G60: =VLOOKUP($C60,'RECAP SECT'!$G$6:$EV$312,27,FALSE) -> 73% | H60: =VLOOKUP($C60,'RECAP SECT'!$G$6:$EV$312,28,FALSE) -> 47 | I60: =VLOOKUP($C60,'RECAP SECT'!$G$6:$EV$312,29,FALSE) -> 0.61 | J60: =VLOOKUP($C60,'RECAP SECT'!$G$6:$EV$312,30,FALSE) -> 94% | K60: =VLOOKUP($C60,'RECAP SECT'!$G$6:$EV$312,31,FALSE) -> 58 | L60: =VLOOKUP($C60,'RECAP SECT'!$G$6:$EV$312,32,FALSE) -> -0.54 | M60: =VLOOKUP($C60,'RECAP SECT'!$G$6:$EV$312,33,FALSE) -> 106% | N60: =VLOOKUP($C60,'RECAP SECT'!$G$6:$EV$312,34,FALSE) -> 74 | O60: =VLOOKUP($C60,'RECAP SECT'!$G$6:$EV$312,35,FALSE) -> -0.75 | P60: =VLOOKUP($C60,'RECAP SECT'!$G$6:$EV$312,36,FALSE) -> 118% | Q60: =VLOOKUP($C60,'RECAP SECT'!$G$6:$EV$312,37,FALSE) -> 73 | R60: =VLOOKUP($C60,'RECAP SECT'!$G$6:$EV$312,38,FALSE) -> 38% | S60: =VLOOKUP($C60,'RECAP SECT'!$G$6:$EV$312,39,FALSE) -> 40% | T60: =VLOOKUP($C60,'RECAP SECT'!$G$6:$EV$312,40,FALSE) -> 11 | U60: =VLOOKUP($C60,'RECAP SECT'!$G$6:$EV$312,41,FALSE) -> 86% | V60: =VLOOKUP($C60,'RECAP SECT'!$G$6:$EV$312,42,FALSE) -> 61% | W60: =VLOOKUP($C60,'RECAP SECT'!$G$6:$EV$312,43,FALSE) -> 69
A61: 110 | B61: MEURTHE ET MOSELLE MEUSE | C61: 34 | D61: SECTEUR TOUL | E61: =VLOOKUP($C61,'RECAP SECT'!$G$6:$EV$312,3,FALSE) -> 22.7 | F61: =VLOOKUP($C61,'RECAP SECT'!$G$6:$EV$312,26,FALSE) -> -6.18 | G61: =VLOOKUP($C61,'RECAP SECT'!$G$6:$EV$312,27,FALSE) -> 91% | H61: =VLOOKUP($C61,'RECAP SECT'!$G$6:$EV$312,28,FALSE) -> 62 | I61: =VLOOKUP($C61,'RECAP SECT'!$G$6:$EV$312,29,FALSE) -> 0.57 | J61: =VLOOKUP($C61,'RECAP SECT'!$G$6:$EV$312,30,FALSE) -> 94% | K61: =VLOOKUP($C61,'RECAP SECT'!$G$6:$EV$312,31,FALSE) -> 59 | L61: =VLOOKUP($C61,'RECAP SECT'!$G$6:$EV$312,32,FALSE) -> 0.75 | M61: =VLOOKUP($C61,'RECAP SECT'!$G$6:$EV$312,33,FALSE) -> 91% | N61: =VLOOKUP($C61,'RECAP SECT'!$G$6:$EV$312,34,FALSE) -> 55 | O61: =VLOOKUP($C61,'RECAP SECT'!$G$6:$EV$312,35,FALSE) -> -0.22 | P61: =VLOOKUP($C61,'RECAP SECT'!$G$6:$EV$312,36,FALSE) -> 105% | Q61: =VLOOKUP($C61,'RECAP SECT'!$G$6:$EV$312,37,FALSE) -> 61 | R61: =VLOOKUP($C61,'RECAP SECT'!$G$6:$EV$312,38,FALSE) -> 5% | S61: =VLOOKUP($C61,'RECAP SECT'!$G$6:$EV$312,39,FALSE) -> 65% | T61: =VLOOKUP($C61,'RECAP SECT'!$G$6:$EV$312,40,FALSE) -> 63 | U61: =VLOOKUP($C61,'RECAP SECT'!$G$6:$EV$312,41,FALSE) -> 89% | V61: =VLOOKUP($C61,'RECAP SECT'!$G$6:$EV$312,42,FALSE) -> 64% | W61: =VLOOKUP($C61,'RECAP SECT'!$G$6:$EV$312,43,FALSE) -> 74
A62: 110 | B62: MEURTHE ET MOSELLE MEUSE | C62: 35 | D62: SECTEUR VANDOEUVRE LES NANCY | E62: =VLOOKUP($C62,'RECAP SECT'!$G$6:$EV$312,3,FALSE) -> 23.3 | F62: =VLOOKUP($C62,'RECAP SECT'!$G$6:$EV$312,26,FALSE) -> -4.67 | G62: =VLOOKUP($C62,'RECAP SECT'!$G$6:$EV$312,27,FALSE) -> 55% | H62: =VLOOKUP($C62,'RECAP SECT'!$G$6:$EV$312,28,FALSE) -> 30 | I62: =VLOOKUP($C62,'RECAP SECT'!$G$6:$EV$312,29,FALSE) -> -0.17 | J62: =VLOOKUP($C62,'RECAP SECT'!$G$6:$EV$312,30,FALSE) -> 102% | K62: =VLOOKUP($C62,'RECAP SECT'!$G$6:$EV$312,31,FALSE) -> 70 | L62: =VLOOKUP($C62,'RECAP SECT'!$G$6:$EV$312,32,FALSE) -> -0.56 | M62: =VLOOKUP($C62,'RECAP SECT'!$G$6:$EV$312,33,FALSE) -> 106% | N62: =VLOOKUP($C62,'RECAP SECT'!$G$6:$EV$312,34,FALSE) -> 76 | O62: =VLOOKUP($C62,'RECAP SECT'!$G$6:$EV$312,35,FALSE) -> 0.21 | P62: =VLOOKUP($C62,'RECAP SECT'!$G$6:$EV$312,36,FALSE) -> 95% | Q62: =VLOOKUP($C62,'RECAP SECT'!$G$6:$EV$312,37,FALSE) -> 43 | R62: =VLOOKUP($C62,'RECAP SECT'!$G$6:$EV$312,38,FALSE) -> 18% | S62: =VLOOKUP($C62,'RECAP SECT'!$G$6:$EV$312,39,FALSE) -> 55% | T62: =VLOOKUP($C62,'RECAP SECT'!$G$6:$EV$312,40,FALSE) -> 40 | U62: =VLOOKUP($C62,'RECAP SECT'!$G$6:$EV$312,41,FALSE) -> 83% | V62: =VLOOKUP($C62,'RECAP SECT'!$G$6:$EV$312,42,FALSE) -> 58% | W62: =VLOOKUP($C62,'RECAP SECT'!$G$6:$EV$312,43,FALSE) -> 62
A63: 110 | B63: MEURTHE ET MOSELLE MEUSE | C63: 31 | D63: SECTEUR VERDUN CENTRALE | E63: =VLOOKUP($C63,'RECAP SECT'!$G$6:$EV$312,3,FALSE) -> 17.6 | F63: =VLOOKUP($C63,'RECAP SECT'!$G$6:$EV$312,26,FALSE) -> -6.26 | G63: =VLOOKUP($C63,'RECAP SECT'!$G$6:$EV$312,27,FALSE) -> 93% | H63: =VLOOKUP($C63,'RECAP SECT'!$G$6:$EV$312,28,FALSE) -> 65 | I63: =VLOOKUP($C63,'RECAP SECT'!$G$6:$EV$312,29,FALSE) -> 0.46 | J63: =VLOOKUP($C63,'RECAP SECT'!$G$6:$EV$312,30,FALSE) -> 95% | K63: =VLOOKUP($C63,'RECAP SECT'!$G$6:$EV$312,31,FALSE) -> 61 | L63: =VLOOKUP($C63,'RECAP SECT'!$G$6:$EV$312,32,FALSE) -> 0.40 | M63: =VLOOKUP($C63,'RECAP SECT'!$G$6:$EV$312,33,FALSE) -> 95% | N63: =VLOOKUP($C63,'RECAP SECT'!$G$6:$EV$312,34,FALSE) -> 65 | O63: =VLOOKUP($C63,'RECAP SECT'!$G$6:$EV$312,35,FALSE) -> -0.46 | P63: =VLOOKUP($C63,'RECAP SECT'!$G$6:$EV$312,36,FALSE) -> 111% | Q63: =VLOOKUP($C63,'RECAP SECT'!$G$6:$EV$312,37,FALSE) -> 70 | R63: =VLOOKUP($C63,'RECAP SECT'!$G$6:$EV$312,38,FALSE) -> 25% | S63: =VLOOKUP($C63,'RECAP SECT'!$G$6:$EV$312,39,FALSE) -> 50% | T63: =VLOOKUP($C63,'RECAP SECT'!$G$6:$EV$312,40,FALSE) -> 24 | U63: =VLOOKUP($C63,'RECAP SECT'!$G$6:$EV$312,41,FALSE) -> 89% | V63: =VLOOKUP($C63,'RECAP SECT'!$G$6:$EV$312,42,FALSE) -> 64% | W63: =VLOOKUP($C63,'RECAP SECT'!$G$6:$EV$312,43,FALSE) -> 73
A64: 110 | B64: MEURTHE ET MOSELLE MEUSE | C64: 36 | D64: SECTEUR VILLERS GENERAL LECLERC | E64: =VLOOKUP($C64,'RECAP SECT'!$G$6:$EV$312,3,FALSE) -> 26.5 | F64: =VLOOKUP($C64,'RECAP SECT'!$G$6:$EV$312,26,FALSE) -> -6.04 | G64: =VLOOKUP($C64,'RECAP SECT'!$G$6:$EV$312,27,FALSE) -> 88% | H64: =VLOOKUP($C64,'RECAP SECT'!$G$6:$EV$312,28,FALSE) -> 61 | I64: =VLOOKUP($C64,'RECAP SECT'!$G$6:$EV$312,29,FALSE) -> 0.68 | J64: =VLOOKUP($C64,'RECAP SECT'!$G$6:$EV$312,30,FALSE) -> 93% | K64: =VLOOKUP($C64,'RECAP SECT'!$G$6:$EV$312,31,FALSE) -> 57 | L64: =VLOOKUP($C64,'RECAP SECT'!$G$6:$EV$312,32,FALSE) -> 3.21 | M64: =VLOOKUP($C64,'RECAP SECT'!$G$6:$EV$312,33,FALSE) -> 63% | N64: =VLOOKUP($C64,'RECAP SECT'!$G$6:$EV$312,34,FALSE) -> 23 | O64: =VLOOKUP($C64,'RECAP SECT'!$G$6:$EV$312,35,FALSE) -> -0.11 | P64: =VLOOKUP($C64,'RECAP SECT'!$G$6:$EV$312,36,FALSE) -> 103% | Q64: =VLOOKUP($C64,'RECAP SECT'!$G$6:$EV$312,37,FALSE) -> 57 | R64: =VLOOKUP($C64,'RECAP SECT'!$G$6:$EV$312,38,FALSE) -> 15% | S64: =VLOOKUP($C64,'RECAP SECT'!$G$6:$EV$312,39,FALSE) -> 57% | T64: =VLOOKUP($C64,'RECAP SECT'!$G$6:$EV$312,40,FALSE) -> 44 | U64: =VLOOKUP($C64,'RECAP SECT'!$G$6:$EV$312,41,FALSE) -> 81% | V64: =VLOOKUP($C64,'RECAP SECT'!$G$6:$EV$312,42,FALSE) -> 56% | W64: =VLOOKUP($C64,'RECAP SECT'!$G$6:$EV$312,43,FALSE) -> 56
A65: 160 | B65: MOSELLE | C65: 47 | D65: SECTEUR BASSE YUTZ | E65: =VLOOKUP($C65,'RECAP SECT'!$G$6:$EV$312,3,FALSE) -> 15.1 | F65: =VLOOKUP($C65,'RECAP SECT'!$G$6:$EV$312,26,FALSE) -> -4.23 | G65: =VLOOKUP($C65,'RECAP SECT'!$G$6:$EV$312,27,FALSE) -> 45% | H65: =VLOOKUP($C65,'RECAP SECT'!$G$6:$EV$312,28,FALSE) -> 19 | I65: =VLOOKUP($C65,'RECAP SECT'!$G$6:$EV$312,29,FALSE) -> 2.71 | J65: =VLOOKUP($C65,'RECAP SECT'!$G$6:$EV$312,30,FALSE) -> 71% | K65: =VLOOKUP($C65,'RECAP SECT'!$G$6:$EV$312,31,FALSE) -> 27 | L65: =VLOOKUP($C65,'RECAP SECT'!$G$6:$EV$312,32,FALSE) -> 4.89 | M65: =VLOOKUP($C65,'RECAP SECT'!$G$6:$EV$312,33,FALSE) -> 44% | N65: =VLOOKUP($C65,'RECAP SECT'!$G$6:$EV$312,34,FALSE) -> 14 | O65: =VLOOKUP($C65,'RECAP SECT'!$G$6:$EV$312,35,FALSE) -> 1.25 | P65: =VLOOKUP($C65,'RECAP SECT'!$G$6:$EV$312,36,FALSE) -> 69% | Q65: =VLOOKUP($C65,'RECAP SECT'!$G$6:$EV$312,37,FALSE) -> 16 | R65: =VLOOKUP($C65,'RECAP SECT'!$G$6:$EV$312,38,FALSE) -> 0% | S65: =VLOOKUP($C65,'RECAP SECT'!$G$6:$EV$312,39,FALSE) -> 68% | T65: =VLOOKUP($C65,'RECAP SECT'!$G$6:$EV$312,40,FALSE) -> 66 | U65: =VLOOKUP($C65,'RECAP SECT'!$G$6:$EV$312,41,FALSE) -> 60% | V65: =VLOOKUP($C65,'RECAP SECT'!$G$6:$EV$312,42,FALSE) -> 34% | W65: =VLOOKUP($C65,'RECAP SECT'!$G$6:$EV$312,43,FALSE) -> 13
A66: 160 | B66: MOSELLE | C66: 39 | D66: SECTEUR DIEUZE | E66: =VLOOKUP($C66,'RECAP SECT'!$G$6:$EV$312,3,FALSE) -> 14.8 | F66: =VLOOKUP($C66,'RECAP SECT'!$G$6:$EV$312,26,FALSE) -> -4.20 | G66: =VLOOKUP($C66,'RECAP SECT'!$G$6:$EV$312,27,FALSE) -> 44% | H66: =VLOOKUP($C66,'RECAP SECT'!$G$6:$EV$312,28,FALSE) -> 18 | I66: =VLOOKUP($C66,'RECAP SECT'!$G$6:$EV$312,29,FALSE) -> 4.20 | J66: =VLOOKUP($C66,'RECAP SECT'!$G$6:$EV$312,30,FALSE) -> 56% | K66: =VLOOKUP($C66,'RECAP SECT'!$G$6:$EV$312,31,FALSE) -> 12 | L66: =VLOOKUP($C66,'RECAP SECT'!$G$6:$EV$312,32,FALSE) -> 8.06 | M66: =VLOOKUP($C66,'RECAP SECT'!$G$6:$EV$312,33,FALSE) -> 8% | N66: =VLOOKUP($C66,'RECAP SECT'!$G$6:$EV$312,34,FALSE) -> 2 | O66: =VLOOKUP($C66,'RECAP SECT'!$G$6:$EV$312,35,FALSE) -> 1.49 | P66: =VLOOKUP($C66,'RECAP SECT'!$G$6:$EV$312,36,FALSE) -> 63% | Q66: =VLOOKUP($C66,'RECAP SECT'!$G$6:$EV$312,37,FALSE) -> 12 | R66: =VLOOKUP($C66,'RECAP SECT'!$G$6:$EV$312,38,FALSE) -> 82% | S66: =VLOOKUP($C66,'RECAP SECT'!$G$6:$EV$312,39,FALSE) -> 8% | T66: =VLOOKUP($C66,'RECAP SECT'!$G$6:$EV$312,40,FALSE) -> 2 | U66: =VLOOKUP($C66,'RECAP SECT'!$G$6:$EV$312,41,FALSE) -> 36% | V66: =VLOOKUP($C66,'RECAP SECT'!$G$6:$EV$312,42,FALSE) -> 11% | W66: =VLOOKUP($C66,'RECAP SECT'!$G$6:$EV$312,43,FALSE) -> 2
A67: 160 | B67: MOSELLE | C67: 49 | D67: SECTEUR FLORANGE | E67: =VLOOKUP($C67,'RECAP SECT'!$G$6:$EV$312,3,FALSE) -> 14.8 | F67: =VLOOKUP($C67,'RECAP SECT'!$G$6:$EV$312,26,FALSE) -> -6.48 | G67: =VLOOKUP($C67,'RECAP SECT'!$G$6:$EV$312,27,FALSE) -> 98% | H67: =VLOOKUP($C67,'RECAP SECT'!$G$6:$EV$312,28,FALSE) -> 67 | I67: =VLOOKUP($C67,'RECAP SECT'!$G$6:$EV$312,29,FALSE) -> 4.18 | J67: =VLOOKUP($C67,'RECAP SECT'!$G$6:$EV$312,30,FALSE) -> 56% | K67: =VLOOKUP($C67,'RECAP SECT'!$G$6:$EV$312,31,FALSE) -> 13 | L67: =VLOOKUP($C67,'RECAP SECT'!$G$6:$EV$312,32,FALSE) -> 6.34 | M67: =VLOOKUP($C67,'RECAP SECT'!$G$6:$EV$312,33,FALSE) -> 27% | N67: =VLOOKUP($C67,'RECAP SECT'!$G$6:$EV$312,34,FALSE) -> 6 | O67: =VLOOKUP($C67,'RECAP SECT'!$G$6:$EV$312,35,FALSE) -> 1.48 | P67: =VLOOKUP($C67,'RECAP SECT'!$G$6:$EV$312,36,FALSE) -> 64% | Q67: =VLOOKUP($C67,'RECAP SECT'!$G$6:$EV$312,37,FALSE) -> 14 | R67: =VLOOKUP($C67,'RECAP SECT'!$G$6:$EV$312,38,FALSE) -> 22% | S67: =VLOOKUP($C67,'RECAP SECT'!$G$6:$EV$312,39,FALSE) -> 52% | T67: =VLOOKUP($C67,'RECAP SECT'!$G$6:$EV$312,40,FALSE) -> 29 | U67: =VLOOKUP($C67,'RECAP SECT'!$G$6:$EV$312,41,FALSE) -> 59% | V67: =VLOOKUP($C67,'RECAP SECT'!$G$6:$EV$312,42,FALSE) -> 34% | W67: =VLOOKUP($C67,'RECAP SECT'!$G$6:$EV$312,43,FALSE) -> 12
A68: 160 | B68: MOSELLE | C68: 43 | D68: SECTEUR FORBACH CENTRALE | E68: =VLOOKUP($C68,'RECAP SECT'!$G$6:$EV$312,3,FALSE) -> 15.2 | F68: =VLOOKUP($C68,'RECAP SECT'!$G$6:$EV$312,26,FALSE) -> -3.87 | G68: =VLOOKUP($C68,'RECAP SECT'!$G$6:$EV$312,27,FALSE) -> 36% | H68: =VLOOKUP($C68,'RECAP SECT'!$G$6:$EV$312,28,FALSE) -> 13 | I68: =VLOOKUP($C68,'RECAP SECT'!$G$6:$EV$312,29,FALSE) -> 1.25 | J68: =VLOOKUP($C68,'RECAP SECT'!$G$6:$EV$312,30,FALSE) -> 87% | K68: =VLOOKUP($C68,'RECAP SECT'!$G$6:$EV$312,31,FALSE) -> 44 | L68: =VLOOKUP($C68,'RECAP SECT'!$G$6:$EV$312,32,FALSE) -> 5.71 | M68: =VLOOKUP($C68,'RECAP SECT'!$G$6:$EV$312,33,FALSE) -> 34% | N68: =VLOOKUP($C68,'RECAP SECT'!$G$6:$EV$312,34,FALSE) -> 11 | O68: =VLOOKUP($C68,'RECAP SECT'!$G$6:$EV$312,35,FALSE) -> 2.82 | P68: =VLOOKUP($C68,'RECAP SECT'!$G$6:$EV$312,36,FALSE) -> 31% | Q68: =VLOOKUP($C68,'RECAP SECT'!$G$6:$EV$312,37,FALSE) -> 3 | R68: =VLOOKUP($C68,'RECAP SECT'!$G$6:$EV$312,38,FALSE) -> 22% | S68: =VLOOKUP($C68,'RECAP SECT'!$G$6:$EV$312,39,FALSE) -> 52% | T68: =VLOOKUP($C68,'RECAP SECT'!$G$6:$EV$312,40,FALSE) -> 29 | U68: =VLOOKUP($C68,'RECAP SECT'!$G$6:$EV$312,41,FALSE) -> 48% | V68: =VLOOKUP($C68,'RECAP SECT'!$G$6:$EV$312,42,FALSE) -> 23% | W68: =VLOOKUP($C68,'RECAP SECT'!$G$6:$EV$312,43,FALSE) -> 7
A69: 160 | B69: MOSELLE | C69: 44 | D69: SECTEUR HAGONDANGE | E69: =VLOOKUP($C69,'RECAP SECT'!$G$6:$EV$312,3,FALSE) -> 22.3 | F69: =VLOOKUP($C69,'RECAP SECT'!$G$6:$EV$312,26,FALSE) -> -4.31 | G69: =VLOOKUP($C69,'RECAP SECT'!$G$6:$EV$312,27,FALSE) -> 47% | H69: =VLOOKUP($C69,'RECAP SECT'!$G$6:$EV$312,28,FALSE) -> 21 | I69: =VLOOKUP($C69,'RECAP SECT'!$G$6:$EV$312,29,FALSE) -> 3.41 | J69: =VLOOKUP($C69,'RECAP SECT'!$G$6:$EV$312,30,FALSE) -> 64% | K69: =VLOOKUP($C69,'RECAP SECT'!$G$6:$EV$312,31,FALSE) -> 15 | L69: =VLOOKUP($C69,'RECAP SECT'!$G$6:$EV$312,32,FALSE) -> 8.72 | M69: =VLOOKUP($C69,'RECAP SECT'!$G$6:$EV$312,33,FALSE) -> 0% | N69: =VLOOKUP($C69,'RECAP SECT'!$G$6:$EV$312,34,FALSE) -> 1 | O69: =VLOOKUP($C69,'RECAP SECT'!$G$6:$EV$312,35,FALSE) -> 2.97 | P69: =VLOOKUP($C69,'RECAP SECT'!$G$6:$EV$312,36,FALSE) -> 27% | Q69: =VLOOKUP($C69,'RECAP SECT'!$G$6:$EV$312,37,FALSE) -> 2 | R69: =VLOOKUP($C69,'RECAP SECT'!$G$6:$EV$312,38,FALSE) -> 0% | S69: =VLOOKUP($C69,'RECAP SECT'!$G$6:$EV$312,39,FALSE) -> 68% | T69: =VLOOKUP($C69,'RECAP SECT'!$G$6:$EV$312,40,FALSE) -> 66 | U69: =VLOOKUP($C69,'RECAP SECT'!$G$6:$EV$312,41,FALSE) -> 41% | V69: =VLOOKUP($C69,'RECAP SECT'!$G$6:$EV$312,42,FALSE) -> 16% | W69: =VLOOKUP($C69,'RECAP SECT'!$G$6:$EV$312,43,FALSE) -> 3
A70: 160 | B70: MOSELLE | C70: 50 | D70: SECTEUR HAYANGE | E70: =VLOOKUP($C70,'RECAP SECT'!$G$6:$EV$312,3,FALSE) -> 17.3 | F70: =VLOOKUP($C70,'RECAP SECT'!$G$6:$EV$312,26,FALSE) -> -7.63 | G70: =VLOOKUP($C70,'RECAP SECT'!$G$6:$EV$312,27,FALSE) -> 125% | H70: =VLOOKUP($C70,'RECAP SECT'!$G$6:$EV$312,28,FALSE) -> 74 | I70: =VLOOKUP($C70,'RECAP SECT'!$G$6:$EV$312,29,FALSE) -> 2.49 | J70: =VLOOKUP($C70,'RECAP SECT'!$G$6:$EV$312,30,FALSE) -> 74% | K70: =VLOOKUP($C70,'RECAP SECT'!$G$6:$EV$312,31,FALSE) -> 30 | L70: =VLOOKUP($C70,'RECAP SECT'!$G$6:$EV$312,32,FALSE) -> 5.26 | M70: =VLOOKUP($C70,'RECAP SECT'!$G$6:$EV$312,33,FALSE) -> 40% | N70: =VLOOKUP($C70,'RECAP SECT'!$G$6:$EV$312,34,FALSE) -> 13 | O70: =VLOOKUP($C70,'RECAP SECT'!$G$6:$EV$312,35,FALSE) -> 1.10 | P70: =VLOOKUP($C70,'RECAP SECT'!$G$6:$EV$312,36,FALSE) -> 73% | Q70: =VLOOKUP($C70,'RECAP SECT'!$G$6:$EV$312,37,FALSE) -> 19 | R70: =VLOOKUP($C70,'RECAP SECT'!$G$6:$EV$312,38,FALSE) -> 0% | S70: =VLOOKUP($C70,'RECAP SECT'!$G$6:$EV$312,39,FALSE) -> 68% | T70: =VLOOKUP($C70,'RECAP SECT'!$G$6:$EV$312,40,FALSE) -> 66 | U70: =VLOOKUP($C70,'RECAP SECT'!$G$6:$EV$312,41,FALSE) -> 76% | V70: =VLOOKUP($C70,'RECAP SECT'!$G$6:$EV$312,42,FALSE) -> 51% | W70: =VLOOKUP($C70,'RECAP SECT'!$G$6:$EV$312,43,FALSE) -> 44
A71: 160 | B71: MOSELLE | C71: 37 | D71: SECTEUR MERLEBACH | E71: =VLOOKUP($C71,'RECAP SECT'!$G$6:$EV$312,3,FALSE) -> 7.4 | F71: =VLOOKUP($C71,'RECAP SECT'!$G$6:$EV$312,26,FALSE) -> -6.71 | G71: =VLOOKUP($C71,'RECAP SECT'!$G$6:$EV$312,27,FALSE) -> 104% | H71: =VLOOKUP($C71,'RECAP SECT'!$G$6:$EV$312,28,FALSE) -> 71 | I71: =VLOOKUP($C71,'RECAP SECT'!$G$6:$EV$312,29,FALSE) -> 2.28 | J71: =VLOOKUP($C71,'RECAP SECT'!$G$6:$EV$312,30,FALSE) -> 76% | K71: =VLOOKUP($C71,'RECAP SECT'!$G$6:$EV$312,31,FALSE) -> 33 | L71: =VLOOKUP($C71,'RECAP SECT'!$G$6:$EV$312,32,FALSE) -> 6.18 | M71: =VLOOKUP($C71,'RECAP SECT'!$G$6:$EV$312,33,FALSE) -> 29% | N71: =VLOOKUP($C71,'RECAP SECT'!$G$6:$EV$312,34,FALSE) -> 8 | O71: =VLOOKUP($C71,'RECAP SECT'!$G$6:$EV$312,35,FALSE) -> 1.61 | P71: =VLOOKUP($C71,'RECAP SECT'!$G$6:$EV$312,36,FALSE) -> 60% | Q71: =VLOOKUP($C71,'RECAP SECT'!$G$6:$EV$312,37,FALSE) -> 10 | R71: =VLOOKUP($C71,'RECAP SECT'!$G$6:$EV$312,38,FALSE) -> -110% | S71: =VLOOKUP($C71,'RECAP SECT'!$G$6:$EV$312,39,FALSE) -> 150% | T71: =VLOOKUP($C71,'RECAP SECT'!$G$6:$EV$312,40,FALSE) -> 77 | U71: =VLOOKUP($C71,'RECAP SECT'!$G$6:$EV$312,41,FALSE) -> 84% | V71: =VLOOKUP($C71,'RECAP SECT'!$G$6:$EV$312,42,FALSE) -> 59% | W71: =VLOOKUP($C71,'RECAP SECT'!$G$6:$EV$312,43,FALSE) -> 63
A72: 160 | B72: MOSELLE | C72: 45 | D72: SECTEUR METZ REPUBLIQUE | E72: =VLOOKUP($C72,'RECAP SECT'!$G$6:$EV$312,3,FALSE) -> 34.9 | F72: =VLOOKUP($C72,'RECAP SECT'!$G$6:$EV$312,26,FALSE) -> -5.64 | G72: =VLOOKUP($C72,'RECAP SECT'!$G$6:$EV$312,27,FALSE) -> 78% | H72: =VLOOKUP($C72,'RECAP SECT'!$G$6:$EV$312,28,FALSE) -> 54 | I72: =VLOOKUP($C72,'RECAP SECT'!$G$6:$EV$312,29,FALSE) -> 2.78 | J72: =VLOOKUP($C72,'RECAP SECT'!$G$6:$EV$312,30,FALSE) -> 71% | K72: =VLOOKUP($C72,'RECAP SECT'!$G$6:$EV$312,31,FALSE) -> 23 | L72: =VLOOKUP($C72,'RECAP SECT'!$G$6:$EV$312,32,FALSE) -> 7.53 | M72: =VLOOKUP($C72,'RECAP SECT'!$G$6:$EV$312,33,FALSE) -> 14% | N72: =VLOOKUP($C72,'RECAP SECT'!$G$6:$EV$312,34,FALSE) -> 4 | O72: =VLOOKUP($C72,'RECAP SECT'!$G$6:$EV$312,35,FALSE) -> 2.52 | P72: =VLOOKUP($C72,'RECAP SECT'!$G$6:$EV$312,36,FALSE) -> 38% | Q72: =VLOOKUP($C72,'RECAP SECT'!$G$6:$EV$312,37,FALSE) -> 6 | R72: =VLOOKUP($C72,'RECAP SECT'!$G$6:$EV$312,38,FALSE) -> 64% | S72: =VLOOKUP($C72,'RECAP SECT'!$G$6:$EV$312,39,FALSE) -> 21% | T72: =VLOOKUP($C72,'RECAP SECT'!$G$6:$EV$312,40,FALSE) -> 4 | U72: =VLOOKUP($C72,'RECAP SECT'!$G$6:$EV$312,41,FALSE) -> 44% | V72: =VLOOKUP($C72,'RECAP SECT'!$G$6:$EV$312,42,FALSE) -> 19% | W72: =VLOOKUP($C72,'RECAP SECT'!$G$6:$EV$312,43,FALSE) -> 4
A73: 160 | B73: MOSELLE | C73: 46 | D73: SECTEUR METZ SAINT LOUIS | E73: =VLOOKUP($C73,'RECAP SECT'!$G$6:$EV$312,3,FALSE) -> 30.9 | F73: =VLOOKUP($C73,'RECAP SECT'!$G$6:$EV$312,26,FALSE) -> -5.83 | G73: =VLOOKUP($C73,'RECAP SECT'!$G$6:$EV$312,27,FALSE) -> 83% | H73: =VLOOKUP($C73,'RECAP SECT'!$G$6:$EV$312,28,FALSE) -> 57 | I73: =VLOOKUP($C73,'RECAP SECT'!$G$6:$EV$312,29,FALSE) -> 2.95 | J73: =VLOOKUP($C73,'RECAP SECT'!$G$6:$EV$312,30,FALSE) -> 69% | K73: =VLOOKUP($C73,'RECAP SECT'!$G$6:$EV$312,31,FALSE) -> 21 | L73: =VLOOKUP($C73,'RECAP SECT'!$G$6:$EV$312,32,FALSE) -> 4.86 | M73: =VLOOKUP($C73,'RECAP SECT'!$G$6:$EV$312,33,FALSE) -> 44% | N73: =VLOOKUP($C73,'RECAP SECT'!$G$6:$EV$312,34,FALSE) -> 15 | O73: =VLOOKUP($C73,'RECAP SECT'!$G$6:$EV$312,35,FALSE) -> 2.62 | P73: =VLOOKUP($C73,'RECAP SECT'!$G$6:$EV$312,36,FALSE) -> 36% | Q73: =VLOOKUP($C73,'RECAP SECT'!$G$6:$EV$312,37,FALSE) -> 5 | R73: =VLOOKUP($C73,'RECAP SECT'!$G$6:$EV$312,38,FALSE) -> 24% | S73: =VLOOKUP($C73,'RECAP SECT'!$G$6:$EV$312,39,FALSE) -> 50% | T73: =VLOOKUP($C73,'RECAP SECT'!$G$6:$EV$312,40,FALSE) -> 25 | U73: =VLOOKUP($C73,'RECAP SECT'!$G$6:$EV$312,41,FALSE) -> 56% | V73: =VLOOKUP($C73,'RECAP SECT'!$G$6:$EV$312,42,FALSE) -> 31% | W73: =VLOOKUP($C73,'RECAP SECT'!$G$6:$EV$312,43,FALSE) -> 10
A74: 160 | B74: MOSELLE | C74: 41 | D74: SECTEUR MONTIGNY LES METZ | E74: =VLOOKUP($C74,'RECAP SECT'!$G$6:$EV$312,3,FALSE) -> 19.5 | F74: =VLOOKUP($C74,'RECAP SECT'!$G$6:$EV$312,26,FALSE) -> -6.87 | G74: =VLOOKUP($C74,'RECAP SECT'!$G$6:$EV$312,27,FALSE) -> 107% | H74: =VLOOKUP($C74,'RECAP SECT'!$G$6:$EV$312,28,FALSE) -> 72 | I74: =VLOOKUP($C74,'RECAP SECT'!$G$6:$EV$312,29,FALSE) -> 2.67 | J74: =VLOOKUP($C74,'RECAP SECT'!$G$6:$EV$312,30,FALSE) -> 72% | K74: =VLOOKUP($C74,'RECAP SECT'!$G$6:$EV$312,31,FALSE) -> 28 | L74: =VLOOKUP($C74,'RECAP SECT'!$G$6:$EV$312,32,FALSE) -> 6.05 | M74: =VLOOKUP($C74,'RECAP SECT'!$G$6:$EV$312,33,FALSE) -> 31% | N74: =VLOOKUP($C74,'RECAP SECT'!$G$6:$EV$312,34,FALSE) -> 10 | O74: =VLOOKUP($C74,'RECAP SECT'!$G$6:$EV$312,35,FALSE) -> 1.28 | P74: =VLOOKUP($C74,'RECAP SECT'!$G$6:$EV$312,36,FALSE) -> 69% | Q74: =VLOOKUP($C74,'RECAP SECT'!$G$6:$EV$312,37,FALSE) -> 15 | R74: =VLOOKUP($C74,'RECAP SECT'!$G$6:$EV$312,38,FALSE) -> 15% | S74: =VLOOKUP($C74,'RECAP SECT'!$G$6:$EV$312,39,FALSE) -> 57% | T74: =VLOOKUP($C74,'RECAP SECT'!$G$6:$EV$312,40,FALSE) -> 44 | U74: =VLOOKUP($C74,'RECAP SECT'!$G$6:$EV$312,41,FALSE) -> 67% | V74: =VLOOKUP($C74,'RECAP SECT'!$G$6:$EV$312,42,FALSE) -> 42% | W74: =VLOOKUP($C74,'RECAP SECT'!$G$6:$EV$312,43,FALSE) -> 25
A75: 160 | B75: MOSELLE | C75: 51 | D75: SECTEUR ROMBAS | E75: =VLOOKUP($C75,'RECAP SECT'!$G$6:$EV$312,3,FALSE) -> 21.3 | F75: =VLOOKUP($C75,'RECAP SECT'!$G$6:$EV$312,26,FALSE) -> -5.63 | G75: =VLOOKUP($C75,'RECAP SECT'!$G$6:$EV$312,27,FALSE) -> 78% | H75: =VLOOKUP($C75,'RECAP SECT'!$G$6:$EV$312,28,FALSE) -> 53 | I75: =VLOOKUP($C75,'RECAP SECT'!$G$6:$EV$312,29,FALSE) -> 3.38 | J75: =VLOOKUP($C75,'RECAP SECT'!$G$6:$EV$312,30,FALSE) -> 64% | K75: =VLOOKUP($C75,'RECAP SECT'!$G$6:$EV$312,31,FALSE) -> 16 | L75: =VLOOKUP($C75,'RECAP SECT'!$G$6:$EV$312,32,FALSE) -> 4.41 | M75: =VLOOKUP($C75,'RECAP SECT'!$G$6:$EV$312,33,FALSE) -> 49% | N75: =VLOOKUP($C75,'RECAP SECT'!$G$6:$EV$312,34,FALSE) -> 18 | O75: =VLOOKUP($C75,'RECAP SECT'!$G$6:$EV$312,35,FALSE) -> 1.88 | P75: =VLOOKUP($C75,'RECAP SECT'!$G$6:$EV$312,36,FALSE) -> 54% | Q75: =VLOOKUP($C75,'RECAP SECT'!$G$6:$EV$312,37,FALSE) -> 8 | R75: =VLOOKUP($C75,'RECAP SECT'!$G$6:$EV$312,38,FALSE) -> 4% | S75: =VLOOKUP($C75,'RECAP SECT'!$G$6:$EV$312,39,FALSE) -> 65% | T75: =VLOOKUP($C75,'RECAP SECT'!$G$6:$EV$312,40,FALSE) -> 64 | U75: =VLOOKUP($C75,'RECAP SECT'!$G$6:$EV$312,41,FALSE) -> 62% | V75: =VLOOKUP($C75,'RECAP SECT'!$G$6:$EV$312,42,FALSE) -> 37% | W75: =VLOOKUP($C75,'RECAP SECT'!$G$6:$EV$312,43,FALSE) -> 15
A76: 160 | B76: MOSELLE | C76: 40 | D76: SECTEUR SAINT AVOLD | E76: =VLOOKUP($C76,'RECAP SECT'!$G$6:$EV$312,3,FALSE) -> 19.1 | F76: =VLOOKUP($C76,'RECAP SECT'!$G$6:$EV$312,26,FALSE) -> -4.81 | G76: =VLOOKUP($C76,'RECAP SECT'!$G$6:$EV$312,27,FALSE) -> 58% | H76: =VLOOKUP($C76,'RECAP SECT'!$G$6:$EV$312,28,FALSE) -> 32 | I76: =VLOOKUP($C76,'RECAP SECT'!$G$6:$EV$312,29,FALSE) -> 4.34 | J76: =VLOOKUP($C76,'RECAP SECT'!$G$6:$EV$312,30,FALSE) -> 54% | K76: =VLOOKUP($C76,'RECAP SECT'!$G$6:$EV$312,31,FALSE) -> 10 | L76: =VLOOKUP($C76,'RECAP SECT'!$G$6:$EV$312,32,FALSE) -> 7.57 | M76: =VLOOKUP($C76,'RECAP SECT'!$G$6:$EV$312,33,FALSE) -> 13% | N76: =VLOOKUP($C76,'RECAP SECT'!$G$6:$EV$312,34,FALSE) -> 3 | O76: =VLOOKUP($C76,'RECAP SECT'!$G$6:$EV$312,35,FALSE) -> 4.07 | P76: =VLOOKUP($C76,'RECAP SECT'!$G$6:$EV$312,36,FALSE) -> 0% | Q76: =VLOOKUP($C76,'RECAP SECT'!$G$6:$EV$312,37,FALSE) -> 1 | R76: =VLOOKUP($C76,'RECAP SECT'!$G$6:$EV$312,38,FALSE) -> 92% | S76: =VLOOKUP($C76,'RECAP SECT'!$G$6:$EV$312,39,FALSE) -> 0% | T76: =VLOOKUP($C76,'RECAP SECT'!$G$6:$EV$312,40,FALSE) -> 1 | U76: =VLOOKUP($C76,'RECAP SECT'!$G$6:$EV$312,41,FALSE) -> 25% | V76: =VLOOKUP($C76,'RECAP SECT'!$G$6:$EV$312,42,FALSE) -> 0% | W76: =VLOOKUP($C76,'RECAP SECT'!$G$6:$EV$312,43,FALSE) -> 1
A77: 160 | B77: MOSELLE | C77: 38 | D77: SECTEUR SARREBOURG | E77: =VLOOKUP($C77,'RECAP SECT'!$G$6:$EV$312,3,FALSE) -> 13.8 | F77: =VLOOKUP($C77,'RECAP SECT'!$G$6:$EV$312,26,FALSE) -> -4.93 | G77: =VLOOKUP($C77,'RECAP SECT'!$G$6:$EV$312,27,FALSE) -> 61% | H77: =VLOOKUP($C77,'RECAP SECT'!$G$6:$EV$312,28,FALSE) -> 35 | I77: =VLOOKUP($C77,'RECAP SECT'!$G$6:$EV$312,29,FALSE) -> 2.76 | J77: =VLOOKUP($C77,'RECAP SECT'!$G$6:$EV$312,30,FALSE) -> 71% | K77: =VLOOKUP($C77,'RECAP SECT'!$G$6:$EV$312,31,FALSE) -> 25 | L77: =VLOOKUP($C77,'RECAP SECT'!$G$6:$EV$312,32,FALSE) -> 6.38 | M77: =VLOOKUP($C77,'RECAP SECT'!$G$6:$EV$312,33,FALSE) -> 27% | N77: =VLOOKUP($C77,'RECAP SECT'!$G$6:$EV$312,34,FALSE) -> 5 | O77: =VLOOKUP($C77,'RECAP SECT'!$G$6:$EV$312,35,FALSE) -> 2.68 | P77: =VLOOKUP($C77,'RECAP SECT'!$G$6:$EV$312,36,FALSE) -> 34% | Q77: =VLOOKUP($C77,'RECAP SECT'!$G$6:$EV$312,37,FALSE) -> 4 | R77: =VLOOKUP($C77,'RECAP SECT'!$G$6:$EV$312,38,FALSE) -> 17% | S77: =VLOOKUP($C77,'RECAP SECT'!$G$6:$EV$312,39,FALSE) -> 56% | T77: =VLOOKUP($C77,'RECAP SECT'!$G$6:$EV$312,40,FALSE) -> 42 | U77: =VLOOKUP($C77,'RECAP SECT'!$G$6:$EV$312,41,FALSE) -> 50% | V77: =VLOOKUP($C77,'RECAP SECT'!$G$6:$EV$312,42,FALSE) -> 25% | W77: =VLOOKUP($C77,'RECAP SECT'!$G$6:$EV$312,43,FALSE) -> 9
A78: 160 | B78: MOSELLE | C78: 42 | D78: SECTEUR SARREGUEMINES | E78: =VLOOKUP($C78,'RECAP SECT'!$G$6:$EV$312,3,FALSE) -> 19.9 | F78: =VLOOKUP($C78,'RECAP SECT'!$G$6:$EV$312,26,FALSE) -> -3.91 | G78: =VLOOKUP($C78,'RECAP SECT'!$G$6:$EV$312,27,FALSE) -> 37% | H78: =VLOOKUP($C78,'RECAP SECT'!$G$6:$EV$312,28,FALSE) -> 14 | I78: =VLOOKUP($C78,'RECAP SECT'!$G$6:$EV$312,29,FALSE) -> 1.96 | J78: =VLOOKUP($C78,'RECAP SECT'!$G$6:$EV$312,30,FALSE) -> 79% | K78: =VLOOKUP($C78,'RECAP SECT'!$G$6:$EV$312,31,FALSE) -> 37 | L78: =VLOOKUP($C78,'RECAP SECT'!$G$6:$EV$312,32,FALSE) -> 6.22 | M78: =VLOOKUP($C78,'RECAP SECT'!$G$6:$EV$312,33,FALSE) -> 29% | N78: =VLOOKUP($C78,'RECAP SECT'!$G$6:$EV$312,34,FALSE) -> 7 | O78: =VLOOKUP($C78,'RECAP SECT'!$G$6:$EV$312,35,FALSE) -> 2.41 | P78: =VLOOKUP($C78,'RECAP SECT'!$G$6:$EV$312,36,FALSE) -> 41% | Q78: =VLOOKUP($C78,'RECAP SECT'!$G$6:$EV$312,37,FALSE) -> 7 | R78: =VLOOKUP($C78,'RECAP SECT'!$G$6:$EV$312,38,FALSE) -> 36% | S78: =VLOOKUP($C78,'RECAP SECT'!$G$6:$EV$312,39,FALSE) -> 41% | T78: =VLOOKUP($C78,'RECAP SECT'!$G$6:$EV$312,40,FALSE) -> 12 | U78: =VLOOKUP($C78,'RECAP SECT'!$G$6:$EV$312,41,FALSE) -> 45% | V78: =VLOOKUP($C78,'RECAP SECT'!$G$6:$EV$312,42,FALSE) -> 20% | W78: =VLOOKUP($C78,'RECAP SECT'!$G$6:$EV$312,43,FALSE) -> 6
A79: 160 | B79: MOSELLE | C79: 48 | D79: SECTEUR THIONVILLE CENTRALE | E79: =VLOOKUP($C79,'RECAP SECT'!$G$6:$EV$312,3,FALSE) -> 14.3 | F79: =VLOOKUP($C79,'RECAP SECT'!$G$6:$EV$312,26,FALSE) -> -5.24 | G79: =VLOOKUP($C79,'RECAP SECT'!$G$6:$EV$312,27,FALSE) -> 69% | H79: =VLOOKUP($C79,'RECAP SECT'!$G$6:$EV$312,28,FALSE) -> 40 | I79: =VLOOKUP($C79,'RECAP SECT'!$G$6:$EV$312,29,FALSE) -> 2.93 | J79: =VLOOKUP($C79,'RECAP SECT'!$G$6:$EV$312,30,FALSE) -> 69% | K79: =VLOOKUP($C79,'RECAP SECT'!$G$6:$EV$312,31,FALSE) -> 22 | L79: =VLOOKUP($C79,'RECAP SECT'!$G$6:$EV$312,32,FALSE) -> 6.14 | M79: =VLOOKUP($C79,'RECAP SECT'!$G$6:$EV$312,33,FALSE) -> 30% | N79: =VLOOKUP($C79,'RECAP SECT'!$G$6:$EV$312,34,FALSE) -> 9 | O79: =VLOOKUP($C79,'RECAP SECT'!$G$6:$EV$312,35,FALSE) -> 1.82 | P79: =VLOOKUP($C79,'RECAP SECT'!$G$6:$EV$312,36,FALSE) -> 55% | Q79: =VLOOKUP($C79,'RECAP SECT'!$G$6:$EV$312,37,FALSE) -> 9 | R79: =VLOOKUP($C79,'RECAP SECT'!$G$6:$EV$312,38,FALSE) -> 8% | S79: =VLOOKUP($C79,'RECAP SECT'!$G$6:$EV$312,39,FALSE) -> 63% | T79: =VLOOKUP($C79,'RECAP SECT'!$G$6:$EV$312,40,FALSE) -> 57 | U79: =VLOOKUP($C79,'RECAP SECT'!$G$6:$EV$312,41,FALSE) -> 57% | V79: =VLOOKUP($C79,'RECAP SECT'!$G$6:$EV$312,42,FALSE) -> 32% | W79: =VLOOKUP($C79,'RECAP SECT'!$G$6:$EV$312,43,FALSE) -> 11
A80: 80 | B80: VOSGES | C80: 57 | D80: SECTEUR EPINAL ARISTIDE BRIAND | E80: =VLOOKUP($C80,'RECAP SECT'!$G$6:$EV$312,3,FALSE) -> 21.5 | F80: =VLOOKUP($C80,'RECAP SECT'!$G$6:$EV$312,26,FALSE) -> -5.29 | G80: =VLOOKUP($C80,'RECAP SECT'!$G$6:$EV$312,27,FALSE) -> 70% | H80: =VLOOKUP($C80,'RECAP SECT'!$G$6:$EV$312,28,FALSE) -> 43 | I80: =VLOOKUP($C80,'RECAP SECT'!$G$6:$EV$312,29,FALSE) -> 1.30 | J80: =VLOOKUP($C80,'RECAP SECT'!$G$6:$EV$312,30,FALSE) -> 86% | K80: =VLOOKUP($C80,'RECAP SECT'!$G$6:$EV$312,31,FALSE) -> 41 | L80: =VLOOKUP($C80,'RECAP SECT'!$G$6:$EV$312,32,FALSE) -> 0.74 | M80: =VLOOKUP($C80,'RECAP SECT'!$G$6:$EV$312,33,FALSE) -> 91% | N80: =VLOOKUP($C80,'RECAP SECT'!$G$6:$EV$312,34,FALSE) -> 56 | O80: =VLOOKUP($C80,'RECAP SECT'!$G$6:$EV$312,35,FALSE) -> -0.14 | P80: =VLOOKUP($C80,'RECAP SECT'!$G$6:$EV$312,36,FALSE) -> 103% | Q80: =VLOOKUP($C80,'RECAP SECT'!$G$6:$EV$312,37,FALSE) -> 59 | R80: =VLOOKUP($C80,'RECAP SECT'!$G$6:$EV$312,38,FALSE) -> 26% | S80: =VLOOKUP($C80,'RECAP SECT'!$G$6:$EV$312,39,FALSE) -> 49% | T80: =VLOOKUP($C80,'RECAP SECT'!$G$6:$EV$312,40,FALSE) -> 21 | U80: =VLOOKUP($C80,'RECAP SECT'!$G$6:$EV$312,41,FALSE) -> 80% | V80: =VLOOKUP($C80,'RECAP SECT'!$G$6:$EV$312,42,FALSE) -> 55% | W80: =VLOOKUP($C80,'RECAP SECT'!$G$6:$EV$312,43,FALSE) -> 54
A81: 80 | B81: VOSGES | C81: 52 | D81: SECTEUR GERARDMER | E81: =VLOOKUP($C81,'RECAP SECT'!$G$6:$EV$312,3,FALSE) -> 22.6 | F81: =VLOOKUP($C81,'RECAP SECT'!$G$6:$EV$312,26,FALSE) -> -4.03 | G81: =VLOOKUP($C81,'RECAP SECT'!$G$6:$EV$312,27,FALSE) -> 40% | H81: =VLOOKUP($C81,'RECAP SECT'!$G$6:$EV$312,28,FALSE) -> 15 | I81: =VLOOKUP($C81,'RECAP SECT'!$G$6:$EV$312,29,FALSE) -> 2.52 | J81: =VLOOKUP($C81,'RECAP SECT'!$G$6:$EV$312,30,FALSE) -> 73% | K81: =VLOOKUP($C81,'RECAP SECT'!$G$6:$EV$312,31,FALSE) -> 29 | L81: =VLOOKUP($C81,'RECAP SECT'!$G$6:$EV$312,32,FALSE) -> 1.33 | M81: =VLOOKUP($C81,'RECAP SECT'!$G$6:$EV$312,33,FALSE) -> 85% | N81: =VLOOKUP($C81,'RECAP SECT'!$G$6:$EV$312,34,FALSE) -> 44 | O81: =VLOOKUP($C81,'RECAP SECT'!$G$6:$EV$312,35,FALSE) -> 0.40 | P81: =VLOOKUP($C81,'RECAP SECT'!$G$6:$EV$312,36,FALSE) -> 90% | Q81: =VLOOKUP($C81,'RECAP SECT'!$G$6:$EV$312,37,FALSE) -> 36 | R81: =VLOOKUP($C81,'RECAP SECT'!$G$6:$EV$312,38,FALSE) -> 48% | S81: =VLOOKUP($C81,'RECAP SECT'!$G$6:$EV$312,39,FALSE) -> 33% | T81: =VLOOKUP($C81,'RECAP SECT'!$G$6:$EV$312,40,FALSE) -> 9 | U81: =VLOOKUP($C81,'RECAP SECT'!$G$6:$EV$312,41,FALSE) -> 64% | V81: =VLOOKUP($C81,'RECAP SECT'!$G$6:$EV$312,42,FALSE) -> 39% | W81: =VLOOKUP($C81,'RECAP SECT'!$G$6:$EV$312,43,FALSE) -> 18
A82: 80 | B82: VOSGES | C82: 58 | D82: SECTEUR MIRECOURT | E82: =VLOOKUP($C82,'RECAP SECT'!$G$6:$EV$312,3,FALSE) -> 14.8 | F82: =VLOOKUP($C82,'RECAP SECT'!$G$6:$EV$312,26,FALSE) -> -3.79 | G82: =VLOOKUP($C82,'RECAP SECT'!$G$6:$EV$312,27,FALSE) -> 34% | H82: =VLOOKUP($C82,'RECAP SECT'!$G$6:$EV$312,28,FALSE) -> 12 | I82: =VLOOKUP($C82,'RECAP SECT'!$G$6:$EV$312,29,FALSE) -> 3.18 | J82: =VLOOKUP($C82,'RECAP SECT'!$G$6:$EV$312,30,FALSE) -> 66% | K82: =VLOOKUP($C82,'RECAP SECT'!$G$6:$EV$312,31,FALSE) -> 18 | L82: =VLOOKUP($C82,'RECAP SECT'!$G$6:$EV$312,32,FALSE) -> 2.57 | M82: =VLOOKUP($C82,'RECAP SECT'!$G$6:$EV$312,33,FALSE) -> 71% | N82: =VLOOKUP($C82,'RECAP SECT'!$G$6:$EV$312,34,FALSE) -> 29 | O82: =VLOOKUP($C82,'RECAP SECT'!$G$6:$EV$312,35,FALSE) -> -0.27 | P82: =VLOOKUP($C82,'RECAP SECT'!$G$6:$EV$312,36,FALSE) -> 107% | Q82: =VLOOKUP($C82,'RECAP SECT'!$G$6:$EV$312,37,FALSE) -> 63 | R82: =VLOOKUP($C82,'RECAP SECT'!$G$6:$EV$312,38,FALSE) -> 32% | S82: =VLOOKUP($C82,'RECAP SECT'!$G$6:$EV$312,39,FALSE) -> 45% | T82: =VLOOKUP($C82,'RECAP SECT'!$G$6:$EV$312,40,FALSE) -> 17 | U82: =VLOOKUP($C82,'RECAP SECT'!$G$6:$EV$312,41,FALSE) -> 65% | V82: =VLOOKUP($C82,'RECAP SECT'!$G$6:$EV$312,42,FALSE) -> 39% | W82: =VLOOKUP($C82,'RECAP SECT'!$G$6:$EV$312,43,FALSE) -> 19
A83: 80 | B83: VOSGES | C83: 54 | D83: SECTEUR RAON L ETAPE | E83: =VLOOKUP($C83,'RECAP SECT'!$G$6:$EV$312,3,FALSE) -> 15.2 | F83: =VLOOKUP($C83,'RECAP SECT'!$G$6:$EV$312,26,FALSE) -> -4.14 | G83: =VLOOKUP($C83,'RECAP SECT'!$G$6:$EV$312,27,FALSE) -> 43% | H83: =VLOOKUP($C83,'RECAP SECT'!$G$6:$EV$312,28,FALSE) -> 16 | I83: =VLOOKUP($C83,'RECAP SECT'!$G$6:$EV$312,29,FALSE) -> 1.12 | J83: =VLOOKUP($C83,'RECAP SECT'!$G$6:$EV$312,30,FALSE) -> 88% | K83: =VLOOKUP($C83,'RECAP SECT'!$G$6:$EV$312,31,FALSE) -> 46 | L83: =VLOOKUP($C83,'RECAP SECT'!$G$6:$EV$312,32,FALSE) -> 0.99 | M83: =VLOOKUP($C83,'RECAP SECT'!$G$6:$EV$312,33,FALSE) -> 89% | N83: =VLOOKUP($C83,'RECAP SECT'!$G$6:$EV$312,34,FALSE) -> 51 | O83: =VLOOKUP($C83,'RECAP SECT'!$G$6:$EV$312,35,FALSE) -> -0.39 | P83: =VLOOKUP($C83,'RECAP SECT'!$G$6:$EV$312,36,FALSE) -> 110% | Q83: =VLOOKUP($C83,'RECAP SECT'!$G$6:$EV$312,37,FALSE) -> 65 | R83: =VLOOKUP($C83,'RECAP SECT'!$G$6:$EV$312,38,FALSE) -> -15% | S83: =VLOOKUP($C83,'RECAP SECT'!$G$6:$EV$312,39,FALSE) -> 80% | T83: =VLOOKUP($C83,'RECAP SECT'!$G$6:$EV$312,40,FALSE) -> 75 | U83: =VLOOKUP($C83,'RECAP SECT'!$G$6:$EV$312,41,FALSE) -> 82% | V83: =VLOOKUP($C83,'RECAP SECT'!$G$6:$EV$312,42,FALSE) -> 57% | W83: =VLOOKUP($C83,'RECAP SECT'!$G$6:$EV$312,43,FALSE) -> 59
A84: 80 | B84: VOSGES | C84: 56 | D84: SECTEUR REMIREMONT | E84: =VLOOKUP($C84,'RECAP SECT'!$G$6:$EV$312,3,FALSE) -> 19.9 | F84: =VLOOKUP($C84,'RECAP SECT'!$G$6:$EV$312,26,FALSE) -> -5.23 | G84: =VLOOKUP($C84,'RECAP SECT'!$G$6:$EV$312,27,FALSE) -> 68% | H84: =VLOOKUP($C84,'RECAP SECT'!$G$6:$EV$312,28,FALSE) -> 39 | I84: =VLOOKUP($C84,'RECAP SECT'!$G$6:$EV$312,29,FALSE) -> 4.67 | J84: =VLOOKUP($C84,'RECAP SECT'!$G$6:$EV$312,30,FALSE) -> 51% | K84: =VLOOKUP($C84,'RECAP SECT'!$G$6:$EV$312,31,FALSE) -> 9 | L84: =VLOOKUP($C84,'RECAP SECT'!$G$6:$EV$312,32,FALSE) -> 1.21 | M84: =VLOOKUP($C84,'RECAP SECT'!$G$6:$EV$312,33,FALSE) -> 86% | N84: =VLOOKUP($C84,'RECAP SECT'!$G$6:$EV$312,34,FALSE) -> 46 | O84: =VLOOKUP($C84,'RECAP SECT'!$G$6:$EV$312,35,FALSE) -> -0.40 | P84: =VLOOKUP($C84,'RECAP SECT'!$G$6:$EV$312,36,FALSE) -> 110% | Q84: =VLOOKUP($C84,'RECAP SECT'!$G$6:$EV$312,37,FALSE) -> 66 | R84: =VLOOKUP($C84,'RECAP SECT'!$G$6:$EV$312,38,FALSE) -> 11% | S84: =VLOOKUP($C84,'RECAP SECT'!$G$6:$EV$312,39,FALSE) -> 60% | T84: =VLOOKUP($C84,'RECAP SECT'!$G$6:$EV$312,40,FALSE) -> 55 | U84: =VLOOKUP($C84,'RECAP SECT'!$G$6:$EV$312,41,FALSE) -> 75% | V84: =VLOOKUP($C84,'RECAP SECT'!$G$6:$EV$312,42,FALSE) -> 50% | W84: =VLOOKUP($C84,'RECAP SECT'!$G$6:$EV$312,43,FALSE) -> 42
A85: 80 | B85: VOSGES | C85: 55 | D85: SECTEUR SAINT DIE | E85: =VLOOKUP($C85,'RECAP SECT'!$G$6:$EV$312,3,FALSE) -> 22.2 | F85: =VLOOKUP($C85,'RECAP SECT'!$G$6:$EV$312,26,FALSE) -> -5.68 | G85: =VLOOKUP($C85,'RECAP SECT'!$G$6:$EV$312,27,FALSE) -> 79% | H85: =VLOOKUP($C85,'RECAP SECT'!$G$6:$EV$312,28,FALSE) -> 55 | I85: =VLOOKUP($C85,'RECAP SECT'!$G$6:$EV$312,29,FALSE) -> 4.69 | J85: =VLOOKUP($C85,'RECAP SECT'!$G$6:$EV$312,30,FALSE) -> 51% | K85: =VLOOKUP($C85,'RECAP SECT'!$G$6:$EV$312,31,FALSE) -> 8 | L85: =VLOOKUP($C85,'RECAP SECT'!$G$6:$EV$312,32,FALSE) -> 2.75 | M85: =VLOOKUP($C85,'RECAP SECT'!$G$6:$EV$312,33,FALSE) -> 68% | N85: =VLOOKUP($C85,'RECAP SECT'!$G$6:$EV$312,34,FALSE) -> 25 | O85: =VLOOKUP($C85,'RECAP SECT'!$G$6:$EV$312,35,FALSE) -> 0.45 | P85: =VLOOKUP($C85,'RECAP SECT'!$G$6:$EV$312,36,FALSE) -> 89% | Q85: =VLOOKUP($C85,'RECAP SECT'!$G$6:$EV$312,37,FALSE) -> 34 | R85: =VLOOKUP($C85,'RECAP SECT'!$G$6:$EV$312,38,FALSE) -> 17% | S85: =VLOOKUP($C85,'RECAP SECT'!$G$6:$EV$312,39,FALSE) -> 56% | T85: =VLOOKUP($C85,'RECAP SECT'!$G$6:$EV$312,40,FALSE) -> 42 | U85: =VLOOKUP($C85,'RECAP SECT'!$G$6:$EV$312,41,FALSE) -> 69% | V85: =VLOOKUP($C85,'RECAP SECT'!$G$6:$EV$312,42,FALSE) -> 43% | W85: =VLOOKUP($C85,'RECAP SECT'!$G$6:$EV$312,43,FALSE) -> 28
